Workbook

Sheet Info (hidden)
A1: Notes on RHP Plan Update tracker
A3: One file should be generated per region.
A4: The tracker should allow changes from what was submitted in the RHP Plan Update and cells should change to green with the exception of yellow columns for provider entry and columns used for HHSC feedback which should not change to green
A5: Each tab should have filters for the header column and freeze panes as currently included but allow changes.
A6: All cells should have text wrapping
A7: Make each row of populated data black 11 pt Calibri font with no background color
A8: Maintain different colors of header rows
A9: For populated data, show the formula so that the data is not lost when clicked inside the cell

Sheet Inputs (hidden)
B1: Red Text Means Formula Driven | D1: Yellow = Changes Frequently | H1: Blue = Don't Need to Change (after getting correct in first place)
B3: Inputs: | C3: Cell references on each output worksheet:
B4: Folder Path | C4: C:\Users\tmagee\Documents\Texas\DY7\RHP Plan Update\Submissions\RHP9\
B5: # of Output Worksheets | C5: =COUNTA(C27:C41) -> 14
B6: Key word to skip over cell | C6: SKIP | E6: File name | F6: RHP 9_364710901_WhiteRock.xlsm
B7: Password | C7: TexasPaperReporting
G9: Step 1 Start Time:
G11: Step 1 End Time:
B13: Where to output filename | C13: =CELL("address",F6) -> $F$6
B14: Start of worksheet names | C14: $B$21
B15: Start of cells | C15: $B$22
B16: Start paste cell | C16: $B$23
B17: Paste offset | C17: $B$24
B18: Worksheet to determine # of loops per file | C18: $B$25
B19: Cell to determine # of loops per file | C19: $B$26
B20: Start of Output worksheet names | C20: =CELL("address",C27) -> $C$27
B21: Number of columns to copy | C21: $B$27
B22: Number of loops | C22: $B$28
B23: Start of offset | C23: $B$29 | E23: Start of Finishing Wkshts: | F23: =CELL("address",$F$27) -> $F$27
B24: What loop output is on | C24: $B$30 | E24: Number of Sheets: | F24: =COUNTA(F$27:F$41) -> 13 | G24: =COUNTA(G$27:G$41) -> 3
C26: Output Worksheet Names | F26: Finishing Worksheets | G26: Other Visible Worksheets
C27: =MID(CELL("filename",'Contact Information_ProviderEnt'!$A$1),FIND("]",CELL("filename",'Contact Information_ProviderEnt'!$A$1))+1,255) -> Contact Information_ProviderEnt | F27: =MID(CELL("filename",'Contact Information'!$A$1),FIND("]",CELL("filename",'Contact Information'!$A$1))+1,255) -> Contact Information | G27: =MID(CELL("filename",'Category C Milestone Valuation'!$A$1),FIND("]",CELL("filename",'Category C Milestone Valuation'!$A$1))+1,255) -> Category C Milestone Valuation
C28: =MID(CELL("filename",'Contact Information_IGT Entity'!$A$1),FIND("]",CELL("filename",'Contact Information_IGT Entity'!$A$1))+1,255) -> Contact Information_IGT Entity | F28: =MID(CELL("filename",'Provider Info'!$A$1),FIND("]",CELL("filename",'Provider Info'!$A$1))+1,255) -> Provider Info | G28: =MID(CELL("filename",'Driver Diagram'!$A$1),FIND("]",CELL("filename",'Driver Diagram'!$A$1))+1,255) -> Driver Diagram
C29: =MID(CELL("filename",'Provider Info'!$A$1),FIND("]",CELL("filename",'Provider Info'!$A$1))+1,255) -> Provider Info | F29: =MID(CELL("filename",'Provider Valuation'!$A$1),FIND("]",CELL("filename",'Provider Valuation'!$A$1))+1,255) -> Provider Valuation | G29: =MID(CELL("filename",'Anchor Information Feedback'!$A$1),FIND("]",CELL("filename",'Anchor Information Feedback'!$A$1))+1,255) -> Anchor Information Feedback
C30: =MID(CELL("filename",'Provider Valuation'!$A$1),FIND("]",CELL("filename",'Provider Valuation'!$A$1))+1,255) -> Provider Valuation | F30: =MID(CELL("filename",'Category B - System'!$A$1),FIND("]",CELL("filename",'Contact Information_ProviderEnt'!$A$1))+1,255) -> Category B - System
C31: =MID(CELL("filename",'Category B - System'!$A$1),FIND("]",CELL("filename",'Contact Information_ProviderEnt'!$A$1))+1,255) -> Category B - System | F31: =MID(CELL("filename",'Category B - MLIU PPP'!$A$1),FIND("]",CELL("filename",'Contact Information_ProviderEnt'!$A$1))+1,255) -> Category B - MLIU PPP
C32: =MID(CELL("filename",'Category B - MLIU PPP'!$A$1),FIND("]",CELL("filename",'Contact Information_ProviderEnt'!$A$1))+1,255) -> Category B - MLIU PPP | F32: =MID(CELL("filename",'Category C - Hospitals & PPs'!$A$1),FIND("]",CELL("filename",'Category C - Hospitals & PPs'!$A$1))+1,255) -> Category C - Hospitals & PPs
C33: =MID(CELL("filename",'Category C - Hospitals & PPs'!$A$1),FIND("]",CELL("filename",'Category C - Hospitals & PPs'!$A$1))+1,255) -> Category C - Hospitals & PPs | F33: =MID(CELL("filename",'Category C - CMHCS & LHDs'!$A$1),FIND("]",CELL("filename",'Category C - CMHCS & LHDs'!$A$1))+1,255) -> Category C - CMHCS & LHDs
C34: =MID(CELL("filename",'Category C - CMHCS & LHDs'!$A$1),FIND("]",CELL("filename",'Category C - CMHCS & LHDs'!$A$1))+1,255) -> Category C - CMHCS & LHDs | F34: =MID(CELL("filename",'Category C - Valuation'!$A$1),FIND("]",CELL("filename",'Category C - Valuation'!$A$1))+1,255) -> Category C - Valuation
C35: =MID(CELL("filename",'Category C - Valuation'!$A$1),FIND("]",CELL("filename",'Category C - Valuation'!$A$1))+1,255) -> Category C - Valuation | F35: =MID(CELL("filename",'Category A - Project Transition'!$A$1),FIND("]",CELL("filename",'Category A - Project Transition'!$A$1))+1,255) -> Category A - Project Transition
C36: =MID(CELL("filename",'Category A - Project Transition'!$A$1),FIND("]",CELL("filename",'Category A - Project Transition'!$A$1))+1,255) -> Category A - Project Transition | F36: =MID(CELL("filename",'Category A - Core Activities'!$A$1),FIND("]",CELL("filename",'Category A - Core Activities'!$A$1))+1,255) -> Category A - Core Activities
C37: =MID(CELL("filename",'Category A - Core Activities'!$A$1),FIND("]",CELL("filename",'Category A - Core Activities'!$A$1))+1,255) -> Category A - Core Activities | F37: =MID(CELL("filename",'Category D'!$A$1),FIND("]",CELL("filename",'Category D'!$A$1))+1,255) -> Category D
C38: =MID(CELL("filename",'Category D'!$A$1),FIND("]",CELL("filename",'Category D'!$A$1))+1,255) -> Category D | F38: =MID(CELL("filename",'IGT Funding'!$A$1),FIND("]",CELL("filename",'IGT Funding'!$A$1))+1,255) -> IGT Funding
C39: =MID(CELL("filename",'IGT Funding'!$A$1),FIND("]",CELL("filename",'IGT Funding'!$A$1))+1,255) -> IGT Funding | F39: =MID(CELL("filename",'Provider Template Completion'!$A$1),FIND("]",CELL("filename",'Provider Template Completion'!$A$1))+1,255) -> Provider Template Completion
C40: =MID(CELL("filename",'Provider Template Completion'!$A$1),FIND("]",CELL("filename",'Provider Template Completion'!$A$1))+1,255) -> Provider Template Completion

Sheet Inputs_Anchor (hidden)
B1: Red Text Means Formula Driven | D1: Yellow = Changes Frequently | H1: Blue = Don't Need to Change (after getting correct in first place)
B3: Inputs: | C3: Cell references on each output worksheet:
B4: Folder Path | C4: C:\Users\tmagee\Documents\Texas\DY7\RHP Plan Update\Submissions\RHP9\Anchor\
B5: # of Output Worksheets | C5: =COUNTA(C27:C40) -> 4
B6: Key word to skip over cell | C6: SKIP | E6: File name | F6: RHP 9_Anchor Template_v04-18-2018.xlsm
B7: Password | C7: TexasPaperReporting
H12: Note: If you have already consolidated the provicer forms using the button on the "Inputs" tab, you will need to reassign the anchor consolidation macro to button above.
B13: Where to output filename | C13: =CELL("address",F6) -> $F$6
B14: Start of worksheet names | C14: $B$21
B15: Start of cells | C15: $B$22
B16: Start paste cell | C16: $B$23
B17: Paste offset | C17: $B$24
B18: Worksheet to determine # of loops per file | C18: $B$25
B19: Cell to determine # of loops per file | C19: $B$26
B20: Start of Output worksheet names | C20: =CELL("address",C27) -> $C$27
B21: Number of columns to copy | C21: $B$27
B22: Number of loops | C22: $B$28
B23: Start of offset | C23: $B$29
B24: What loop output is on | C24: $B$30
C26: Output Worksheet Names
C27: =MID(CELL("filename",'Contact Information_RHPOrg3'!$A$1),FIND("]",CELL("filename",'Contact Information_RHPOrg3'!$A$1))+1,255) -> Contact Information_RHPOrg3
C28: =MID(CELL("filename",'Contact Information_RHPOrg4'!$A$1),FIND("]",CELL("filename",'Contact Information_RHPOrg4'!$A$1))+1,255) -> Contact Information_RHPOrg4
C29: =MID(CELL("filename",'Contact Information_RHPOrg5'!$A$1),FIND("]",CELL("filename",'Contact Information_RHPOrg5'!$A$1))+1,255) -> Contact Information_RHPOrg5
C30: =MID(CELL("filename",'Contact Information_Anchor Entr'!$A$1),FIND("]",CELL("filename",'Contact Information_Anchor Entr'!$A$1))+1,255) -> Contact Information_Anchor Entr

Sheet Contact Information
D1: Start Cell Index | H1: Workbook | I1: Provider Type
A2: Worksheet to determine new/current | B2: Provider Entry | D2: =H2&"_"&I2&"_"&J2 -> Current prov._Regular hospital_Worksheet: | E2: =CELL("address",K2) -> $K$2 | H2: Current prov. | I2: Regular hospital | J2: Worksheet:
A3: Cell to determine new/current | B3: $C$70 | D3: =H3&"_"&I3&"_"&J3 -> Current prov._Regular hospital_Cell: | E3: =CELL("address",K3) -> $K$3 | H3: Current prov. | I3: Regular hospital | J3: Cell:
A4: Value in cell if New Provider | B4: Please enter your Total DY7-8 DSRIP Valuation. | D4: Current prov._Exception - unbundled_Worksheet: | E4: $K$4 | H4: Current prov. | I4: Exception - unbundled | J4: Worksheet:
A5: New/Current Value | B5: =IFERROR(IF(INDIRECT("'["&Inputs!$F$6&"]"&B2&"'!"&B3)=B4,H14,H2),"No workbook found") -> No workbook found | D5: Current prov._Exception - unbundled_Cell: | E5: $K$5 | H5: Current prov. | I5: Exception - unbundled | J5: Cell:
A6: Workheet to determine provider type | B6: Provider Entry | D6: Current prov._Exception - bundled_Worksheet: | E6: $K$6 | H6: Current prov. | I6: Exception - bundled | J6: Worksheet:
A7: C: cell to determine provider type | B7: $D$16 | D7: Current prov._Exception - bundled_Cell: | E7: $K$7 | H7: Current prov. | I7: Exception - bundled | J7: Cell:
A8: N: cell to determine provider type | B8: $D$17 | D8: Current prov._Physician practice_Worksheet: | E8: $K$8 | H8: Current prov. | I8: Physician practice | J8: Worksheet:
A9: Worksheet to determine if exception hospital | B9: Category C Selection | D9: Current prov._Physician practice_Cell: | E9: $K$9 | H9: Current prov. | I9: Physician practice | J9: Cell:
A10: Cell to determine if unbundled hospital | B10: $AD$4 | D10: Current prov._CMHC_Worksheet: | E10: $K$10 | H10: Current prov. | I10: CMHC | J10: Worksheet:
A11: Cell to determine if bundled hospital | B11: $AD$3 | D11: Current prov._CMHC_Cell: | E11: $K$11 | H11: Current prov. | I11: CMHC | J11: Cell:
A12: =I2 -> Regular hospital | B12: =IFERROR(AND(INDIRECT("'["&Inputs!$F$6&"]"&B6&"'!"&IF(B5=H2,B7,B8))="Hospital",INDIRECT("'["&Inputs!$F$6&"]"&B9&"'!"&B10)=FALSE,INDIRECT("'["&Inputs!$F$6&"]"&B9&"'!"&B11)=FALSE),"No workbook found") -> No workbook found | D12: Current prov._LHD_Worksheet: | E12: $K$12 | H12: Current prov. | I12: LHD | J12: Worksheet:
A13: =I4 -> Exception - unbundled | B13: =IFERROR(AND(INDIRECT("'["&Inputs!$F$6&"]"&B6&"'!"&IF(B5=H2,B7,B8))="Hospital",INDIRECT("'["&Inputs!$F$6&"]"&B9&"'!"&B10)),"No workbook found") -> No workbook found | D13: Current prov._LHD_Cell: | E13: $K$13 | H13: Current prov. | I13: LHD | J13: Cell:
A14: =I6 -> Exception - bundled | B14: =IFERROR(AND(INDIRECT("'["&Inputs!$F$6&"]"&B6&"'!"&IF(B5=H2,B7,B8))="Hospital",INDIRECT("'["&Inputs!$F$6&"]"&B9&"'!"&B11)),"No workbook found") -> No workbook found | D14: New prov._Regular hospital_Worksheet: | E14: $K$14 | H14: New prov. | I14: Regular hospital | J14: Worksheet:
A15: =I8 -> Physician practice | B15: =IFERROR(OR(INDIRECT("'["&Inputs!$F$6&"]"&B6&"'!"&IF(B5=H2,B7,B8))="Physician Practice affiliated with an Academic Health Science Center (AHSC)",INDIRECT("'["&Inputs!$F$6&"]"&B6&"'!"&IF(B5=H2,B7,B8))="Physician Practice not affiliated with an Academic Health Science Center (AHSC)"),"No workbook found") -> No workbook found | D15: New prov._Regular hospital_Cell: | E15: $K$15 | H15: New prov. | I15: Regular hospital | J15: Cell:
A16: =I10 -> CMHC | B16: =IFERROR(INDIRECT("'["&Inputs!$F$6&"]"&B6&"'!"&IF(B5=H2,B7,B8))="Community Mental Health Center (CMHC)","No workbook found") -> No workbook found | D16: New prov._Exception - unbundled_Worksheet: | E16: $K$16 | H16: New prov. | I16: Exception - unbundled | J16: Worksheet:
A17: =I12 -> LHD | B17: =IFERROR(INDIRECT("'["&Inputs!$F$6&"]"&B6&"'!"&IF(B5=H2,B7,B8))="Local Health Department (LHD)","No workbook found") -> No workbook found | D17: New prov._Exception - unbundled_Cell: | E17: $K$17 | H17: New prov. | I17: Exception - unbundled | J17: Cell:
A18: Provider Type | B18: =IFERROR(IF(B12,I2,IF(B13,I4,IF(B14,I6,IF(B15,I8,IF(B16,I10,IF(B17,I12,"No workbook found")))))),"No workbook found") -> No workbook found | D18: New prov._Exception - bundled_Worksheet: | E18: $K$18 | H18: New prov. | I18: Exception - bundled | J18: Worksheet:
A19: Worksheet start lookup: | B19: =B5&"_"&B18&"_"&J2 -> No workbook found_No workbook found_Worksheet: | D19: New prov._Exception - bundled_Cell: | E19: $K$19 | H19: New prov. | I19: Exception - bundled | J19: Cell:
A20: Cell start lookup: | B20: =B5&"_"&B18&"_"&J3 -> No workbook found_No workbook found_Cell: | D20: New prov._Physician practice_Worksheet: | E20: $K$20 | H20: New prov. | I20: Physician practice | J20: Worksheet:
A21: Start of worksheet names | B21: =IFERROR(INDEX($E$2:$E$25,MATCH(B19,$D$2:$D$25,0)),"No workbook found") -> No workbook found | D21: New prov._Physician practice_Cell: | E21: $K$21 | H21: New prov. | I21: Physician practice | J21: Cell:
A22: Start of cells | B22: =IFERROR(INDEX($E$2:$E$25,MATCH(B20,$D$2:$D$25,0)),"No workbook found") -> No workbook found | D22: New prov._CMHC_Worksheet: | E22: $K$22 | H22: New prov. | I22: CMHC | J22: Worksheet:
A23: Start paste cell | B23: =CELL("address",K48) -> $K$48 | D23: New prov._CMHC_Cell: | E23: $K$23 | H23: New prov. | I23: CMHC | J23: Cell:
A24: Paste offset | B24: =MAX(COUNTA($K$48:$K$9969),COUNTA($L$48:$L$9969),COUNTA($M$48:$M$9969),COUNTA($N$48:$N$9969),COUNTA($O$48:$O$9969),COUNTA($P$48:$P$9969),COUNTA($Q$48:$Q$9969),COUNTA($R$48:$R$99969),COUNTA($S$48:$S$9969),COUNTA($T$48:$T$99969),COUNTA($U$48:$U$9969),COUNTA($V$48:$V$9969),COUNTA($W$48:$W$9969),COUNTA($X$48:$X$9969),COUNTA($Y$48:$Y$9969),COUNTA($Z$48:$Z$9969),COUNTA($AA$48:$AA$9969),COUNTA($AB$48:$AB$9969)) -> 120 | D24: New prov._LHD_Worksheet: | E24: $K$24 | H24: New prov. | I24: LHD | J24: Worksheet:
A25: Worksheet to determine # of loops per file | D25: New prov._LHD_Cell: | E25: $K$25 | H25: New prov. | I25: LHD | J25: Cell:
A26: Cell to determine # of loops per file
A27: Number of columns to copy | B27: =COLUMNS(K47:W47) -> 13
A28: Number of loops | B28: 1
A29: Start of Offset | B29: =CELL("address",K1) -> $K$1
A30: Completed loops | C30: =-Macro driven
B36: Count of Helpers | C36: Helper Range Start
A37: Row Insertion Helper Range Inputs | B37: =COUNTA($A$38:$G$38) -> 1 | C37: =CELL("address",$A$38) -> $A$38
A38: =CELL("address",$G$48)&":"&CELL("address",$G$4969) -> $G$48:$G$4969
A39: Columns to hide: | B39: $A:$AE | AE39: Ranges to paste as values: | AF39: =CELL("address",AF$48)&":"&IF($B$24=0,CELL("address",AF$48),CELL("address",OFFSET(AF$48,$B$24-1,0))) -> $AF$48:$AF$167 | AG39: $AG$48:$AG$167 | AH39: $AH$48:$AH$167 | AI39: $AI$48:$AI$167 | AJ39: $AJ$48:$AJ$167 | AK39: $AK$48:$AK$167 | AL39: $AL$48:$AL$167 | AM39: $AM$48:$AM$167 | AN39: $AN$48:$AN$167 | AO39: $AO$48:$AO$167 | AP39: $AP$48:$AP$167 | AQ39: $AQ$48:$AQ$167 | AR39: $AR$48:$AR$167
A40: Rows to hide: | B40: 1:44 | D40: Range to Copy for Fill | E40: Range to Paste for Fill
A41: Freeze panes cell | B41: =CELL("address",$AK$48) -> $AK$48 | D41: =CELL("address",$AF$48)&":"&CELL("address",$AU$48) -> $AF$48:$AU$48 | E41: =CELL("address",$AF$48)&":"&IF($B$24=0,CELL("address",$AU$48),CELL("address",OFFSET($AU$48,$B$24-1,0))) -> $AF$48:$AU$167
A42: Filtering range: | B42: =CELL("address",$AF$47)&":"&CELL("address",$AU$47) -> $AF$47:$AU$47 | C42: Fill these first: | D42: =CELL("address",$K$48)&":"&CELL("address",$W$48) -> $K$48:$W$48 | E42: =CELL("address",$K$48)&":"&IF($B$24=0,CELL("address",$W$48),CELL("address",OFFSET($W$48,MAX('Contact Information_ProviderEnt'!$I:$I,'Contact Information_IGT Entity'!$G:$I,'Contact Information_Anchor Entr'!$G:$G,'Contact Information_RHPOrg3'!$G:$I,'Contact Information_RHPOrg4'!$G:$I,'Contact Information_RHPOrg5'!$G:$I)-1,0))) -> $K$48:$W$199
A43: Top Left Cell: | B43: =CELL("address",$AF$45) -> $AF$45
A44: Left TPI range: | B44: ="$"&SUBSTITUTE(ADDRESS(1,COLUMN($N$48),4),1,"")&"$"&ROW($N$48)&":$"&SUBSTITUTE(ADDRESS(1,COLUMN($N$48),4),1,"")&"$"&ROW($N$48)+($B$24-1) -> $N$48:$N$167 | C44: Range of paste as values: | D44: =CELL("address",$AF$39)&":"&CELL("address",$AR$39) -> $AF$39:$AR$39
A45: Right TPI range: | B45: ="$"&SUBSTITUTE(ADDRESS(1,COLUMN($AI$48),4),1,"")&"$"&ROW($AI$48)&":$"&SUBSTITUTE(ADDRESS(1,COLUMN($AI$48),4),1,"")&"$"&ROW($AI$48)+($B$24-1) -> $AI$48:$AI$167 | K45: RHP Contact Information | AF45: RHP Contact Information
G46: Banded Rows Helper
E47: Contact # | G47: 0 | K47: RHP | L47: Type of Organization | M47: New (Y/N) | N47: TPI | O47: Organization Name | P47: Contact Name | Q47: Street Address | R47: City | S47: Zip Code | T47: Email | U47: Phone Number | V47: Phone Ext | W47: Lead Contact or Both | X47: 1st Reviewer | Y47: 1st Reviewer Internal Comments | Z47: HHSC Initial Comments to Provider | AA47: Provider Response | AB47: 1st Reviewer | AC47: 1st Reviewer Internal Comments | AD47: HHSC Final Comments to Provider | AF47: RHP | AG47: Type of Organization | AH47: New (Y/N) | AI47: TPI | AJ47: Organization Name | AK47: Contact Name | AL47: Street Address | AM47: City | AN47: Zip Code | AO47: Email | AP47: Phone Number | AQ47: Phone Ext | AR47: Lead Contact or Both | AS47: HHSC Initial Comments to Provider | AT47: Provider Response | AU47: HHSC Final Comments to Provider
E48: 1 | G48: =IF($AF47="RHP",$G47,IF($AJ48<>$AJ47,IF($G47=0,1,0),$G47)) -> 0 | K48: 9 | L48: Performing Provider | M48: N | N48: 009784201 | O48: TAMUS Health Science Center dba Baylor College of | P48: Daniel Jones, DDS | Q48: 3302 Gaston Avenue | R48: Dallas | S48: 75246 | T48: djones@tamhsc.edu | U48: 214-828‐8350 | W48: Both | AF48: 9 | AG48: Performing Provider | AH48: N | AI48: 009784201 | AJ48: TAMUS Health Science Center dba Baylor College of | AK48: Daniel Jones, DDS | AL48: 3302 Gaston Avenue | AM48: Dallas | AN48: 75246 | AO48: djones@tamhsc.edu | AP48: 214-828‐8350 | AR48: Both | AS48: No comments | AU48: No comments
E49: =E48+1 -> 2 | G49: =IF($AF48="RHP",$G48,IF($AJ49<>$AJ48,IF($G48=0,1,0),$G48)) -> 0 | K49: 9 | L49: Performing Provider | M49: N | N49: 009784201 | O49: TAMUS Health Science Center dba Baylor College of | P49: Paul Hoffman | Q49: 3302 Gaston Avenue | R49: Dallas | S49: 75246 | T49: hoffmann@tamhsc.edu | U49: 214-828-8164 | W49: Both | AF49: 9 | AG49: Performing Provider | AH49: N | AI49: 009784201 | AJ49: TAMUS Health Science Center dba Baylor College of | AK49: Paul Hoffman | AL49: 3302 Gaston Avenue | AM49: Dallas | AN49: 75246 | AO49: hoffmann@tamhsc.edu | AP49: 214-828-8164 | AR49: Both | AS49: No comments | AU49: No comments
E50: =E49+1 -> 3 | G50: 1 | K50: 9 | L50: Performing Provider | M50: N | N50: 020908201 | O50: Presbyterian Hospital Of Dallas (TX Health Resourc | P50: Janna Gardner | Q50: 8515 Greenville Avenue, Ste N-108 | R50: Dallas | S50: 75243 | T50: JannaGardner@hhmtx.org | U50: 2142210855 | W50: Both | AF50: 9 | AG50: Performing Provider | AH50: N | AI50: 020908201 | AJ50: Presbyterian Hospital Of Dallas (TX Health Resourc | AK50: Janna Gardner | AL50: 8515 Greenville Avenue, Ste N-108 | AM50: Dallas | AN50: 75243 | AO50: JannaGardner@hhmtx.org | AP50: 2142210855 | AR50: Both | AS50: No comments | AU50: No comments
E51: 4 | G51: 1 | K51: 9 | L51: Performing Provider | M51: N | N51: 020908201 | O51: Presbyterian Hospital Of Dallas (TX Health Resourc | P51: Virginia Rose | Q51: 8200 Walnut Hill Lane | R51: Dallas | S51: 75231 | T51: VirginiaRose@TexasHealth.org | U51: 214-345-6249 | W51: Both | AF51: 9 | AG51: Performing Provider | AH51: N | AI51: 020908201 | AJ51: Presbyterian Hospital Of Dallas (TX Health Resourc | AK51: Virginia Rose | AL51: 8200 Walnut Hill Lane | AM51: Dallas | AN51: 75231 | AO51: VirginiaRose@TexasHealth.org | AP51: 214-345-6249 | AR51: Both | AS51: No comments | AU51: No comments
E52: 5 | G52: 1 | K52: 9 | L52: Performing Provider | M52: N | N52: 020908201 | O52: Presbyterian Hospital Of Dallas (TX Health Resourc | P52: Jamie Judd | Q52: 612 E. Lamar Boulevard | R52: Arlington | S52: 76011 | T52: jamiejudd@TexasHealth.org | U52: 682-236-6957 | W52: Both | AF52: 9 | AG52: Performing Provider | AH52: N | AI52: 020908201 | AJ52: Presbyterian Hospital Of Dallas (TX Health Resourc | AK52: Jamie Judd | AL52: 612 E. Lamar Boulevard | AM52: Arlington | AN52: 76011 | AO52: jamiejudd@TexasHealth.org | AP52: 682-236-6957 | AR52: Both | AS52: No comments | AU52: No comments
E53: 6 | G53: 0 | K53: 9 | L53: Performing Provider | M53: N | N53: 020943901 | O53: Columbia Hosp at Med City Dallas Subsid dba Medica | P53: Kathleen Sweeney | Q53: HCA North Texas Division, 6565 N. MacArthur Blvd., Suite 350 | R53: Irving | S53: 75039 | T53: Kathleen.sweeney@hcahealthcare.com | U53: 972-401-8757 | W53: Both | AF53: 9 | AG53: Performing Provider | AH53: N | AI53: 020943901 | AJ53: Columbia Hosp at Med City Dallas Subsid dba Medica | AK53: Kathleen Sweeney | AL53: HCA North Texas Division, 6565 N. MacArthur Blvd., Suite 350 | AM53: Irving | AN53: 75039 | AO53: Kathleen.sweeney@hcahealthcare.com | AP53: 972-401-8757 | AR53: Both | AS53: No comments | AU53: No comments
E54: 7 | G54: 0 | K54: 9 | L54: Performing Provider | M54: N | N54: 020943901 | O54: Columbia Hosp at Med City Dallas Subsid dba Medica | P54: Angelo Pagano | Q54: HCA North Texas Division, 6565 N. MacArthur Blvd., Suite 350 | R54: Irving | S54: 75039 | T54: Ang.Pagano@HCAHealthcare.com | U54: 972-401-8774 | W54: Both | AF54: 9 | AG54: Performing Provider | AH54: N | AI54: 020943901 | AJ54: Columbia Hosp at Med City Dallas Subsid dba Medica | AK54: Angelo Pagano | AL54: HCA North Texas Division, 6565 N. MacArthur Blvd., Suite 350 | AM54: Irving | AN54: 75039 | AO54: Ang.Pagano@HCAHealthcare.com | AP54: 972-401-8774 | AR54: Both | AS54: No comments | AU54: No comments
E55: 8 | G55: 1 | K55: 9 | L55: Performing Provider | M55: N | N55: 020967801 | O55: Texas Health Presbyterian Hospital Denton Presbyte | P55: Kathy Srokosz | Q55: 3000 North I-35 | R55: Denton | S55: 76201 | T55: KathySrokosz@TexasHealth.org | U55: 940-898-7049 | W55: Both | AF55: 9 | AG55: Performing Provider | AH55: N | AI55: 020967801 | AJ55: Texas Health Presbyterian Hospital Denton Presbyte | AK55: Kathy Srokosz | AL55: 3000 North I-35 | AM55: Denton | AN55: 76201 | AO55: KathySrokosz@TexasHealth.org | AP55: 940-898-7049 | AR55: Both | AS55: No comments | AU55: No comments
E56: 9 | G56: 1 | K56: 9 | L56: Performing Provider | M56: N | N56: 020967801 | O56: Texas Health Presbyterian Hospital Denton Presbyte | P56: Jamie Judd | Q56: 612 E. Lamar Boulevard | R56: Arlington | S56: 76011 | T56: jamiejudd@TexasHealth.org | U56: 682-236-6957 | W56: Both | AF56: 9 | AG56: Performing Provider | AH56: N | AI56: 020967801 | AJ56: Texas Health Presbyterian Hospital Denton Presbyte | AK56: Jamie Judd | AL56: 612 E. Lamar Boulevard | AM56: Arlington | AN56: 76011 | AO56: jamiejudd@TexasHealth.org | AP56: 682-236-6957 | AR56: Both | AS56: No comments | AU56: No comments
E57: 10 | G57: 1 | K57: 9 | L57: Performing Provider | M57: N | N57: 020967801 | O57: Texas Health Presbyterian Hospital Denton Presbyte | P57: Jeff Reecer | Q57: 3000 North I-35 | R57: Denton | S57: 76201 | T57: JeffReecer@TexasHealth.org | U57: 972-747-6226 | W57: Both | AF57: 9 | AG57: Performing Provider | AH57: N | AI57: 020967801 | AJ57: Texas Health Presbyterian Hospital Denton Presbyte | AK57: Jeff Reecer | AL57: 3000 North I-35 | AM57: Denton | AN57: 76201 | AO57: JeffReecer@TexasHealth.org | AP57: 972-747-6226 | AR57: Both | AS57: No comments | AU57: No comments
E58: 11 | G58: 0 | K58: 9 | L58: Performing Provider | M58: N | N58: 020979302 | O58: Columbia Medical Center of Las Colinas Inc dba Las | P58: Kathleen Sweeney | Q58: HCA North Texas Division, 6565 N. MacArthur Blvd., Suite 350 | R58: Irving | S58: 75039 | T58: Kathleen.sweeney@hcahealthcare.com | U58: 972-401-8757 | W58: Both | AF58: 9 | AG58: Performing Provider | AH58: N | AI58: 020979302 | AJ58: Columbia Medical Center of Las Colinas Inc dba Las | AK58: Kathleen Sweeney | AL58: HCA North Texas Division, 6565 N. MacArthur Blvd., Suite 350 | AM58: Irving | AN58: 75039 | AO58: Kathleen.sweeney@hcahealthcare.com | AP58: 972-401-8757 | AR58: Both | AS58: No comments | AU58: No comments
E59: 12 | G59: 0 | K59: 9 | L59: Performing Provider | M59: N | N59: 020979302 | O59: Columbia Medical Center of Las Colinas Inc dba Las | P59: Angelo Pagano | Q59: HCA North Texas Division, 6565 N. MacArthur Blvd., Suite 350 | R59: Irving | S59: 75039 | T59: Ang.Pagano@HCAHealthcare.com | U59: 972-401-8774 | W59: Both | AF59: 9 | AG59: Performing Provider | AH59: N | AI59: 020979302 | AJ59: Columbia Medical Center of Las Colinas Inc dba Las | AK59: Angelo Pagano | AL59: HCA North Texas Division, 6565 N. MacArthur Blvd., Suite 350 | AM59: Irving | AN59: 75039 | AO59: Ang.Pagano@HCAHealthcare.com | AP59: 972-401-8774 | AR59: Both | AS59: No comments | AU59: No comments
E60: 13 | G60: 1 | K60: 9 | L60: Performing Provider | M60: N | N60: 094140302 | O60: Texas Health Presbyterian Hospital Kaufman dba Pre | P60: Jamie Judd | Q60: 612 E. Lamar Boulevard | R60: Arlington | S60: 76011 | T60: jamiejudd@TexasHealth.org | U60: 682-236-6957 | W60: Both | AF60: 9 | AG60: Performing Provider | AH60: N | AI60: 094140302 | AJ60: Texas Health Presbyterian Hospital Kaufman dba Pre | AK60: Jamie Judd | AL60: 612 E. Lamar Boulevard | AM60: Arlington | AN60: 76011 | AO60: jamiejudd@TexasHealth.org | AP60: 682-236-6957 | AR60: Both | AS60: No comments | AU60: No comments
E61: 14 | G61: 1 | K61: 9 | L61: Performing Provider | M61: N | N61: 094140302 | O61: Texas Health Presbyterian Hospital Kaufman dba Pre | P61: Patsy Youngs | Q61: 850 Ed Hall Drive | R61: Kaufman | S61: 75142 | T61: PatsyYoungs@TexasHealth.org | U61: 972-932-7354 | W61: Lead Contact | AF61: 9 | AG61: Performing Provider | AH61: N | AI61: 094140302 | AJ61: Texas Health Presbyterian Hospital Kaufman dba Pre | AK61: Patsy Youngs | AL61: 850 Ed Hall Drive | AM61: Kaufman | AN61: 75142 | AO61: PatsyYoungs@TexasHealth.org | AP61: 972-932-7354 | AR61: Lead Contact | AS61: No comments | AU61: No comments
E62: 15 | G62: 1 | K62: 9 | L62: Performing Provider | M62: N | N62: 094140302 | O62: Texas Health Presbyterian Hospital Kaufman dba Pre | P62: Bette Akpan | Q62: 850 Ed Hall Drive | R62: Kaufman | S62: 75142 | T62: betteakpan@texashealth.org | U62: 972-932-5560 | W62: Both | AF62: 9 | AG62: Performing Provider | AH62: N | AI62: 094140302 | AJ62: Texas Health Presbyterian Hospital Kaufman dba Pre | AK62: Bette Akpan | AL62: 850 Ed Hall Drive | AM62: Kaufman | AN62: 75142 | AO62: betteakpan@texashealth.org | AP62: 972-932-5560 | AR62: Both | AS62: No comments | AU62: No comments
E63: 16 | G63: 0 | K63: 9 | L63: Performing Provider | M63: N | N63: 094192402 | O63: Columbia Medical Center of Lewisville dba Medical | P63: Kathleen Sweeney | Q63: HCA North Texas Division, 6565 N. MacArthur Blvd., Suite 350 | R63: Irving | S63: 75039 | T63: Kathleen.sweeney@hcahealthcare.com | U63: 972-401-8757 | W63: Both | AF63: 9 | AG63: Performing Provider | AH63: N | AI63: 094192402 | AJ63: Columbia Medical Center of Lewisville dba Medical | AK63: Kathleen Sweeney | AL63: HCA North Texas Division, 6565 N. MacArthur Blvd., Suite 350 | AM63: Irving | AN63: 75039 | AO63: Kathleen.sweeney@hcahealthcare.com | AP63: 972-401-8757 | AR63: Both | AS63: No comments | AU63: No comments
E64: 17 | G64: 0 | K64: 9 | L64: Performing Provider | M64: N | N64: 094192402 | O64: Columbia Medical Center of Lewisville dba Medical | P64: Angelo Pagano | Q64: HCA North Texas Division, 6565 N. MacArthur Blvd., Suite 350 | R64: Irving | S64: 75039 | T64: Ang.Pagano@HCAHealthcare.com | U64: 972-401-8774 | W64: Both | AF64: 9 | AG64: Performing Provider | AH64: N | AI64: 094192402 | AJ64: Columbia Medical Center of Lewisville dba Medical | AK64: Angelo Pagano | AL64: HCA North Texas Division, 6565 N. MacArthur Blvd., Suite 350 | AM64: Irving | AN64: 75039 | AO64: Ang.Pagano@HCAHealthcare.com | AP64: 972-401-8774 | AR64: Both | AS64: No comments | AU64: No comments
E65: 18 | G65: 1 | K65: 9 | L65: Performing Provider | M65: N | N65: 111905902 | O65: Columbia Medical Center of Denton dba Denton Regio | P65: Kathleen Sweeney | Q65: HCA North Texas Division, 6565 N. MacArthur Blvd., Suite 350 | R65: Irving | S65: 75039 | T65: Kathleen.sweeney@hcahealthcare.com | U65: 972-401-8757 | W65: Both | AF65: 9 | AG65: Performing Provider | AH65: N | AI65: 111905902 | AJ65: Columbia Medical Center of Denton dba Denton Regio | AK65: Kathleen Sweeney | AL65: HCA North Texas Division, 6565 N. MacArthur Blvd., Suite 350 | AM65: Irving | AN65: 75039 | AO65: Kathleen.sweeney@hcahealthcare.com | AP65: 972-401-8757 | AR65: Both | AS65: No comments | AU65: No comments
E66: 19 | G66: 1 | K66: 9 | L66: Performing Provider | M66: N | N66: 111905902 | O66: Columbia Medical Center of Denton dba Denton Regio | P66: Angelo Pagano | Q66: HCA North Texas Division, 6565 N. MacArthur Blvd., Suite 350 | R66: Irving | S66: 75039 | T66: Ang.Pagano@HCAHealthcare.com | U66: 972-401-8774 | W66: Both | AF66: 9 | AG66: Performing Provider | AH66: N | AI66: 111905902 | AJ66: Columbia Medical Center of Denton dba Denton Regio | AK66: Angelo Pagano | AL66: HCA North Texas Division, 6565 N. MacArthur Blvd., Suite 350 | AM66: Irving | AN66: 75039 | AO66: Ang.Pagano@HCAHealthcare.com | AP66: 972-401-8774 | AR66: Both | AS66: No comments | AU66: No comments
E67: 20 | G67: 0 | K67: 9 | L67: Performing Provider | M67: N | N67: 121758005 | O67: Dallas County | P67: Ganesh Shivaramaiyer | Q67: 2377 North Stemmons Freeway | R67: Dallas | S67: 75207 | T67: ganesh.shivaramaiyer@dallascounty.org | U67: 214-819-2000 | W67: Both | AF67: 9 | AG67: Performing Provider | AH67: N | AI67: 121758005 | AJ67: Dallas County | AK67: Ganesh Shivaramaiyer | AL67: 2377 North Stemmons Freeway | AM67: Dallas | AN67: 75207 | AO67: ganesh.shivaramaiyer@dallascounty.org | AP67: 214-819-2000 | AR67: Both | AS67: No comments | AU67: No comments
E68: 21 | G68: 0 | K68: 9 | L68: Performing Provider | M68: N | N68: 121758005 | O68: Dallas County | P68: Woldu Ameneshoa | Q68: 2377 N. Stemmons Freeway | R68: Dallas | S68: 75207 | T68: woldu.ameneshoa@dallascounty.org | U68: 214-590-2034 | W68: Both | AF68: 9 | AG68: Performing Provider | AH68: N | AI68: 121758005 | AJ68: Dallas County | AK68: Woldu Ameneshoa | AL68: 2377 N. Stemmons Freeway | AM68: Dallas | AN68: 75207 | AO68: woldu.ameneshoa@dallascounty.org | AP68: 214-590-2034 | AR68: Both | AS68: No comments | AU68: No comments
E69: 22 | G69: 0 | K69: 9 | L69: Performing Provider | M69: N | N69: 121758005 | O69: Dallas County | P69: Charlene Randolph | Q69: 133 N. Riverfront Blvd. | R69: Dallas | S69: 75207 | T69: Charlene.Randolph@dallascounty.org | U69: 214-761-1335 | W69: Both | AF69: 9 | AG69: Performing Provider | AH69: N | AI69: 121758005 | AJ69: Dallas County | AK69: Charlene Randolph | AL69: 133 N. Riverfront Blvd. | AM69: Dallas | AN69: 75207 | AO69: Charlene.Randolph@dallascounty.org | AP69: 214-761-1335 | AR69: Both | AS69: No comments | AU69: No comments
E70: 23 | G70: 1 | K70: 9 | L70: Performing Provider | M70: N | N70: 121776204 | O70: Baylor Medical Center At Irving | P70: Gabrielle Menz | Q70: 8080 North Central Expressway, Suite 700 | R70: Dallas | S70: 75206 | T70: Gabrielle.Menz@BSWHealth.org | U70: 214-265-5167 | W70: Both | AF70: 9 | AG70: Performing Provider | AH70: N | AI70: 121776204 | AJ70: Baylor Medical Center At Irving | AK70: Gabrielle Menz | AL70: 8080 North Central Expressway, Suite 700 | AM70: Dallas | AN70: 75206 | AO70: Gabrielle.Menz@BSWHealth.org | AP70: 214-265-5167 | AR70: Both | AS70: No comments | AU70: No comments
E71: 24 | G71: 1 | K71: 9 | L71: Performing Provider | M71: N | N71: 121776204 | O71: Baylor Medical Center At Irving | P71: Nikita Shah | Q71: 8080 North Central Expressway, Suite 700 | R71: Dallas | S71: 75206 | T71: Niki.Shah@BSWHealth.org | U71: 214-265-3724 | W71: Both | AF71: 9 | AG71: Performing Provider | AH71: N | AI71: 121776204 | AJ71: Baylor Medical Center At Irving | AK71: Nikita Shah | AL71: 8080 North Central Expressway, Suite 700 | AM71: Dallas | AN71: 75206 | AO71: Niki.Shah@BSWHealth.org | AP71: 214-265-3724 | AR71: Both | AS71: No comments | AU71: No comments
E72: 25 | G72: 0 | K72: 9 | L72: Performing Provider | M72: N | N72: 121988304 | O72: Lakes Regional MHMR Center | P72: John Delaney | Q72: 400 Airport Road | R72: Terrell | S72: 75160 | T72: johnd@lakesregional.org | U72: 972-524-4159 | V72: 1150 | W72: Both | AF72: 9 | AG72: Performing Provider | AH72: N | AI72: 121988304 | AJ72: Lakes Regional MHMR Center | AK72: John Delaney | AL72: 400 Airport Road | AM72: Terrell | AN72: 75160 | AO72: johnd@lakesregional.org | AP72: 972-524-4159 | AQ72: 1150 | AR72: Both | AS72: No comments | AU72: No comments
E73: 26 | G73: 1 | K73: 9 | L73: Performing Provider | M73: N | N73: 126679303 | O73: Methodist Hosp of Dallas Methodist Charlton Med Ct | P73: Michael Schaefer | Q73: 1441 North Beckley Ave. | R73: Dallas | S73: 75203 | T73: michaelschaefer@mhd.com | U73: 214-947-4510 | W73: Lead Contact | AF73: 9 | AG73: Performing Provider | AH73: N | AI73: 126679303 | AJ73: Methodist Hosp of Dallas Methodist Charlton Med Ct | AK73: Michael Schaefer | AL73: 1441 North Beckley Ave. | AM73: Dallas | AN73: 75203 | AO73: michaelschaefer@mhd.com | AP73: 214-947-4510 | AR73: Lead Contact | AS73: No comments | AU73: No comments
E74: 27 | G74: 1 | K74: 9 | L74: Performing Provider | M74: N | N74: 126679303 | O74: Methodist Hosp of Dallas Methodist Charlton Med Ct | P74: Leslie Pierce | Q74: 1441 North Beckley Ave. | R74: Dallas | S74: 75203 | T74: LesliePierce@mhd.com | U74: 214-947-4583 | W74: Both | AF74: 9 | AG74: Performing Provider | AH74: N | AI74: 126679303 | AJ74: Methodist Hosp of Dallas Methodist Charlton Med Ct | AK74: Leslie Pierce | AL74: 1441 North Beckley Ave. | AM74: Dallas | AN74: 75203 | AO74: LesliePierce@mhd.com | AP74: 214-947-4583 | AR74: Both | AS74: No comments | AU74: No comments
E75: 28 | G75: 1 | K75: 9 | L75: Performing Provider | M75: N | N75: 126679303 | O75: Methodist Hosp of Dallas Methodist Charlton Med Ct | P75: Stacie Anderson | Q75: 1441 North Beckley Ave. | R75: Dallas | S75: 75203 | T75: StacieAnderson@mhd.com | U75: 214-947-2521 | W75: Both | AF75: 9 | AG75: Performing Provider | AH75: N | AI75: 126679303 | AJ75: Methodist Hosp of Dallas Methodist Charlton Med Ct | AK75: Stacie Anderson | AL75: 1441 North Beckley Ave. | AM75: Dallas | AN75: 75203 | AO75: StacieAnderson@mhd.com | AP75: 214-947-2521 | AR75: Both | AS75: No comments | AU75: No comments
E76: 29 | G76: 0 | K76: 9 | L76: Performing Provider | M76: N | N76: 126686802 | O76: UT Southwestern Medical Center at Dallas | P76: Kelly Robinson | Q76: 5323 Harry Hines Blvd. | R76: Dallas | S76: 75390 | T76: kelly.robinson@utsouthwestern.edu | U76: 214-648-1707 | W76: Both | AF76: 9 | AG76: Performing Provider | AH76: N | AI76: 126686802 | AJ76: UT Southwestern Medical Center at Dallas | AK76: Kelly Robinson | AL76: 5323 Harry Hines Blvd. | AM76: Dallas | AN76: 75390 | AO76: kelly.robinson@utsouthwestern.edu | AP76: 214-648-1707 | AR76: Both | AS76: No comments | AU76: No comments
E77: 30 | G77: 0 | K77: 9 | L77: Performing Provider | M77: N | N77: 126686802 | O77: UT Southwestern Medical Center at Dallas | P77: Suresh Gunasekaran | Q77: 5323 Harry Hines Blvd. | R77: Dallas | S77: 75390 | T77: Suresh.Gunasekaran@UTSouthwestern.edu | U77: 214-648-3864 | W77: Both | AF77: 9 | AG77: Performing Provider | AH77: N | AI77: 126686802 | AJ77: UT Southwestern Medical Center at Dallas | AK77: Suresh Gunasekaran | AL77: 5323 Harry Hines Blvd. | AM77: Dallas | AN77: 75390 | AO77: Suresh.Gunasekaran@UTSouthwestern.edu | AP77: 214-648-3864 | AR77: Both | AS77: No comments | AU77: No comments
E78: 31 | G78: 0 | K78: 9 | L78: Performing Provider | M78: N | N78: 126686802 | O78: UT Southwestern Medical Center at Dallas | P78: Heather Jones | Q78: 5323 Harry Hines Blvd. | R78: Dallas | S78: 75390 | T78: Heather.Jones@utsouthwestern.edu | U78: 2146487560 | W78: Both | AF78: 9 | AG78: Performing Provider | AH78: N | AI78: 126686802 | AJ78: UT Southwestern Medical Center at Dallas | AK78: Heather Jones | AL78: 5323 Harry Hines Blvd. | AM78: Dallas | AN78: 75390 | AO78: Heather.Jones@utsouthwestern.edu | AP78: 2146487560 | AR78: Both | AS78: No comments | AU78: No comments
E79: 32 | G79: 1 | K79: 9 | L79: Performing Provider | M79: N | N79: 127295703 | O79: Dallas County Hospital District dba Parkland Healt | P79: Richard Humphrey | Q79: 5200 Harry Hines Blvd. | R79: Dallas | S79: 75235 | T79: richard.humphrey@phhs.org | U79: 214-590-8006 | W79: Both | AF79: 9 | AG79: Performing Provider | AH79: N | AI79: 127295703 | AJ79: Dallas County Hospital District dba Parkland Healt | AK79: Richard Humphrey | AL79: 5200 Harry Hines Blvd. | AM79: Dallas | AN79: 75235 | AO79: richard.humphrey@phhs.org | AP79: 214-590-8006 | AR79: Both | AS79: No comments | AU79: No comments
E80: 33 | G80: 1 | K80: 9 | L80: Performing Provider | M80: N | N80: 127295703 | O80: Dallas County Hospital District dba Parkland Healt | P80: Christina Mintner | Q80: 5200 Harry Hines Blvd. | R80: Dallas | S80: 75235 | T80: christina.mintner@phhs.org | U80: 214-590-4605 | W80: Both | AF80: 9 | AG80: Performing Provider | AH80: N | AI80: 127295703 | AJ80: Dallas County Hospital District dba Parkland Healt | AK80: Christina Mintner | AL80: 5200 Harry Hines Blvd. | AM80: Dallas | AN80: 75235 | AO80: christina.mintner@phhs.org | AP80: 214-590-4605 | AR80: Both | AS80: No comments | AU80: No comments
E81: 34 | G81: 1 | K81: 9 | L81: Performing Provider | M81: N | N81: 127295703 | O81: Dallas County Hospital District dba Parkland Healt | P81: Maurice King | Q81: 5200 Harry Hines Blvd | R81: Dallas | S81: 75235 | T81: maurice.king@phhs.org | U81: 2145905726 | W81: Both | AF81: 9 | AG81: Performing Provider | AH81: N | AI81: 127295703 | AJ81: Dallas County Hospital District dba Parkland Healt | AK81: Maurice King | AL81: 5200 Harry Hines Blvd | AM81: Dallas | AN81: 75235 | AO81: maurice.king@phhs.org | AP81: 2145905726 | AR81: Both | AS81: No comments | AU81: No comments
E82: 35 | G82: 0 | K82: 9 | L82: Performing Provider | M82: N | N82: 135032405 | O82: Methodist Hosp of Dallas Methodist Dallas Med Ctr | P82: Michael Schaefer | Q82: 1441 North Beckley Ave. | R82: Dallas | S82: 75203 | T82: michaelschaefer@mhd.com | U82: 214-947-4510 | W82: Lead Contact | AF82: 9 | AG82: Performing Provider | AH82: N | AI82: 135032405 | AJ82: Methodist Hosp of Dallas Methodist Dallas Med Ctr | AK82: Michael Schaefer | AL82: 1441 North Beckley Ave. | AM82: Dallas | AN82: 75203 | AO82: michaelschaefer@mhd.com | AP82: 214-947-4510 | AR82: Lead Contact | AS82: No comments | AU82: No comments
E83: 36 | G83: 0 | K83: 9 | L83: Performing Provider | M83: N | N83: 135032405 | O83: Methodist Hosp of Dallas Methodist Dallas Med Ctr | P83: Leslie Pierce | Q83: 1441 North Beckley Ave. | R83: Dallas | S83: 75203 | T83: LesliePierce@mhd.com | U83: 214-947-4583 | W83: Both | AF83: 9 | AG83: Performing Provider | AH83: N | AI83: 135032405 | AJ83: Methodist Hosp of Dallas Methodist Dallas Med Ctr | AK83: Leslie Pierce | AL83: 1441 North Beckley Ave. | AM83: Dallas | AN83: 75203 | AO83: LesliePierce@mhd.com | AP83: 214-947-4583 | AR83: Both | AS83: No comments | AU83: No comments
E84: 37 | G84: 0 | K84: 9 | L84: Performing Provider | M84: N | N84: 135032405 | O84: Methodist Hosp of Dallas Methodist Dallas Med Ctr | P84: Stacie Anderson | Q84: 1441 North Beckley Ave. | R84: Dallas | S84: 75203 | T84: StacieAnderson@mhd.com | U84: 214-947-2521 | W84: Both | AF84: 9 | AG84: Performing Provider | AH84: N | AI84: 135032405 | AJ84: Methodist Hosp of Dallas Methodist Dallas Med Ctr | AK84: Stacie Anderson | AL84: 1441 North Beckley Ave. | AM84: Dallas | AN84: 75203 | AO84: StacieAnderson@mhd.com | AP84: 214-947-2521 | AR84: Both | AS84: No comments | AU84: No comments
E85: 38 | G85: 1 | K85: 9 | L85: Performing Provider | M85: N | N85: 135234606 | O85: Denton County MHMR Center | P85: Pam Gutierrez | Q85: PO Box 2346 | R85: Denton | S85: 76202 | T85: pamg@dentonmhmr.org | U85: 940-565-5260 | W85: Both | AF85: 9 | AG85: Performing Provider | AH85: N | AI85: 135234606 | AJ85: Denton County MHMR Center | AK85: Pam Gutierrez | AL85: PO Box 2346 | AM85: Denton | AN85: 76202 | AO85: pamg@dentonmhmr.org | AP85: 940-565-5260 | AR85: Both | AS85: No comments | AU85: No comments
E86: 39 | G86: 1 | K86: 9 | L86: Performing Provider | M86: N | N86: 135234606 | O86: Denton County MHMR Center | P86: Tammy Weppelman | Q86: PO Box 2346 | R86: Denton | S86: 76202 | T86: tammyw@dentonmhmr.org | U86: 940-594-1015 | W86: Both | AF86: 9 | AG86: Performing Provider | AH86: N | AI86: 135234606 | AJ86: Denton County MHMR Center | AK86: Tammy Weppelman | AL86: PO Box 2346 | AM86: Denton | AN86: 76202 | AO86: tammyw@dentonmhmr.org | AP86: 940-594-1015 | AR86: Both | AS86: No comments | AU86: No comments
E87: 40 | G87: 0 | K87: 9 | L87: Performing Provider | M87: N | N87: 136360803 | O87: Denton County dba Denton County Health Department | P87: Joe Paul Gallo | Q87: 535 S. Loop 288, Suite 1003 | R87: Denton | S87: 76205 | T87: joe.gallo@dentoncounty.com | U87: 940-349-2922 | W87: Both | AF87: 9 | AG87: Performing Provider | AH87: N | AI87: 136360803 | AJ87: Denton County dba Denton County Health Department | AK87: Joe Paul Gallo | AL87: 535 S. Loop 288, Suite 1003 | AM87: Denton | AN87: 76205 | AO87: joe.gallo@dentoncounty.com | AP87: 940-349-2922 | AR87: Both | AS87: No comments | AU87: No comments
E88: 41 | G88: 0 | K88: 9 | L88: Performing Provider | M88: N | N88: 136360803 | O88: Denton County dba Denton County Health Department | P88: Matt Richardson | Q88: 535 S. Loop 288, Suite 1003 | R88: Denton | S88: 76205 | T88: matt.richardson@dentoncounty.com | U88: 940-349-2913 | W88: Both | AF88: 9 | AG88: Performing Provider | AH88: N | AI88: 136360803 | AJ88: Denton County dba Denton County Health Department | AK88: Matt Richardson | AL88: 535 S. Loop 288, Suite 1003 | AM88: Denton | AN88: 76205 | AO88: matt.richardson@dentoncounty.com | AP88: 940-349-2913 | AR88: Both | AS88: No comments | AU88: No comments
E89: 42 | G89: 0 | K89: 9 | L89: Performing Provider | M89: N | N89: 136360803 | O89: Denton County dba Denton County Health Department | P89: James Wells | Q89: 535 S. Loop 288, Suite 1003 | R89: Denton | S89: 76205 | T89: james.wells@dentoncounty.com | U89: 940-349-3107 | W89: Both | AF89: 9 | AG89: Performing Provider | AH89: N | AI89: 136360803 | AJ89: Denton County dba Denton County Health Department | AK89: James Wells | AL89: 535 S. Loop 288, Suite 1003 | AM89: Denton | AN89: 76205 | AO89: james.wells@dentoncounty.com | AP89: 940-349-3107 | AR89: Both | AS89: No comments | AU89: No comments
E90: 43 | G90: 1 | K90: 9 | L90: Performing Provider | M90: N | N90: 137252607 | O90: Metrocare Services | P90: Linda Thompson | Q90: 1345 River Bend Dr., Administration Bldg. | R90: Dallas | S90: 75247 | T90: Linda.Thompson@metrocareservices.org | U90: 214-743-1258 | W90: Both | AF90: 9 | AG90: Performing Provider | AH90: N | AI90: 137252607 | AJ90: Metrocare Services | AK90: Linda Thompson | AL90: 1345 River Bend Dr., Administration Bldg. | AM90: Dallas | AN90: 75247 | AO90: Linda.Thompson@metrocareservices.org | AP90: 214-743-1258 | AR90: Both | AS90: No comments | AU90: No comments
E91: 44 | G91: 1 | K91: 9 | L91: Performing Provider | M91: N | N91: 137252607 | O91: Metrocare Services | P91: Derrick Villa | Q91: 1345 River Bend Dr. Suite 200, Administration Bldg. | R91: Dallas | S91: 75247 | T91: Derrick.Villa@metrocareservices.org | U91: 214-743-6164 | W91: Lead Contact | AF91: 9 | AG91: Performing Provider | AH91: N | AI91: 137252607 | AJ91: Metrocare Services | AK91: Derrick Villa | AL91: 1345 River Bend Dr. Suite 200, Administration Bldg. | AM91: Dallas | AN91: 75247 | AO91: Derrick.Villa@metrocareservices.org | AP91: 214-743-6164 | AR91: Lead Contact | AS91: No comments | AU91: No comments
E92: 45 | G92: 1 | K92: 9 | L92: Performing Provider | M92: N | N92: 137252607 | O92: Metrocare Services | P92: Carrie Parks | Q92: 1345 River Bend Dr. Suite 200, Administration Bldg. | R92: Dallas | S92: 75247 | T92: Carrie.Parks@metrocareservices.org | U92: 2143337028 | W92: Lead Contact | AF92: 9 | AG92: Performing Provider | AH92: N | AI92: 137252607 | AJ92: Metrocare Services | AK92: Carrie Parks | AL92: 1345 River Bend Dr. Suite 200, Administration Bldg. | AM92: Dallas | AN92: 75247 | AO92: Carrie.Parks@metrocareservices.org | AP92: 2143337028 | AR92: Lead Contact | AS92: No comments | AU92: No comments
E93: 46 | G93: 0 | K93: 9 | L93: Performing Provider | M93: N | N93: 138910807 | O93: Children's Medical Center of Dallas | P93: Jamie Marsh-Wheeler | Q93: 1935 Medical District Drive | R93: Dallas | S93: 75235 | T93: jamie.marsh-wheeler@childrens.com | U93: 214-456-0437 | W93: Both | AF93: 9 | AG93: Performing Provider | AH93: N | AI93: 138910807 | AJ93: Children's Medical Center of Dallas | AK93: Jamie Marsh-Wheeler | AL93: 1935 Medical District Drive | AM93: Dallas | AN93: 75235 | AO93: jamie.marsh-wheeler@childrens.com | AP93: 214-456-0437 | AR93: Both | AS93: No comments | AU93: No comments
E94: 47 | G94: 0 | K94: 9 | L94: Performing Provider | M94: N | N94: 138910807 | O94: Children's Medical Center of Dallas | P94: Carol Daulton | Q94: 1935 Medical District Drive | R94: Dallas | S94: 75235 | T94: carol.daulton@childrens.com | U94: 214-456-6245 | W94: Both | AF94: 9 | AG94: Performing Provider | AH94: N | AI94: 138910807 | AJ94: Children's Medical Center of Dallas | AK94: Carol Daulton | AL94: 1935 Medical District Drive | AM94: Dallas | AN94: 75235 | AO94: carol.daulton@childrens.com | AP94: 214-456-6245 | AR94: Both | AS94: No comments | AU94: No comments
E95: 48 | G95: 0 | K95: 9 | L95: Performing Provider | M95: N | N95: 138910807 | O95: Children's Medical Center of Dallas | P95: Adriana Vega | Q95: 1935 Medical District Drive | R95: Dallas | S95: 75235 | T95: adriana.vega@childrens.com | U95: 214-456-8511 | W95: Both | AF95: 9 | AG95: Performing Provider | AH95: N | AI95: 138910807 | AJ95: Children's Medical Center of Dallas | AK95: Adriana Vega | AL95: 1935 Medical District Drive | AM95: Dallas | AN95: 75235 | AO95: adriana.vega@childrens.com | AP95: 214-456-8511 | AR95: Both | AS95: No comments | AU95: No comments
E96: 49 | G96: 1 | K96: 9 | L96: Performing Provider | M96: N | N96: 139485012 | O96: Baylor University Medical Center | P96: Gabrielle Menz | Q96: 8080 North Central Expressway, Suite 700 | R96: Dallas | S96: 75206 | T96: Gabrielle.Menz@BSWHealth.org | U96: 214-265-5167 | W96: Both | AF96: 9 | AG96: Performing Provider | AH96: N | AI96: 139485012 | AJ96: Baylor University Medical Center | AK96: Gabrielle Menz | AL96: 8080 North Central Expressway, Suite 700 | AM96: Dallas | AN96: 75206 | AO96: Gabrielle.Menz@BSWHealth.org | AP96: 214-265-5167 | AR96: Both | AS96: No comments | AU96: No comments
E97: 50 | G97: 1 | K97: 9 | L97: Performing Provider | M97: N | N97: 139485012 | O97: Baylor University Medical Center | P97: Nikita Shah | Q97: 8080 North Central Expressway, Suite 700 | R97: Dallas | S97: 75206 | T97: Niki.Shah@BSWHealth.org | U97: 214-265-3724 | W97: Both | AF97: 9 | AG97: Performing Provider | AH97: N | AI97: 139485012 | AJ97: Baylor University Medical Center | AK97: Nikita Shah | AL97: 8080 North Central Expressway, Suite 700 | AM97: Dallas | AN97: 75206 | AO97: Niki.Shah@BSWHealth.org | AP97: 214-265-3724 | AR97: Both | AS97: No comments | AU97: No comments
E98: 51 | G98: 0 | K98: 9 | L98: Performing Provider | M98: N | N98: 209345201 | O98: Methodist Hosp of Dallas dba Methodist Richardson | P98: Michael Schaefer | Q98: 1441 North Beckley Ave. | R98: Dallas | S98: 75203 | T98: michaelschaefer@mhd.com | U98: 214-947-4510 | W98: Lead Contact | AF98: 9 | AG98: Performing Provider | AH98: N | AI98: 209345201 | AJ98: Methodist Hosp of Dallas dba Methodist Richardson | AK98: Michael Schaefer | AL98: 1441 North Beckley Ave. | AM98: Dallas | AN98: 75203 | AO98: michaelschaefer@mhd.com | AP98: 214-947-4510 | AR98: Lead Contact | AS98: No comments | AU98: No comments
E99: 52 | G99: 0 | K99: 9 | L99: Performing Provider | M99: N | N99: 209345201 | O99: Methodist Hosp of Dallas dba Methodist Richardson | P99: Leslie Pierce | Q99: 1441 North Beckley Ave. | R99: Dallas | S99: 75203 | T99: LesliePierce@mhd.com | U99: 214-947-4583 | W99: Both | AF99: 9 | AG99: Performing Provider | AH99: N | AI99: 209345201 | AJ99: Methodist Hosp of Dallas dba Methodist Richardson | AK99: Leslie Pierce | AL99: 1441 North Beckley Ave. | AM99: Dallas | AN99: 75203 | AO99: LesliePierce@mhd.com | AP99: 214-947-4583 | AR99: Both | AS99: No comments | AU99: No comments
E100: 53 | G100: 0 | K100: 9 | L100: Performing Provider | M100: N | N100: 209345201 | O100: Methodist Hosp of Dallas dba Methodist Richardson | P100: Stacie Anderson | Q100: 1441 North Beckley Ave. | R100: Dallas | S100: 75203 | T100: StacieAnderson@mhd.com | U100: 214-947-2521 | W100: Both | AF100: 9 | AG100: Performing Provider | AH100: N | AI100: 209345201 | AJ100: Methodist Hosp of Dallas dba Methodist Richardson | AK100: Stacie Anderson | AL100: 1441 North Beckley Ave. | AM100: Dallas | AN100: 75203 | AO100: StacieAnderson@mhd.com | AP100: 214-947-2521 | AR100: Both | AS100: No comments | AU100: No comments
E101: 54 | G101: 1 | K101: 9 | L101: Performing Provider | M101: N | N101: 344925801 | O101: Trinity MC dba Baylor Medical Center at Carrollton | P101: Gabrielle Menz | Q101: 8080 North Central Expressway, Suite 700 | R101: Dallas | S101: 75206 | T101: Gabrielle.Menz@BSWHealth.org | U101: 214-265-5167 | W101: Both | AF101: 9 | AG101: Performing Provider | AH101: N | AI101: 344925801 | AJ101: Trinity MC dba Baylor Medical Center at Carrollton | AK101: Gabrielle Menz | AL101: 8080 North Central Expressway, Suite 700 | AM101: Dallas | AN101: 75206 | AO101: Gabrielle.Menz@BSWHealth.org | AP101: 214-265-5167 | AR101: Both | AS101: No comments | AU101: No comments
E102: 55 | G102: 1 | K102: 9 | L102: Performing Provider | M102: N | N102: 344925801 | O102: Trinity MC dba Baylor Medical Center at Carrollton | P102: Nikita Shah | Q102: 8080 North Central Expressway, Suite 700 | R102: Dallas | S102: 75206 | T102: Niki.Shah@BSWHealth.org | U102: 214-265-3724 | W102: Both | AF102: 9 | AG102: Performing Provider | AH102: N | AI102: 344925801 | AJ102: Trinity MC dba Baylor Medical Center at Carrollton | AK102: Nikita Shah | AL102: 8080 North Central Expressway, Suite 700 | AM102: Dallas | AN102: 75206 | AO102: Niki.Shah@BSWHealth.org | AP102: 214-265-3724 | AR102: Both | AS102: No comments | AU102: No comments
E103: 56 | G103: 0 | K103: 9 | L103: Performing Provider | M103: N | N103: 362293801 | O103: BT Garland JV LLP | P103: Gabrielle Menz | Q103: 8080 North Central Expressway, Suite 700 | R103: Dallas | S103: 75206 | T103: Gabrielle.Menz@BSWHealth.org | U103: 214-265-5167 | W103: Both | AF103: 9 | AG103: Performing Provider | AH103: N | AI103: 362293801 | AJ103: BT Garland JV LLP | AK103: Gabrielle Menz | AL103: 8080 North Central Expressway, Suite 700 | AM103: Dallas | AN103: 75206 | AO103: Gabrielle.Menz@BSWHealth.org | AP103: 214-265-5167 | AR103: Both | AS103: No comments | AU103: No comments
E104: 57 | G104: 0 | K104: 9 | L104: Performing Provider | M104: N | N104: 362293801 | O104: BT Garland JV LLP | P104: Nikita Shah | Q104: 8080 North Central Expressway, Suite 700 | R104: Dallas | S104: 75206 | T104: Niki.Shah@BSWHealth.org | U104: 214-265-3724 | W104: Both | AF104: 9 | AG104: Performing Provider | AH104: N | AI104: 362293801 | AJ104: BT Garland JV LLP | AK104: Nikita Shah | AL104: 8080 North Central Expressway, Suite 700 | AM104: Dallas | AN104: 75206 | AO104: Niki.Shah@BSWHealth.org | AP104: 214-265-3724 | AR104: Both | AS104: No comments | AU104: No comments
E105: 58 | G105: 1 | K105: 9 | L105: Performing Provider | M105: N | N105: 364710901 | O105: Tenet Hosp Ltd dba Doctors Hosp at White Rock | P105: Drew Shea | Q105: Tenet Healthcare Corporation, 1445 Ross Avenue, Suite 1400 | R105: Dallas | S105: 75202 | T105: drew.shea@tenethealth.com | U105: 214-324-6133 | W105: Both | AF105: 9 | AG105: Performing Provider | AH105: N | AI105: 364710901 | AJ105: Tenet Hosp Ltd dba Doctors Hosp at White Rock | AK105: Drew Shea | AL105: Tenet Healthcare Corporation, 1445 Ross Avenue, Suite 1400 | AM105: Dallas | AN105: 75202 | AO105: drew.shea@tenethealth.com | AP105: 214-324-6133 | AR105: Both | AS105: No comments | AU105: No comments
E106: 59 | G106: 0 | K106: 9 | L106: DSRIP IGT Entity | M106: N | N106: N/A | O106: TAMUS Health Science Center dba Baylor College of Dentistry | P106: Daniel L. Jones,DDS | Q106: 3302 Gaston Avenue | R106: Dallas | S106: 75246 | T106: djones@bcd.tamhsc.edu | U106: 214-828‐8350 | W106: Both | AF106: 9 | AG106: DSRIP IGT Entity | AH106: N | AI106: N/A | AJ106: TAMUS Health Science Center dba Baylor College of Dentistry | AK106: Daniel L. Jones,DDS | AL106: 3302 Gaston Avenue | AM106: Dallas | AN106: 75246 | AO106: djones@bcd.tamhsc.edu | AP106: 214-828‐8350 | AR106: Both | AS106: No comments | AU106: No comments
E107: 60 | G107: 0 | K107: 9 | L107: DSRIP IGT Entity | M107: N | N107: N/A | O107: TAMUS Health Science Center dba Baylor College of Dentistry | P107: Jeffrey Burton | Q107: 200 Technology Way, Suite 2079 | R107: College Station | S107: 77845 | T107: jburton@tamhsc.edu | U107: 979-436-9226 | W107: Both | AF107: 9 | AG107: DSRIP IGT Entity | AH107: N | AI107: N/A | AJ107: TAMUS Health Science Center dba Baylor College of Dentistry | AK107: Jeffrey Burton | AL107: 200 Technology Way, Suite 2079 | AM107: College Station | AN107: 77845 | AO107: jburton@tamhsc.edu | AP107: 979-436-9226 | AR107: Both | AS107: No comments | AU107: No comments
E108: 61 | G108: 0 | K108: 9 | L108: DSRIP IGT Entity | M108: N | N108: N/A | O108: TAMUS Health Science Center dba Baylor College of Dentistry | P108: Juanna Moore | Q108: 3302 Gaston Avenue | R108: Dallas | S108: 75246 | T108: jmoore@bcd.tamhsc.edu | U108: 214-828-8907 | W108: Both | AF108: 9 | AG108: DSRIP IGT Entity | AH108: N | AI108: N/A | AJ108: TAMUS Health Science Center dba Baylor College of Dentistry | AK108: Juanna Moore | AL108: 3302 Gaston Avenue | AM108: Dallas | AN108: 75246 | AO108: jmoore@bcd.tamhsc.edu | AP108: 214-828-8907 | AR108: Both | AS108: No comments | AU108: No comments
E109: 62 | G109: 1 | K109: 9 | L109: DSRIP IGT Entity | M109: N | N109: N/A | O109: Dallas County Hospital District | P109: Richard Humphrey | Q109: 5200 Harry Hines Blvd. | R109: Dallas | S109: 75235 | T109: richard.humphrey@phhs.org | U109: 214-590-8006 | W109: Both | AF109: 9 | AG109: DSRIP IGT Entity | AH109: N | AI109: N/A | AJ109: Dallas County Hospital District | AK109: Richard Humphrey | AL109: 5200 Harry Hines Blvd. | AM109: Dallas | AN109: 75235 | AO109: richard.humphrey@phhs.org | AP109: 214-590-8006 | AR109: Both | AS109: No comments | AU109: No comments
E110: 63 | G110: 1 | K110: 9 | L110: DSRIP IGT Entity | M110: N | N110: N/A | O110: Dallas County Hospital District | P110: Christina Mintner | Q110: 5201 Harry Hines Blvd. | R110: Dallas | S110: 75235 | T110: christina.mintner@phhs.org | U110: 214-590-4605 | W110: Both | AF110: 9 | AG110: DSRIP IGT Entity | AH110: N | AI110: N/A | AJ110: Dallas County Hospital District | AK110: Christina Mintner | AL110: 5201 Harry Hines Blvd. | AM110: Dallas | AN110: 75235 | AO110: christina.mintner@phhs.org | AP110: 214-590-4605 | AR110: Both | AS110: No comments | AU110: No comments
E111: 64 | G111: 0 | K111: 9 | L111: DSRIP IGT Entity | M111: N | N111: N/A | O111: Dallas County | P111: Charlene Randolph | Q111: 133 N. Riverfron Blvd | R111: Dallas | S111: 75207‐2710 | T111: charlene.randolph@dallascounty.org | U111: 214-761-1335 | W111: Both | AF111: 9 | AG111: DSRIP IGT Entity | AH111: N | AI111: N/A | AJ111: Dallas County | AK111: Charlene Randolph | AL111: 133 N. Riverfron Blvd | AM111: Dallas | AN111: 75207‐2710 | AO111: charlene.randolph@dallascounty.org | AP111: 214-761-1335 | AR111: Both | AS111: No comments | AU111: No comments
E112: 65 | G112: 0 | K112: 9 | L112: DSRIP IGT Entity | M112: N | N112: N/A | O112: Dallas County | P112: Ganesh Shivaramaiyer | Q112: 2377 North Stemmons Freeway | R112: Dallas | S112: 75207‐2710 | T112: ganesh.shivaramaiyer@dallascounty.org | U112: 2148191865 | W112: Both | AF112: 9 | AG112: DSRIP IGT Entity | AH112: N | AI112: N/A | AJ112: Dallas County | AK112: Ganesh Shivaramaiyer | AL112: 2377 North Stemmons Freeway | AM112: Dallas | AN112: 75207‐2710 | AO112: ganesh.shivaramaiyer@dallascounty.org | AP112: 2148191865 | AR112: Both | AS112: No comments | AU112: No comments
E113: 66 | G113: =IF($AF112="RHP",$G112,IF($AJ113<>$AJ112,IF($G112=0,1,0),$G112)) -> 0 | K113: 9 | L113: DSRIP IGT Entity | M113: N | N113: N/A | O113: Dallas County | P113: Woldu Ameneshoa | Q113: 2377 North Stemmons Freeway | R113: Dallas | S113: 75207‐2710 | T113: woldu.ameneshoa@dallascounty.org | U113: 2148192034 | W113: Both | AF113: 9 | AG113: DSRIP IGT Entity | AH113: N | AI113: N/A | AJ113: Dallas County | AK113: Woldu Ameneshoa | AL113: 2377 North Stemmons Freeway | AM113: Dallas | AN113: 75207‐2710 | AO113: woldu.ameneshoa@dallascounty.org | AP113: 2148192034 | AR113: Both | AS113: No comments | AU113: No comments
E114: =E113+1 -> 67 | G114: 1 | K114: 9 | L114: DSRIP IGT Entity | M114: N | N114: N/A | O114: Lakes Regional MHMR Center | P114: John Delaney | Q114: 400 Airport Rd. | R114: Terrell | S114: 75160 | T114: johnd@lakesregional.org | U114: 972-524-4159 | V114: 1150 | W114: Both | AF114: 9 | AG114: DSRIP IGT Entity | AH114: N | AI114: N/A | AJ114: Lakes Regional MHMR Center | AK114: John Delaney | AL114: 400 Airport Rd. | AM114: Terrell | AN114: 75160 | AO114: johnd@lakesregional.org | AP114: 972-524-4159 | AQ114: 1150 | AR114: Both | AS114: No comments | AU114: No comments
E115: 68 | G115: 0 | K115: 9 | L115: DSRIP IGT Entity | M115: N | N115: N/A | O115: UT Southwestern Medical Center at Dallas | P115: Suresh Gunasekaran | Q115: 5323 Harry Hines Blvd. | R115: Dallas | S115: 75390 | T115: Suresh.Gunasekaran@UTSouthwestern.edu | U115: 214-648-3864 | W115: Both | AF115: 9 | AG115: DSRIP IGT Entity | AH115: N | AI115: N/A | AJ115: UT Southwestern Medical Center at Dallas | AK115: Suresh Gunasekaran | AL115: 5323 Harry Hines Blvd. | AM115: Dallas | AN115: 75390 | AO115: Suresh.Gunasekaran@UTSouthwestern.edu | AP115: 214-648-3864 | AR115: Both | AS115: No comments | AU115: No comments
E116: 69 | G116: 0 | K116: 9 | L116: DSRIP IGT Entity | M116: N | N116: N/A | O116: UT Southwestern Medical Center at Dallas | P116: Kelly Robinson | Q116: 5323 Harry Hines Blvd. | R116: Dallas | S116: 75390 | T116: Kelly.Robinson@UTSouthwestern.edu | U116: 2146481707 | W116: Both | AF116: 9 | AG116: DSRIP IGT Entity | AH116: N | AI116: N/A | AJ116: UT Southwestern Medical Center at Dallas | AK116: Kelly Robinson | AL116: 5323 Harry Hines Blvd. | AM116: Dallas | AN116: 75390 | AO116: Kelly.Robinson@UTSouthwestern.edu | AP116: 2146481707 | AR116: Both | AS116: No comments | AU116: No comments
E117: 70 | G117: 0 | K117: 9 | L117: DSRIP IGT Entity | M117: N | N117: N/A | O117: UT Southwestern Medical Center at Dallas | P117: Tiffany Lawson | Q117: 5323 Harry Hines Blvd. | R117: Dallas | S117: 75390 | T117: Tiffany.Lawson@UTSouthwestern.edu | U117: 2146484495 | W117: Both | AF117: 9 | AG117: DSRIP IGT Entity | AH117: N | AI117: N/A | AJ117: UT Southwestern Medical Center at Dallas | AK117: Tiffany Lawson | AL117: 5323 Harry Hines Blvd. | AM117: Dallas | AN117: 75390 | AO117: Tiffany.Lawson@UTSouthwestern.edu | AP117: 2146484495 | AR117: Both | AS117: No comments | AU117: No comments
E118: 71 | G118: 1 | K118: 9 | L118: DSRIP IGT Entity | M118: N | N118: N/A | O118: Denton County MHMR Center | P118: Pam Gutierrez | Q118: P.O. Box 2346 | R118: Denton | S118: 76202 | T118: pamg@dentonmhmr.org | U118: 940-565-5260 | W118: Both | AF118: 9 | AG118: DSRIP IGT Entity | AH118: N | AI118: N/A | AJ118: Denton County MHMR Center | AK118: Pam Gutierrez | AL118: P.O. Box 2346 | AM118: Denton | AN118: 76202 | AO118: pamg@dentonmhmr.org | AP118: 940-565-5260 | AR118: Both | AS118: No comments | AU118: No comments
E119: 72 | G119: 1 | K119: 9 | L119: DSRIP IGT Entity | M119: N | N119: N/A | O119: Denton County MHMR Center | P119: Cole Denbow | Q119: P.O. Box 2346 | R119: Denton | S119: 76202 | T119: coled@dentonmhmr.org | U119: 9405655202 | W119: Both | AF119: 9 | AG119: DSRIP IGT Entity | AH119: N | AI119: N/A | AJ119: Denton County MHMR Center | AK119: Cole Denbow | AL119: P.O. Box 2346 | AM119: Denton | AN119: 76202 | AO119: coled@dentonmhmr.org | AP119: 9405655202 | AR119: Both | AS119: No comments | AU119: No comments
E120: 73 | G120: 1 | K120: 9 | L120: DSRIP IGT Entity | M120: N | N120: N/A | O120: Denton County MHMR Center | P120: Tammy Weppelman | Q120: P.O. Box 2346 | R120: Denton | S120: 76202 | T120: tammyw@dentonmhmr.org | U120: 9405941015 | W120: Both | AF120: 9 | AG120: DSRIP IGT Entity | AH120: N | AI120: N/A | AJ120: Denton County MHMR Center | AK120: Tammy Weppelman | AL120: P.O. Box 2346 | AM120: Denton | AN120: 76202 | AO120: tammyw@dentonmhmr.org | AP120: 9405941015 | AR120: Both | AS120: No comments | AU120: No comments
E121: 74 | G121: 0 | K121: 9 | L121: DSRIP IGT Entity | M121: N | N121: N/A | O121: Denton County dba Denton County Health Department | P121: James Wells | Q121: 535 S. Loop 288, Suite 1003 | R121: Denton | S121: 76205 | T121: james.wells@dentoncounty.com | U121: 940-349-3107 | W121: Both | AF121: 9 | AG121: DSRIP IGT Entity | AH121: N | AI121: N/A | AJ121: Denton County dba Denton County Health Department | AK121: James Wells | AL121: 535 S. Loop 288, Suite 1003 | AM121: Denton | AN121: 76205 | AO121: james.wells@dentoncounty.com | AP121: 940-349-3107 | AR121: Both | AS121: No comments | AU121: No comments
E122: 75 | G122: 0 | K122: 9 | L122: DSRIP IGT Entity | M122: N | N122: N/A | O122: Denton County dba Denton County Health Department | P122: Joe Paul Gallo | Q122: 535 S. Loop 288, Suite 1003 | R122: Denton | S122: 76205 | T122: joe.gallo@dentoncounty.com | U122: 940-349-2922 | W122: Both | AF122: 9 | AG122: DSRIP IGT Entity | AH122: N | AI122: N/A | AJ122: Denton County dba Denton County Health Department | AK122: Joe Paul Gallo | AL122: 535 S. Loop 288, Suite 1003 | AM122: Denton | AN122: 76205 | AO122: joe.gallo@dentoncounty.com | AP122: 940-349-2922 | AR122: Both | AS122: No comments | AU122: No comments
E123: 76 | G123: 0 | K123: 9 | L123: DSRIP IGT Entity | M123: N | N123: N/A | O123: Denton County dba Denton County Health Department | P123: Matt Richardson | Q123: 535 S. Loop 288, Suite 1003 | R123: Denton | S123: 76205 | T123: matt.richardson@dentoncounty.com | U123: 940-349-2913 | W123: Both | AF123: 9 | AG123: DSRIP IGT Entity | AH123: N | AI123: N/A | AJ123: Denton County dba Denton County Health Department | AK123: Matt Richardson | AL123: 535 S. Loop 288, Suite 1003 | AM123: Denton | AN123: 76205 | AO123: matt.richardson@dentoncounty.com | AP123: 940-349-2913 | AR123: Both | AS123: No comments | AU123: No comments
E124: 77 | G124: 1 | K124: 9 | L124: DSRIP IGT Entity | M124: N | N124: N/A | O124: Metrocare Services | P124: Carrie Parks | Q124: 1345 River Bend Dr. Suite 200, Administration Bldg. | R124: Dallas | S124: 75247 | T124: Carrie.Parks@metrocareservices.org | U124: 2143337028 | W124: Lead | AF124: 9 | AG124: DSRIP IGT Entity | AH124: N | AI124: N/A | AJ124: Metrocare Services | AK124: Carrie Parks | AL124: 1345 River Bend Dr. Suite 200, Administration Bldg. | AM124: Dallas | AN124: 75247 | AO124: Carrie.Parks@metrocareservices.org | AP124: 2143337028 | AR124: Lead | AS124: No comments | AU124: No comments
E125: 78 | G125: 1 | K125: 9 | L125: DSRIP IGT Entity | M125: N | N125: N/A | O125: Metrocare Services | P125: Derrick Villa | Q125: 1345 River Bend Dr. Suite 200, Administration Bldg. | R125: Dallas | S125: 75247 | T125: Derrick.Villa@metrocareservices.org | U125: 2147436164 | W125: Lead | AF125: 9 | AG125: DSRIP IGT Entity | AH125: N | AI125: N/A | AJ125: Metrocare Services | AK125: Derrick Villa | AL125: 1345 River Bend Dr. Suite 200, Administration Bldg. | AM125: Dallas | AN125: 75247 | AO125: Derrick.Villa@metrocareservices.org | AP125: 2147436164 | AR125: Lead | AS125: No comments | AU125: No comments
E126: 79 | G126: 1 | K126: 9 | L126: DSRIP IGT Entity | M126: N | N126: N/A | O126: Metrocare Services | P126: Linda Thompson | Q126: 1345 River Bend Dr. Suite 200, Administration Bldg. | R126: Dallas | S126: 75247 | T126: Linda.Thompson@metrocareservices.org | U126: 2147431258 | W126: Both | AF126: 9 | AG126: DSRIP IGT Entity | AH126: N | AI126: N/A | AJ126: Metrocare Services | AK126: Linda Thompson | AL126: 1345 River Bend Dr. Suite 200, Administration Bldg. | AM126: Dallas | AN126: 75247 | AO126: Linda.Thompson@metrocareservices.org | AP126: 2147431258 | AR126: Both | AS126: No comments | AU126: No comments
E127: 80 | G127: 0 | K127: 9 | L127: DSRIP IGT Entity | M127: Y | N127: 134772611 | O127: Coryell County Memorial Hospital Authority | P127: David Byrom | Q127: 1507 West Main | R127: Gatesville | S127: 76528 | T127: dbyrom@cmhos.org | U127: 2542486301 | W127: Both | AF127: 9 | AG127: DSRIP IGT Entity | AH127: Y | AI127: 134772611 | AJ127: Coryell County Memorial Hospital Authority | AK127: David Byrom | AL127: 1507 West Main | AM127: Gatesville | AN127: 76528 | AO127: dbyrom@cmhos.org | AP127: 2542486301 | AR127: Both | AS127: No comments | AU127: No comments
E128: 81 | G128: 0 | K128: 9 | L128: DSRIP IGT Entity | M128: Y | N128: 134772611 | O128: Coryell County Memorial Hospital Authority | P128: Alan Ivy | Q128: 1507 West Main | R128: Gatesville | S128: 76528 | T128: alan.ivy@cmhos.org | U128: 2542486276 | W128: Both | AF128: 9 | AG128: DSRIP IGT Entity | AH128: Y | AI128: 134772611 | AJ128: Coryell County Memorial Hospital Authority | AK128: Alan Ivy | AL128: 1507 West Main | AM128: Gatesville | AN128: 76528 | AO128: alan.ivy@cmhos.org | AP128: 2542486276 | AR128: Both | AS128: No comments | AU128: No comments
E129: 82 | G129: 1 | K129: 9 | L129: DSRIP IGT Entity | M129: Y | N129: 138913209 | O129: Titus County Hospital District | P129: Terry Scoggin | Q129: 2001 N. Jefferson | R129: Mount Pleasant | S129: 75455 | T129: Terry.Scoggin@titusregional.com | U129: 9035776066 | W129: Both | AF129: 9 | AG129: DSRIP IGT Entity | AH129: Y | AI129: 138913209 | AJ129: Titus County Hospital District | AK129: Terry Scoggin | AL129: 2001 N. Jefferson | AM129: Mount Pleasant | AN129: 75455 | AO129: Terry.Scoggin@titusregional.com | AP129: 9035776066 | AR129: Both | AS129: No comments | AU129: No comments
E130: 83 | G130: 1 | K130: 9 | L130: DSRIP IGT Entity | M130: Y | N130: 138913209 | O130: Titus County Hospital District | P130: Heather Tuck | Q130: 2002 N. Jefferson | R130: Mount Pleasant | S130: 75455 | T130: Heather.Tuck@titusregional.com | U130: 9035776065 | W130: Both | AF130: 9 | AG130: DSRIP IGT Entity | AH130: Y | AI130: 138913209 | AJ130: Titus County Hospital District | AK130: Heather Tuck | AL130: 2002 N. Jefferson | AM130: Mount Pleasant | AN130: 75455 | AO130: Heather.Tuck@titusregional.com | AP130: 9035776065 | AR130: Both | AS130: No comments | AU130: No comments
E131: 84 | G131: 0 | K131: 9 | L131: Anchor | O131: Dallas County Hospital District dba Parkland Health & Hospital System | P131: Christina Mintner | Q131: 5200 Harry Hines Blvd | R131: Dallas | S131: 75235 | T131: christina.mintner@phhs.org | U131: 214-590-4605 | W131: Both | AF131: 9 | AG131: Anchor | AJ131: Dallas County Hospital District dba Parkland Health & Hospital System | AK131: Christina Mintner | AL131: 5200 Harry Hines Blvd | AM131: Dallas | AN131: 75235 | AO131: christina.mintner@phhs.org | AP131: 214-590-4605 | AR131: Both | AS131: No comments | AU131: No comments
E132: 85 | G132: 0 | K132: 9 | L132: Anchor | O132: Dallas County Hospital District dba Parkland Health & Hospital System | P132: Richard Humphrey | Q132: 5200 Harry Hines Blvd. | R132: Dallas | S132: 75235 | T132: richard.humphrey@phhs.org | U132: 214-590-8006 | W132: Both | AF132: 9 | AG132: Anchor | AJ132: Dallas County Hospital District dba Parkland Health & Hospital System | AK132: Richard Humphrey | AL132: 5200 Harry Hines Blvd. | AM132: Dallas | AN132: 75235 | AO132: richard.humphrey@phhs.org | AP132: 214-590-8006 | AR132: Both | AS132: No comments | AU132: No comments
E133: 86 | G133: 1 | K133: 9 | L133: UC-only Hospital | N133: 214224301 | O133: Green Oaks Hospital Subsidary d/b/aGreen OaksHospital | P133: Kathleen Sweeney | Q133: HCA north Texas Division, 6565 N. MacArthur Blvd., Suite 350 | R133: Irving | S133: 75039 | T133: kathleen.sweeney@hcahealthcare.com | U133: 9724015757 | AF133: 9 | AG133: UC-only Hospital | AI133: 214224301 | AJ133: Green Oaks Hospital Subsidary d/b/aGreen OaksHospital | AK133: Kathleen Sweeney | AL133: HCA north Texas Division, 6565 N. MacArthur Blvd., Suite 350 | AM133: Irving | AN133: 75039 | AO133: kathleen.sweeney@hcahealthcare.com | AP133: 9724015757 | AS133: No comments | AU133: No comments
E134: 87 | G134: 1 | K134: 9 | L134: UC-only Hospital | N134: 214224301 | O134: Green Oaks Hospital Subsidary d/b/aGreen OaksHospital | P134: Angelo Pagana | Q134: HCA north Texas Division, 6565 N. MacArthur Blvd., Suite 350 | R134: Irving | S134: 75039 | T134: ang.pagano@hcahealthcare.com | U134: 9724018774 | AF134: 9 | AG134: UC-only Hospital | AI134: 214224301 | AJ134: Green Oaks Hospital Subsidary d/b/aGreen OaksHospital | AK134: Angelo Pagana | AL134: HCA north Texas Division, 6565 N. MacArthur Blvd., Suite 350 | AM134: Irving | AN134: 75039 | AO134: ang.pagano@hcahealthcare.com | AP134: 9724018774 | AS134: No comments | AU134: No comments
E135: 88 | G135: 0 | K135: 9 | L135: UC-only Hospital | N135: 151691601 | O135: Baylor Heart & Vascular Center | P135: Trey Wicke | Q135: 621 Hall Street | R135: Dallas | S135: 75226 | T135: trey.wicke@bswhealth.org | U135: 2148200670 | AF135: 9 | AG135: UC-only Hospital | AI135: 151691601 | AJ135: Baylor Heart & Vascular Center | AK135: Trey Wicke | AL135: 621 Hall Street | AM135: Dallas | AN135: 75226 | AO135: trey.wicke@bswhealth.org | AP135: 2148200670 | AS135: No comments | AU135: No comments
E136: 89 | G136: 0 | K136: 9 | L136: UC-only Hospital | N136: 151691601 | O136: Baylor Heart & Vascular Center | P136: William Galinsky | Q136: 2401 S 31st Street | R136: Temple | S136: 76508 | T136: Wgalinsky@sw.org | U136: 2542159063 | AF136: 9 | AG136: UC-only Hospital | AI136: 151691601 | AJ136: Baylor Heart & Vascular Center | AK136: William Galinsky | AL136: 2401 S 31st Street | AM136: Temple | AN136: 76508 | AO136: Wgalinsky@sw.org | AP136: 2542159063 | AS136: No comments | AU136: No comments
E137: 90 | G137: 1 | K137: 9 | L137: UC-only Hospital | N137: 331242301 | O137: Lancaster Regional Hospital, LP | P137: Tommy O'Gorman | Q137: 2600 W. Pleasant Run Rd | R137: Lancaster | S137: 75149 | T137: tommyogorman@cmclancaster.com | U137: 4692975372 | AF137: 9 | AG137: UC-only Hospital | AI137: 331242301 | AJ137: Lancaster Regional Hospital, LP | AK137: Tommy O'Gorman | AL137: 2600 W. Pleasant Run Rd | AM137: Lancaster | AN137: 75149 | AO137: tommyogorman@cmclancaster.com | AP137: 4692975372 | AS137: No comments | AU137: No comments
E138: 91 | G138: 0 | K138: 9 | L138: UC-only Hospital | N138: 209719801 | O138: Texas Regional Medical Center, LLC d/b/a Baylor Scott & White Medical Center-Sunnyvale | P138: William Galinsky | Q138: 2401 S 31st Street | R138: Temple | S138: 76508 | T138: william.galinsky@bswhealth.org | U138: 2542159063 | AF138: 9 | AG138: UC-only Hospital | AI138: 209719801 | AJ138: Texas Regional Medical Center, LLC d/b/a Baylor Scott & White Medical Center-Sunnyvale | AK138: William Galinsky | AL138: 2401 S 31st Street | AM138: Temple | AN138: 76508 | AO138: william.galinsky@bswhealth.org | AP138: 2542159063 | AS138: No comments | AU138: No comments
E139: 92 | G139: 0 | K139: 9 | L139: UC-only Hospital | N139: 209719801 | O139: Texas Regional Medical Center, LLC d/b/a Baylor Scott & White Medical Center-Sunnyvale | P139: Diana Strupp | Q139: 1445 Ross Ave, Ste 1400 | R139: Dallas | S139: 75202 | T139: diana.strupp@tenethealth.com | U139: 4698936778 | AF139: 9 | AG139: UC-only Hospital | AI139: 209719801 | AJ139: Texas Regional Medical Center, LLC d/b/a Baylor Scott & White Medical Center-Sunnyvale | AK139: Diana Strupp | AL139: 1445 Ross Ave, Ste 1400 | AM139: Dallas | AN139: 75202 | AO139: diana.strupp@tenethealth.com | AP139: 4698936778 | AS139: No comments | AU139: No comments
G140: 1 | AF140: 9 | AG140: UC-only Hospital | AI140: 217744601 | AJ140: Texas Health Presbyterian Hospital Flower Mound | AK140: Roger Hutchins | AL140: 4400 Long Prairie Road | AM140: Flower Mound | AN140: 75028 | AO140: roger.hutchins@phfmtexas.com | AP140: 469-322-7081 | AU140: HHSC made Anchor's requested changes to contact information.
E141: =E139+1 -> 93 | G141: 0 | K141: 9 | L141: UC-only Hospital | N141: 358963201 | O141: Our Children's Home | P141: Adriana Vega | Q141: 935 Medical District Drive | R141: Dallas | S141: 75202 | T141: adriana.vega@childrens.com | U141: 2144568511 | AF141: 9 | AG141: UC-only Hospital | AI141: 358963201 | AJ141: Our Children's Home | AK141: Adriana Vega | AL141: 935 Medical District Drive | AM141: Dallas | AN141: 75202 | AO141: adriana.vega@childrens.com | AP141: 2144568511 | AS141: No comments | AU141: No comments
E142: 94 | G142: 0 | K142: 9 | L142: UC-only Hospital | N142: 358963201 | O142: Our Children's Home | P142: Carol Daulton | Q142: 935 Medical District Drive | R142: Dallas | S142: 75202 | T142: carol.daulton@childrens.com | U142: 2144566245 | AF142: 9 | AG142: UC-only Hospital | AI142: 358963201 | AJ142: Our Children's Home | AK142: Carol Daulton | AL142: 935 Medical District Drive | AM142: Dallas | AN142: 75202 | AO142: carol.daulton@childrens.com | AP142: 2144566245 | AS142: No comments | AU142: No comments
E143: 95 | G143: 0 | K143: 9 | L143: UC-only Hospital | N143: 358963201 | O143: Our Children's Home | P143: Jamie Marsh-Wheeler | Q143: 935 Medical District Drive | R143: Dallas | S143: 75202 | T143: jamie.marsh-wheeler@childrens.com | U143: 2144560588 | V143: 0 | W143: 0 | AF143: 9 | AG143: UC-only Hospital | AI143: 358963201 | AJ143: Our Children's Home | AK143: Jamie Marsh-Wheeler | AL143: 935 Medical District Drive | AM143: Dallas | AN143: 75202 | AO143: jamie.marsh-wheeler@childrens.com | AP143: 2144560588 | AS143: No comments | AU143: No comments
E144: 96 | G144: 1 | K144: 9 | L144: UC-only Hospital | N144: 219336901 | O144: Dallas Medical Center, LLC | P144: JT Barnhart | Q144: 7 Medical Pkwy | R144: Dallas | S144: 75234 | T144: barnhart@primehealthcaer.com | U144: 9728887099 | AF144: 9 | AG144: UC-only Hospital | AI144: 219336901 | AJ144: Dallas Medical Center, LLC | AK144: JT Barnhart | AL144: 7 Medical Pkwy | AM144: Dallas | AN144: 75234 | AO144: barnhart@primehealthcaer.com | AP144: 9728887099 | AS144: No comments | AU144: No comments
E145: 97 | G145: 0 | K145: 9 | L145: UC-only Hospital | N145: 354018901 | O145: Dallas Regional Medical Center | P145: JT Barnhart | Q145: 7 Medical Pkwy | R145: Dallas | S145: 75234 | T145: barnhart@primehealthcaer.com | U145: 9728887099 | AF145: 9 | AG145: UC-only Hospital | AI145: 354018901 | AJ145: Dallas Regional Medical Center | AK145: JT Barnhart | AL145: 7 Medical Pkwy | AM145: Dallas | AN145: 75234 | AO145: barnhart@primehealthcaer.com | AP145: 9728887099 | AS145: No comments | AU145: No comments
E146: 98 | G146: 1 | K146: 9 | L146: UC-only Hospital | N146: 330388501 | O146: The Heart Hospital at Baylor Denton | P146: Mark Valentine | Q146: 281 S Mayhill Rd | R146: Denton | S146: 76208 | T146: mark.valentine@bswhealth.org | U146: 4698143511 | AF146: 9 | AG146: UC-only Hospital | AI146: 330388501 | AJ146: The Heart Hospital at Baylor Denton | AK146: Mark Valentine | AL146: 281 S Mayhill Rd | AM146: Denton | AN146: 76208 | AO146: mark.valentine@bswhealth.org | AP146: 4698143511 | AS146: No comments | AU146: No comments
E147: 99 | G147: 0 | K147: 9 | L147: UC-only Hospital | N147: 315440303 | O147: Texas Scottish Rite Hospital for Children | P147: Scott Martinez | Q147: 2222 Welborn St | R147: Dallas | S147: 75219 | T147: scott.martinez@tsrh.org | U147: 2145597798 | AF147: 9 | AG147: UC-only Hospital | AI147: 315440303 | AJ147: Texas Scottish Rite Hospital for Children | AK147: Scott Martinez | AL147: 2222 Welborn St | AM147: Dallas | AN147: 75219 | AO147: scott.martinez@tsrh.org | AP147: 2145597798 | AS147: No comments | AU147: No comments
E148: 100 | G148: 1 | K148: 9 | L148: UC-only Hospital | N148: 354178101 | O148: Children's Medical Center of Plano | P148: Adriana Vega | Q148: 935 Medical District Drive | R148: Dallas | S148: 75202 | T148: adriana.vega@childrens.com | U148: 2144568511 | AF148: 9 | AG148: UC-only Hospital | AI148: 354178101 | AJ148: Children's Medical Center of Plano | AK148: Adriana Vega | AL148: 935 Medical District Drive | AM148: Dallas | AN148: 75202 | AO148: adriana.vega@childrens.com | AP148: 2144568511 | AS148: No comments | AU148: No comments
E149: 101 | G149: 1 | K149: 9 | L149: UC-only Hospital | N149: 354178101 | O149: Children's Medical Center of Plano | P149: Carol Daulton | Q149: 935 Medical District Drive | R149: Dallas | S149: 75202 | T149: carol.daulton@childrens.com | U149: 2144566245 | AF149: 9 | AG149: UC-only Hospital | AI149: 354178101 | AJ149: Children's Medical Center of Plano | AK149: Carol Daulton | AL149: 935 Medical District Drive | AM149: Dallas | AN149: 75202 | AO149: carol.daulton@childrens.com | AP149: 2144566245 | AS149: No comments | AU149: No comments
E150: 102 | G150: 1 | K150: 9 | L150: UC-only Hospital | N150: 354178101 | O150: Children's Medical Center of Plano | P150: Jamie Marsh-Wheeler | Q150: 935 Medical District Drive | R150: Dallas | S150: 75202 | T150: jamie.marsh-wheeler@childrens.com | U150: 2144560588 | V150: 0 | W150: 0 | AF150: 9 | AG150: UC-only Hospital | AI150: 354178101 | AJ150: Children's Medical Center of Plano | AK150: Jamie Marsh-Wheeler | AL150: 935 Medical District Drive | AM150: Dallas | AN150: 75202 | AO150: jamie.marsh-wheeler@childrens.com | AP150: 2144560588 | AS150: No comments | AU150: No comments
E151: 103 | G151: 0 | K151: 9 | L151: UC-only IGT Entity | N151: 137919003 | O151: Terrell State Hospital | P151: Rachel Samsel | Q151: PO Box 149347 | R151: Austin | S151: 78714 | T151: rachel.samsel@dshs.state.tx.us | U151: 5127763805 | AF151: 9 | AG151: UC-only IGT Entity | AI151: 137919003 | AJ151: Terrell State Hospital | AK151: Rachel Samsel | AL151: PO Box 149347 | AM151: Austin | AN151: 78714 | AO151: rachel.samsel@dshs.state.tx.us | AP151: 5127763805 | AS151: No comments | AU151: No comments
E152: 104 | G152: 0 | K152: 9 | L152: UC-only IGT Entity | N152: 137919003 | O152: Terrell State Hospital | P152: James Dawson | Q152: PO Box 149347 | R152: Austin | S152: 78714 | T152: james.dawson@dshs.state.tx.us | U152: 5127767674 | AF152: 9 | AG152: UC-only IGT Entity | AI152: 137919003 | AJ152: Terrell State Hospital | AK152: James Dawson | AL152: PO Box 149347 | AM152: Austin | AN152: 78714 | AO152: james.dawson@dshs.state.tx.us | AP152: 5127767674 | AS152: No comments | AU152: No comments
E153: 105 | G153: 1 | K153: 9 | L153: UC-only IGT Entity | N153: 175289101 | O153: UTSW University Hospitals and Clinics Zale Lipshy | P153: Kate Clark | Q153: 5323 Harry Hines Blvd | R153: Dallas | S153: 75390 | T153: kate.clark@utsouthwestern.ed | U153: 2146484857 | AF153: 9 | AG153: UC-only IGT Entity | AI153: 175289101 | AJ153: UTSW University Hospitals and Clinics Zale Lipshy | AK153: Kate Clark | AL153: 5323 Harry Hines Blvd | AM153: Dallas | AN153: 75390 | AO153: kate.clark@utsouthwestern.ed | AP153: 2146484857 | AS153: No comments | AU153: No comments
E154: 106 | G154: 1 | K154: 9 | L154: UC-only IGT Entity | N154: 175289101 | O154: UTSW University Hospitals and Clinics Zale Lipshy | P154: Bruce Meyer | Q154: 5323 Harry Hines Blvd | R154: Dallas | S154: 75390 | T154: bruce.meyer@utsouthwestern.edu | U154: 2146489794 | AF154: 9 | AG154: UC-only IGT Entity | AI154: 175289101 | AJ154: UTSW University Hospitals and Clinics Zale Lipshy | AK154: Bruce Meyer | AL154: 5323 Harry Hines Blvd | AM154: Dallas | AN154: 75390 | AO154: bruce.meyer@utsouthwestern.edu | AP154: 2146489794 | AS154: No comments | AU154: No comments
E155: 107 | G155: 1 | K155: 9 | L155: UC-only IGT Entity | N155: 175289101 | O155: UTSW University Hospitals and Clinics Zale Lipshy | P155: Iain Burchell | Q155: 5323 Harry Hines Blvd | R155: Dallas | S155: 75390 | T155: Iain.burchell@utsouthwestern.edu | U155: 2146450316 | V155: 0 | W155: 0 | AF155: 9 | AG155: UC-only IGT Entity | AI155: 175289101 | AJ155: UTSW University Hospitals and Clinics Zale Lipshy | AK155: Iain Burchell | AL155: 5323 Harry Hines Blvd | AM155: Dallas | AN155: 75390 | AO155: Iain.burchell@utsouthwestern.edu | AP155: 2146450316 | AS155: No comments | AU155: No comments
E156: 108 | G156: 0 | K156: 9 | L156: UC-only IGT Entity | O156: Dallam and Hartley Counties Hospital District | P156: Leroy Schaffner | Q156: 1411 Denver Avenue | R156: Dalhart | S156: 79022 | T156: els@dhchd.org | U156: 8063642141 | AF156: 9 | AG156: UC-only IGT Entity | AJ156: Dallam and Hartley Counties Hospital District | AK156: Leroy Schaffner | AL156: 1411 Denver Avenue | AM156: Dalhart | AN156: 79022 | AO156: els@dhchd.org | AP156: 8063642141 | AS156: No comments | AU156: No comments
E157: 109 | G157: 1 | K157: 9 | L157: UC-only IGT Entity | O157: Hemphill County Hospital District | P157: Jonathan Bailey | Q157: 707 Roland | R157: Spearman | S157: 79081 | T157: jonathanbailey@hchd.net | U157: 8066595858 | AF157: 9 | AG157: UC-only IGT Entity | AJ157: Hemphill County Hospital District | AK157: Jonathan Bailey | AL157: 707 Roland | AM157: Spearman | AN157: 79081 | AO157: jonathanbailey@hchd.net | AP157: 8066595858 | AS157: No comments | AU157: No comments
E158: 110 | G158: 0 | K158: 9 | L158: UC-only IGT Entity | O158: Winkler County Memorial Hospital | P158: Lorenzo Serrano | Q158: 821 Jeffee Dr | R158: Kermit | S158: 79745 | T158: lserrano@wcmh.net | U158: 4325865864 | AF158: 9 | AG158: UC-only IGT Entity | AJ158: Winkler County Memorial Hospital | AK158: Lorenzo Serrano | AL158: 821 Jeffee Dr | AM158: Kermit | AN158: 79745 | AO158: lserrano@wcmh.net | AP158: 4325865864 | AS158: No comments | AU158: No comments
E159: 111 | G159: 1 | K159: 9 | L159: UC-only IGT Entity | N159: 130606006 | O159: Decatur Hospital Authority d/b/a Wise Regional Health System | P159: Paul Aslin | Q159: 2000 South FM 51 | R159: Decatur | S159: 76234 | T159: paslin@wiseregional.com | U159: 9406275921 | AF159: 9 | AG159: UC-only IGT Entity | AI159: 130606006 | AJ159: Decatur Hospital Authority d/b/a Wise Regional Health System | AK159: Paul Aslin | AL159: 2000 South FM 51 | AM159: Decatur | AN159: 76234 | AO159: paslin@wiseregional.com | AP159: 9406275921 | AS159: No comments | AU159: No comments
E160: 112 | G160: 0 | K160: 9 | L160: UC-only IGT Entity | N160: 133250406 | O160: Childress Regional Medical Center | P160: John Henderson | Q160: 901 US Hwy 83 | R160: Childress | S160: 79201 | T160: jmh@childresshospital.com | U160: 9409379178 | AF160: 9 | AG160: UC-only IGT Entity | AI160: 133250406 | AJ160: Childress Regional Medical Center | AK160: John Henderson | AL160: 901 US Hwy 83 | AM160: Childress | AN160: 79201 | AO160: jmh@childresshospital.com | AP160: 9409379178 | AS160: No comments | AU160: No comments
E161: 113 | G161: 1 | K161: 9 | L161: UC-only IGT Entity | N161: 133544006 | O161: Deaf Smith County Hospital District dba Hereford Regional Medical Center | P161: Gene Schuler | Q161: 540 W. 15th St | R161: Hereford | S161: 79045 | T161: gene.schuler@dschd.org | U161: 8063642141 | AF161: 9 | AG161: UC-only IGT Entity | AI161: 133544006 | AJ161: Deaf Smith County Hospital District dba Hereford Regional Medical Center | AK161: Gene Schuler | AL161: 540 W. 15th St | AM161: Hereford | AN161: 79045 | AO161: gene.schuler@dschd.org | AP161: 8063642141 | AS161: No comments | AU161: No comments
E162: 114 | G162: 0 | K162: 9 | L162: UC-only IGT Entity | N162: 135235306 | O162: Ector County Hospital District | P162: Christine Stucks | Q162: 500 W. 4th St | R162: Odessa | S162: 79761 | T162: cstucks@echd.org | U162: 4326402011 | AF162: 9 | AG162: UC-only IGT Entity | AI162: 135235306 | AJ162: Ector County Hospital District | AK162: Christine Stucks | AL162: 500 W. 4th St | AM162: Odessa | AN162: 79761 | AO162: cstucks@echd.org | AP162: 4326402011 | AS162: No comments | AU162: No comments
E163: 115 | G163: 0 | K163: 9 | L163: UC-only IGT Entity | N163: 135235306 | O163: Ector County Hospital District | P163: John O'Hearn | Q163: Medical Center Health System, PO Box 7239 | R163: Odessa | S163: 79760 | T163: johearn@echd.org | U163: 4326402429 | AF163: 9 | AG163: UC-only IGT Entity | AI163: 135235306 | AJ163: Ector County Hospital District | AK163: John O'Hearn | AL163: Medical Center Health System, PO Box 7239 | AM163: Odessa | AN163: 79760 | AO163: johearn@echd.org | AP163: 4326402429 | AS163: No comments | AU163: No comments
E164: 116 | G164: 1 | K164: 9 | L164: UC-only IGT Entity | N164: 137919003 | O164: Department of State Health Services | P164: James Dawson | Q164: 1100 West 49th Street | R164: Austin | S164: 78756 | T164: james.dawson@dshs.state.tx.us | U164: 5127767674 | AF164: 9 | AG164: UC-only IGT Entity | AI164: 137919003 | AJ164: Department of State Health Services | AK164: James Dawson | AL164: 1100 West 49th Street | AM164: Austin | AN164: 78756 | AO164: james.dawson@dshs.state.tx.us | AP164: 5127767674 | AS164: No comments | AU164: No comments
E165: 117 | G165: 1 | K165: 9 | L165: UC-only IGT Entity | N165: 137919003 | O165: Department of State Health Services | P165: Rachel Samsel | Q165: 1100 West 49th Street | R165: Austin | S165: 78756 | T165: rachel.samsel@dshs.state.tx.us | U165: 5127763805 | AF165: 9 | AG165: UC-only IGT Entity | AI165: 137919003 | AJ165: Department of State Health Services | AK165: Rachel Samsel | AL165: 1100 West 49th Street | AM165: Austin | AN165: 78756 | AO165: rachel.samsel@dshs.state.tx.us | AP165: 5127763805 | AS165: No comments | AU165: No comments
E166: 118 | G166: 0 | K166: 9 | L166: UC-only IGT Entity | N166: 138715115 | O166: McCulloch County Hospital Distric | P166: Tim Jones | Q166: 2008 None Road, PO Box 1150 | R166: Brady | S166: 76825 | T166: timjones@bradyhospital.com | U166: 3257923940 | AF166: 9 | AG166: UC-only IGT Entity | AI166: 138715115 | AJ166: McCulloch County Hospital Distric | AK166: Tim Jones | AL166: 2008 None Road, PO Box 1150 | AM166: Brady | AN166: 76825 | AO166: timjones@bradyhospital.com | AP166: 3257923940 | AS166: No comments | AU166: No comments
E167: 119 | G167: 1 | K167: 9 | L167: UC-only IGT Entity | N167: 176354201 | O167: Culberson County Hospital District | P167: Mike Easley | Q167: Eisenhower & FM 2185; PO Box 609 | R167: Van Horn | S167: 79855 | T167: mike@preferredmanagementcorp.com | U167: 4322832760 | AF167: 9 | AG167: UC-only IGT Entity | AI167: 176354201 | AJ167: Culberson County Hospital District | AK167: Mike Easley | AL167: Eisenhower & FM 2185; PO Box 609 | AM167: Van Horn | AN167: 79855 | AO167: mike@preferredmanagementcorp.com | AP167: 4322832760 | AS167: No comments | AU167: No comments
E168: 120 | G168: 0 | K168: 9 | L168: UC-only IGT Entity | N168: 346945401 | O168: Graham Hospital District d/b/a Graham Regional Medical Center | P168: Shane Kernell | Q168: 1301 Montgomery road | R168: Graham | S168: 76450 | T168: jhodges@grahamrmc.com | U168: 9405495156 | AF168: 9 | AG168: UC-only IGT Entity | AI168: 346945401 | AJ168: Graham Hospital District d/b/a Graham Regional Medical Center | AK168: Shane Kernell | AL168: 1301 Montgomery road | AM168: Graham | AN168: 76450 | AO168: jhodges@grahamrmc.com | AP168: 9405495156 | AS168: No comments | AU168: No comments
E169: 121 | G169: 1
E170: 122 | G170: 1
E171: 123 | G171: 1
E172: 124 | G172: 1
E173: 125 | G173: 1
E174: 126 | G174: 1
E175: 127 | G175: 1
E176: 128 | G176: 1
E177: 129 | G177: =IF($AF176="RHP",$G176,IF($AJ177<>$AJ176,IF($G176=0,1,0),$G176)) -> 1
E178: 130 | G178: 1
E179: =E178+1 -> 131 | G179: 1
E180: 132 | G180: 1
E181: 133 | G181: 1
E182: 134 | G182: 1
E183: 135 | G183: 1
E184: 136 | G184: 1
E185: 137 | G185: 1
E186: 138 | G186: 1
E187: 139 | G187: 1
E188: 140 | G188: 1
E189: 141 | G189: 1
E190: 142 | G190: 1
E191: 143 | G191: 1
E192: 144 | G192: 1
E193: 145 | G193: 1
E194: 146 | G194: 1
E195: 147 | G195: 1
E196: 148 | G196: 1
E197: 149 | G197: 1
E198: 150 | G198: 1
E199: 151 | G199: 1
E200: 152 | G200: 1
E201: 153 | G201: 1
E202: 154 | G202: 1
E203: 155 | G203: 1
E204: 156 | G204: 1
E205: 157 | G205: 1
... 920 more rows

Sheet Contact Information_ProviderEnt (hidden)
D1: Start Cell Index | H1: Workbook | I1: Provider Type | J1: Offset | K1: 0 | L1: 0 | M1: 0 | N1: 0 | O1: 0 | P1: 0 | Q1: 0 | R1: 0 | S1: 0 | T1: 0 | U1: 0 | V1: 0 | W1: 0 | X1: 0
A2: Worksheet to determine new/current | B2: Provider Entry | D2: =H2&"_"&I2&"_"&J2 -> Current prov._Regular hospital_Worksheet: | E2: =CELL("address",K2) -> $K$2 | H2: Current prov. | I2: Regular hospital | J2: Worksheet: | K2: Provider Entry back-end | L2: SKIP | M2: Provider Entry | N2: SKIP | O2: Provider Entry back-end | P2: Provider Entry back-end | Q2: Provider Entry | R2: Provider Entry | S2: Provider Entry | T2: Provider Entry | U2: Provider Entry | V2: Provider Entry | W2: Provider Entry | X2: Provider Entry
A3: Cell to determine new/current | B3: $C$70 | D3: =H3&"_"&I3&"_"&J3 -> Current prov._Regular hospital_Cell: | E3: =CELL("address",K3) -> $K$3 | H3: Current prov. | I3: Regular hospital | J3: Cell: | K3: =IF(OR(AND($B$30=0,$B$45="Y"),AND($B$30=1,$B$46="Y"),AND($B$30=2,$B$47="Y")),"$A$4","SKIP") -> SKIP | L3: SKIP | M3: =IF(OR(AND($B$30=0,$B$45="Y"),AND($B$30=1,$B$46="Y"),AND($B$30=2,$B$47="Y")),"$C$70","SKIP") -> SKIP | N3: SKIP | O3: =IF(OR(AND($B$30=0,$B$45="Y"),AND($B$30=1,$B$46="Y"),AND($B$30=2,$B$47="Y")),"$B$4","SKIP") -> SKIP | P3: =IF(OR(AND($B$30=0,$B$45="Y"),AND($B$30=1,$B$46="Y"),AND($B$30=2,$B$47="Y")),"$C$4","SKIP") -> SKIP | Q3: =IF(AND($B$30=0,$B$45="Y"),"$D$32",IF(AND($B$30=1,$B$46="Y"),"$E$32",IF(AND($B$30=2,$B$47="Y"),"$F$32","SKIP"))) -> SKIP | R3: =IF(AND($B$30=0,$B$45="Y"),"$D$33",IF(AND($B$30=1,$B$46="Y"),"$E$33",IF(AND($B$30=2,$B$47="Y"),"$F$33","SKIP"))) -> SKIP | S3: =IF(AND($B$30=0,$B$45="Y"),"$D$34",IF(AND($B$30=1,$B$46="Y"),"$E$34",IF(AND($B$30=2,$B$47="Y"),"$F$34","SKIP"))) -> SKIP | T3: =IF(AND($B$30=0,$B$45="Y"),"$D$35",IF(AND($B$30=1,$B$46="Y"),"$E$35",IF(AND($B$30=2,$B$47="Y"),"$F$35","SKIP"))) -> SKIP | U3: =IF(AND($B$30=0,$B$45="Y"),"$D$36",IF(AND($B$30=1,$B$46="Y"),"$E$36",IF(AND($B$30=2,$B$47="Y"),"$F$36","SKIP"))) -> SKIP | V3: =IF(AND($B$30=0,$B$45="Y"),"$D$37",IF(AND($B$30=1,$B$46="Y"),"$E$37",IF(AND($B$30=2,$B$47="Y"),"$F$37","SKIP"))) -> SKIP | W3: =IF(AND($B$30=0,$B$45="Y"),"$D$38",IF(AND($B$30=1,$B$46="Y"),"$E$38",IF(AND($B$30=2,$B$47="Y"),"$F$38","SKIP"))) -> SKIP | X3: =IF(AND($B$30=0,$B$45="Y"),"$D$39",IF(AND($B$30=1,$B$46="Y"),"$E$39",IF(AND($B$30=2,$B$47="Y"),"$F$39","SKIP"))) -> SKIP
A4: Value in cell if New Provider | B4: Please enter your Total DY7-8 DSRIP Valuation. | D4: Current prov._Exception - unbundled_Worksheet: | E4: $K$4 | H4: Current prov. | I4: Exception - unbundled | J4: Worksheet: | K4: Provider Entry back-end | L4: SKIP | M4: Provider Entry | N4: SKIP | O4: Provider Entry back-end | P4: Provider Entry back-end | Q4: Provider Entry | R4: Provider Entry | S4: Provider Entry | T4: Provider Entry | U4: Provider Entry | V4: Provider Entry | W4: Provider Entry | X4: Provider Entry
A5: New/Current Value | B5: =IFERROR(IF(INDIRECT("'["&Inputs!$F$6&"]"&B2&"'!"&B3)=B4,H14,H2),"No workbook found") -> No workbook found | D5: Current prov._Exception - unbundled_Cell: | E5: $K$5 | H5: Current prov. | I5: Exception - unbundled | J5: Cell: | K5: =IF(OR(AND($B$30=0,$B$45="Y"),AND($B$30=1,$B$46="Y"),AND($B$30=2,$B$47="Y")),"$A$4","SKIP") -> SKIP | L5: SKIP | M5: =IF(OR(AND($B$30=0,$B$45="Y"),AND($B$30=1,$B$46="Y"),AND($B$30=2,$B$47="Y")),"$C$70","SKIP") -> SKIP | N5: SKIP | O5: =IF(OR(AND($B$30=0,$B$45="Y"),AND($B$30=1,$B$46="Y"),AND($B$30=2,$B$47="Y")),"$B$4","SKIP") -> SKIP | P5: =IF(OR(AND($B$30=0,$B$45="Y"),AND($B$30=1,$B$46="Y"),AND($B$30=2,$B$47="Y")),"$C$4","SKIP") -> SKIP | Q5: =IF(AND($B$30=0,$B$45="Y"),"$D$32",IF(AND($B$30=1,$B$46="Y"),"$E$32",IF(AND($B$30=2,$B$47="Y"),"$F$32","SKIP"))) -> SKIP | R5: =IF(AND($B$30=0,$B$45="Y"),"$D$33",IF(AND($B$30=1,$B$46="Y"),"$E$33",IF(AND($B$30=2,$B$47="Y"),"$F$33","SKIP"))) -> SKIP | S5: =IF(AND($B$30=0,$B$45="Y"),"$D$34",IF(AND($B$30=1,$B$46="Y"),"$E$34",IF(AND($B$30=2,$B$47="Y"),"$F$34","SKIP"))) -> SKIP | T5: =IF(AND($B$30=0,$B$45="Y"),"$D$35",IF(AND($B$30=1,$B$46="Y"),"$E$35",IF(AND($B$30=2,$B$47="Y"),"$F$35","SKIP"))) -> SKIP | U5: =IF(AND($B$30=0,$B$45="Y"),"$D$36",IF(AND($B$30=1,$B$46="Y"),"$E$36",IF(AND($B$30=2,$B$47="Y"),"$F$36","SKIP"))) -> SKIP | V5: =IF(AND($B$30=0,$B$45="Y"),"$D$37",IF(AND($B$30=1,$B$46="Y"),"$E$37",IF(AND($B$30=2,$B$47="Y"),"$F$37","SKIP"))) -> SKIP | W5: =IF(AND($B$30=0,$B$45="Y"),"$D$38",IF(AND($B$30=1,$B$46="Y"),"$E$38",IF(AND($B$30=2,$B$47="Y"),"$F$38","SKIP"))) -> SKIP | X5: =IF(AND($B$30=0,$B$45="Y"),"$D$39",IF(AND($B$30=1,$B$46="Y"),"$E$39",IF(AND($B$30=2,$B$47="Y"),"$F$39","SKIP"))) -> SKIP
A6: Workheet to determine provider type | B6: Provider Entry | D6: Current prov._Exception - bundled_Worksheet: | E6: $K$6 | H6: Current prov. | I6: Exception - bundled | J6: Worksheet: | K6: Provider Entry back-end | L6: SKIP | M6: Provider Entry | N6: SKIP | O6: Provider Entry back-end | P6: Provider Entry back-end | Q6: Provider Entry | R6: Provider Entry | S6: Provider Entry | T6: Provider Entry | U6: Provider Entry | V6: Provider Entry | W6: Provider Entry | X6: Provider Entry
A7: C: cell to determine provider type | B7: $D$16 | D7: Current prov._Exception - bundled_Cell: | E7: $K$7 | H7: Current prov. | I7: Exception - bundled | J7: Cell: | K7: =IF(OR(AND($B$30=0,$B$45="Y"),AND($B$30=1,$B$46="Y"),AND($B$30=2,$B$47="Y")),"$A$4","SKIP") -> SKIP | L7: SKIP | M7: =IF(OR(AND($B$30=0,$B$45="Y"),AND($B$30=1,$B$46="Y"),AND($B$30=2,$B$47="Y")),"$C$70","SKIP") -> SKIP | N7: SKIP | O7: =IF(OR(AND($B$30=0,$B$45="Y"),AND($B$30=1,$B$46="Y"),AND($B$30=2,$B$47="Y")),"$B$4","SKIP") -> SKIP | P7: =IF(OR(AND($B$30=0,$B$45="Y"),AND($B$30=1,$B$46="Y"),AND($B$30=2,$B$47="Y")),"$C$4","SKIP") -> SKIP | Q7: =IF(AND($B$30=0,$B$45="Y"),"$D$32",IF(AND($B$30=1,$B$46="Y"),"$E$32",IF(AND($B$30=2,$B$47="Y"),"$F$32","SKIP"))) -> SKIP | R7: =IF(AND($B$30=0,$B$45="Y"),"$D$33",IF(AND($B$30=1,$B$46="Y"),"$E$33",IF(AND($B$30=2,$B$47="Y"),"$F$33","SKIP"))) -> SKIP | S7: =IF(AND($B$30=0,$B$45="Y"),"$D$34",IF(AND($B$30=1,$B$46="Y"),"$E$34",IF(AND($B$30=2,$B$47="Y"),"$F$34","SKIP"))) -> SKIP | T7: =IF(AND($B$30=0,$B$45="Y"),"$D$35",IF(AND($B$30=1,$B$46="Y"),"$E$35",IF(AND($B$30=2,$B$47="Y"),"$F$35","SKIP"))) -> SKIP | U7: =IF(AND($B$30=0,$B$45="Y"),"$D$36",IF(AND($B$30=1,$B$46="Y"),"$E$36",IF(AND($B$30=2,$B$47="Y"),"$F$36","SKIP"))) -> SKIP | V7: =IF(AND($B$30=0,$B$45="Y"),"$D$37",IF(AND($B$30=1,$B$46="Y"),"$E$37",IF(AND($B$30=2,$B$47="Y"),"$F$37","SKIP"))) -> SKIP | W7: =IF(AND($B$30=0,$B$45="Y"),"$D$38",IF(AND($B$30=1,$B$46="Y"),"$E$38",IF(AND($B$30=2,$B$47="Y"),"$F$38","SKIP"))) -> SKIP | X7: =IF(AND($B$30=0,$B$45="Y"),"$D$39",IF(AND($B$30=1,$B$46="Y"),"$E$39",IF(AND($B$30=2,$B$47="Y"),"$F$39","SKIP"))) -> SKIP
A8: N: cell to determine provider type | B8: $D$17 | D8: Current prov._Physician practice_Worksheet: | E8: $K$8 | H8: Current prov. | I8: Physician practice | J8: Worksheet: | K8: Provider Entry back-end | L8: SKIP | M8: Provider Entry | N8: SKIP | O8: Provider Entry back-end | P8: Provider Entry back-end | Q8: Provider Entry | R8: Provider Entry | S8: Provider Entry | T8: Provider Entry | U8: Provider Entry | V8: Provider Entry | W8: Provider Entry | X8: Provider Entry
A9: Worksheet to determine if exception hospital | B9: Category C Selection | D9: Current prov._Physician practice_Cell: | E9: $K$9 | H9: Current prov. | I9: Physician practice | J9: Cell: | K9: =IF(OR(AND($B$30=0,$B$45="Y"),AND($B$30=1,$B$46="Y"),AND($B$30=2,$B$47="Y")),"$A$4","SKIP") -> SKIP | L9: SKIP | M9: =IF(OR(AND($B$30=0,$B$45="Y"),AND($B$30=1,$B$46="Y"),AND($B$30=2,$B$47="Y")),"$C$70","SKIP") -> SKIP | N9: SKIP | O9: =IF(OR(AND($B$30=0,$B$45="Y"),AND($B$30=1,$B$46="Y"),AND($B$30=2,$B$47="Y")),"$B$4","SKIP") -> SKIP | P9: =IF(OR(AND($B$30=0,$B$45="Y"),AND($B$30=1,$B$46="Y"),AND($B$30=2,$B$47="Y")),"$C$4","SKIP") -> SKIP | Q9: =IF(AND($B$30=0,$B$45="Y"),"$D$32",IF(AND($B$30=1,$B$46="Y"),"$E$32",IF(AND($B$30=2,$B$47="Y"),"$F$32","SKIP"))) -> SKIP | R9: =IF(AND($B$30=0,$B$45="Y"),"$D$33",IF(AND($B$30=1,$B$46="Y"),"$E$33",IF(AND($B$30=2,$B$47="Y"),"$F$33","SKIP"))) -> SKIP | S9: =IF(AND($B$30=0,$B$45="Y"),"$D$34",IF(AND($B$30=1,$B$46="Y"),"$E$34",IF(AND($B$30=2,$B$47="Y"),"$F$34","SKIP"))) -> SKIP | T9: =IF(AND($B$30=0,$B$45="Y"),"$D$35",IF(AND($B$30=1,$B$46="Y"),"$E$35",IF(AND($B$30=2,$B$47="Y"),"$F$35","SKIP"))) -> SKIP | U9: =IF(AND($B$30=0,$B$45="Y"),"$D$36",IF(AND($B$30=1,$B$46="Y"),"$E$36",IF(AND($B$30=2,$B$47="Y"),"$F$36","SKIP"))) -> SKIP | V9: =IF(AND($B$30=0,$B$45="Y"),"$D$37",IF(AND($B$30=1,$B$46="Y"),"$E$37",IF(AND($B$30=2,$B$47="Y"),"$F$37","SKIP"))) -> SKIP | W9: =IF(AND($B$30=0,$B$45="Y"),"$D$38",IF(AND($B$30=1,$B$46="Y"),"$E$38",IF(AND($B$30=2,$B$47="Y"),"$F$38","SKIP"))) -> SKIP | X9: =IF(AND($B$30=0,$B$45="Y"),"$D$39",IF(AND($B$30=1,$B$46="Y"),"$E$39",IF(AND($B$30=2,$B$47="Y"),"$F$39","SKIP"))) -> SKIP
A10: Cell to determine if unbundled hospital | B10: $AD$4 | D10: Current prov._CMHC_Worksheet: | E10: $K$10 | H10: Current prov. | I10: CMHC | J10: Worksheet: | K10: Provider Entry back-end | L10: SKIP | M10: Provider Entry | N10: SKIP | O10: Provider Entry back-end | P10: Provider Entry back-end | Q10: Provider Entry | R10: Provider Entry | S10: Provider Entry | T10: Provider Entry | U10: Provider Entry | V10: Provider Entry | W10: Provider Entry | X10: Provider Entry
A11: Cell to determine if bundled hospital | B11: $AD$3 | D11: Current prov._CMHC_Cell: | E11: $K$11 | H11: Current prov. | I11: CMHC | J11: Cell: | K11: =IF(OR(AND($B$30=0,$B$45="Y"),AND($B$30=1,$B$46="Y"),AND($B$30=2,$B$47="Y")),"$A$4","SKIP") -> SKIP | L11: SKIP | M11: =IF(OR(AND($B$30=0,$B$45="Y"),AND($B$30=1,$B$46="Y"),AND($B$30=2,$B$47="Y")),"$C$70","SKIP") -> SKIP | N11: SKIP | O11: =IF(OR(AND($B$30=0,$B$45="Y"),AND($B$30=1,$B$46="Y"),AND($B$30=2,$B$47="Y")),"$B$4","SKIP") -> SKIP | P11: =IF(OR(AND($B$30=0,$B$45="Y"),AND($B$30=1,$B$46="Y"),AND($B$30=2,$B$47="Y")),"$C$4","SKIP") -> SKIP | Q11: =IF(AND($B$30=0,$B$45="Y"),"$D$32",IF(AND($B$30=1,$B$46="Y"),"$E$32",IF(AND($B$30=2,$B$47="Y"),"$F$32","SKIP"))) -> SKIP | R11: =IF(AND($B$30=0,$B$45="Y"),"$D$33",IF(AND($B$30=1,$B$46="Y"),"$E$33",IF(AND($B$30=2,$B$47="Y"),"$F$33","SKIP"))) -> SKIP | S11: =IF(AND($B$30=0,$B$45="Y"),"$D$34",IF(AND($B$30=1,$B$46="Y"),"$E$34",IF(AND($B$30=2,$B$47="Y"),"$F$34","SKIP"))) -> SKIP | T11: =IF(AND($B$30=0,$B$45="Y"),"$D$35",IF(AND($B$30=1,$B$46="Y"),"$E$35",IF(AND($B$30=2,$B$47="Y"),"$F$35","SKIP"))) -> SKIP | U11: =IF(AND($B$30=0,$B$45="Y"),"$D$36",IF(AND($B$30=1,$B$46="Y"),"$E$36",IF(AND($B$30=2,$B$47="Y"),"$F$36","SKIP"))) -> SKIP | V11: =IF(AND($B$30=0,$B$45="Y"),"$D$37",IF(AND($B$30=1,$B$46="Y"),"$E$37",IF(AND($B$30=2,$B$47="Y"),"$F$37","SKIP"))) -> SKIP | W11: =IF(AND($B$30=0,$B$45="Y"),"$D$38",IF(AND($B$30=1,$B$46="Y"),"$E$38",IF(AND($B$30=2,$B$47="Y"),"$F$38","SKIP"))) -> SKIP | X11: =IF(AND($B$30=0,$B$45="Y"),"$D$39",IF(AND($B$30=1,$B$46="Y"),"$E$39",IF(AND($B$30=2,$B$47="Y"),"$F$39","SKIP"))) -> SKIP
A12: =I2 -> Regular hospital | B12: =IFERROR(AND(INDIRECT("'["&Inputs!$F$6&"]"&B6&"'!"&IF(B5=H2,B7,B8))="Hospital",INDIRECT("'["&Inputs!$F$6&"]"&B9&"'!"&B10)=FALSE,INDIRECT("'["&Inputs!$F$6&"]"&B9&"'!"&B11)=FALSE),"No workbook found") -> No workbook found | D12: Current prov._LHD_Worksheet: | E12: $K$12 | H12: Current prov. | I12: LHD | J12: Worksheet: | K12: Provider Entry back-end | L12: SKIP | M12: Provider Entry | N12: SKIP | O12: Provider Entry back-end | P12: Provider Entry back-end | Q12: Provider Entry | R12: Provider Entry | S12: Provider Entry | T12: Provider Entry | U12: Provider Entry | V12: Provider Entry | W12: Provider Entry | X12: Provider Entry
A13: =I4 -> Exception - unbundled | B13: =IFERROR(AND(INDIRECT("'["&Inputs!$F$6&"]"&B6&"'!"&IF(B5=H2,B7,B8))="Hospital",INDIRECT("'["&Inputs!$F$6&"]"&B9&"'!"&B10)),"No workbook found") -> No workbook found | D13: Current prov._LHD_Cell: | E13: $K$13 | H13: Current prov. | I13: LHD | J13: Cell: | K13: =IF(OR(AND($B$30=0,$B$45="Y"),AND($B$30=1,$B$46="Y"),AND($B$30=2,$B$47="Y")),"$A$4","SKIP") -> SKIP | L13: SKIP | M13: =IF(OR(AND($B$30=0,$B$45="Y"),AND($B$30=1,$B$46="Y"),AND($B$30=2,$B$47="Y")),"$C$70","SKIP") -> SKIP | N13: SKIP | O13: =IF(OR(AND($B$30=0,$B$45="Y"),AND($B$30=1,$B$46="Y"),AND($B$30=2,$B$47="Y")),"$B$4","SKIP") -> SKIP | P13: =IF(OR(AND($B$30=0,$B$45="Y"),AND($B$30=1,$B$46="Y"),AND($B$30=2,$B$47="Y")),"$C$4","SKIP") -> SKIP | Q13: =IF(AND($B$30=0,$B$45="Y"),"$D$32",IF(AND($B$30=1,$B$46="Y"),"$E$32",IF(AND($B$30=2,$B$47="Y"),"$F$32","SKIP"))) -> SKIP | R13: =IF(AND($B$30=0,$B$45="Y"),"$D$33",IF(AND($B$30=1,$B$46="Y"),"$E$33",IF(AND($B$30=2,$B$47="Y"),"$F$33","SKIP"))) -> SKIP | S13: =IF(AND($B$30=0,$B$45="Y"),"$D$34",IF(AND($B$30=1,$B$46="Y"),"$E$34",IF(AND($B$30=2,$B$47="Y"),"$F$34","SKIP"))) -> SKIP | T13: =IF(AND($B$30=0,$B$45="Y"),"$D$35",IF(AND($B$30=1,$B$46="Y"),"$E$35",IF(AND($B$30=2,$B$47="Y"),"$F$35","SKIP"))) -> SKIP | U13: =IF(AND($B$30=0,$B$45="Y"),"$D$36",IF(AND($B$30=1,$B$46="Y"),"$E$36",IF(AND($B$30=2,$B$47="Y"),"$F$36","SKIP"))) -> SKIP | V13: =IF(AND($B$30=0,$B$45="Y"),"$D$37",IF(AND($B$30=1,$B$46="Y"),"$E$37",IF(AND($B$30=2,$B$47="Y"),"$F$37","SKIP"))) -> SKIP | W13: =IF(AND($B$30=0,$B$45="Y"),"$D$38",IF(AND($B$30=1,$B$46="Y"),"$E$38",IF(AND($B$30=2,$B$47="Y"),"$F$38","SKIP"))) -> SKIP | X13: =IF(AND($B$30=0,$B$45="Y"),"$D$39",IF(AND($B$30=1,$B$46="Y"),"$E$39",IF(AND($B$30=2,$B$47="Y"),"$F$39","SKIP"))) -> SKIP
A14: =I6 -> Exception - bundled | B14: =IFERROR(AND(INDIRECT("'["&Inputs!$F$6&"]"&B6&"'!"&IF(B5=H2,B7,B8))="Hospital",INDIRECT("'["&Inputs!$F$6&"]"&B9&"'!"&B11)),"No workbook found") -> No workbook found | D14: New prov._Regular hospital_Worksheet: | E14: $K$14 | H14: New prov. | I14: Regular hospital | J14: Worksheet: | K14: Provider Entry back-end | L14: SKIP | M14: Provider Entry | N14: SKIP | O14: Provider Entry back-end | P14: Provider Entry | Q14: Provider Entry | R14: Provider Entry | S14: Provider Entry | T14: Provider Entry | U14: Provider Entry | V14: Provider Entry | W14: Provider Entry | X14: Provider Entry
A15: =I8 -> Physician practice | B15: =IFERROR(OR(INDIRECT("'["&Inputs!$F$6&"]"&B6&"'!"&IF(B5=H2,B7,B8))="Physician Practice affiliated with an Academic Health Science Center (AHSC)",INDIRECT("'["&Inputs!$F$6&"]"&B6&"'!"&IF(B5=H2,B7,B8))="Physician Practice not affiliated with an Academic Health Science Center (AHSC)"),"No workbook found") -> No workbook found | D15: New prov._Regular hospital_Cell: | E15: $K$15 | H15: New prov. | I15: Regular hospital | J15: Cell: | K15: =IF(OR(AND($B$30=0,$B$49="Y"),AND($B$30=1,$B$50="Y"),AND($B$30=2,$B$51="Y")),"$A$4","SKIP") -> SKIP | L15: SKIP | M15: =IF(OR(AND($B$30=0,$B$49="Y"),AND($B$30=1,$B$50="Y"),AND($B$30=2,$B$51="Y")),"$C$70","SKIP") -> SKIP | N15: SKIP | O15: =IF(OR(AND($B$30=0,$B$49="Y"),AND($B$30=1,$B$50="Y"),AND($B$30=2,$B$51="Y")),"$B$4","SKIP") -> SKIP | P15: =IF(OR(AND($B$30=0,$B$49="Y"),AND($B$30=1,$B$50="Y"),AND($B$30=2,$B$51="Y")),"$D$16","SKIP") -> SKIP | Q15: =IF(AND($B$30=0,$B$49="Y"),"$D$33",IF(AND($B$30=1,$B$50="Y"),"$E$33",IF(AND($B$30=2,$B$51="Y"),"$F$33","SKIP"))) -> SKIP | R15: =IF(AND($B$30=0,$B$49="Y"),"$D$34",IF(AND($B$30=1,$B$50="Y"),"$E$34",IF(AND($B$30=2,$B$51="Y"),"$F$34","SKIP"))) -> SKIP | S15: =IF(AND($B$30=0,$B$49="Y"),"$D$35",IF(AND($B$30=1,$B$50="Y"),"$E$35",IF(AND($B$30=2,$B$51="Y"),"$F$35","SKIP"))) -> SKIP | T15: =IF(AND($B$30=0,$B$49="Y"),"$D$36",IF(AND($B$30=1,$B$50="Y"),"$E$36",IF(AND($B$30=2,$B$51="Y"),"$F$36","SKIP"))) -> SKIP | U15: =IF(AND($B$30=0,$B$49="Y"),"$D$37",IF(AND($B$30=1,$B$50="Y"),"$E$37",IF(AND($B$30=2,$B$51="Y"),"$F$37","SKIP"))) -> SKIP | V15: =IF(AND($B$30=0,$B$49="Y"),"$D$38",IF(AND($B$30=1,$B$50="Y"),"$E$38",IF(AND($B$30=2,$B$51="Y"),"$F$38","SKIP"))) -> SKIP | W15: =IF(AND($B$30=0,$B$49="Y"),"$D$39",IF(AND($B$30=1,$B$50="Y"),"$E$39",IF(AND($B$30=2,$B$51="Y"),"$F$39","SKIP"))) -> SKIP | X15: =IF(AND($B$30=0,$B$49="Y"),"$D$40",IF(AND($B$30=1,$B$50="Y"),"$E$40",IF(AND($B$30=2,$B$51="Y"),"$F$40","SKIP"))) -> SKIP
A16: =I10 -> CMHC | B16: =IFERROR(INDIRECT("'["&Inputs!$F$6&"]"&B6&"'!"&IF(B5=H2,B7,B8))="Community Mental Health Center (CMHC)","No workbook found") -> No workbook found | D16: New prov._Exception - unbundled_Worksheet: | E16: $K$16 | H16: New prov. | I16: Exception - unbundled | J16: Worksheet: | K16: Provider Entry back-end | L16: SKIP | M16: Provider Entry | N16: SKIP | O16: Provider Entry back-end | P16: Provider Entry | Q16: Provider Entry | R16: Provider Entry | S16: Provider Entry | T16: Provider Entry | U16: Provider Entry | V16: Provider Entry | W16: Provider Entry | X16: Provider Entry
A17: =I12 -> LHD | B17: =IFERROR(INDIRECT("'["&Inputs!$F$6&"]"&B6&"'!"&IF(B5=H2,B7,B8))="Local Health Department (LHD)","No workbook found") -> No workbook found | D17: New prov._Exception - unbundled_Cell: | E17: $K$17 | H17: New prov. | I17: Exception - unbundled | J17: Cell: | K17: =IF(OR(AND($B$30=0,$B$49="Y"),AND($B$30=1,$B$50="Y"),AND($B$30=2,$B$51="Y")),"$A$4","SKIP") -> SKIP | L17: SKIP | M17: =IF(OR(AND($B$30=0,$B$49="Y"),AND($B$30=1,$B$50="Y"),AND($B$30=2,$B$51="Y")),"$C$70","SKIP") -> SKIP | N17: SKIP | O17: =IF(OR(AND($B$30=0,$B$49="Y"),AND($B$30=1,$B$50="Y"),AND($B$30=2,$B$51="Y")),"$B$4","SKIP") -> SKIP | P17: =IF(OR(AND($B$30=0,$B$49="Y"),AND($B$30=1,$B$50="Y"),AND($B$30=2,$B$51="Y")),"$D$16","SKIP") -> SKIP | Q17: =IF(AND($B$30=0,$B$49="Y"),"$D$33",IF(AND($B$30=1,$B$50="Y"),"$E$33",IF(AND($B$30=2,$B$51="Y"),"$F$33","SKIP"))) -> SKIP | R17: =IF(AND($B$30=0,$B$49="Y"),"$D$34",IF(AND($B$30=1,$B$50="Y"),"$E$34",IF(AND($B$30=2,$B$51="Y"),"$F$34","SKIP"))) -> SKIP | S17: =IF(AND($B$30=0,$B$49="Y"),"$D$35",IF(AND($B$30=1,$B$50="Y"),"$E$35",IF(AND($B$30=2,$B$51="Y"),"$F$35","SKIP"))) -> SKIP | T17: =IF(AND($B$30=0,$B$49="Y"),"$D$36",IF(AND($B$30=1,$B$50="Y"),"$E$36",IF(AND($B$30=2,$B$51="Y"),"$F$36","SKIP"))) -> SKIP | U17: =IF(AND($B$30=0,$B$49="Y"),"$D$37",IF(AND($B$30=1,$B$50="Y"),"$E$37",IF(AND($B$30=2,$B$51="Y"),"$F$37","SKIP"))) -> SKIP | V17: =IF(AND($B$30=0,$B$49="Y"),"$D$38",IF(AND($B$30=1,$B$50="Y"),"$E$38",IF(AND($B$30=2,$B$51="Y"),"$F$38","SKIP"))) -> SKIP | W17: =IF(AND($B$30=0,$B$49="Y"),"$D$39",IF(AND($B$30=1,$B$50="Y"),"$E$39",IF(AND($B$30=2,$B$51="Y"),"$F$39","SKIP"))) -> SKIP | X17: =IF(AND($B$30=0,$B$49="Y"),"$D$40",IF(AND($B$30=1,$B$50="Y"),"$E$40",IF(AND($B$30=2,$B$51="Y"),"$F$40","SKIP"))) -> SKIP
A18: Provider Type | B18: =IFERROR(IF(B12,I2,IF(B13,I4,IF(B14,I6,IF(B15,I8,IF(B16,I10,IF(B17,I12,"No workbook found")))))),"No workbook found") -> No workbook found | D18: New prov._Exception - bundled_Worksheet: | E18: $K$18 | H18: New prov. | I18: Exception - bundled | J18: Worksheet: | K18: Provider Entry back-end | L18: SKIP | M18: Provider Entry | N18: SKIP | O18: Provider Entry back-end | P18: Provider Entry | Q18: Provider Entry | R18: Provider Entry | S18: Provider Entry | T18: Provider Entry | U18: Provider Entry | V18: Provider Entry | W18: Provider Entry | X18: Provider Entry
A19: Worksheet start lookup: | B19: =B5&"_"&B18&"_"&J2 -> No workbook found_No workbook found_Worksheet: | D19: New prov._Exception - bundled_Cell: | E19: $K$19 | H19: New prov. | I19: Exception - bundled | J19: Cell: | K19: =IF(OR(AND($B$30=0,$B$49="Y"),AND($B$30=1,$B$50="Y"),AND($B$30=2,$B$51="Y")),"$A$4","SKIP") -> SKIP | L19: SKIP | M19: =IF(OR(AND($B$30=0,$B$49="Y"),AND($B$30=1,$B$50="Y"),AND($B$30=2,$B$51="Y")),"$C$70","SKIP") -> SKIP | N19: SKIP | O19: =IF(OR(AND($B$30=0,$B$49="Y"),AND($B$30=1,$B$50="Y"),AND($B$30=2,$B$51="Y")),"$B$4","SKIP") -> SKIP | P19: =IF(OR(AND($B$30=0,$B$49="Y"),AND($B$30=1,$B$50="Y"),AND($B$30=2,$B$51="Y")),"$D$16","SKIP") -> SKIP | Q19: =IF(AND($B$30=0,$B$49="Y"),"$D$33",IF(AND($B$30=1,$B$50="Y"),"$E$33",IF(AND($B$30=2,$B$51="Y"),"$F$33","SKIP"))) -> SKIP | R19: =IF(AND($B$30=0,$B$49="Y"),"$D$34",IF(AND($B$30=1,$B$50="Y"),"$E$34",IF(AND($B$30=2,$B$51="Y"),"$F$34","SKIP"))) -> SKIP | S19: =IF(AND($B$30=0,$B$49="Y"),"$D$35",IF(AND($B$30=1,$B$50="Y"),"$E$35",IF(AND($B$30=2,$B$51="Y"),"$F$35","SKIP"))) -> SKIP | T19: =IF(AND($B$30=0,$B$49="Y"),"$D$36",IF(AND($B$30=1,$B$50="Y"),"$E$36",IF(AND($B$30=2,$B$51="Y"),"$F$36","SKIP"))) -> SKIP | U19: =IF(AND($B$30=0,$B$49="Y"),"$D$37",IF(AND($B$30=1,$B$50="Y"),"$E$37",IF(AND($B$30=2,$B$51="Y"),"$F$37","SKIP"))) -> SKIP | V19: =IF(AND($B$30=0,$B$49="Y"),"$D$38",IF(AND($B$30=1,$B$50="Y"),"$E$38",IF(AND($B$30=2,$B$51="Y"),"$F$38","SKIP"))) -> SKIP | W19: =IF(AND($B$30=0,$B$49="Y"),"$D$39",IF(AND($B$30=1,$B$50="Y"),"$E$39",IF(AND($B$30=2,$B$51="Y"),"$F$39","SKIP"))) -> SKIP | X19: =IF(AND($B$30=0,$B$49="Y"),"$D$40",IF(AND($B$30=1,$B$50="Y"),"$E$40",IF(AND($B$30=2,$B$51="Y"),"$F$40","SKIP"))) -> SKIP
A20: Cell start lookup: | B20: =B5&"_"&B18&"_"&J3 -> No workbook found_No workbook found_Cell: | D20: New prov._Physician practice_Worksheet: | E20: $K$20 | H20: New prov. | I20: Physician practice | J20: Worksheet: | K20: Provider Entry back-end | L20: SKIP | M20: Provider Entry | N20: SKIP | O20: Provider Entry back-end | P20: Provider Entry | Q20: Provider Entry | R20: Provider Entry | S20: Provider Entry | T20: Provider Entry | U20: Provider Entry | V20: Provider Entry | W20: Provider Entry | X20: Provider Entry
A21: Start of worksheet names | B21: =IFERROR(INDEX($E$2:$E$25,MATCH(B19,$D$2:$D$25,0)),"No workbook found") -> No workbook found | D21: New prov._Physician practice_Cell: | E21: $K$21 | H21: New prov. | I21: Physician practice | J21: Cell: | K21: =IF(OR(AND($B$30=0,$B$49="Y"),AND($B$30=1,$B$50="Y"),AND($B$30=2,$B$51="Y")),"$A$4","SKIP") -> SKIP | L21: SKIP | M21: =IF(OR(AND($B$30=0,$B$49="Y"),AND($B$30=1,$B$50="Y"),AND($B$30=2,$B$51="Y")),"$C$70","SKIP") -> SKIP | N21: SKIP | O21: =IF(OR(AND($B$30=0,$B$49="Y"),AND($B$30=1,$B$50="Y"),AND($B$30=2,$B$51="Y")),"$B$4","SKIP") -> SKIP | P21: =IF(OR(AND($B$30=0,$B$49="Y"),AND($B$30=1,$B$50="Y"),AND($B$30=2,$B$51="Y")),"$D$16","SKIP") -> SKIP | Q21: =IF(AND($B$30=0,$B$49="Y"),"$D$33",IF(AND($B$30=1,$B$50="Y"),"$E$33",IF(AND($B$30=2,$B$51="Y"),"$F$33","SKIP"))) -> SKIP | R21: =IF(AND($B$30=0,$B$49="Y"),"$D$34",IF(AND($B$30=1,$B$50="Y"),"$E$34",IF(AND($B$30=2,$B$51="Y"),"$F$34","SKIP"))) -> SKIP | S21: =IF(AND($B$30=0,$B$49="Y"),"$D$35",IF(AND($B$30=1,$B$50="Y"),"$E$35",IF(AND($B$30=2,$B$51="Y"),"$F$35","SKIP"))) -> SKIP | T21: =IF(AND($B$30=0,$B$49="Y"),"$D$36",IF(AND($B$30=1,$B$50="Y"),"$E$36",IF(AND($B$30=2,$B$51="Y"),"$F$36","SKIP"))) -> SKIP | U21: =IF(AND($B$30=0,$B$49="Y"),"$D$37",IF(AND($B$30=1,$B$50="Y"),"$E$37",IF(AND($B$30=2,$B$51="Y"),"$F$37","SKIP"))) -> SKIP | V21: =IF(AND($B$30=0,$B$49="Y"),"$D$38",IF(AND($B$30=1,$B$50="Y"),"$E$38",IF(AND($B$30=2,$B$51="Y"),"$F$38","SKIP"))) -> SKIP | W21: =IF(AND($B$30=0,$B$49="Y"),"$D$39",IF(AND($B$30=1,$B$50="Y"),"$E$39",IF(AND($B$30=2,$B$51="Y"),"$F$39","SKIP"))) -> SKIP | X21: =IF(AND($B$30=0,$B$49="Y"),"$D$40",IF(AND($B$30=1,$B$50="Y"),"$E$40",IF(AND($B$30=2,$B$51="Y"),"$F$40","SKIP"))) -> SKIP
A22: Start of cells | B22: =IFERROR(INDEX($E$2:$E$25,MATCH(B20,$D$2:$D$25,0)),"No workbook found") -> No workbook found | D22: New prov._CMHC_Worksheet: | E22: $K$22 | H22: New prov. | I22: CMHC | J22: Worksheet: | K22: Provider Entry back-end | L22: SKIP | M22: Provider Entry | N22: SKIP | O22: Provider Entry back-end | P22: Provider Entry | Q22: Provider Entry | R22: Provider Entry | S22: Provider Entry | T22: Provider Entry | U22: Provider Entry | V22: Provider Entry | W22: Provider Entry | X22: Provider Entry
A23: Start paste cell | B23: =CELL("address",K48) -> $K$48 | D23: New prov._CMHC_Cell: | E23: $K$23 | H23: New prov. | I23: CMHC | J23: Cell: | K23: =IF(OR(AND($B$30=0,$B$49="Y"),AND($B$30=1,$B$50="Y"),AND($B$30=2,$B$51="Y")),"$A$4","SKIP") -> SKIP | L23: SKIP | M23: =IF(OR(AND($B$30=0,$B$49="Y"),AND($B$30=1,$B$50="Y"),AND($B$30=2,$B$51="Y")),"$C$70","SKIP") -> SKIP | N23: SKIP | O23: =IF(OR(AND($B$30=0,$B$49="Y"),AND($B$30=1,$B$50="Y"),AND($B$30=2,$B$51="Y")),"$B$4","SKIP") -> SKIP | P23: =IF(OR(AND($B$30=0,$B$49="Y"),AND($B$30=1,$B$50="Y"),AND($B$30=2,$B$51="Y")),"$D$16","SKIP") -> SKIP | Q23: =IF(AND($B$30=0,$B$49="Y"),"$D$33",IF(AND($B$30=1,$B$50="Y"),"$E$33",IF(AND($B$30=2,$B$51="Y"),"$F$33","SKIP"))) -> SKIP | R23: =IF(AND($B$30=0,$B$49="Y"),"$D$34",IF(AND($B$30=1,$B$50="Y"),"$E$34",IF(AND($B$30=2,$B$51="Y"),"$F$34","SKIP"))) -> SKIP | S23: =IF(AND($B$30=0,$B$49="Y"),"$D$35",IF(AND($B$30=1,$B$50="Y"),"$E$35",IF(AND($B$30=2,$B$51="Y"),"$F$35","SKIP"))) -> SKIP | T23: =IF(AND($B$30=0,$B$49="Y"),"$D$36",IF(AND($B$30=1,$B$50="Y"),"$E$36",IF(AND($B$30=2,$B$51="Y"),"$F$36","SKIP"))) -> SKIP | U23: =IF(AND($B$30=0,$B$49="Y"),"$D$37",IF(AND($B$30=1,$B$50="Y"),"$E$37",IF(AND($B$30=2,$B$51="Y"),"$F$37","SKIP"))) -> SKIP | V23: =IF(AND($B$30=0,$B$49="Y"),"$D$38",IF(AND($B$30=1,$B$50="Y"),"$E$38",IF(AND($B$30=2,$B$51="Y"),"$F$38","SKIP"))) -> SKIP | W23: =IF(AND($B$30=0,$B$49="Y"),"$D$39",IF(AND($B$30=1,$B$50="Y"),"$E$39",IF(AND($B$30=2,$B$51="Y"),"$F$39","SKIP"))) -> SKIP | X23: =IF(AND($B$30=0,$B$49="Y"),"$D$40",IF(AND($B$30=1,$B$50="Y"),"$E$40",IF(AND($B$30=2,$B$51="Y"),"$F$40","SKIP"))) -> SKIP
A24: Paste offset | B24: =MAX(COUNTA($K$48:$K$10000),COUNTA($O$48:$O$10000),COUNTA($P$48:$P$10000),COUNTA($Q$48:$Q$10000),COUNTA($R$48:$R$10000),COUNTA($S$48:$S$100000),COUNTA($T$48:$T$10000),COUNTA($U$48:$U$100000),COUNTA($V$48:$V$10000),COUNTA($W$48:$W$10000),COUNTA($X$48:$X$10000)) -> 58 | D24: New prov._LHD_Worksheet: | E24: $K$24 | H24: New prov. | I24: LHD | J24: Worksheet: | K24: Provider Entry back-end | L24: SKIP | M24: Provider Entry | N24: SKIP | O24: Provider Entry back-end | P24: Provider Entry | Q24: Provider Entry | R24: Provider Entry | S24: Provider Entry | T24: Provider Entry | U24: Provider Entry | V24: Provider Entry | W24: Provider Entry | X24: Provider Entry
A25: Worksheet to determine # of loops per file | D25: New prov._LHD_Cell: | E25: $K$25 | H25: New prov. | I25: LHD | J25: Cell: | K25: =IF(OR(AND($B$30=0,$B$49="Y"),AND($B$30=1,$B$50="Y"),AND($B$30=2,$B$51="Y")),"$A$4","SKIP") -> SKIP | L25: SKIP | M25: =IF(OR(AND($B$30=0,$B$49="Y"),AND($B$30=1,$B$50="Y"),AND($B$30=2,$B$51="Y")),"$C$70","SKIP") -> SKIP | N25: SKIP | O25: =IF(OR(AND($B$30=0,$B$49="Y"),AND($B$30=1,$B$50="Y"),AND($B$30=2,$B$51="Y")),"$B$4","SKIP") -> SKIP | P25: =IF(OR(AND($B$30=0,$B$49="Y"),AND($B$30=1,$B$50="Y"),AND($B$30=2,$B$51="Y")),"$D$16","SKIP") -> SKIP | Q25: =IF(AND($B$30=0,$B$49="Y"),"$D$33",IF(AND($B$30=1,$B$50="Y"),"$E$33",IF(AND($B$30=2,$B$51="Y"),"$F$33","SKIP"))) -> SKIP | R25: =IF(AND($B$30=0,$B$49="Y"),"$D$34",IF(AND($B$30=1,$B$50="Y"),"$E$34",IF(AND($B$30=2,$B$51="Y"),"$F$34","SKIP"))) -> SKIP | S25: =IF(AND($B$30=0,$B$49="Y"),"$D$35",IF(AND($B$30=1,$B$50="Y"),"$E$35",IF(AND($B$30=2,$B$51="Y"),"$F$35","SKIP"))) -> SKIP | T25: =IF(AND($B$30=0,$B$49="Y"),"$D$36",IF(AND($B$30=1,$B$50="Y"),"$E$36",IF(AND($B$30=2,$B$51="Y"),"$F$36","SKIP"))) -> SKIP | U25: =IF(AND($B$30=0,$B$49="Y"),"$D$37",IF(AND($B$30=1,$B$50="Y"),"$E$37",IF(AND($B$30=2,$B$51="Y"),"$F$37","SKIP"))) -> SKIP | V25: =IF(AND($B$30=0,$B$49="Y"),"$D$38",IF(AND($B$30=1,$B$50="Y"),"$E$38",IF(AND($B$30=2,$B$51="Y"),"$F$38","SKIP"))) -> SKIP | W25: =IF(AND($B$30=0,$B$49="Y"),"$D$39",IF(AND($B$30=1,$B$50="Y"),"$E$39",IF(AND($B$30=2,$B$51="Y"),"$F$39","SKIP"))) -> SKIP | X25: =IF(AND($B$30=0,$B$49="Y"),"$D$40",IF(AND($B$30=1,$B$50="Y"),"$E$40",IF(AND($B$30=2,$B$51="Y"),"$F$40","SKIP"))) -> SKIP
A26: Cell to determine # of loops per file
A27: Number of columns to copy | B27: =COLUMNS(K47:X47) -> 14
A28: Number of loops | B28: 3
A29: Start of Offset | B29: =CELL("address",K1) -> $K$1
A30: Completed loops | B30: 2 | C30: =-Macro driven
A44: Current
A45: Contact 1 | B45: =IFERROR(IF(OR(INDIRECT("'["&Inputs!$F$6&"]"&$B6&"'!"&"$D$32")<>"",INDIRECT("'["&Inputs!$F$6&"]"&$B$6&"'!"&"$D$33")<>"",INDIRECT("'["&Inputs!$F$6&"]"&$B$6&"'!"&"$D$34")<>"",INDIRECT("'["&Inputs!$F$6&"]"&$B$6&"'!"&"$D$35")<>"",INDIRECT("'["&Inputs!$F$6&"]"&$B$6&"'!"&"$D$36")<>"",INDIRECT("'["&Inputs!$F$6&"]"&$B$6&"'!"&"$D$37")<>"",INDIRECT("'["&Inputs!$F$6&"]"&$B$6&"'!"&"$D$39")<>""),"Y","N"),"No workbook found") -> No workbook found | K45: RHP Contact Information
A46: Contact 2 | B46: =IFERROR(IF(OR(INDIRECT("'["&Inputs!$F$6&"]"&$B$6&"'!"&"$E$32")<>"",INDIRECT("'["&Inputs!$F$6&"]"&$B$6&"'!"&"$E$33")<>"",INDIRECT("'["&Inputs!$F$6&"]"&$B$6&"'!"&"$E$34")<>"",INDIRECT("'["&Inputs!$F$6&"]"&$B$6&"'!"&"$E$35")<>"",INDIRECT("'["&Inputs!$F$6&"]"&$B$6&"'!"&"$E$36")<>"",INDIRECT("'["&Inputs!$F$6&"]"&$B$6&"'!"&"$E$37")<>"",INDIRECT("'["&Inputs!$F$6&"]"&$B$6&"'!"&"$E$39")<>""),"Y","N"),"No workbook found") -> No workbook found
A47: Contact 3 | B47: =IFERROR(IF(OR(INDIRECT("'["&Inputs!$F$6&"]"&$B$6&"'!"&"$F$32")<>"",INDIRECT("'["&Inputs!$F$6&"]"&$B$6&"'!"&"$F$33")<>"",INDIRECT("'["&Inputs!$F$6&"]"&$B$6&"'!"&"$F$34")<>"",INDIRECT("'["&Inputs!$F$6&"]"&$B$6&"'!"&"$F$35")<>"",INDIRECT("'["&Inputs!$F$6&"]"&$B$6&"'!"&"$F$36")<>"",INDIRECT("'["&Inputs!$F$6&"]"&$B$6&"'!"&"$F$37")<>"",INDIRECT("'["&Inputs!$F$6&"]"&$B$6&"'!"&"$F$39")<>""),"Y","N"),"No workbook found") -> No workbook found | I47: Running Count of Contacts | K47: RHP | L47: Type of Organization | M47: Value to determine if new | N47: New (Y/N) | O47: TPI | P47: Organization Name | Q47: Contact Name | R47: Street Address | S47: City | T47: Zip Code | U47: Email | V47: Phone Number | W47: Phone Ext | X47: Lead Contact or Both | Y47: 1st Reviewer | Z47: 1st Reviewer Internal Comments | AA47: HHSC Initial Comments to Provider | AB47: Provider Response | AC47: 1st Reviewer | AD47: 1st Reviewer Internal Comments | AE47: HHSC Final Comments to Provider
A48: New | I48: 1 | K48: 9 | L48: Performing Provider | N48: =IF(M48="Please enter your Total DY7-8 DSRIP Valuation.","Y","N") -> N | O48: 009784201 | P48: TAMUS Health Science Center dba Baylor College of | Q48: Daniel Jones, DDS | R48: 3302 Gaston Avenue | S48: Dallas | T48: 75246 | U48: djones@tamhsc.edu | V48: 214-828‐8350 | X48: Both
A49: Contact 1 | B49: =IFERROR(IF(OR(INDIRECT("'["&Inputs!$F$6&"]"&$B$6&"'!"&"$D$40")<>"",INDIRECT("'["&Inputs!$F$6&"]"&$B$6&"'!"&"$D$33")<>"",INDIRECT("'["&Inputs!$F$6&"]"&$B$6&"'!"&"$D$34")<>"",INDIRECT("'["&Inputs!$F$6&"]"&$B$6&"'!"&"$D$35")<>"",INDIRECT("'["&Inputs!$F$6&"]"&$B$6&"'!"&"$D$36")<>"",INDIRECT("'["&Inputs!$F$6&"]"&$B$6&"'!"&"$D$37")<>"",INDIRECT("'["&Inputs!$F$6&"]"&$B$6&"'!"&"$D$38")<>""),"Y","N"),"No workbook found") -> No workbook found | I49: =IF(Q49<>"",MAX($I$48:$I48)+1,0) -> 2 | K49: 9 | L49: Performing Provider | N49: =IF(M49="Please enter your Total DY7-8 DSRIP Valuation.","Y","N") -> N | O49: 009784201 | P49: TAMUS Health Science Center dba Baylor College of | Q49: Paul Hoffman | R49: 3302 Gaston Avenue | S49: Dallas | T49: 75246 | U49: hoffmann@tamhsc.edu | V49: 214-828-8164 | X49: Both
A50: Contact 2 | B50: =IFERROR(IF(OR(INDIRECT("'["&Inputs!$F$6&"]"&$B$6&"'!"&"$E$40")<>"",INDIRECT("'["&Inputs!$F$6&"]"&$B$6&"'!"&"$E$33")<>"",INDIRECT("'["&Inputs!$F$6&"]"&$B$6&"'!"&"$E$34")<>"",INDIRECT("'["&Inputs!$F$6&"]"&$B$6&"'!"&"$E$35")<>"",INDIRECT("'["&Inputs!$F$6&"]"&$B$6&"'!"&"$E$36")<>"",INDIRECT("'["&Inputs!$F$6&"]"&$B$6&"'!"&"$E$37")<>"",INDIRECT("'["&Inputs!$F$6&"]"&$B$6&"'!"&"$E$38")<>""),"Y","N"),"No workbook found") -> No workbook found | I50: =IF(Q50<>"",MAX($I$48:$I49)+1,0) -> 3 | K50: 9 | L50: Performing Provider | N50: N | O50: 020908201 | P50: Presbyterian Hospital Of Dallas (TX Health Resourc | Q50: Janna Gardner | R50: 8515 Greenville Avenue, Ste N-108 | S50: Dallas | T50: 75243 | U50: JannaGardner@hhmtx.org | V50: 2142210855 | X50: Both
A51: Contact 3 | B51: =IFERROR(IF(OR(INDIRECT("'["&Inputs!$F$6&"]"&$B$6&"'!"&"$F$40")<>"",INDIRECT("'["&Inputs!$F$6&"]"&$B$6&"'!"&"$F$33")<>"",INDIRECT("'["&Inputs!$F$6&"]"&$B$6&"'!"&"$F$34")<>"",INDIRECT("'["&Inputs!$F$6&"]"&$B$6&"'!"&"$F$35")<>"",INDIRECT("'["&Inputs!$F$6&"]"&$B$6&"'!"&"$F$36")<>"",INDIRECT("'["&Inputs!$F$6&"]"&$B$6&"'!"&"$F$37")<>"",INDIRECT("'["&Inputs!$F$6&"]"&$B$6&"'!"&"$F$38")<>"",INDIRECT("'["&Inputs!$F$6&"]"&$B$6&"'!"&"$F$39")<>""),"Y","N"),"No workbook found") -> No workbook found | I51: =IF(Q51<>"",MAX($I$48:$I50)+1,0) -> 4 | K51: 9 | L51: Performing Provider | N51: N | O51: 020908201 | P51: Presbyterian Hospital Of Dallas (TX Health Resourc | Q51: Virginia Rose | R51: 8200 Walnut Hill Lane | S51: Dallas | T51: 75231 | U51: VirginiaRose@TexasHealth.org | V51: 214-345-6249 | X51: Both
I52: =IF(Q52<>"",MAX($I$48:$I51)+1,0) -> 5 | K52: 9 | L52: Performing Provider | N52: N | O52: 020908201 | P52: Presbyterian Hospital Of Dallas (TX Health Resourc | Q52: Jamie Judd | R52: 612 E. Lamar Boulevard | S52: Arlington | T52: 76011 | U52: jamiejudd@TexasHealth.org | V52: 682-236-6957 | X52: Both
I53: =IF(Q53<>"",MAX($I$48:$I52)+1,0) -> 6 | K53: 9 | L53: Performing Provider | N53: N | O53: 020943901 | P53: Columbia Hosp at Med City Dallas Subsid dba Medica | Q53: Kathleen Sweeney | R53: HCA North Texas Division, 6565 N. MacArthur Blvd., Suite 350 | S53: Irving | T53: 75039 | U53: Kathleen.sweeney@hcahealthcare.com | V53: 972-401-8757 | X53: Both
I54: =IF(Q54<>"",MAX($I$48:$I53)+1,0) -> 7 | K54: 9 | L54: Performing Provider | N54: N | O54: 020943901 | P54: Columbia Hosp at Med City Dallas Subsid dba Medica | Q54: Angelo Pagano | R54: HCA North Texas Division, 6565 N. MacArthur Blvd., Suite 350 | S54: Irving | T54: 75039 | U54: Ang.Pagano@HCAHealthcare.com | V54: 972-401-8774 | X54: Both
I55: =IF(Q55<>"",MAX($I$48:$I54)+1,0) -> 8 | K55: 9 | L55: Performing Provider | N55: N | O55: 020967801 | P55: Texas Health Presbyterian Hospital Denton Presbyte | Q55: Kathy Srokosz | R55: 3000 North I-35 | S55: Denton | T55: 76201 | U55: KathySrokosz@TexasHealth.org | V55: 940-898-7049 | X55: Both
I56: =IF(Q56<>"",MAX($I$48:$I55)+1,0) -> 9 | K56: 9 | L56: Performing Provider | N56: N | O56: 020967801 | P56: Texas Health Presbyterian Hospital Denton Presbyte | Q56: Jamie Judd | R56: 612 E. Lamar Boulevard | S56: Arlington | T56: 76011 | U56: jamiejudd@TexasHealth.org | V56: 682-236-6957 | X56: Both
I57: =IF(Q57<>"",MAX($I$48:$I56)+1,0) -> 10 | K57: 9 | L57: Performing Provider | N57: N | O57: 020967801 | P57: Texas Health Presbyterian Hospital Denton Presbyte | Q57: Jeff Reecer | R57: 3000 North I-35 | S57: Denton | T57: 76201 | U57: JeffReecer@TexasHealth.org | V57: 972-747-6226 | X57: Both
I58: =IF(Q58<>"",MAX($I$48:$I57)+1,0) -> 11 | K58: 9 | L58: Performing Provider | N58: N | O58: 020979302 | P58: Columbia Medical Center of Las Colinas Inc dba Las | Q58: Kathleen Sweeney | R58: HCA North Texas Division, 6565 N. MacArthur Blvd., Suite 350 | S58: Irving | T58: 75039 | U58: Kathleen.sweeney@hcahealthcare.com | V58: 972-401-8757 | X58: Both
I59: =IF(Q59<>"",MAX($I$48:$I58)+1,0) -> 12 | K59: 9 | L59: Performing Provider | N59: N | O59: 020979302 | P59: Columbia Medical Center of Las Colinas Inc dba Las | Q59: Angelo Pagano | R59: HCA North Texas Division, 6565 N. MacArthur Blvd., Suite 350 | S59: Irving | T59: 75039 | U59: Ang.Pagano@HCAHealthcare.com | V59: 972-401-8774 | X59: Both
I60: =IF(Q60<>"",MAX($I$48:$I59)+1,0) -> 13 | K60: 9 | L60: Performing Provider | N60: N | O60: 094140302 | P60: Texas Health Presbyterian Hospital Kaufman dba Pre | Q60: Jamie Judd | R60: 612 E. Lamar Boulevard | S60: Arlington | T60: 76011 | U60: jamiejudd@TexasHealth.org | V60: 682-236-6957 | X60: Both
I61: =IF(Q61<>"",MAX($I$48:$I60)+1,0) -> 14 | K61: 9 | L61: Performing Provider | N61: N | O61: 094140302 | P61: Texas Health Presbyterian Hospital Kaufman dba Pre | Q61: Patsy Youngs | R61: 850 Ed Hall Drive | S61: Kaufman | T61: 75142 | U61: PatsyYoungs@TexasHealth.org | V61: 972-932-7354 | X61: Lead Contact
I62: =IF(Q62<>"",MAX($I$48:$I61)+1,0) -> 15 | K62: 9 | L62: Performing Provider | N62: N | O62: 094140302 | P62: Texas Health Presbyterian Hospital Kaufman dba Pre | Q62: Bette Akpan | R62: 850 Ed Hall Drive | S62: Kaufman | T62: 75142 | U62: betteakpan@texashealth.org | V62: 972-932-5560 | X62: Both
I63: =IF(Q63<>"",MAX($I$48:$I62)+1,0) -> 16 | K63: 9 | L63: Performing Provider | N63: N | O63: 094192402 | P63: Columbia Medical Center of Lewisville dba Medical | Q63: Kathleen Sweeney | R63: HCA North Texas Division, 6565 N. MacArthur Blvd., Suite 350 | S63: Irving | T63: 75039 | U63: Kathleen.sweeney@hcahealthcare.com | V63: 972-401-8757 | X63: Both
I64: =IF(Q64<>"",MAX($I$48:$I63)+1,0) -> 17 | K64: 9 | L64: Performing Provider | N64: N | O64: 094192402 | P64: Columbia Medical Center of Lewisville dba Medical | Q64: Angelo Pagano | R64: HCA North Texas Division, 6565 N. MacArthur Blvd., Suite 350 | S64: Irving | T64: 75039 | U64: Ang.Pagano@HCAHealthcare.com | V64: 972-401-8774 | X64: Both
I65: =IF(Q65<>"",MAX($I$48:$I64)+1,0) -> 18 | K65: 9 | L65: Performing Provider | N65: N | O65: 111905902 | P65: Columbia Medical Center of Denton dba Denton Regio | Q65: Kathleen Sweeney | R65: HCA North Texas Division, 6565 N. MacArthur Blvd., Suite 350 | S65: Irving | T65: 75039 | U65: Kathleen.sweeney@hcahealthcare.com | V65: 972-401-8757 | X65: Both
I66: =IF(Q66<>"",MAX($I$48:$I65)+1,0) -> 19 | K66: 9 | L66: Performing Provider | N66: N | O66: 111905902 | P66: Columbia Medical Center of Denton dba Denton Regio | Q66: Angelo Pagano | R66: HCA North Texas Division, 6565 N. MacArthur Blvd., Suite 350 | S66: Irving | T66: 75039 | U66: Ang.Pagano@HCAHealthcare.com | V66: 972-401-8774 | X66: Both
I67: =IF(Q67<>"",MAX($I$48:$I66)+1,0) -> 20 | K67: 9 | L67: Performing Provider | N67: N | O67: 121758005 | P67: Dallas County | Q67: Ganesh Shivaramaiyer | R67: 2377 North Stemmons Freeway | S67: Dallas | T67: 75207 | U67: ganesh.shivaramaiyer@dallascounty.org | V67: 214-819-2000 | X67: Both
I68: =IF(Q68<>"",MAX($I$48:$I67)+1,0) -> 21 | K68: 9 | L68: Performing Provider | N68: N | O68: 121758005 | P68: Dallas County | Q68: Woldu Ameneshoa | R68: 2377 N. Stemmons Freeway | S68: Dallas | T68: 75207 | U68: woldu.ameneshoa@dallascounty.org | V68: 214-590-2034 | X68: Both
I69: =IF(Q69<>"",MAX($I$48:$I68)+1,0) -> 22 | K69: 9 | L69: Performing Provider | N69: N | O69: 121758005 | P69: Dallas County | Q69: Charlene Randolph | R69: 133 N. Riverfront Blvd. | S69: Dallas | T69: 75207 | U69: Charlene.Randolph@dallascounty.org | V69: 214-761-1335 | X69: Both
I70: =IF(Q70<>"",MAX($I$48:$I69)+1,0) -> 23 | K70: 9 | L70: Performing Provider | N70: N | O70: 121776204 | P70: Baylor Medical Center At Irving | Q70: Gabrielle Menz | R70: 8080 North Central Expressway, Suite 700 | S70: Dallas | T70: 75206 | U70: Gabrielle.Menz@BSWHealth.org | V70: 214-265-5167 | X70: Both
I71: =IF(Q71<>"",MAX($I$48:$I70)+1,0) -> 24 | K71: 9 | L71: Performing Provider | N71: N | O71: 121776204 | P71: Baylor Medical Center At Irving | Q71: Nikita Shah | R71: 8080 North Central Expressway, Suite 700 | S71: Dallas | T71: 75206 | U71: Niki.Shah@BSWHealth.org | V71: 214-265-3724 | X71: Both
I72: =IF(Q72<>"",MAX($I$48:$I71)+1,0) -> 25 | K72: 9 | L72: Performing Provider | N72: N | O72: 121988304 | P72: Lakes Regional MHMR Center | Q72: John Delaney | R72: 400 Airport Road | S72: Terrell | T72: 75160 | U72: johnd@lakesregional.org | V72: 972-524-4159 | W72: 1150 | X72: Both
I73: =IF(Q73<>"",MAX($I$48:$I72)+1,0) -> 26 | K73: 9 | L73: Performing Provider | N73: N | O73: 126679303 | P73: Methodist Hosp of Dallas Methodist Charlton Med Ct | Q73: Michael Schaefer | R73: 1441 North Beckley Ave. | S73: Dallas | T73: 75203 | U73: michaelschaefer@mhd.com | V73: 214-947-4510 | X73: Lead Contact
I74: =IF(Q74<>"",MAX($I$48:$I73)+1,0) -> 27 | K74: 9 | L74: Performing Provider | N74: N | O74: 126679303 | P74: Methodist Hosp of Dallas Methodist Charlton Med Ct | Q74: Leslie Pierce | R74: 1441 North Beckley Ave. | S74: Dallas | T74: 75203 | U74: LesliePierce@mhd.com | V74: 214-947-4583 | X74: Both
I75: =IF(Q75<>"",MAX($I$48:$I74)+1,0) -> 28 | K75: 9 | L75: Performing Provider | N75: N | O75: 126679303 | P75: Methodist Hosp of Dallas Methodist Charlton Med Ct | Q75: Stacie Anderson | R75: 1441 North Beckley Ave. | S75: Dallas | T75: 75203 | U75: StacieAnderson@mhd.com | V75: 214-947-2521 | X75: Both
I76: =IF(Q76<>"",MAX($I$48:$I75)+1,0) -> 29 | K76: 9 | L76: Performing Provider | N76: N | O76: 126686802 | P76: UT Southwestern Medical Center at Dallas | Q76: Kelly Robinson | R76: 5323 Harry Hines Blvd. | S76: Dallas | T76: 75390 | U76: kelly.robinson@utsouthwestern.edu | V76: 214-648-1707 | X76: Both
I77: =IF(Q77<>"",MAX($I$48:$I76)+1,0) -> 30 | K77: 9 | L77: Performing Provider | N77: N | O77: 126686802 | P77: UT Southwestern Medical Center at Dallas | Q77: Suresh Gunasekaran | R77: 5323 Harry Hines Blvd. | S77: Dallas | T77: 75390 | U77: Suresh.Gunasekaran@UTSouthwestern.edu | V77: 214-648-3864 | X77: Both
I78: =IF(Q78<>"",MAX($I$48:$I77)+1,0) -> 31 | K78: 9 | L78: Performing Provider | N78: N | O78: 126686802 | P78: UT Southwestern Medical Center at Dallas | Q78: Heather Jones | R78: 5323 Harry Hines Blvd. | S78: Dallas | T78: 75390 | U78: Heather.Jones@utsouthwestern.edu | V78: 2146487560 | X78: Both
I79: =IF(Q79<>"",MAX($I$48:$I78)+1,0) -> 32 | K79: 9 | L79: Performing Provider | N79: N | O79: 127295703 | P79: Dallas County Hospital District dba Parkland Healt | Q79: Richard Humphrey | R79: 5200 Harry Hines Blvd. | S79: Dallas | T79: 75235 | U79: richard.humphrey@phhs.org | V79: 214-590-8006 | X79: Both
I80: =IF(Q80<>"",MAX($I$48:$I79)+1,0) -> 33 | K80: 9 | L80: Performing Provider | N80: N | O80: 127295703 | P80: Dallas County Hospital District dba Parkland Healt | Q80: Christina Mintner | R80: 5200 Harry Hines Blvd. | S80: Dallas | T80: 75235 | U80: christina.mintner@phhs.org | V80: 214-590-4605 | X80: Both
I81: =IF(Q81<>"",MAX($I$48:$I80)+1,0) -> 34 | K81: 9 | L81: Performing Provider | N81: N | O81: 127295703 | P81: Dallas County Hospital District dba Parkland Healt | Q81: Maurice King | R81: 5200 Harry Hines Blvd | S81: Dallas | T81: 75235 | U81: maurice.king@phhs.org | V81: 2145905726 | X81: Both
I82: =IF(Q82<>"",MAX($I$48:$I81)+1,0) -> 35 | K82: 9 | L82: Performing Provider | N82: N | O82: 135032405 | P82: Methodist Hosp of Dallas Methodist Dallas Med Ctr | Q82: Michael Schaefer | R82: 1441 North Beckley Ave. | S82: Dallas | T82: 75203 | U82: michaelschaefer@mhd.com | V82: 214-947-4510 | X82: Lead Contact
I83: =IF(Q83<>"",MAX($I$48:$I82)+1,0) -> 36 | K83: 9 | L83: Performing Provider | N83: N | O83: 135032405 | P83: Methodist Hosp of Dallas Methodist Dallas Med Ctr | Q83: Leslie Pierce | R83: 1441 North Beckley Ave. | S83: Dallas | T83: 75203 | U83: LesliePierce@mhd.com | V83: 214-947-4583 | X83: Both
I84: =IF(Q84<>"",MAX($I$48:$I83)+1,0) -> 37 | K84: 9 | L84: Performing Provider | N84: N | O84: 135032405 | P84: Methodist Hosp of Dallas Methodist Dallas Med Ctr | Q84: Stacie Anderson | R84: 1441 North Beckley Ave. | S84: Dallas | T84: 75203 | U84: StacieAnderson@mhd.com | V84: 214-947-2521 | X84: Both
I85: =IF(Q85<>"",MAX($I$48:$I84)+1,0) -> 38 | K85: 9 | L85: Performing Provider | N85: N | O85: 135234606 | P85: Denton County MHMR Center | Q85: Pam Gutierrez | R85: PO Box 2346 | S85: Denton | T85: 76202 | U85: pamg@dentonmhmr.org | V85: 940-565-5260 | X85: Both
I86: =IF(Q86<>"",MAX($I$48:$I85)+1,0) -> 39 | K86: 9 | L86: Performing Provider | N86: N | O86: 135234606 | P86: Denton County MHMR Center | Q86: Tammy Weppelman | R86: PO Box 2346 | S86: Denton | T86: 76202 | U86: tammyw@dentonmhmr.org | V86: 940-594-1015 | X86: Both
I87: =IF(Q87<>"",MAX($I$48:$I86)+1,0) -> 40 | K87: 9 | L87: Performing Provider | N87: N | O87: 136360803 | P87: Denton County dba Denton County Health Department | Q87: Joe Paul Gallo | R87: 535 S. Loop 288, Suite 1003 | S87: Denton | T87: 76205 | U87: joe.gallo@dentoncounty.com | V87: 940-349-2922 | X87: Both
I88: =IF(Q88<>"",MAX($I$48:$I87)+1,0) -> 41 | K88: 9 | L88: Performing Provider | N88: N | O88: 136360803 | P88: Denton County dba Denton County Health Department | Q88: Matt Richardson | R88: 535 S. Loop 288, Suite 1003 | S88: Denton | T88: 76205 | U88: matt.richardson@dentoncounty.com | V88: 940-349-2913 | X88: Both
I89: =IF(Q89<>"",MAX($I$48:$I88)+1,0) -> 42 | K89: 9 | L89: Performing Provider | N89: N | O89: 136360803 | P89: Denton County dba Denton County Health Department | Q89: James Wells | R89: 535 S. Loop 288, Suite 1003 | S89: Denton | T89: 76205 | U89: james.wells@dentoncounty.com | V89: 940-349-3107 | X89: Both
I90: =IF(Q90<>"",MAX($I$48:$I89)+1,0) -> 43 | K90: 9 | L90: Performing Provider | N90: N | O90: 137252607 | P90: Metrocare Services | Q90: Linda Thompson | R90: 1345 River Bend Dr., Administration Bldg. | S90: Dallas | T90: 75247 | U90: Linda.Thompson@metrocareservices.org | V90: 214-743-1258 | X90: Both
I91: =IF(Q91<>"",MAX($I$48:$I90)+1,0) -> 44 | K91: 9 | L91: Performing Provider | N91: N | O91: 137252607 | P91: Metrocare Services | Q91: Derrick Villa | R91: 1345 River Bend Dr. Suite 200, Administration Bldg. | S91: Dallas | T91: 75247 | U91: Derrick.Villa@metrocareservices.org | V91: 214-743-6164 | X91: Lead Contact
I92: =IF(Q92<>"",MAX($I$48:$I91)+1,0) -> 45 | K92: 9 | L92: Performing Provider | N92: N | O92: 137252607 | P92: Metrocare Services | Q92: Carrie Parks | R92: 1345 River Bend Dr. Suite 200, Administration Bldg. | S92: Dallas | T92: 75247 | U92: Carrie.Parks@metrocareservices.org | V92: 2143337028 | X92: Lead Contact
I93: =IF(Q93<>"",MAX($I$48:$I92)+1,0) -> 46 | K93: 9 | L93: Performing Provider | N93: N | O93: 138910807 | P93: Children's Medical Center of Dallas | Q93: Jamie Marsh-Wheeler | R93: 1935 Medical District Drive | S93: Dallas | T93: 75235 | U93: jamie.marsh-wheeler@childrens.com | V93: 214-456-0437 | X93: Both
I94: =IF(Q94<>"",MAX($I$48:$I93)+1,0) -> 47 | K94: 9 | L94: Performing Provider | N94: N | O94: 138910807 | P94: Children's Medical Center of Dallas | Q94: Carol Daulton | R94: 1935 Medical District Drive | S94: Dallas | T94: 75235 | U94: carol.daulton@childrens.com | V94: 214-456-6245 | X94: Both
I95: =IF(Q95<>"",MAX($I$48:$I94)+1,0) -> 48 | K95: 9 | L95: Performing Provider | N95: N | O95: 138910807 | P95: Children's Medical Center of Dallas | Q95: Adriana Vega | R95: 1935 Medical District Drive | S95: Dallas | T95: 75235 | U95: adriana.vega@childrens.com | V95: 214-456-8511 | X95: Both
I96: =IF(Q96<>"",MAX($I$48:$I95)+1,0) -> 49 | K96: 9 | L96: Performing Provider | N96: N | O96: 139485012 | P96: Baylor University Medical Center | Q96: Gabrielle Menz | R96: 8080 North Central Expressway, Suite 700 | S96: Dallas | T96: 75206 | U96: Gabrielle.Menz@BSWHealth.org | V96: 214-265-5167 | X96: Both
I97: =IF(Q97<>"",MAX($I$48:$I96)+1,0) -> 50 | K97: 9 | L97: Performing Provider | N97: N | O97: 139485012 | P97: Baylor University Medical Center | Q97: Nikita Shah | R97: 8080 North Central Expressway, Suite 700 | S97: Dallas | T97: 75206 | U97: Niki.Shah@BSWHealth.org | V97: 214-265-3724 | X97: Both
I98: =IF(Q98<>"",MAX($I$48:$I97)+1,0) -> 51 | K98: 9 | L98: Performing Provider | N98: N | O98: 209345201 | P98: Methodist Hosp of Dallas dba Methodist Richardson | Q98: Michael Schaefer | R98: 1441 North Beckley Ave. | S98: Dallas | T98: 75203 | U98: michaelschaefer@mhd.com | V98: 214-947-4510 | X98: Lead Contact
I99: =IF(Q99<>"",MAX($I$48:$I98)+1,0) -> 52 | K99: 9 | L99: Performing Provider | N99: N | O99: 209345201 | P99: Methodist Hosp of Dallas dba Methodist Richardson | Q99: Leslie Pierce | R99: 1441 North Beckley Ave. | S99: Dallas | T99: 75203 | U99: LesliePierce@mhd.com | V99: 214-947-4583 | X99: Both
I100: =IF(Q100<>"",MAX($I$48:$I99)+1,0) -> 53 | K100: 9 | L100: Performing Provider | N100: N | O100: 209345201 | P100: Methodist Hosp of Dallas dba Methodist Richardson | Q100: Stacie Anderson | R100: 1441 North Beckley Ave. | S100: Dallas | T100: 75203 | U100: StacieAnderson@mhd.com | V100: 214-947-2521 | X100: Both
I101: =IF(Q101<>"",MAX($I$48:$I100)+1,0) -> 54 | K101: 9 | L101: Performing Provider | N101: N | O101: 344925801 | P101: Trinity MC dba Baylor Medical Center at Carrollton | Q101: Gabrielle Menz | R101: 8080 North Central Expressway, Suite 700 | S101: Dallas | T101: 75206 | U101: Gabrielle.Menz@BSWHealth.org | V101: 214-265-5167 | X101: Both
I102: =IF(Q102<>"",MAX($I$48:$I101)+1,0) -> 55 | K102: 9 | L102: Performing Provider | N102: N | O102: 344925801 | P102: Trinity MC dba Baylor Medical Center at Carrollton | Q102: Nikita Shah | R102: 8080 North Central Expressway, Suite 700 | S102: Dallas | T102: 75206 | U102: Niki.Shah@BSWHealth.org | V102: 214-265-3724 | X102: Both
I103: =IF(Q103<>"",MAX($I$48:$I102)+1,0) -> 56 | K103: 9 | L103: Performing Provider | N103: N | O103: 362293801 | P103: BT Garland JV LLP | Q103: Gabrielle Menz | R103: 8080 North Central Expressway, Suite 700 | S103: Dallas | T103: 75206 | U103: Gabrielle.Menz@BSWHealth.org | V103: 214-265-5167 | X103: Both
I104: =IF(Q104<>"",MAX($I$48:$I103)+1,0) -> 57 | K104: 9 | L104: Performing Provider | N104: N | O104: 362293801 | P104: BT Garland JV LLP | Q104: Nikita Shah | R104: 8080 North Central Expressway, Suite 700 | S104: Dallas | T104: 75206 | U104: Niki.Shah@BSWHealth.org | V104: 214-265-3724 | X104: Both
I105: =IF(Q105<>"",MAX($I$48:$I104)+1,0) -> 58 | K105: 9 | L105: Performing Provider | N105: N | O105: 364710901 | P105: Tenet Hosp Ltd dba Doctors Hosp at White Rock | Q105: Drew Shea | R105: Tenet Healthcare Corporation, 1445 Ross Avenue, Suite 1400 | S105: Dallas | T105: 75202 | U105: drew.shea@tenethealth.com | V105: 214-324-6133 | X105: Both
I106: =IF(Q106<>"",MAX($I$48:$I105)+1,0) -> 0 | L106: Performing Provider | N106: N
I107: =IF(Q107<>"",MAX($I$48:$I106)+1,0) -> 0 | L107: Performing Provider | N107: N
I108: =IF(Q108<>"",MAX($I$48:$I107)+1,0) -> 0 | L108: Performing Provider | N108: N
I109: =IF(Q109<>"",MAX($I$48:$I108)+1,0) -> 0 | L109: Performing Provider | N109: N
I110: =IF(Q110<>"",MAX($I$48:$I109)+1,0) -> 0 | L110: Performing Provider | N110: N
I111: =IF(Q111<>"",MAX($I$48:$I110)+1,0) -> 0 | L111: Performing Provider | N111: N
I112: =IF(Q112<>"",MAX($I$48:$I111)+1,0) -> 0 | L112: Performing Provider | N112: N
I113: =IF(Q113<>"",MAX($I$48:$I112)+1,0) -> 0 | L113: Performing Provider | N113: =IF(M113="Please enter your Total DY7-8 DSRIP Valuation.","Y","N") -> N
I114: =IF(Q114<>"",MAX($I$48:$I113)+1,0) -> 0 | L114: Performing Provider | N114: N
I115: =IF(Q115<>"",MAX($I$48:$I114)+1,0) -> 0 | L115: Performing Provider | N115: N
I116: =IF(Q116<>"",MAX($I$48:$I115)+1,0) -> 0 | L116: Performing Provider | N116: N
I117: =IF(Q117<>"",MAX($I$48:$I116)+1,0) -> 0 | L117: Performing Provider | N117: N
I118: =IF(Q118<>"",MAX($I$48:$I117)+1,0) -> 0 | L118: Performing Provider | N118: N
I119: =IF(Q119<>"",MAX($I$48:$I118)+1,0) -> 0 | L119: Performing Provider | N119: N
I120: =IF(Q120<>"",MAX($I$48:$I119)+1,0) -> 0 | L120: Performing Provider | N120: N
I121: =IF(Q121<>"",MAX($I$48:$I120)+1,0) -> 0 | L121: Performing Provider | N121: N
I122: =IF(Q122<>"",MAX($I$48:$I121)+1,0) -> 0 | L122: Performing Provider | N122: N
I123: =IF(Q123<>"",MAX($I$48:$I122)+1,0) -> 0 | L123: Performing Provider | N123: N
I124: =IF(Q124<>"",MAX($I$48:$I123)+1,0) -> 0 | L124: Performing Provider | N124: N
I125: =IF(Q125<>"",MAX($I$48:$I124)+1,0) -> 0 | L125: Performing Provider | N125: N
I126: =IF(Q126<>"",MAX($I$48:$I125)+1,0) -> 0 | L126: Performing Provider | N126: N
I127: =IF(Q127<>"",MAX($I$48:$I126)+1,0) -> 0 | L127: Performing Provider | N127: N
I128: =IF(Q128<>"",MAX($I$48:$I127)+1,0) -> 0 | L128: Performing Provider | N128: N
I129: =IF(Q129<>"",MAX($I$48:$I128)+1,0) -> 0 | L129: Performing Provider | N129: N
I130: =IF(Q130<>"",MAX($I$48:$I129)+1,0) -> 0 | L130: Performing Provider | N130: N
I131: =IF(Q131<>"",MAX($I$48:$I130)+1,0) -> 0 | L131: Performing Provider | N131: N
I132: =IF(Q132<>"",MAX($I$48:$I131)+1,0) -> 0 | L132: Performing Provider | N132: N
I133: =IF(Q133<>"",MAX($I$48:$I132)+1,0) -> 0 | L133: Performing Provider | N133: N
I134: =IF(Q134<>"",MAX($I$48:$I133)+1,0) -> 0 | L134: Performing Provider | N134: N
I135: =IF(Q135<>"",MAX($I$48:$I134)+1,0) -> 0 | L135: Performing Provider | N135: N
I136: =IF(Q136<>"",MAX($I$48:$I135)+1,0) -> 0 | L136: Performing Provider | N136: N
I137: =IF(Q137<>"",MAX($I$48:$I136)+1,0) -> 0 | L137: Performing Provider | N137: N
I138: =IF(Q138<>"",MAX($I$48:$I137)+1,0) -> 0 | L138: Performing Provider | N138: N
I139: =IF(Q139<>"",MAX($I$48:$I138)+1,0) -> 0 | L139: Performing Provider | N139: N
I140: =IF(Q140<>"",MAX($I$48:$I139)+1,0) -> 0 | L140: Performing Provider | N140: N
I141: =IF(Q141<>"",MAX($I$48:$I140)+1,0) -> 0 | L141: Performing Provider | N141: N
I142: =IF(Q142<>"",MAX($I$48:$I141)+1,0) -> 0 | L142: Performing Provider | N142: N
I143: =IF(Q143<>"",MAX($I$48:$I142)+1,0) -> 0 | L143: Performing Provider | N143: N
I144: =IF(Q144<>"",MAX($I$48:$I143)+1,0) -> 0 | L144: Performing Provider | N144: N
I145: =IF(Q145<>"",MAX($I$48:$I144)+1,0) -> 0 | L145: Performing Provider | N145: N
I146: =IF(Q146<>"",MAX($I$48:$I145)+1,0) -> 0 | L146: Performing Provider | N146: N
I147: =IF(Q147<>"",MAX($I$48:$I146)+1,0) -> 0 | L147: Performing Provider | N147: N
I148: =IF(Q148<>"",MAX($I$48:$I147)+1,0) -> 0 | L148: Performing Provider | N148: N
I149: =IF(Q149<>"",MAX($I$48:$I148)+1,0) -> 0 | L149: Performing Provider | N149: N
I150: =IF(Q150<>"",MAX($I$48:$I149)+1,0) -> 0 | L150: Performing Provider | N150: N
I151: =IF(Q151<>"",MAX($I$48:$I150)+1,0) -> 0 | L151: Performing Provider | N151: N
I152: =IF(Q152<>"",MAX($I$48:$I151)+1,0) -> 0 | L152: Performing Provider | N152: N
I153: =IF(Q153<>"",MAX($I$48:$I152)+1,0) -> 0 | L153: Performing Provider | N153: N
I154: =IF(Q154<>"",MAX($I$48:$I153)+1,0) -> 0 | L154: Performing Provider | N154: N
I155: =IF(Q155<>"",MAX($I$48:$I154)+1,0) -> 0 | L155: Performing Provider | N155: N
I156: =IF(Q156<>"",MAX($I$48:$I155)+1,0) -> 0 | L156: Performing Provider | N156: N
I157: =IF(Q157<>"",MAX($I$48:$I156)+1,0) -> 0 | L157: Performing Provider | N157: N
I158: =IF(Q158<>"",MAX($I$48:$I157)+1,0) -> 0 | L158: Performing Provider | N158: N
I159: =IF(Q159<>"",MAX($I$48:$I158)+1,0) -> 0 | L159: Performing Provider | N159: N
I160: =IF(Q160<>"",MAX($I$48:$I159)+1,0) -> 0 | L160: Performing Provider | N160: N
I161: =IF(Q161<>"",MAX($I$48:$I160)+1,0) -> 0 | L161: Performing Provider | N161: N
I162: =IF(Q162<>"",MAX($I$48:$I161)+1,0) -> 0 | L162: Performing Provider | N162: N
I163: =IF(Q163<>"",MAX($I$48:$I162)+1,0) -> 0 | L163: Performing Provider | N163: N
I164: =IF(Q164<>"",MAX($I$48:$I163)+1,0) -> 0 | L164: Performing Provider | N164: N
I165: =IF(Q165<>"",MAX($I$48:$I164)+1,0) -> 0 | L165: Performing Provider | N165: N
I166: =IF(Q166<>"",MAX($I$48:$I165)+1,0) -> 0 | L166: Performing Provider | N166: N
I167: =IF(Q167<>"",MAX($I$48:$I166)+1,0) -> 0 | L167: Performing Provider | N167: N
I168: =IF(Q168<>"",MAX($I$48:$I167)+1,0) -> 0 | L168: Performing Provider | N168: N
I169: =IF(Q169<>"",MAX($I$48:$I168)+1,0) -> 0 | L169: Performing Provider | N169: N
I170: =IF(Q170<>"",MAX($I$48:$I169)+1,0) -> 0 | L170: Performing Provider | N170: N
I171: =IF(Q171<>"",MAX($I$48:$I170)+1,0) -> 0 | L171: Performing Provider | N171: N
I172: =IF(Q172<>"",MAX($I$48:$I171)+1,0) -> 0 | L172: Performing Provider | N172: N
I173: =IF(Q173<>"",MAX($I$48:$I172)+1,0) -> 0 | L173: Performing Provider | N173: N
I174: =IF(Q174<>"",MAX($I$48:$I173)+1,0) -> 0 | L174: Performing Provider | N174: N
I175: =IF(Q175<>"",MAX($I$48:$I174)+1,0) -> 0 | L175: Performing Provider | N175: N
I176: =IF(Q176<>"",MAX($I$48:$I175)+1,0) -> 0 | L176: Performing Provider | N176: N
I177: =IF(Q177<>"",MAX($I$48:$I176)+1,0) -> 0 | L177: Performing Provider | N177: =IF(M177="Please enter your Total DY7-8 DSRIP Valuation.","Y","N") -> N
I178: =IF(Q178<>"",MAX($I$48:$I177)+1,0) -> 0 | L178: Performing Provider | N178: N
I179: =IF(Q179<>"",MAX($I$48:$I178)+1,0) -> 0 | L179: Performing Provider | N179: N
I180: =IF(Q180<>"",MAX($I$48:$I179)+1,0) -> 0 | L180: Performing Provider | N180: N
I181: =IF(Q181<>"",MAX($I$48:$I180)+1,0) -> 0 | L181: Performing Provider | N181: N
I182: =IF(Q182<>"",MAX($I$48:$I181)+1,0) -> 0 | L182: Performing Provider | N182: N
I183: =IF(Q183<>"",MAX($I$48:$I182)+1,0) -> 0 | L183: Performing Provider | N183: N
I184: =IF(Q184<>"",MAX($I$48:$I183)+1,0) -> 0 | L184: Performing Provider | N184: N
I185: =IF(Q185<>"",MAX($I$48:$I184)+1,0) -> 0 | L185: Performing Provider | N185: N
I186: =IF(Q186<>"",MAX($I$48:$I185)+1,0) -> 0 | L186: Performing Provider | N186: N
I187: =IF(Q187<>"",MAX($I$48:$I186)+1,0) -> 0 | L187: Performing Provider | N187: N
I188: =IF(Q188<>"",MAX($I$48:$I187)+1,0) -> 0 | L188: Performing Provider | N188: N
I189: =IF(Q189<>"",MAX($I$48:$I188)+1,0) -> 0 | L189: Performing Provider | N189: N
I190: =IF(Q190<>"",MAX($I$48:$I189)+1,0) -> 0 | L190: Performing Provider | N190: N
I191: =IF(Q191<>"",MAX($I$48:$I190)+1,0) -> 0 | L191: Performing Provider | N191: N
I192: =IF(Q192<>"",MAX($I$48:$I191)+1,0) -> 0 | L192: Performing Provider | N192: N
I193: =IF(Q193<>"",MAX($I$48:$I192)+1,0) -> 0 | L193: Performing Provider | N193: N
I194: =IF(Q194<>"",MAX($I$48:$I193)+1,0) -> 0 | L194: Performing Provider | N194: N
I195: =IF(Q195<>"",MAX($I$48:$I194)+1,0) -> 0 | L195: Performing Provider | N195: N
I196: =IF(Q196<>"",MAX($I$48:$I195)+1,0) -> 0 | L196: Performing Provider | N196: N
I197: =IF(Q197<>"",MAX($I$48:$I196)+1,0) -> 0 | L197: Performing Provider | N197: N
I198: =IF(Q198<>"",MAX($I$48:$I197)+1,0) -> 0 | L198: Performing Provider | N198: N
I199: =IF(Q199<>"",MAX($I$48:$I198)+1,0) -> 0 | L199: Performing Provider | N199: N
I200: =IF(Q200<>"",MAX($I$48:$I199)+1,0) -> 0 | L200: Performing Provider | N200: N
I201: =IF(Q201<>"",MAX($I$48:$I200)+1,0) -> 0 | L201: Performing Provider | N201: N
I202: =IF(Q202<>"",MAX($I$48:$I201)+1,0) -> 0 | L202: Performing Provider | N202: N
I203: =IF(Q203<>"",MAX($I$48:$I202)+1,0) -> 0 | L203: Performing Provider | N203: N
I204: =IF(Q204<>"",MAX($I$48:$I203)+1,0) -> 0 | L204: Performing Provider | N204: N
I205: =IF(Q205<>"",MAX($I$48:$I204)+1,0) -> 0 | L205: Performing Provider | N205: N
I206: =IF(Q206<>"",MAX($I$48:$I205)+1,0) -> 0 | L206: Performing Provider | N206: N
I207: =IF(Q207<>"",MAX($I$48:$I206)+1,0) -> 0 | L207: Performing Provider | N207: N
I208: =IF(Q208<>"",MAX($I$48:$I207)+1,0) -> 0 | L208: Performing Provider | N208: N
I209: =IF(Q209<>"",MAX($I$48:$I208)+1,0) -> 0 | L209: Performing Provider | N209: N
I210: =IF(Q210<>"",MAX($I$48:$I209)+1,0) -> 0 | L210: Performing Provider | N210: N
I211: =IF(Q211<>"",MAX($I$48:$I210)+1,0) -> 0 | L211: Performing Provider | N211: N
I212: =IF(Q212<>"",MAX($I$48:$I211)+1,0) -> 0 | L212: Performing Provider | N212: N
I213: =IF(Q213<>"",MAX($I$48:$I212)+1,0) -> 0 | L213: Performing Provider | N213: N
... 787 more rows

Sheet Contact Information_IGT Entity (hidden)
D1: Start Cell Index | H1: Workbook | I1: Provider Type | J1: Offset | K1: 1 | L1: 1 | M1: 1 | N1: 0 | O1: 0 | P1: 1 | Q1: 1 | R1: 1 | S1: 1 | T1: 1 | U1: 8 | V1: 1 | W1: 1 | X1: 1 | Y1: 8 | Z1: 1 | AA1: 1 | AB1: 1 | AC1: 1 | AD1: 1 | AE1: 1 | AF1: 1 | AG1: 8 | AH1: 1 | AI1: 1 | AJ1: 1 | AK1: 1 | AL1: 1 | AM1: 1 | AN1: 1 | AO1: 8
A2: Worksheet to determine new/current | B2: Provider Entry | D2: =H2&"_"&I2&"_"&J2 -> Current prov._Regular hospital_Worksheet: | E2: =CELL("address",K2) -> $K$2 | H2: Current prov. | I2: Regular hospital | J2: Worksheet: | K2: IGT Entry back-end | L2: IGT Entry back-end | M2: SKIP | N2: SKIP | O2: SKIP | P2: IGT Entry back-end | Q2: IGT Entry back-end | R2: IGT Entry back-end | S2: IGT Entry back-end | T2: IGT Entry back-end | U2: IGT Entry | V2: IGT Entry back-end | W2: IGT Entry back-end | X2: IGT Entry back-end | Y2: IGT Entry | Z2: IGT Entry back-end | AA2: IGT Entry back-end | AB2: IGT Entry back-end | AC2: IGT Entry back-end | AD2: IGT Entry back-end | AE2: IGT Entry back-end | AF2: IGT Entry back-end | AG2: IGT Entry | AH2: IGT Entry back-end | AI2: IGT Entry back-end | AJ2: IGT Entry back-end | AK2: IGT Entry back-end | AL2: IGT Entry back-end | AM2: IGT Entry back-end | AN2: IGT Entry back-end | AO2: IGT Entry
A3: Cell to determine new/current | B3: $C$70 | D3: =H3&"_"&I3&"_"&J3 -> Current prov._Regular hospital_Cell: | E3: =CELL("address",K3) -> $K$3 | H3: Current prov. | I3: Regular hospital | J3: Cell: | K3: $D$6 | L3: =IF($B$34=0,"$A$6","SKIP") -> $A$6 | M3: SKIP | N3: SKIP | O3: SKIP | P3: =IF($B$34=0,"$B$6","SKIP") -> $B$6 | Q3: =IF($B$34=0,"$C$6","SKIP") -> $C$6 | R3: =IF($B$34=0,"$F$6","SKIP") -> $F$6 | S3: =IF($B$34=0,"$G$6","SKIP") -> $G$6 | T3: =IF($B$34=0,"$H$6","SKIP") -> $H$6 | U3: =IF($B$34=0,"$N$24","SKIP") -> $N$24 | V3: =IF($B$34=0,"$J$6","SKIP") -> $J$6 | W3: =IF($B$34=0,"$K$6","SKIP") -> $K$6 | X3: =IF($B$34=0,"$L$6","SKIP") -> $L$6 | Y3: =IF($B$34=0,"$S$24","SKIP") -> $S$24 | Z3: =IF($B$34=0,"$N$6","SKIP") -> $N$6 | AA3: =IF($B$34=0,"$O$6","SKIP") -> $O$6 | AB3: =IF($B$34=0,"$P$6","SKIP") -> $P$6 | AC3: =IF($B$34=0,"$Q$6","SKIP") -> $Q$6 | AD3: =IF($B$34=0,"$R$6","SKIP") -> $R$6 | AE3: =IF($B$34=0,"$S$6","SKIP") -> $S$6 | AF3: =IF($B$34=0,"$T$6","SKIP") -> $T$6 | AG3: =IF($B$34=0,"$S$25","SKIP") -> $S$25 | AH3: =IF($B$34=0,"$V$6","SKIP") -> $V$6 | AI3: =IF($B$34=0,"$W$6","SKIP") -> $W$6 | AJ3: =IF($B$34=0,"$X$6","SKIP") -> $X$6 | AK3: =IF($B$34=0,"$Y$6","SKIP") -> $Y$6 | AL3: =IF($B$34=0,"$Z$6","SKIP") -> $Z$6 | AM3: =IF($B$34=0,"$AA$6","SKIP") -> $AA$6 | AN3: =IF($B$34=0,"$AB$6","SKIP") -> $AB$6 | AO3: =IF($B$34=0,"$S$26","SKIP") -> $S$26
A4: Value in cell if New Provider | B4: Please enter your Total DY7-8 DSRIP Valuation. | D4: Current prov._Exception - unbundled_Worksheet: | E4: $K$4 | H4: Current prov. | I4: Exception - unbundled | J4: Worksheet: | K4: IGT Entry back-end | L4: IGT Entry back-end | M4: SKIP | N4: SKIP | O4: SKIP | P4: IGT Entry back-end | Q4: IGT Entry back-end | R4: IGT Entry back-end | S4: IGT Entry back-end | T4: IGT Entry back-end | U4: IGT Entry | V4: IGT Entry back-end | W4: IGT Entry back-end | X4: IGT Entry back-end | Y4: IGT Entry | Z4: IGT Entry back-end | AA4: IGT Entry back-end | AB4: IGT Entry back-end | AC4: IGT Entry back-end | AD4: IGT Entry back-end | AE4: IGT Entry back-end | AF4: IGT Entry back-end | AG4: IGT Entry | AH4: IGT Entry back-end | AI4: IGT Entry back-end | AJ4: IGT Entry back-end | AK4: IGT Entry back-end | AL4: IGT Entry back-end | AM4: IGT Entry back-end | AN4: IGT Entry back-end | AO4: IGT Entry
A5: New/Current Value | B5: =IFERROR(IF(INDIRECT("'["&Inputs!$F$6&"]"&B2&"'!"&B3)=B4,H14,H2),"No workbook found") -> No workbook found | D5: Current prov._Exception - unbundled_Cell: | E5: $K$5 | H5: Current prov. | I5: Exception - unbundled | J5: Cell: | K5: $D$6 | L5: =IF($B$34=0,"$A$6","SKIP") -> $A$6 | M5: SKIP | N5: SKIP | O5: SKIP | P5: =IF($B$34=0,"$B$6","SKIP") -> $B$6 | Q5: =IF($B$34=0,"$C$6","SKIP") -> $C$6 | R5: =IF($B$34=0,"$F$6","SKIP") -> $F$6 | S5: =IF($B$34=0,"$G$6","SKIP") -> $G$6 | T5: =IF($B$34=0,"$H$6","SKIP") -> $H$6 | U5: =IF($B$34=0,"$N$24","SKIP") -> $N$24 | V5: =IF($B$34=0,"$J$6","SKIP") -> $J$6 | W5: =IF($B$34=0,"$K$6","SKIP") -> $K$6 | X5: =IF($B$34=0,"$L$6","SKIP") -> $L$6 | Y5: =IF($B$34=0,"$S$24","SKIP") -> $S$24 | Z5: =IF($B$34=0,"$N$6","SKIP") -> $N$6 | AA5: =IF($B$34=0,"$O$6","SKIP") -> $O$6 | AB5: =IF($B$34=0,"$P$6","SKIP") -> $P$6 | AC5: =IF($B$34=0,"$Q$6","SKIP") -> $Q$6 | AD5: =IF($B$34=0,"$R$6","SKIP") -> $R$6 | AE5: =IF($B$34=0,"$S$6","SKIP") -> $S$6 | AF5: =IF($B$34=0,"$T$6","SKIP") -> $T$6 | AG5: =IF($B$34=0,"$S$25","SKIP") -> $S$25 | AH5: =IF($B$34=0,"$V$6","SKIP") -> $V$6 | AI5: =IF($B$34=0,"$W$6","SKIP") -> $W$6 | AJ5: =IF($B$34=0,"$X$6","SKIP") -> $X$6 | AK5: =IF($B$34=0,"$Y$6","SKIP") -> $Y$6 | AL5: =IF($B$34=0,"$Z$6","SKIP") -> $Z$6 | AM5: =IF($B$34=0,"$AA$6","SKIP") -> $AA$6 | AN5: =IF($B$34=0,"$AB$6","SKIP") -> $AB$6 | AO5: =IF($B$34=0,"$S$26","SKIP") -> $S$26
A6: Workheet to determine provider type | B6: Provider Entry | D6: Current prov._Exception - bundled_Worksheet: | E6: $K$6 | H6: Current prov. | I6: Exception - bundled | J6: Worksheet: | K6: IGT Entry back-end | L6: IGT Entry back-end | M6: SKIP | N6: SKIP | O6: SKIP | P6: IGT Entry back-end | Q6: IGT Entry back-end | R6: IGT Entry back-end | S6: IGT Entry back-end | T6: IGT Entry back-end | U6: IGT Entry | V6: IGT Entry back-end | W6: IGT Entry back-end | X6: IGT Entry back-end | Y6: IGT Entry | Z6: IGT Entry back-end | AA6: IGT Entry back-end | AB6: IGT Entry back-end | AC6: IGT Entry back-end | AD6: IGT Entry back-end | AE6: IGT Entry back-end | AF6: IGT Entry back-end | AG6: IGT Entry | AH6: IGT Entry back-end | AI6: IGT Entry back-end | AJ6: IGT Entry back-end | AK6: IGT Entry back-end | AL6: IGT Entry back-end | AM6: IGT Entry back-end | AN6: IGT Entry back-end | AO6: IGT Entry
A7: C: cell to determine provider type | B7: $D$16 | D7: Current prov._Exception - bundled_Cell: | E7: $K$7 | H7: Current prov. | I7: Exception - bundled | J7: Cell: | K7: $D$6 | L7: =IF($B$34=0,"$A$6","SKIP") -> $A$6 | M7: SKIP | N7: SKIP | O7: SKIP | P7: =IF($B$34=0,"$B$6","SKIP") -> $B$6 | Q7: =IF($B$34=0,"$C$6","SKIP") -> $C$6 | R7: =IF($B$34=0,"$F$6","SKIP") -> $F$6 | S7: =IF($B$34=0,"$G$6","SKIP") -> $G$6 | T7: =IF($B$34=0,"$H$6","SKIP") -> $H$6 | U7: =IF($B$34=0,"$N$24","SKIP") -> $N$24 | V7: =IF($B$34=0,"$J$6","SKIP") -> $J$6 | W7: =IF($B$34=0,"$K$6","SKIP") -> $K$6 | X7: =IF($B$34=0,"$L$6","SKIP") -> $L$6 | Y7: =IF($B$34=0,"$S$24","SKIP") -> $S$24 | Z7: =IF($B$34=0,"$N$6","SKIP") -> $N$6 | AA7: =IF($B$34=0,"$O$6","SKIP") -> $O$6 | AB7: =IF($B$34=0,"$P$6","SKIP") -> $P$6 | AC7: =IF($B$34=0,"$Q$6","SKIP") -> $Q$6 | AD7: =IF($B$34=0,"$R$6","SKIP") -> $R$6 | AE7: =IF($B$34=0,"$S$6","SKIP") -> $S$6 | AF7: =IF($B$34=0,"$T$6","SKIP") -> $T$6 | AG7: =IF($B$34=0,"$S$25","SKIP") -> $S$25 | AH7: =IF($B$34=0,"$V$6","SKIP") -> $V$6 | AI7: =IF($B$34=0,"$W$6","SKIP") -> $W$6 | AJ7: =IF($B$34=0,"$X$6","SKIP") -> $X$6 | AK7: =IF($B$34=0,"$Y$6","SKIP") -> $Y$6 | AL7: =IF($B$34=0,"$Z$6","SKIP") -> $Z$6 | AM7: =IF($B$34=0,"$AA$6","SKIP") -> $AA$6 | AN7: =IF($B$34=0,"$AB$6","SKIP") -> $AB$6 | AO7: =IF($B$34=0,"$S$26","SKIP") -> $S$26
A8: N: cell to determine provider type | B8: $D$17 | D8: Current prov._Physician practice_Worksheet: | E8: $K$8 | H8: Current prov. | I8: Physician practice | J8: Worksheet: | K8: IGT Entry back-end | L8: IGT Entry back-end | M8: SKIP | N8: SKIP | O8: SKIP | P8: IGT Entry back-end | Q8: IGT Entry back-end | R8: IGT Entry back-end | S8: IGT Entry back-end | T8: IGT Entry back-end | U8: IGT Entry | V8: IGT Entry back-end | W8: IGT Entry back-end | X8: IGT Entry back-end | Y8: IGT Entry | Z8: IGT Entry back-end | AA8: IGT Entry back-end | AB8: IGT Entry back-end | AC8: IGT Entry back-end | AD8: IGT Entry back-end | AE8: IGT Entry back-end | AF8: IGT Entry back-end | AG8: IGT Entry | AH8: IGT Entry back-end | AI8: IGT Entry back-end | AJ8: IGT Entry back-end | AK8: IGT Entry back-end | AL8: IGT Entry back-end | AM8: IGT Entry back-end | AN8: IGT Entry back-end | AO8: IGT Entry
A9: Worksheet to determine if exception hospital | B9: Category C Selection | D9: Current prov._Physician practice_Cell: | E9: $K$9 | H9: Current prov. | I9: Physician practice | J9: Cell: | K9: $D$6 | L9: =IF($B$34=0,"$A$6","SKIP") -> $A$6 | M9: SKIP | N9: SKIP | O9: SKIP | P9: =IF($B$34=0,"$B$6","SKIP") -> $B$6 | Q9: =IF($B$34=0,"$C$6","SKIP") -> $C$6 | R9: =IF($B$34=0,"$F$6","SKIP") -> $F$6 | S9: =IF($B$34=0,"$G$6","SKIP") -> $G$6 | T9: =IF($B$34=0,"$H$6","SKIP") -> $H$6 | U9: =IF($B$34=0,"$N$24","SKIP") -> $N$24 | V9: =IF($B$34=0,"$J$6","SKIP") -> $J$6 | W9: =IF($B$34=0,"$K$6","SKIP") -> $K$6 | X9: =IF($B$34=0,"$L$6","SKIP") -> $L$6 | Y9: =IF($B$34=0,"$S$24","SKIP") -> $S$24 | Z9: =IF($B$34=0,"$N$6","SKIP") -> $N$6 | AA9: =IF($B$34=0,"$O$6","SKIP") -> $O$6 | AB9: =IF($B$34=0,"$P$6","SKIP") -> $P$6 | AC9: =IF($B$34=0,"$Q$6","SKIP") -> $Q$6 | AD9: =IF($B$34=0,"$R$6","SKIP") -> $R$6 | AE9: =IF($B$34=0,"$S$6","SKIP") -> $S$6 | AF9: =IF($B$34=0,"$T$6","SKIP") -> $T$6 | AG9: =IF($B$34=0,"$S$25","SKIP") -> $S$25 | AH9: =IF($B$34=0,"$V$6","SKIP") -> $V$6 | AI9: =IF($B$34=0,"$W$6","SKIP") -> $W$6 | AJ9: =IF($B$34=0,"$X$6","SKIP") -> $X$6 | AK9: =IF($B$34=0,"$Y$6","SKIP") -> $Y$6 | AL9: =IF($B$34=0,"$Z$6","SKIP") -> $Z$6 | AM9: =IF($B$34=0,"$AA$6","SKIP") -> $AA$6 | AN9: =IF($B$34=0,"$AB$6","SKIP") -> $AB$6 | AO9: =IF($B$34=0,"$S$26","SKIP") -> $S$26
A10: Cell to determine if unbundled hospital | B10: $AD$4 | D10: Current prov._CMHC_Worksheet: | E10: $K$10 | H10: Current prov. | I10: CMHC | J10: Worksheet: | K10: IGT Entry back-end | L10: IGT Entry back-end | M10: SKIP | N10: SKIP | O10: SKIP | P10: IGT Entry back-end | Q10: IGT Entry back-end | R10: IGT Entry back-end | S10: IGT Entry back-end | T10: IGT Entry back-end | U10: IGT Entry | V10: IGT Entry back-end | W10: IGT Entry back-end | X10: IGT Entry back-end | Y10: IGT Entry | Z10: IGT Entry back-end | AA10: IGT Entry back-end | AB10: IGT Entry back-end | AC10: IGT Entry back-end | AD10: IGT Entry back-end | AE10: IGT Entry back-end | AF10: IGT Entry back-end | AG10: IGT Entry | AH10: IGT Entry back-end | AI10: IGT Entry back-end | AJ10: IGT Entry back-end | AK10: IGT Entry back-end | AL10: IGT Entry back-end | AM10: IGT Entry back-end | AN10: IGT Entry back-end | AO10: IGT Entry
A11: Cell to determine if bundled hospital | B11: $AD$3 | D11: Current prov._CMHC_Cell: | E11: $K$11 | H11: Current prov. | I11: CMHC | J11: Cell: | K11: $D$6 | L11: =IF($B$34=0,"$A$6","SKIP") -> $A$6 | M11: SKIP | N11: SKIP | O11: SKIP | P11: =IF($B$34=0,"$B$6","SKIP") -> $B$6 | Q11: =IF($B$34=0,"$C$6","SKIP") -> $C$6 | R11: =IF($B$34=0,"$F$6","SKIP") -> $F$6 | S11: =IF($B$34=0,"$G$6","SKIP") -> $G$6 | T11: =IF($B$34=0,"$H$6","SKIP") -> $H$6 | U11: =IF($B$34=0,"$N$24","SKIP") -> $N$24 | V11: =IF($B$34=0,"$J$6","SKIP") -> $J$6 | W11: =IF($B$34=0,"$K$6","SKIP") -> $K$6 | X11: =IF($B$34=0,"$L$6","SKIP") -> $L$6 | Y11: =IF($B$34=0,"$S$24","SKIP") -> $S$24 | Z11: =IF($B$34=0,"$N$6","SKIP") -> $N$6 | AA11: =IF($B$34=0,"$O$6","SKIP") -> $O$6 | AB11: =IF($B$34=0,"$P$6","SKIP") -> $P$6 | AC11: =IF($B$34=0,"$Q$6","SKIP") -> $Q$6 | AD11: =IF($B$34=0,"$R$6","SKIP") -> $R$6 | AE11: =IF($B$34=0,"$S$6","SKIP") -> $S$6 | AF11: =IF($B$34=0,"$T$6","SKIP") -> $T$6 | AG11: =IF($B$34=0,"$S$25","SKIP") -> $S$25 | AH11: =IF($B$34=0,"$V$6","SKIP") -> $V$6 | AI11: =IF($B$34=0,"$W$6","SKIP") -> $W$6 | AJ11: =IF($B$34=0,"$X$6","SKIP") -> $X$6 | AK11: =IF($B$34=0,"$Y$6","SKIP") -> $Y$6 | AL11: =IF($B$34=0,"$Z$6","SKIP") -> $Z$6 | AM11: =IF($B$34=0,"$AA$6","SKIP") -> $AA$6 | AN11: =IF($B$34=0,"$AB$6","SKIP") -> $AB$6 | AO11: =IF($B$34=0,"$S$26","SKIP") -> $S$26
A12: =I2 -> Regular hospital | B12: =IFERROR(AND(INDIRECT("'["&Inputs!$F$6&"]"&B6&"'!"&IF(B5=H2,B7,B8))="Hospital",INDIRECT("'["&Inputs!$F$6&"]"&B9&"'!"&B10)=FALSE,INDIRECT("'["&Inputs!$F$6&"]"&B9&"'!"&B11)=FALSE),"No workbook found") -> No workbook found | D12: Current prov._LHD_Worksheet: | E12: $K$12 | H12: Current prov. | I12: LHD | J12: Worksheet: | K12: IGT Entry back-end | L12: IGT Entry back-end | M12: SKIP | N12: SKIP | O12: SKIP | P12: IGT Entry back-end | Q12: IGT Entry back-end | R12: IGT Entry back-end | S12: IGT Entry back-end | T12: IGT Entry back-end | U12: IGT Entry | V12: IGT Entry back-end | W12: IGT Entry back-end | X12: IGT Entry back-end | Y12: IGT Entry | Z12: IGT Entry back-end | AA12: IGT Entry back-end | AB12: IGT Entry back-end | AC12: IGT Entry back-end | AD12: IGT Entry back-end | AE12: IGT Entry back-end | AF12: IGT Entry back-end | AG12: IGT Entry | AH12: IGT Entry back-end | AI12: IGT Entry back-end | AJ12: IGT Entry back-end | AK12: IGT Entry back-end | AL12: IGT Entry back-end | AM12: IGT Entry back-end | AN12: IGT Entry back-end | AO12: IGT Entry
A13: =I4 -> Exception - unbundled | B13: =IFERROR(AND(INDIRECT("'["&Inputs!$F$6&"]"&B6&"'!"&IF(B5=H2,B7,B8))="Hospital",INDIRECT("'["&Inputs!$F$6&"]"&B9&"'!"&B10)),"No workbook found") -> No workbook found | D13: Current prov._LHD_Cell: | E13: $K$13 | H13: Current prov. | I13: LHD | J13: Cell: | K13: $D$6 | L13: =IF($B$34=0,"$A$6","SKIP") -> $A$6 | M13: SKIP | N13: SKIP | O13: SKIP | P13: =IF($B$34=0,"$B$6","SKIP") -> $B$6 | Q13: =IF($B$34=0,"$C$6","SKIP") -> $C$6 | R13: =IF($B$34=0,"$F$6","SKIP") -> $F$6 | S13: =IF($B$34=0,"$G$6","SKIP") -> $G$6 | T13: =IF($B$34=0,"$H$6","SKIP") -> $H$6 | U13: =IF($B$34=0,"$N$24","SKIP") -> $N$24 | V13: =IF($B$34=0,"$J$6","SKIP") -> $J$6 | W13: =IF($B$34=0,"$K$6","SKIP") -> $K$6 | X13: =IF($B$34=0,"$L$6","SKIP") -> $L$6 | Y13: =IF($B$34=0,"$S$24","SKIP") -> $S$24 | Z13: =IF($B$34=0,"$N$6","SKIP") -> $N$6 | AA13: =IF($B$34=0,"$O$6","SKIP") -> $O$6 | AB13: =IF($B$34=0,"$P$6","SKIP") -> $P$6 | AC13: =IF($B$34=0,"$Q$6","SKIP") -> $Q$6 | AD13: =IF($B$34=0,"$R$6","SKIP") -> $R$6 | AE13: =IF($B$34=0,"$S$6","SKIP") -> $S$6 | AF13: =IF($B$34=0,"$T$6","SKIP") -> $T$6 | AG13: =IF($B$34=0,"$S$25","SKIP") -> $S$25 | AH13: =IF($B$34=0,"$V$6","SKIP") -> $V$6 | AI13: =IF($B$34=0,"$W$6","SKIP") -> $W$6 | AJ13: =IF($B$34=0,"$X$6","SKIP") -> $X$6 | AK13: =IF($B$34=0,"$Y$6","SKIP") -> $Y$6 | AL13: =IF($B$34=0,"$Z$6","SKIP") -> $Z$6 | AM13: =IF($B$34=0,"$AA$6","SKIP") -> $AA$6 | AN13: =IF($B$34=0,"$AB$6","SKIP") -> $AB$6 | AO13: =IF($B$34=0,"$S$26","SKIP") -> $S$26
A14: =I6 -> Exception - bundled | B14: =IFERROR(AND(INDIRECT("'["&Inputs!$F$6&"]"&B6&"'!"&IF(B5=H2,B7,B8))="Hospital",INDIRECT("'["&Inputs!$F$6&"]"&B9&"'!"&B11)),"No workbook found") -> No workbook found | D14: New prov._Regular hospital_Worksheet: | E14: $K$14 | H14: New prov. | I14: Regular hospital | J14: Worksheet: | K14: IGT Entry back-end | L14: IGT Entry back-end | M14: SKIP | N14: SKIP | O14: SKIP | P14: IGT Entry back-end | Q14: IGT Entry back-end | R14: IGT Entry back-end | S14: IGT Entry back-end | T14: IGT Entry back-end | U14: IGT Entry | V14: IGT Entry back-end | W14: IGT Entry back-end | X14: IGT Entry back-end | Y14: IGT Entry | Z14: IGT Entry back-end | AA14: IGT Entry back-end | AB14: IGT Entry back-end | AC14: IGT Entry back-end | AD14: IGT Entry back-end | AE14: IGT Entry back-end | AF14: IGT Entry back-end | AG14: IGT Entry | AH14: IGT Entry back-end | AI14: IGT Entry back-end | AJ14: IGT Entry back-end | AK14: IGT Entry back-end | AL14: IGT Entry back-end | AM14: IGT Entry back-end | AN14: IGT Entry back-end | AO14: IGT Entry
A15: =I8 -> Physician practice | B15: =IFERROR(OR(INDIRECT("'["&Inputs!$F$6&"]"&B6&"'!"&IF(B5=H2,B7,B8))="Physician Practice affiliated with an Academic Health Science Center (AHSC)",INDIRECT("'["&Inputs!$F$6&"]"&B6&"'!"&IF(B5=H2,B7,B8))="Physician Practice not affiliated with an Academic Health Science Center (AHSC)"),"No workbook found") -> No workbook found | D15: New prov._Regular hospital_Cell: | E15: $K$15 | H15: New prov. | I15: Regular hospital | J15: Cell: | K15: $D$6 | L15: =IF($B$34=0,"$A$6","SKIP") -> $A$6 | M15: SKIP | N15: SKIP | O15: SKIP | P15: =IF($B$34=0,"$B$6","SKIP") -> $B$6 | Q15: =IF($B$34=0,"$C$6","SKIP") -> $C$6 | R15: =IF($B$34=0,"$F$6","SKIP") -> $F$6 | S15: =IF($B$34=0,"$G$6","SKIP") -> $G$6 | T15: =IF($B$34=0,"$H$6","SKIP") -> $H$6 | U15: =IF($B$34=0,"$N$24","SKIP") -> $N$24 | V15: =IF($B$34=0,"$J$6","SKIP") -> $J$6 | W15: =IF($B$34=0,"$K$6","SKIP") -> $K$6 | X15: =IF($B$34=0,"$L$6","SKIP") -> $L$6 | Y15: =IF($B$34=0,"$S$24","SKIP") -> $S$24 | Z15: =IF($B$34=0,"$N$6","SKIP") -> $N$6 | AA15: =IF($B$34=0,"$O$6","SKIP") -> $O$6 | AB15: =IF($B$34=0,"$P$6","SKIP") -> $P$6 | AC15: =IF($B$34=0,"$Q$6","SKIP") -> $Q$6 | AD15: =IF($B$34=0,"$R$6","SKIP") -> $R$6 | AE15: =IF($B$34=0,"$S$6","SKIP") -> $S$6 | AF15: =IF($B$34=0,"$T$6","SKIP") -> $T$6 | AG15: =IF($B$34=0,"$S$25","SKIP") -> $S$25 | AH15: =IF($B$34=0,"$V$6","SKIP") -> $V$6 | AI15: =IF($B$34=0,"$W$6","SKIP") -> $W$6 | AJ15: =IF($B$34=0,"$X$6","SKIP") -> $X$6 | AK15: =IF($B$34=0,"$Y$6","SKIP") -> $Y$6 | AL15: =IF($B$34=0,"$Z$6","SKIP") -> $Z$6 | AM15: =IF($B$34=0,"$AA$6","SKIP") -> $AA$6 | AN15: =IF($B$34=0,"$AB$6","SKIP") -> $AB$6 | AO15: =IF($B$34=0,"$S$26","SKIP") -> $S$26
A16: =I10 -> CMHC | B16: =IFERROR(INDIRECT("'["&Inputs!$F$6&"]"&B6&"'!"&IF(B5=H2,B7,B8))="Community Mental Health Center (CMHC)","No workbook found") -> No workbook found | D16: New prov._Exception - unbundled_Worksheet: | E16: $K$16 | H16: New prov. | I16: Exception - unbundled | J16: Worksheet: | K16: IGT Entry back-end | L16: IGT Entry back-end | M16: SKIP | N16: SKIP | O16: SKIP | P16: IGT Entry back-end | Q16: IGT Entry back-end | R16: IGT Entry back-end | S16: IGT Entry back-end | T16: IGT Entry back-end | U16: IGT Entry | V16: IGT Entry back-end | W16: IGT Entry back-end | X16: IGT Entry back-end | Y16: IGT Entry | Z16: IGT Entry back-end | AA16: IGT Entry back-end | AB16: IGT Entry back-end | AC16: IGT Entry back-end | AD16: IGT Entry back-end | AE16: IGT Entry back-end | AF16: IGT Entry back-end | AG16: IGT Entry | AH16: IGT Entry back-end | AI16: IGT Entry back-end | AJ16: IGT Entry back-end | AK16: IGT Entry back-end | AL16: IGT Entry back-end | AM16: IGT Entry back-end | AN16: IGT Entry back-end | AO16: IGT Entry
A17: =I12 -> LHD | B17: =IFERROR(INDIRECT("'["&Inputs!$F$6&"]"&B6&"'!"&IF(B5=H2,B7,B8))="Local Health Department (LHD)","No workbook found") -> No workbook found | D17: New prov._Exception - unbundled_Cell: | E17: $K$17 | H17: New prov. | I17: Exception - unbundled | J17: Cell: | K17: $D$6 | L17: =IF($B$34=0,"$A$6","SKIP") -> $A$6 | M17: SKIP | N17: SKIP | O17: SKIP | P17: =IF($B$34=0,"$B$6","SKIP") -> $B$6 | Q17: =IF($B$34=0,"$C$6","SKIP") -> $C$6 | R17: =IF($B$34=0,"$F$6","SKIP") -> $F$6 | S17: =IF($B$34=0,"$G$6","SKIP") -> $G$6 | T17: =IF($B$34=0,"$H$6","SKIP") -> $H$6 | U17: =IF($B$34=0,"$N$24","SKIP") -> $N$24 | V17: =IF($B$34=0,"$J$6","SKIP") -> $J$6 | W17: =IF($B$34=0,"$K$6","SKIP") -> $K$6 | X17: =IF($B$34=0,"$L$6","SKIP") -> $L$6 | Y17: =IF($B$34=0,"$S$24","SKIP") -> $S$24 | Z17: =IF($B$34=0,"$N$6","SKIP") -> $N$6 | AA17: =IF($B$34=0,"$O$6","SKIP") -> $O$6 | AB17: =IF($B$34=0,"$P$6","SKIP") -> $P$6 | AC17: =IF($B$34=0,"$Q$6","SKIP") -> $Q$6 | AD17: =IF($B$34=0,"$R$6","SKIP") -> $R$6 | AE17: =IF($B$34=0,"$S$6","SKIP") -> $S$6 | AF17: =IF($B$34=0,"$T$6","SKIP") -> $T$6 | AG17: =IF($B$34=0,"$S$25","SKIP") -> $S$25 | AH17: =IF($B$34=0,"$V$6","SKIP") -> $V$6 | AI17: =IF($B$34=0,"$W$6","SKIP") -> $W$6 | AJ17: =IF($B$34=0,"$X$6","SKIP") -> $X$6 | AK17: =IF($B$34=0,"$Y$6","SKIP") -> $Y$6 | AL17: =IF($B$34=0,"$Z$6","SKIP") -> $Z$6 | AM17: =IF($B$34=0,"$AA$6","SKIP") -> $AA$6 | AN17: =IF($B$34=0,"$AB$6","SKIP") -> $AB$6 | AO17: =IF($B$34=0,"$S$26","SKIP") -> $S$26
A18: Provider Type | B18: =IFERROR(IF(B12,I2,IF(B13,I4,IF(B14,I6,IF(B15,I8,IF(B16,I10,IF(B17,I12,"No workbook found")))))),"No workbook found") -> No workbook found | D18: New prov._Exception - bundled_Worksheet: | E18: $K$18 | H18: New prov. | I18: Exception - bundled | J18: Worksheet: | K18: IGT Entry back-end | L18: IGT Entry back-end | M18: SKIP | N18: SKIP | O18: SKIP | P18: IGT Entry back-end | Q18: IGT Entry back-end | R18: IGT Entry back-end | S18: IGT Entry back-end | T18: IGT Entry back-end | U18: IGT Entry | V18: IGT Entry back-end | W18: IGT Entry back-end | X18: IGT Entry back-end | Y18: IGT Entry | Z18: IGT Entry back-end | AA18: IGT Entry back-end | AB18: IGT Entry back-end | AC18: IGT Entry back-end | AD18: IGT Entry back-end | AE18: IGT Entry back-end | AF18: IGT Entry back-end | AG18: IGT Entry | AH18: IGT Entry back-end | AI18: IGT Entry back-end | AJ18: IGT Entry back-end | AK18: IGT Entry back-end | AL18: IGT Entry back-end | AM18: IGT Entry back-end | AN18: IGT Entry back-end | AO18: IGT Entry
A19: Worksheet start lookup: | B19: =B5&"_"&B18&"_"&J2 -> No workbook found_No workbook found_Worksheet: | D19: New prov._Exception - bundled_Cell: | E19: $K$19 | H19: New prov. | I19: Exception - bundled | J19: Cell: | K19: $D$6 | L19: =IF($B$34=0,"$A$6","SKIP") -> $A$6 | M19: SKIP | N19: SKIP | O19: SKIP | P19: =IF($B$34=0,"$B$6","SKIP") -> $B$6 | Q19: =IF($B$34=0,"$C$6","SKIP") -> $C$6 | R19: =IF($B$34=0,"$F$6","SKIP") -> $F$6 | S19: =IF($B$34=0,"$G$6","SKIP") -> $G$6 | T19: =IF($B$34=0,"$H$6","SKIP") -> $H$6 | U19: =IF($B$34=0,"$N$24","SKIP") -> $N$24 | V19: =IF($B$34=0,"$J$6","SKIP") -> $J$6 | W19: =IF($B$34=0,"$K$6","SKIP") -> $K$6 | X19: =IF($B$34=0,"$L$6","SKIP") -> $L$6 | Y19: =IF($B$34=0,"$S$24","SKIP") -> $S$24 | Z19: =IF($B$34=0,"$N$6","SKIP") -> $N$6 | AA19: =IF($B$34=0,"$O$6","SKIP") -> $O$6 | AB19: =IF($B$34=0,"$P$6","SKIP") -> $P$6 | AC19: =IF($B$34=0,"$Q$6","SKIP") -> $Q$6 | AD19: =IF($B$34=0,"$R$6","SKIP") -> $R$6 | AE19: =IF($B$34=0,"$S$6","SKIP") -> $S$6 | AF19: =IF($B$34=0,"$T$6","SKIP") -> $T$6 | AG19: =IF($B$34=0,"$S$25","SKIP") -> $S$25 | AH19: =IF($B$34=0,"$V$6","SKIP") -> $V$6 | AI19: =IF($B$34=0,"$W$6","SKIP") -> $W$6 | AJ19: =IF($B$34=0,"$X$6","SKIP") -> $X$6 | AK19: =IF($B$34=0,"$Y$6","SKIP") -> $Y$6 | AL19: =IF($B$34=0,"$Z$6","SKIP") -> $Z$6 | AM19: =IF($B$34=0,"$AA$6","SKIP") -> $AA$6 | AN19: =IF($B$34=0,"$AB$6","SKIP") -> $AB$6 | AO19: =IF($B$34=0,"$S$26","SKIP") -> $S$26
A20: Cell start lookup: | B20: =B5&"_"&B18&"_"&J3 -> No workbook found_No workbook found_Cell: | D20: New prov._Physician practice_Worksheet: | E20: $K$20 | H20: New prov. | I20: Physician practice | J20: Worksheet: | K20: IGT Entry back-end | L20: IGT Entry back-end | M20: SKIP | N20: SKIP | O20: SKIP | P20: IGT Entry back-end | Q20: IGT Entry back-end | R20: IGT Entry back-end | S20: IGT Entry back-end | T20: IGT Entry back-end | U20: IGT Entry | V20: IGT Entry back-end | W20: IGT Entry back-end | X20: IGT Entry back-end | Y20: IGT Entry | Z20: IGT Entry back-end | AA20: IGT Entry back-end | AB20: IGT Entry back-end | AC20: IGT Entry back-end | AD20: IGT Entry back-end | AE20: IGT Entry back-end | AF20: IGT Entry back-end | AG20: IGT Entry | AH20: IGT Entry back-end | AI20: IGT Entry back-end | AJ20: IGT Entry back-end | AK20: IGT Entry back-end | AL20: IGT Entry back-end | AM20: IGT Entry back-end | AN20: IGT Entry back-end | AO20: IGT Entry
A21: Start of worksheet names | B21: =IFERROR(INDEX($E$2:$E$25,MATCH(B19,$D$2:$D$25,0)),"No workbook found") -> No workbook found | D21: New prov._Physician practice_Cell: | E21: $K$21 | H21: New prov. | I21: Physician practice | J21: Cell: | K21: $D$6 | L21: =IF($B$34=0,"$A$6","SKIP") -> $A$6 | M21: SKIP | N21: SKIP | O21: SKIP | P21: =IF($B$34=0,"$B$6","SKIP") -> $B$6 | Q21: =IF($B$34=0,"$C$6","SKIP") -> $C$6 | R21: =IF($B$34=0,"$F$6","SKIP") -> $F$6 | S21: =IF($B$34=0,"$G$6","SKIP") -> $G$6 | T21: =IF($B$34=0,"$H$6","SKIP") -> $H$6 | U21: =IF($B$34=0,"$N$24","SKIP") -> $N$24 | V21: =IF($B$34=0,"$J$6","SKIP") -> $J$6 | W21: =IF($B$34=0,"$K$6","SKIP") -> $K$6 | X21: =IF($B$34=0,"$L$6","SKIP") -> $L$6 | Y21: =IF($B$34=0,"$S$24","SKIP") -> $S$24 | Z21: =IF($B$34=0,"$N$6","SKIP") -> $N$6 | AA21: =IF($B$34=0,"$O$6","SKIP") -> $O$6 | AB21: =IF($B$34=0,"$P$6","SKIP") -> $P$6 | AC21: =IF($B$34=0,"$Q$6","SKIP") -> $Q$6 | AD21: =IF($B$34=0,"$R$6","SKIP") -> $R$6 | AE21: =IF($B$34=0,"$S$6","SKIP") -> $S$6 | AF21: =IF($B$34=0,"$T$6","SKIP") -> $T$6 | AG21: =IF($B$34=0,"$S$25","SKIP") -> $S$25 | AH21: =IF($B$34=0,"$V$6","SKIP") -> $V$6 | AI21: =IF($B$34=0,"$W$6","SKIP") -> $W$6 | AJ21: =IF($B$34=0,"$X$6","SKIP") -> $X$6 | AK21: =IF($B$34=0,"$Y$6","SKIP") -> $Y$6 | AL21: =IF($B$34=0,"$Z$6","SKIP") -> $Z$6 | AM21: =IF($B$34=0,"$AA$6","SKIP") -> $AA$6 | AN21: =IF($B$34=0,"$AB$6","SKIP") -> $AB$6 | AO21: =IF($B$34=0,"$S$26","SKIP") -> $S$26
A22: Start of cells | B22: =IFERROR(INDEX($E$2:$E$25,MATCH(B20,$D$2:$D$25,0)),"No workbook found") -> No workbook found | D22: New prov._CMHC_Worksheet: | E22: $K$22 | H22: New prov. | I22: CMHC | J22: Worksheet: | K22: IGT Entry back-end | L22: IGT Entry back-end | M22: SKIP | N22: SKIP | O22: SKIP | P22: IGT Entry back-end | Q22: IGT Entry back-end | R22: IGT Entry back-end | S22: IGT Entry back-end | T22: IGT Entry back-end | U22: IGT Entry | V22: IGT Entry back-end | W22: IGT Entry back-end | X22: IGT Entry back-end | Y22: IGT Entry | Z22: IGT Entry back-end | AA22: IGT Entry back-end | AB22: IGT Entry back-end | AC22: IGT Entry back-end | AD22: IGT Entry back-end | AE22: IGT Entry back-end | AF22: IGT Entry back-end | AG22: IGT Entry | AH22: IGT Entry back-end | AI22: IGT Entry back-end | AJ22: IGT Entry back-end | AK22: IGT Entry back-end | AL22: IGT Entry back-end | AM22: IGT Entry back-end | AN22: IGT Entry back-end | AO22: IGT Entry
A23: Start paste cell | B23: =CELL("address",K48) -> $K$48 | D23: New prov._CMHC_Cell: | E23: $K$23 | H23: New prov. | I23: CMHC | J23: Cell: | K23: $D$6 | L23: =IF($B$34=0,"$A$6","SKIP") -> $A$6 | M23: SKIP | N23: SKIP | O23: SKIP | P23: =IF($B$34=0,"$B$6","SKIP") -> $B$6 | Q23: =IF($B$34=0,"$C$6","SKIP") -> $C$6 | R23: =IF($B$34=0,"$F$6","SKIP") -> $F$6 | S23: =IF($B$34=0,"$G$6","SKIP") -> $G$6 | T23: =IF($B$34=0,"$H$6","SKIP") -> $H$6 | U23: =IF($B$34=0,"$N$24","SKIP") -> $N$24 | V23: =IF($B$34=0,"$J$6","SKIP") -> $J$6 | W23: =IF($B$34=0,"$K$6","SKIP") -> $K$6 | X23: =IF($B$34=0,"$L$6","SKIP") -> $L$6 | Y23: =IF($B$34=0,"$S$24","SKIP") -> $S$24 | Z23: =IF($B$34=0,"$N$6","SKIP") -> $N$6 | AA23: =IF($B$34=0,"$O$6","SKIP") -> $O$6 | AB23: =IF($B$34=0,"$P$6","SKIP") -> $P$6 | AC23: =IF($B$34=0,"$Q$6","SKIP") -> $Q$6 | AD23: =IF($B$34=0,"$R$6","SKIP") -> $R$6 | AE23: =IF($B$34=0,"$S$6","SKIP") -> $S$6 | AF23: =IF($B$34=0,"$T$6","SKIP") -> $T$6 | AG23: =IF($B$34=0,"$S$25","SKIP") -> $S$25 | AH23: =IF($B$34=0,"$V$6","SKIP") -> $V$6 | AI23: =IF($B$34=0,"$W$6","SKIP") -> $W$6 | AJ23: =IF($B$34=0,"$X$6","SKIP") -> $X$6 | AK23: =IF($B$34=0,"$Y$6","SKIP") -> $Y$6 | AL23: =IF($B$34=0,"$Z$6","SKIP") -> $Z$6 | AM23: =IF($B$34=0,"$AA$6","SKIP") -> $AA$6 | AN23: =IF($B$34=0,"$AB$6","SKIP") -> $AB$6 | AO23: =IF($B$34=0,"$S$26","SKIP") -> $S$26
A24: Paste offset | B24: =MAX(COUNTA($K$48:$K$10000),COUNTA($L$48:$L$10000),COUNTA($P$48:$P$10000),COUNTA($Q$48:$Q$10000),COUNTA($R$48:$R$10000),COUNTA($S$48:$S$10000),COUNTA($T$48:$T$100000),COUNTA($U$48:$U$10000),COUNTA($V$48:$V$100000),COUNTA($W$48:$W$10000),COUNTA($X$48:$X$10000),COUNTA($Y$48:$Y$10000),COUNTA($Z$48:$Z$10000),COUNTA($AA$48:$AA$10000),COUNTA($AB$48:$AB$10000),COUNTA($AC$48:$AC$10000),COUNTA($AD$48:$AD$10000),COUNTA($AE$48:$AE$10000),COUNTA($AF$48:$AF$10000),COUNTA($AE$48:$AE$10000),COUNTA($AF$48:$AF$10000),COUNTA($AG$48:$AG$10000),COUNTA($AH$48:$AH$10000),COUNTA($AI$48:$AI$10000),COUNTA($AJ$48:$AJ$10000),COUNTA($AK$48:$AK$10000),COUNTA($AL$48:$AL$10000),COUNTA($AM$48:$AM$10000),COUNTA($AN$48:$AN$10000),COUNTA($AO$48:$AO$10000)) -> 26 | D24: New prov._LHD_Worksheet: | E24: $K$24 | H24: New prov. | I24: LHD | J24: Worksheet: | K24: IGT Entry back-end | L24: IGT Entry back-end | M24: SKIP | N24: SKIP | O24: SKIP | P24: IGT Entry back-end | Q24: IGT Entry back-end | R24: IGT Entry back-end | S24: IGT Entry back-end | T24: IGT Entry back-end | U24: IGT Entry | V24: IGT Entry back-end | W24: IGT Entry back-end | X24: IGT Entry back-end | Y24: IGT Entry | Z24: IGT Entry back-end | AA24: IGT Entry back-end | AB24: IGT Entry back-end | AC24: IGT Entry back-end | AD24: IGT Entry back-end | AE24: IGT Entry back-end | AF24: IGT Entry back-end | AG24: IGT Entry | AH24: IGT Entry back-end | AI24: IGT Entry back-end | AJ24: IGT Entry back-end | AK24: IGT Entry back-end | AL24: IGT Entry back-end | AM24: IGT Entry back-end | AN24: IGT Entry back-end | AO24: IGT Entry
A25: Worksheet to determine # of loops per file | B25: IGT Entry back-end | D25: New prov._LHD_Cell: | E25: $K$25 | H25: New prov. | I25: LHD | J25: Cell: | K25: $D$6 | L25: =IF($B$34=0,"$A$6","SKIP") -> $A$6 | M25: SKIP | N25: SKIP | O25: SKIP | P25: =IF($B$34=0,"$B$6","SKIP") -> $B$6 | Q25: =IF($B$34=0,"$C$6","SKIP") -> $C$6 | R25: =IF($B$34=0,"$F$6","SKIP") -> $F$6 | S25: =IF($B$34=0,"$G$6","SKIP") -> $G$6 | T25: =IF($B$34=0,"$H$6","SKIP") -> $H$6 | U25: =IF($B$34=0,"$N$24","SKIP") -> $N$24 | V25: =IF($B$34=0,"$J$6","SKIP") -> $J$6 | W25: =IF($B$34=0,"$K$6","SKIP") -> $K$6 | X25: =IF($B$34=0,"$L$6","SKIP") -> $L$6 | Y25: =IF($B$34=0,"$S$24","SKIP") -> $S$24 | Z25: =IF($B$34=0,"$N$6","SKIP") -> $N$6 | AA25: =IF($B$34=0,"$O$6","SKIP") -> $O$6 | AB25: =IF($B$34=0,"$P$6","SKIP") -> $P$6 | AC25: =IF($B$34=0,"$Q$6","SKIP") -> $Q$6 | AD25: =IF($B$34=0,"$R$6","SKIP") -> $R$6 | AE25: =IF($B$34=0,"$S$6","SKIP") -> $S$6 | AF25: =IF($B$34=0,"$T$6","SKIP") -> $T$6 | AG25: =IF($B$34=0,"$S$25","SKIP") -> $S$25 | AH25: =IF($B$34=0,"$V$6","SKIP") -> $V$6 | AI25: =IF($B$34=0,"$W$6","SKIP") -> $W$6 | AJ25: =IF($B$34=0,"$X$6","SKIP") -> $X$6 | AK25: =IF($B$34=0,"$Y$6","SKIP") -> $Y$6 | AL25: =IF($B$34=0,"$Z$6","SKIP") -> $Z$6 | AM25: =IF($B$34=0,"$AA$6","SKIP") -> $AA$6 | AN25: =IF($B$34=0,"$AB$6","SKIP") -> $AB$6 | AO25: =IF($B$34=0,"$S$26","SKIP") -> $S$26
A26: Cell to determine # of loops per file | B26: $B$3
A27: Number of columns to copy | B27: =COLUMNS(K47:AO47) -> 31
A28: Number of loops | B28: =IFERROR(INDIRECT("'["&Inputs!$F$6&"]"&B25&"'!"&B26),"No workbook found") -> No workbook found
A29: Start of Offset | B29: =CELL("address",K1) -> $K$1
A30: Completed loops | B30: 0 | C30: =-Macro driven
A31: Helpers for Skipping Duplicates
A32: Current TIN cell: | B32: =IF(INDIRECT($B$23)="",$B$23,CELL("address",OFFSET(INDIRECT($B$23),COUNTA($K$48:$K$2000)-1,0))) -> $K$73
A33: COUNTIF Range: | B33: =CELL("address",OFFSET(INDIRECT($B$23),-1,0))&":"&CELL("address",OFFSET(INDIRECT($B$32),-1,0)) -> $K$47:$K$72
A34: Count of TINs Above Current TIN: | B34: 0
M44: L | O44: N
L45: RHP Contact Information
G47: Running count of contacts | H47: Running count of contacts | I47: Running count of contacts | J47: Count of TIN above | K47: TIN (only used to determine duplicates) | L47: RHP | M47: Type of Organization | O47: New (Y/N) | P47: TPI | Q47: Organization Name | R47: Contact Name | S47: Street Address | T47: City | U47: Zip Code | V47: Email | W47: Phone Number | X47: Phone Ext | Y47: Lead Contact or Both | Z47: Contact Name | AA47: Street Address | AB47: City | AC47: Zip Code | AD47: Email | AE47: Phone Number | AF47: Phone Ext | AG47: Lead Contact or Both | AH47: Contact Name | AI47: Street Address | AJ47: City | AK47: Zip Code | AL47: Email | AM47: Phone Number | AN47: Phone Ext | AO47: Lead Contact or Both | AP47: Contact 1? | AQ47: Contact 2? | AR47: Contact 3? | AS47: 1st Reviewer | AT47: 1st Reviewer Internal Comments | AU47: HHSC Initial Comments to Provider | AV47: Provider Response | AW47: 1st Reviewer | AX47: 1st Reviewer Internal Comments | AY47: HHSC Final Comments to Provider
G48: =IF($R48<>"",MAX('Contact Information_ProviderEnt'!$I:$I)+1,0) -> 59 | H48: =IF($Z48<>"",MAX('Contact Information_ProviderEnt'!$I:$I,$G$48:G48)+1,0) -> 60 | I48: =IF($AH48<>"",MAX('Contact Information_ProviderEnt'!$I:$I,$G$48:H48)+1,0) -> 61 | J48: =COUNTIF($K$47:$K47,$K48) -> 0 | K48: 37097097093001 | L48: 9 | M48: DSRIP IGT Entity | O48: =IF(ISERROR(MATCH($Q48,'Provider IGTs'!$D$4:$D$346,0)),"Y","N") -> N | P48: N/A | Q48: TAMUS Health Science Center dba Baylor College of Dentistry | R48: Daniel L. Jones,DDS | S48: 3302 Gaston Avenue | T48: Dallas | U48: 75246 | V48: djones@bcd.tamhsc.edu | W48: 214-828‐8350 | Y48: Both | Z48: Jeffrey Burton | AA48: 200 Technology Way, Suite 2079 | AB48: College Station | AC48: 77845 | AD48: jburton@tamhsc.edu | AE48: 979-436-9226 | AG48: Both | AH48: Juanna Moore | AI48: 3302 Gaston Avenue | AJ48: Dallas | AK48: 75246 | AL48: jmoore@bcd.tamhsc.edu | AM48: 214-828-8907 | AO48: Both
G49: =IF($R49<>"",MAX('Contact Information_ProviderEnt'!$I:$I,$G$48:$G48,$H$48:$H48,$I$48:$I48)+1,0) -> 62 | H49: =IF($Z49<>"",MAX('Contact Information_ProviderEnt'!$I:$I,$G$48:$G48,$H$48:$H48,$I$48:$I48,$G49)+1,0) -> 63 | I49: =IF($AH49<>"",MAX('Contact Information_ProviderEnt'!$I:$I,$G$48:$G48,$H$48:$H48,$I$48:$I48,$G49:$H49)+1,0) -> 0 | J49: =COUNTIF($K$47:$K48,$K49) -> 0 | K49: 17560042214002 | L49: 9 | M49: DSRIP IGT Entity | O49: =IF(ISERROR(MATCH($Q49,'Provider IGTs'!$D$4:$D$346,0)),"Y","N") -> N | P49: N/A | Q49: Dallas County Hospital District | R49: Richard Humphrey | S49: 5200 Harry Hines Blvd. | T49: Dallas | U49: 75235 | V49: richard.humphrey@phhs.org | W49: 214-590-8006 | Y49: Both | Z49: Christina Mintner | AA49: 5201 Harry Hines Blvd. | AB49: Dallas | AC49: 75235 | AD49: christina.mintner@phhs.org | AE49: 214-590-4605 | AG49: Both
G50: =IF($R50<>"",MAX('Contact Information_ProviderEnt'!$I:$I,$G$48:$G49,$H$48:$H49,$I$48:$I49)+1,0) -> 64 | H50: =IF($Z50<>"",MAX('Contact Information_ProviderEnt'!$I:$I,$G$48:$G49,$H$48:$H49,$I$48:$I49,$G50)+1,0) -> 65 | I50: =IF($AH50<>"",MAX('Contact Information_ProviderEnt'!$I:$I,$G$48:$G49,$H$48:$H49,$I$48:$I49,$G50:$H50)+1,0) -> 0 | J50: =COUNTIF($K$47:$K49,$K50) -> 1 | K50: 17560042214002 | L50: 9 | M50: DSRIP IGT Entity | O50: =IF(ISERROR(MATCH($Q50,'Provider IGTs'!$D$4:$D$346,0)),"Y","N") -> N | P50: N/A | Q50: Dallas County Hospital District | R50: Richard Humphrey | S50: 5200 Harry Hines Blvd. | T50: Dallas | U50: 75235 | V50: richard.humphrey@phhs.org | W50: 214-590-8006 | Y50: Both | Z50: Christina Mintner | AA50: 5201 Harry Hines Blvd. | AB50: Dallas | AC50: 75235 | AD50: christina.mintner@phhs.org | AE50: 214-590-4605 | AG50: Both
G51: =IF($R51<>"",MAX('Contact Information_ProviderEnt'!$I:$I,$G$48:$G50,$H$48:$H50,$I$48:$I50)+1,0) -> 66 | H51: =IF($Z51<>"",MAX('Contact Information_ProviderEnt'!$I:$I,$G$48:$G50,$H$48:$H50,$I$48:$I50,$G51)+1,0) -> 67 | I51: =IF($AH51<>"",MAX('Contact Information_ProviderEnt'!$I:$I,$G$48:$G50,$H$48:$H50,$I$48:$I50,$G51:$H51)+1,0) -> 0 | J51: =COUNTIF($K$47:$K50,$K51) -> 2 | K51: 17560042214002 | L51: 9 | M51: DSRIP IGT Entity | O51: =IF(ISERROR(MATCH($Q51,'Provider IGTs'!$D$4:$D$346,0)),"Y","N") -> N | P51: N/A | Q51: Dallas County Hospital District | R51: Richard Humphrey | S51: 5200 Harry Hines Blvd. | T51: Dallas | U51: 75235 | V51: richard.humphrey@phhs.org | W51: 214-590-8006 | Y51: Both | Z51: Christina Mintner | AA51: 5201 Harry Hines Blvd. | AB51: Dallas | AC51: 75235 | AD51: christina.mintner@phhs.org | AE51: 214-590-4605 | AG51: Both
G52: =IF($R52<>"",MAX('Contact Information_ProviderEnt'!$I:$I,$G$48:$G51,$H$48:$H51,$I$48:$I51)+1,0) -> 68 | H52: =IF($Z52<>"",MAX('Contact Information_ProviderEnt'!$I:$I,$G$48:$G51,$H$48:$H51,$I$48:$I51,$G52)+1,0) -> 69 | I52: =IF($AH52<>"",MAX('Contact Information_ProviderEnt'!$I:$I,$G$48:$G51,$H$48:$H51,$I$48:$I51,$G52:$H52)+1,0) -> 0 | J52: =COUNTIF($K$47:$K51,$K52) -> 3 | K52: 17560042214002 | L52: 9 | M52: DSRIP IGT Entity | O52: =IF(ISERROR(MATCH($Q52,'Provider IGTs'!$D$4:$D$346,0)),"Y","N") -> N | P52: N/A | Q52: Dallas County Hospital District | R52: Richard Humphrey | S52: 5200 Harry Hines Blvd. | T52: Dallas | U52: 75235 | V52: richard.humphrey@phhs.org | W52: 8179873639 | Y52: Both | Z52: Christina Mintner | AA52: 5201 Harry Hines Blvd. | AB52: Dallas | AC52: 75235 | AD52: christina.mintner@phhs.org | AE52: 214-590-4605 | AG52: Both
G53: =IF($R53<>"",MAX('Contact Information_ProviderEnt'!$I:$I,$G$48:$G52,$H$48:$H52,$I$48:$I52)+1,0) -> 70 | H53: =IF($Z53<>"",MAX('Contact Information_ProviderEnt'!$I:$I,$G$48:$G52,$H$48:$H52,$I$48:$I52,$G53)+1,0) -> 71 | I53: =IF($AH53<>"",MAX('Contact Information_ProviderEnt'!$I:$I,$G$48:$G52,$H$48:$H52,$I$48:$I52,$G53:$H53)+1,0) -> 0 | J53: =COUNTIF($K$47:$K52,$K53) -> 4 | K53: 17560042214002 | L53: 9 | M53: DSRIP IGT Entity | O53: =IF(ISERROR(MATCH($Q53,'Provider IGTs'!$D$4:$D$346,0)),"Y","N") -> N | P53: N/A | Q53: Dallas County Hospital District | R53: Richard Humphrey | S53: 5200 Harry Hines Blvd. | T53: Dallas | U53: 75235 | V53: richard.humphrey@phhs.org | W53: 214-590-8006 | Y53: Both | Z53: Christina Mintner | AA53: 5201 Harry Hines Blvd. | AB53: Dallas | AC53: 75235 | AD53: christina.mintner@phhs.org | AE53: 214-590-4605 | AG53: Both
G54: =IF($R54<>"",MAX('Contact Information_ProviderEnt'!$I:$I,$G$48:$G53,$H$48:$H53,$I$48:$I53)+1,0) -> 72 | H54: =IF($Z54<>"",MAX('Contact Information_ProviderEnt'!$I:$I,$G$48:$G53,$H$48:$H53,$I$48:$I53,$G54)+1,0) -> 73 | I54: =IF($AH54<>"",MAX('Contact Information_ProviderEnt'!$I:$I,$G$48:$G53,$H$48:$H53,$I$48:$I53,$G54:$H54)+1,0) -> 0 | J54: =COUNTIF($K$47:$K53,$K54) -> 5 | K54: 17560042214002 | L54: 9 | M54: DSRIP IGT Entity | O54: =IF(ISERROR(MATCH($Q54,'Provider IGTs'!$D$4:$D$346,0)),"Y","N") -> N | P54: N/A | Q54: Dallas County Hospital District | R54: Richard Humphrey | S54: 5200 Harry Hines Blvd. | T54: Dallas | U54: 75235 | V54: richard.humphrey@phhs.org | W54: 8179873639 | Y54: Both | Z54: Christina Mintner | AA54: 5201 Harry Hines Blvd. | AB54: Dallas | AC54: 75235 | AD54: christina.mintner@phhs.org | AE54: 214-590-4605 | AG54: Both
G55: =IF($R55<>"",MAX('Contact Information_ProviderEnt'!$I:$I,$G$48:$G54,$H$48:$H54,$I$48:$I54)+1,0) -> 74 | H55: =IF($Z55<>"",MAX('Contact Information_ProviderEnt'!$I:$I,$G$48:$G54,$H$48:$H54,$I$48:$I54,$G55)+1,0) -> 75 | I55: =IF($AH55<>"",MAX('Contact Information_ProviderEnt'!$I:$I,$G$48:$G54,$H$48:$H54,$I$48:$I54,$G55:$H55)+1,0) -> 0 | J55: =COUNTIF($K$47:$K54,$K55) -> 6 | K55: 17560042214002 | L55: 9 | M55: DSRIP IGT Entity | O55: =IF(ISERROR(MATCH($Q55,'Provider IGTs'!$D$4:$D$346,0)),"Y","N") -> N | P55: N/A | Q55: Dallas County Hospital District | R55: Richard Humphrey | S55: 5200 Harry Hines Blvd. | T55: Dallas | U55: 75235 | V55: richard.humphrey@phhs.org | W55: 8179873639 | Y55: Both | Z55: Christina Mintner | AA55: 5201 Harry Hines Blvd. | AB55: Dallas | AC55: 75235 | AD55: christina.mintner@phhs.org | AE55: 214-590-4605 | AG55: Both
G56: =IF($R56<>"",MAX('Contact Information_ProviderEnt'!$I:$I,$G$48:$G55,$H$48:$H55,$I$48:$I55)+1,0) -> 76 | H56: =IF($Z56<>"",MAX('Contact Information_ProviderEnt'!$I:$I,$G$48:$G55,$H$48:$H55,$I$48:$I55,$G56)+1,0) -> 77 | I56: =IF($AH56<>"",MAX('Contact Information_ProviderEnt'!$I:$I,$G$48:$G55,$H$48:$H55,$I$48:$I55,$G56:$H56)+1,0) -> 78 | J56: =COUNTIF($K$47:$K55,$K56) -> 0 | K56: 17560009056004 | L56: 9 | M56: DSRIP IGT Entity | O56: =IF(ISERROR(MATCH($Q56,'Provider IGTs'!$D$4:$D$346,0)),"Y","N") -> N | P56: N/A | Q56: Dallas County | R56: Charlene Randolph | S56: 133 N. Riverfron Blvd | T56: Dallas | U56: 75207‐2710 | V56: charlene.randolph@dallascounty.org | W56: 214-761-1335 | Y56: Both | Z56: Ganesh Shivaramaiyer | AA56: 2377 North Stemmons Freeway | AB56: Dallas | AC56: 75207‐2710 | AD56: ganesh.shivaramaiyer@dallascounty.org | AE56: 2148191865 | AG56: Both | AH56: Woldu Ameneshoa | AI56: 2377 North Stemmons Freeway | AJ56: Dallas | AK56: 75207‐2710 | AL56: woldu.ameneshoa@dallascounty.org | AM56: 2148192034 | AO56: Both
G57: =IF($R57<>"",MAX('Contact Information_ProviderEnt'!$I:$I,$G$48:$G56,$H$48:$H56,$I$48:$I56)+1,0) -> 79 | H57: =IF($Z57<>"",MAX('Contact Information_ProviderEnt'!$I:$I,$G$48:$G56,$H$48:$H56,$I$48:$I56,$G57)+1,0) -> 80 | I57: =IF($AH57<>"",MAX('Contact Information_ProviderEnt'!$I:$I,$G$48:$G56,$H$48:$H56,$I$48:$I56,$G57:$H57)+1,0) -> 0 | J57: =COUNTIF($K$47:$K56,$K57) -> 7 | K57: 17560042214002 | L57: 9 | M57: DSRIP IGT Entity | O57: =IF(ISERROR(MATCH($Q57,'Provider IGTs'!$D$4:$D$346,0)),"Y","N") -> N | P57: N/A | Q57: Dallas County Hospital District | R57: Richard Humphrey | S57: 5200 Harry Hines Blvd. | T57: Dallas | U57: 75235 | V57: richard.humphrey@phhs.org | W57: 214-590-8006 | Y57: Both | Z57: Christina Mintner | AA57: 5201 Harry Hines Blvd. | AB57: Dallas | AC57: 75235 | AD57: christina.mintner@phhs.org | AE57: 214-590-4605 | AG57: Both
G58: =IF($R58<>"",MAX('Contact Information_ProviderEnt'!$I:$I,$G$48:$G57,$H$48:$H57,$I$48:$I57)+1,0) -> 81 | H58: =IF($Z58<>"",MAX('Contact Information_ProviderEnt'!$I:$I,$G$48:$G57,$H$48:$H57,$I$48:$I57,$G58)+1,0) -> 0 | I58: =IF($AH58<>"",MAX('Contact Information_ProviderEnt'!$I:$I,$G$48:$G57,$H$48:$H57,$I$48:$I57,$G58:$H58)+1,0) -> 0 | J58: =COUNTIF($K$47:$K57,$K58) -> 0 | K58: 17528338233000 | L58: 9 | M58: DSRIP IGT Entity | O58: =IF(ISERROR(MATCH($Q58,'Provider IGTs'!$D$4:$D$346,0)),"Y","N") -> N | P58: N/A | Q58: Lakes Regional MHMR Center | R58: John Delaney | S58: 400 Airport Rd. | T58: Terrell | U58: 75160 | V58: johnd@lakesregional.org | W58: 972-524-4159 | X58: 1150 | Y58: Both
G59: =IF($R59<>"",MAX('Contact Information_ProviderEnt'!$I:$I,$G$48:$G58,$H$48:$H58,$I$48:$I58)+1,0) -> 82 | H59: =IF($Z59<>"",MAX('Contact Information_ProviderEnt'!$I:$I,$G$48:$G58,$H$48:$H58,$I$48:$I58,$G59)+1,0) -> 83 | I59: =IF($AH59<>"",MAX('Contact Information_ProviderEnt'!$I:$I,$G$48:$G58,$H$48:$H58,$I$48:$I58,$G59:$H59)+1,0) -> 0 | J59: =COUNTIF($K$47:$K58,$K59) -> 8 | K59: 17560042214002 | L59: 9 | M59: DSRIP IGT Entity | O59: =IF(ISERROR(MATCH($Q59,'Provider IGTs'!$D$4:$D$346,0)),"Y","N") -> N | P59: N/A | Q59: Dallas County Hospital District | R59: Richard Humphrey | S59: 5200 Harry Hines Blvd. | T59: Dallas | U59: 75235 | V59: richard.humphrey@phhs.org | W59: 214-590-8006 | Y59: Both | Z59: Christina Mintner | AA59: 5201 Harry Hines Blvd. | AB59: Dallas | AC59: 75235 | AD59: christina.mintner@phhs.org | AE59: 214-590-4605 | AG59: Both
G60: =IF($R60<>"",MAX('Contact Information_ProviderEnt'!$I:$I,$G$48:$G59,$H$48:$H59,$I$48:$I59)+1,0) -> 84 | H60: =IF($Z60<>"",MAX('Contact Information_ProviderEnt'!$I:$I,$G$48:$G59,$H$48:$H59,$I$48:$I59,$G60)+1,0) -> 85 | I60: =IF($AH60<>"",MAX('Contact Information_ProviderEnt'!$I:$I,$G$48:$G59,$H$48:$H59,$I$48:$I59,$G60:$H60)+1,0) -> 86 | J60: =COUNTIF($K$47:$K59,$K60) -> 0 | K60: 17560028684003 | L60: 9 | M60: DSRIP IGT Entity | O60: =IF(ISERROR(MATCH($Q60,'Provider IGTs'!$D$4:$D$346,0)),"Y","N") -> N | P60: N/A | Q60: UT Southwestern Medical Center at Dallas | R60: Suresh Gunasekaran | S60: 5323 Harry Hines Blvd. | T60: Dallas | U60: 75390 | V60: Suresh.Gunasekaran@UTSouthwestern.edu | W60: 214-648-3864 | Y60: Both | Z60: Kelly Robinson | AA60: 5323 Harry Hines Blvd. | AB60: Dallas | AC60: 75390 | AD60: Kelly.Robinson@UTSouthwestern.edu | AE60: 2146481707 | AG60: Both | AH60: Tiffany Lawson | AI60: 5323 Harry Hines Blvd. | AJ60: Dallas | AK60: 75390 | AL60: Tiffany.Lawson@UTSouthwestern.edu | AM60: 2146484495 | AO60: Both
G61: =IF($R61<>"",MAX('Contact Information_ProviderEnt'!$I:$I,$G$48:$G60,$H$48:$H60,$I$48:$I60)+1,0) -> 87 | H61: =IF($Z61<>"",MAX('Contact Information_ProviderEnt'!$I:$I,$G$48:$G60,$H$48:$H60,$I$48:$I60,$G61)+1,0) -> 88 | I61: =IF($AH61<>"",MAX('Contact Information_ProviderEnt'!$I:$I,$G$48:$G60,$H$48:$H60,$I$48:$I60,$G61:$H61)+1,0) -> 0 | J61: =COUNTIF($K$47:$K60,$K61) -> 9 | K61: 17560042214002 | L61: 9 | M61: DSRIP IGT Entity | O61: =IF(ISERROR(MATCH($Q61,'Provider IGTs'!$D$4:$D$346,0)),"Y","N") -> N | P61: N/A | Q61: Dallas County Hospital District | R61: Richard Humphrey | S61: 5200 Harry Hines Blvd. | T61: Dallas | U61: 75235 | V61: richard.humphrey@phhs.org | W61: 214-590-8006 | Y61: Both | Z61: Christina Mintner | AA61: 5201 Harry Hines Blvd. | AB61: Dallas | AC61: 75235 | AD61: christina.mintner@phhs.org | AE61: 214-590-4605 | AG61: Both
G62: =IF($R62<>"",MAX('Contact Information_ProviderEnt'!$I:$I,$G$48:$G61,$H$48:$H61,$I$48:$I61)+1,0) -> 89 | H62: =IF($Z62<>"",MAX('Contact Information_ProviderEnt'!$I:$I,$G$48:$G61,$H$48:$H61,$I$48:$I61,$G62)+1,0) -> 90 | I62: =IF($AH62<>"",MAX('Contact Information_ProviderEnt'!$I:$I,$G$48:$G61,$H$48:$H61,$I$48:$I61,$G62:$H62)+1,0) -> 0 | J62: =COUNTIF($K$47:$K61,$K62) -> 10 | K62: 17560042214002 | L62: 9 | M62: DSRIP IGT Entity | O62: =IF(ISERROR(MATCH($Q62,'Provider IGTs'!$D$4:$D$346,0)),"Y","N") -> N | P62: N/A | Q62: Dallas County Hospital District | R62: Richard Humphrey | S62: 5200 Harry Hines Blvd. | T62: Dallas | U62: 75235 | V62: richard.humphrey@phhs.org | W62: 214-590-8006 | Y62: Both | Z62: Christina Mintner | AA62: 5201 Harry Hines Blvd. | AB62: Dallas | AC62: 75235 | AD62: christina.mintner@phhs.org | AE62: 214-590-4605 | AG62: Both
G63: =IF($R63<>"",MAX('Contact Information_ProviderEnt'!$I:$I,$G$48:$G62,$H$48:$H62,$I$48:$I62)+1,0) -> 91 | H63: =IF($Z63<>"",MAX('Contact Information_ProviderEnt'!$I:$I,$G$48:$G62,$H$48:$H62,$I$48:$I62,$G63)+1,0) -> 92 | I63: =IF($AH63<>"",MAX('Contact Information_ProviderEnt'!$I:$I,$G$48:$G62,$H$48:$H62,$I$48:$I62,$G63:$H63)+1,0) -> 93 | J63: =COUNTIF($K$47:$K62,$K63) -> 0 | K63: 17513681514009 | L63: 9 | M63: DSRIP IGT Entity | O63: =IF(ISERROR(MATCH($Q63,'Provider IGTs'!$D$4:$D$346,0)),"Y","N") -> N | P63: N/A | Q63: Denton County MHMR Center | R63: Pam Gutierrez | S63: P.O. Box 2346 | T63: Denton | U63: 76202 | V63: pamg@dentonmhmr.org | W63: 940-565-5260 | Y63: Both | Z63: Cole Denbow | AA63: P.O. Box 2346 | AB63: Denton | AC63: 76202 | AD63: coled@dentonmhmr.org | AE63: 9405655202 | AG63: Both | AH63: Tammy Weppelman | AI63: P.O. Box 2346 | AJ63: Denton | AK63: 76202 | AL63: tammyw@dentonmhmr.org | AM63: 9405941015 | AO63: Both
G64: =IF($R64<>"",MAX('Contact Information_ProviderEnt'!$I:$I,$G$48:$G63,$H$48:$H63,$I$48:$I63)+1,0) -> 94 | H64: =IF($Z64<>"",MAX('Contact Information_ProviderEnt'!$I:$I,$G$48:$G63,$H$48:$H63,$I$48:$I63,$G64)+1,0) -> 95 | I64: =IF($AH64<>"",MAX('Contact Information_ProviderEnt'!$I:$I,$G$48:$G63,$H$48:$H63,$I$48:$I63,$G64:$H64)+1,0) -> 96 | J64: =COUNTIF($K$47:$K63,$K64) -> 0 | K64: 17560009205010 | L64: 9 | M64: DSRIP IGT Entity | O64: =IF(ISERROR(MATCH($Q64,'Provider IGTs'!$D$4:$D$346,0)),"Y","N") -> N | P64: N/A | Q64: Denton County dba Denton County Health Department | R64: James Wells | S64: 535 S. Loop 288, Suite 1003 | T64: Denton | U64: 76205 | V64: james.wells@dentoncounty.com | W64: 940-349-3107 | Y64: Both | Z64: Joe Paul Gallo | AA64: 535 S. Loop 288, Suite 1003 | AB64: Denton | AC64: 76205 | AD64: joe.gallo@dentoncounty.com | AE64: 940-349-2922 | AG64: Both | AH64: Matt Richardson | AI64: 535 S. Loop 288, Suite 1003 | AJ64: Denton | AK64: 76205 | AL64: matt.richardson@dentoncounty.com | AM64: 940-349-2913 | AO64: Both
G65: =IF($R65<>"",MAX('Contact Information_ProviderEnt'!$I:$I,$G$48:$G64,$H$48:$H64,$I$48:$I64)+1,0) -> 97 | H65: =IF($Z65<>"",MAX('Contact Information_ProviderEnt'!$I:$I,$G$48:$G64,$H$48:$H64,$I$48:$I64,$G65)+1,0) -> 98 | I65: =IF($AH65<>"",MAX('Contact Information_ProviderEnt'!$I:$I,$G$48:$G64,$H$48:$H64,$I$48:$I64,$G65:$H65)+1,0) -> 99 | J65: =COUNTIF($K$47:$K64,$K65) -> 0 | K65: 17512856034000 | L65: 9 | M65: DSRIP IGT Entity | O65: =IF(ISERROR(MATCH($Q65,'Provider IGTs'!$D$4:$D$346,0)),"Y","N") -> N | P65: N/A | Q65: Metrocare Services | R65: Carrie Parks | S65: 1345 River Bend Dr. Suite 200, Administration Bldg. | T65: Dallas | U65: 75247 | V65: Carrie.Parks@metrocareservices.org | W65: 2143337028 | Y65: Lead | Z65: Derrick Villa | AA65: 1345 River Bend Dr. Suite 200, Administration Bldg. | AB65: Dallas | AC65: 75247 | AD65: Derrick.Villa@metrocareservices.org | AE65: 2147436164 | AG65: Lead | AH65: Linda Thompson | AI65: 1345 River Bend Dr. Suite 200, Administration Bldg. | AJ65: Dallas | AK65: 75247 | AL65: Linda.Thompson@metrocareservices.org | AM65: 2147431258 | AO65: Both
G66: =IF($R66<>"",MAX('Contact Information_ProviderEnt'!$I:$I,$G$48:$G65,$H$48:$H65,$I$48:$I65)+1,0) -> 100 | H66: =IF($Z66<>"",MAX('Contact Information_ProviderEnt'!$I:$I,$G$48:$G65,$H$48:$H65,$I$48:$I65,$G66)+1,0) -> 101 | I66: =IF($AH66<>"",MAX('Contact Information_ProviderEnt'!$I:$I,$G$48:$G65,$H$48:$H65,$I$48:$I65,$G66:$H66)+1,0) -> 0 | J66: =COUNTIF($K$47:$K65,$K66) -> 11 | K66: 17560042214002 | L66: 9 | M66: DSRIP IGT Entity | O66: =IF(ISERROR(MATCH($Q66,'Provider IGTs'!$D$4:$D$346,0)),"Y","N") -> N | P66: 138910807 | Q66: Dallas County Hospital District | R66: Richard Humphrey | S66: 5200 Harry Hines Blvd. | T66: Dallas | U66: 75235 | V66: richard.humphrey@phhs.org | W66: 214-590-8006 | Y66: Both | Z66: Christina Mintner | AA66: 5201 Harry Hines Blvd. | AB66: Dallas | AC66: 75235 | AD66: christina.mintner@phhs.org | AE66: 214-590-4605 | AG66: Both
G67: =IF($R67<>"",MAX('Contact Information_ProviderEnt'!$I:$I,$G$48:$G66,$H$48:$H66,$I$48:$I66)+1,0) -> 102 | H67: =IF($Z67<>"",MAX('Contact Information_ProviderEnt'!$I:$I,$G$48:$G66,$H$48:$H66,$I$48:$I66,$G67)+1,0) -> 103 | I67: =IF($AH67<>"",MAX('Contact Information_ProviderEnt'!$I:$I,$G$48:$G66,$H$48:$H66,$I$48:$I66,$G67:$H67)+1,0) -> 0 | J67: =COUNTIF($K$47:$K66,$K67) -> 0 | K67: 17418571000012 | L67: 9 | M67: DSRIP IGT Entity | O67: =IF(ISERROR(MATCH($Q67,'Provider IGTs'!$D$4:$D$346,0)),"Y","N") -> Y | P67: 134772611 | Q67: Coryell County Memorial Hospital Authority | R67: David Byrom | S67: 1507 West Main | T67: Gatesville | U67: 76528 | V67: dbyrom@cmhos.org | W67: 2542486301 | Y67: Both | Z67: Alan Ivy | AA67: 1507 West Main | AB67: Gatesville | AC67: 76528 | AD67: alan.ivy@cmhos.org | AE67: 2542486276 | AG67: Both
G68: =IF($R68<>"",MAX('Contact Information_ProviderEnt'!$I:$I,$G$48:$G67,$H$48:$H67,$I$48:$I67)+1,0) -> 104 | H68: =IF($Z68<>"",MAX('Contact Information_ProviderEnt'!$I:$I,$G$48:$G67,$H$48:$H67,$I$48:$I67,$G68)+1,0) -> 105 | I68: =IF($AH68<>"",MAX('Contact Information_ProviderEnt'!$I:$I,$G$48:$G67,$H$48:$H67,$I$48:$I67,$G68:$H68)+1,0) -> 0 | J68: =COUNTIF($K$47:$K67,$K68) -> 0 | K68: 17560039350501 | L68: 9 | M68: DSRIP IGT Entity | O68: =IF(ISERROR(MATCH($Q68,'Provider IGTs'!$D$4:$D$346,0)),"Y","N") -> Y | P68: 138913209 | Q68: Titus County Hospital District | R68: Terry Scoggin | S68: 2001 N. Jefferson | T68: Mount Pleasant | U68: 75455 | V68: Terry.Scoggin@titusregional.com | W68: 9035776066 | Y68: Both | Z68: Heather Tuck | AA68: 2002 N. Jefferson | AB68: Mount Pleasant | AC68: 75455 | AD68: Heather.Tuck@titusregional.com | AE68: 9035776065 | AG68: Both
G69: =IF($R69<>"",MAX('Contact Information_ProviderEnt'!$I:$I,$G$48:$G68,$H$48:$H68,$I$48:$I68)+1,0) -> 106 | H69: =IF($Z69<>"",MAX('Contact Information_ProviderEnt'!$I:$I,$G$48:$G68,$H$48:$H68,$I$48:$I68,$G69)+1,0) -> 107 | I69: =IF($AH69<>"",MAX('Contact Information_ProviderEnt'!$I:$I,$G$48:$G68,$H$48:$H68,$I$48:$I68,$G69:$H69)+1,0) -> 0 | J69: =COUNTIF($K$47:$K68,$K69) -> 12 | K69: 17560042214002 | L69: 9 | M69: DSRIP IGT Entity | O69: =IF(ISERROR(MATCH($Q69,'Provider IGTs'!$D$4:$D$346,0)),"Y","N") -> N | P69: N/A | Q69: Dallas County Hospital District | R69: Richard Humphrey | S69: 5200 Harry Hines Blvd. | T69: Dallas | U69: 75235 | V69: richard.humphrey@phhs.org | W69: 214-590-8006 | Y69: Both | Z69: Christina Mintner | AA69: 5201 Harry Hines Blvd. | AB69: Dallas | AC69: 75235 | AD69: christina.mintner@phhs.org | AE69: 214-590-4605 | AG69: Both
G70: =IF($R70<>"",MAX('Contact Information_ProviderEnt'!$I:$I,$G$48:$G69,$H$48:$H69,$I$48:$I69)+1,0) -> 108 | H70: =IF($Z70<>"",MAX('Contact Information_ProviderEnt'!$I:$I,$G$48:$G69,$H$48:$H69,$I$48:$I69,$G70)+1,0) -> 109 | I70: =IF($AH70<>"",MAX('Contact Information_ProviderEnt'!$I:$I,$G$48:$G69,$H$48:$H69,$I$48:$I69,$G70:$H70)+1,0) -> 0 | J70: =COUNTIF($K$47:$K69,$K70) -> 13 | K70: 17560042214002 | L70: 9 | M70: DSRIP IGT Entity | O70: =IF(ISERROR(MATCH($Q70,'Provider IGTs'!$D$4:$D$346,0)),"Y","N") -> N | P70: N/A | Q70: Dallas County Hospital District | R70: Richard Humphrey | S70: 5200 Harry Hines Blvd. | T70: Dallas | U70: 75235 | V70: richard.humphrey@phhs.org | W70: 214-590-8006 | Y70: Both | Z70: Christina Mintner | AA70: 5201 Harry Hines Blvd. | AB70: Dallas | AC70: 75235 | AD70: christina.mintner@phhs.org | AE70: 214-590-4605 | AG70: Both
G71: =IF($R71<>"",MAX('Contact Information_ProviderEnt'!$I:$I,$G$48:$G70,$H$48:$H70,$I$48:$I70)+1,0) -> 110 | H71: =IF($Z71<>"",MAX('Contact Information_ProviderEnt'!$I:$I,$G$48:$G70,$H$48:$H70,$I$48:$I70,$G71)+1,0) -> 111 | I71: =IF($AH71<>"",MAX('Contact Information_ProviderEnt'!$I:$I,$G$48:$G70,$H$48:$H70,$I$48:$I70,$G71:$H71)+1,0) -> 0 | J71: =COUNTIF($K$47:$K70,$K71) -> 14 | K71: 17560042214002 | L71: 9 | M71: DSRIP IGT Entity | O71: =IF(ISERROR(MATCH($Q71,'Provider IGTs'!$D$4:$D$346,0)),"Y","N") -> N | P71: N/A | Q71: Dallas County Hospital District | R71: Richard Humphrey | S71: 5200 Harry Hines Blvd. | T71: Dallas | U71: 75235 | V71: richard.humphrey@phhs.org | W71: 214-590-8006 | Y71: Both | Z71: Christina Mintner | AA71: 5201 Harry Hines Blvd. | AB71: Dallas | AC71: 75235 | AD71: christina.mintner@phhs.org | AE71: 214-590-4605 | AG71: Both
G72: =IF($R72<>"",MAX('Contact Information_ProviderEnt'!$I:$I,$G$48:$G71,$H$48:$H71,$I$48:$I71)+1,0) -> 112 | H72: =IF($Z72<>"",MAX('Contact Information_ProviderEnt'!$I:$I,$G$48:$G71,$H$48:$H71,$I$48:$I71,$G72)+1,0) -> 113 | I72: =IF($AH72<>"",MAX('Contact Information_ProviderEnt'!$I:$I,$G$48:$G71,$H$48:$H71,$I$48:$I71,$G72:$H72)+1,0) -> 0 | J72: =COUNTIF($K$47:$K71,$K72) -> 15 | K72: 17560042214002 | L72: 9 | M72: DSRIP IGT Entity | O72: =IF(ISERROR(MATCH($Q72,'Provider IGTs'!$D$4:$D$346,0)),"Y","N") -> N | P72: N/A | Q72: Dallas County Hospital District | R72: Richard Humphrey | S72: 5200 Harry Hines Blvd. | T72: Dallas | U72: 75235 | V72: richard.humphrey@phhs.org | W72: 214-590-8006 | Y72: Both | Z72: Christina Mintner | AA72: 5201 Harry Hines Blvd. | AB72: Dallas | AC72: 75235 | AD72: christina.mintner@phhs.org | AE72: 214-590-4605 | AG72: Both
G73: =IF($R73<>"",MAX('Contact Information_ProviderEnt'!$I:$I,$G$48:$G72,$H$48:$H72,$I$48:$I72)+1,0) -> 114 | H73: =IF($Z73<>"",MAX('Contact Information_ProviderEnt'!$I:$I,$G$48:$G72,$H$48:$H72,$I$48:$I72,$G73)+1,0) -> 115 | I73: =IF($AH73<>"",MAX('Contact Information_ProviderEnt'!$I:$I,$G$48:$G72,$H$48:$H72,$I$48:$I72,$G73:$H73)+1,0) -> 0 | J73: =COUNTIF($K$47:$K72,$K73) -> 16 | K73: 17560042214002 | L73: 9 | M73: DSRIP IGT Entity | O73: =IF(ISERROR(MATCH($Q73,'Provider IGTs'!$D$4:$D$346,0)),"Y","N") -> N | P73: N/A | Q73: Dallas County Hospital District | R73: Richard Humphrey | S73: 5200 Harry Hines Blvd. | T73: Dallas | U73: 75235 | V73: richard.humphrey@phhs.org | W73: 214-590-8006 | Y73: Both | Z73: Christina Mintner | AA73: 5201 Harry Hines Blvd. | AB73: Dallas | AC73: 75235 | AD73: christina.mintner@phhs.org | AE73: 214-590-4605 | AG73: Both
G74: =IF($R74<>"",MAX('Contact Information_ProviderEnt'!$I:$I,$G$48:$G73,$H$48:$H73,$I$48:$I73)+1,0) -> 0 | H74: =IF($Z74<>"",MAX('Contact Information_ProviderEnt'!$I:$I,$G$48:$G73,$H$48:$H73,$I$48:$I73,$G74)+1,0) -> 0 | I74: =IF($AH74<>"",MAX('Contact Information_ProviderEnt'!$I:$I,$G$48:$G73,$H$48:$H73,$I$48:$I73,$G74:$H74)+1,0) -> 0 | J74: =COUNTIF($K$47:$K73,$K74) -> 0 | M74: DSRIP IGT Entity | O74: =IF(ISERROR(MATCH($Q74,'Provider IGTs'!$D$4:$D$346,0)),"Y","N") -> Y
G75: =IF($R75<>"",MAX('Contact Information_ProviderEnt'!$I:$I,$G$48:$G74,$H$48:$H74,$I$48:$I74)+1,0) -> 0 | H75: =IF($Z75<>"",MAX('Contact Information_ProviderEnt'!$I:$I,$G$48:$G74,$H$48:$H74,$I$48:$I74,$G75)+1,0) -> 0 | I75: =IF($AH75<>"",MAX('Contact Information_ProviderEnt'!$I:$I,$G$48:$G74,$H$48:$H74,$I$48:$I74,$G75:$H75)+1,0) -> 0 | J75: =COUNTIF($K$47:$K74,$K75) -> 0 | M75: DSRIP IGT Entity | O75: =IF(ISERROR(MATCH($Q75,'Provider IGTs'!$D$4:$D$346,0)),"Y","N") -> Y
G76: =IF($R76<>"",MAX('Contact Information_ProviderEnt'!$I:$I,$G$48:$G75,$H$48:$H75,$I$48:$I75)+1,0) -> 0 | H76: =IF($Z76<>"",MAX('Contact Information_ProviderEnt'!$I:$I,$G$48:$G75,$H$48:$H75,$I$48:$I75,$G76)+1,0) -> 0 | I76: =IF($AH76<>"",MAX('Contact Information_ProviderEnt'!$I:$I,$G$48:$G75,$H$48:$H75,$I$48:$I75,$G76:$H76)+1,0) -> 0 | J76: =COUNTIF($K$47:$K75,$K76) -> 0 | M76: DSRIP IGT Entity | O76: =IF(ISERROR(MATCH($Q76,'Provider IGTs'!$D$4:$D$346,0)),"Y","N") -> Y
G77: =IF($R77<>"",MAX('Contact Information_ProviderEnt'!$I:$I,$G$48:$G76,$H$48:$H76,$I$48:$I76)+1,0) -> 0 | H77: =IF($Z77<>"",MAX('Contact Information_ProviderEnt'!$I:$I,$G$48:$G76,$H$48:$H76,$I$48:$I76,$G77)+1,0) -> 0 | I77: =IF($AH77<>"",MAX('Contact Information_ProviderEnt'!$I:$I,$G$48:$G76,$H$48:$H76,$I$48:$I76,$G77:$H77)+1,0) -> 0 | J77: =COUNTIF($K$47:$K76,$K77) -> 0 | M77: DSRIP IGT Entity | O77: =IF(ISERROR(MATCH($Q77,'Provider IGTs'!$D$4:$D$346,0)),"Y","N") -> Y
G78: =IF($R78<>"",MAX('Contact Information_ProviderEnt'!$I:$I,$G$48:$G77,$H$48:$H77,$I$48:$I77)+1,0) -> 0 | H78: =IF($Z78<>"",MAX('Contact Information_ProviderEnt'!$I:$I,$G$48:$G77,$H$48:$H77,$I$48:$I77,$G78)+1,0) -> 0 | I78: =IF($AH78<>"",MAX('Contact Information_ProviderEnt'!$I:$I,$G$48:$G77,$H$48:$H77,$I$48:$I77,$G78:$H78)+1,0) -> 0 | J78: =COUNTIF($K$47:$K77,$K78) -> 0 | M78: DSRIP IGT Entity | O78: =IF(ISERROR(MATCH($Q78,'Provider IGTs'!$D$4:$D$346,0)),"Y","N") -> Y
G79: =IF($R79<>"",MAX('Contact Information_ProviderEnt'!$I:$I,$G$48:$G78,$H$48:$H78,$I$48:$I78)+1,0) -> 0 | H79: =IF($Z79<>"",MAX('Contact Information_ProviderEnt'!$I:$I,$G$48:$G78,$H$48:$H78,$I$48:$I78,$G79)+1,0) -> 0 | I79: =IF($AH79<>"",MAX('Contact Information_ProviderEnt'!$I:$I,$G$48:$G78,$H$48:$H78,$I$48:$I78,$G79:$H79)+1,0) -> 0 | J79: =COUNTIF($K$47:$K78,$K79) -> 0 | M79: DSRIP IGT Entity | O79: =IF(ISERROR(MATCH($Q79,'Provider IGTs'!$D$4:$D$346,0)),"Y","N") -> Y
G80: =IF($R80<>"",MAX('Contact Information_ProviderEnt'!$I:$I,$G$48:$G79,$H$48:$H79,$I$48:$I79)+1,0) -> 0 | H80: =IF($Z80<>"",MAX('Contact Information_ProviderEnt'!$I:$I,$G$48:$G79,$H$48:$H79,$I$48:$I79,$G80)+1,0) -> 0 | I80: =IF($AH80<>"",MAX('Contact Information_ProviderEnt'!$I:$I,$G$48:$G79,$H$48:$H79,$I$48:$I79,$G80:$H80)+1,0) -> 0 | J80: =COUNTIF($K$47:$K79,$K80) -> 0 | M80: DSRIP IGT Entity | O80: =IF(ISERROR(MATCH($Q80,'Provider IGTs'!$D$4:$D$346,0)),"Y","N") -> Y
G81: =IF($R81<>"",MAX('Contact Information_ProviderEnt'!$I:$I,$G$48:$G80,$H$48:$H80,$I$48:$I80)+1,0) -> 0 | H81: =IF($Z81<>"",MAX('Contact Information_ProviderEnt'!$I:$I,$G$48:$G80,$H$48:$H80,$I$48:$I80,$G81)+1,0) -> 0 | I81: =IF($AH81<>"",MAX('Contact Information_ProviderEnt'!$I:$I,$G$48:$G80,$H$48:$H80,$I$48:$I80,$G81:$H81)+1,0) -> 0 | J81: =COUNTIF($K$47:$K80,$K81) -> 0 | M81: DSRIP IGT Entity | O81: =IF(ISERROR(MATCH($Q81,'Provider IGTs'!$D$4:$D$346,0)),"Y","N") -> Y
G82: =IF($R82<>"",MAX('Contact Information_ProviderEnt'!$I:$I,$G$48:$G81,$H$48:$H81,$I$48:$I81)+1,0) -> 0 | H82: =IF($Z82<>"",MAX('Contact Information_ProviderEnt'!$I:$I,$G$48:$G81,$H$48:$H81,$I$48:$I81,$G82)+1,0) -> 0 | I82: =IF($AH82<>"",MAX('Contact Information_ProviderEnt'!$I:$I,$G$48:$G81,$H$48:$H81,$I$48:$I81,$G82:$H82)+1,0) -> 0 | J82: =COUNTIF($K$47:$K81,$K82) -> 0 | M82: DSRIP IGT Entity | O82: =IF(ISERROR(MATCH($Q82,'Provider IGTs'!$D$4:$D$346,0)),"Y","N") -> Y
G83: =IF($R83<>"",MAX('Contact Information_ProviderEnt'!$I:$I,$G$48:$G82,$H$48:$H82,$I$48:$I82)+1,0) -> 0 | H83: =IF($Z83<>"",MAX('Contact Information_ProviderEnt'!$I:$I,$G$48:$G82,$H$48:$H82,$I$48:$I82,$G83)+1,0) -> 0 | I83: =IF($AH83<>"",MAX('Contact Information_ProviderEnt'!$I:$I,$G$48:$G82,$H$48:$H82,$I$48:$I82,$G83:$H83)+1,0) -> 0 | J83: =COUNTIF($K$47:$K82,$K83) -> 0 | M83: DSRIP IGT Entity | O83: =IF(ISERROR(MATCH($Q83,'Provider IGTs'!$D$4:$D$346,0)),"Y","N") -> Y
G84: =IF($R84<>"",MAX('Contact Information_ProviderEnt'!$I:$I,$G$48:$G83,$H$48:$H83,$I$48:$I83)+1,0) -> 0 | H84: =IF($Z84<>"",MAX('Contact Information_ProviderEnt'!$I:$I,$G$48:$G83,$H$48:$H83,$I$48:$I83,$G84)+1,0) -> 0 | I84: =IF($AH84<>"",MAX('Contact Information_ProviderEnt'!$I:$I,$G$48:$G83,$H$48:$H83,$I$48:$I83,$G84:$H84)+1,0) -> 0 | J84: =COUNTIF($K$47:$K83,$K84) -> 0 | M84: DSRIP IGT Entity | O84: =IF(ISERROR(MATCH($Q84,'Provider IGTs'!$D$4:$D$346,0)),"Y","N") -> Y
G85: =IF($R85<>"",MAX('Contact Information_ProviderEnt'!$I:$I,$G$48:$G84,$H$48:$H84,$I$48:$I84)+1,0) -> 0 | H85: =IF($Z85<>"",MAX('Contact Information_ProviderEnt'!$I:$I,$G$48:$G84,$H$48:$H84,$I$48:$I84,$G85)+1,0) -> 0 | I85: =IF($AH85<>"",MAX('Contact Information_ProviderEnt'!$I:$I,$G$48:$G84,$H$48:$H84,$I$48:$I84,$G85:$H85)+1,0) -> 0 | J85: =COUNTIF($K$47:$K84,$K85) -> 0 | M85: DSRIP IGT Entity | O85: =IF(ISERROR(MATCH($Q85,'Provider IGTs'!$D$4:$D$346,0)),"Y","N") -> Y
G86: =IF($R86<>"",MAX('Contact Information_ProviderEnt'!$I:$I,$G$48:$G85,$H$48:$H85,$I$48:$I85)+1,0) -> 0 | H86: =IF($Z86<>"",MAX('Contact Information_ProviderEnt'!$I:$I,$G$48:$G85,$H$48:$H85,$I$48:$I85,$G86)+1,0) -> 0 | I86: =IF($AH86<>"",MAX('Contact Information_ProviderEnt'!$I:$I,$G$48:$G85,$H$48:$H85,$I$48:$I85,$G86:$H86)+1,0) -> 0 | J86: =COUNTIF($K$47:$K85,$K86) -> 0 | M86: DSRIP IGT Entity | O86: =IF(ISERROR(MATCH($Q86,'Provider IGTs'!$D$4:$D$346,0)),"Y","N") -> Y
G87: =IF($R87<>"",MAX('Contact Information_ProviderEnt'!$I:$I,$G$48:$G86,$H$48:$H86,$I$48:$I86)+1,0) -> 0 | H87: =IF($Z87<>"",MAX('Contact Information_ProviderEnt'!$I:$I,$G$48:$G86,$H$48:$H86,$I$48:$I86,$G87)+1,0) -> 0 | I87: =IF($AH87<>"",MAX('Contact Information_ProviderEnt'!$I:$I,$G$48:$G86,$H$48:$H86,$I$48:$I86,$G87:$H87)+1,0) -> 0 | J87: =COUNTIF($K$47:$K86,$K87) -> 0 | M87: DSRIP IGT Entity | O87: =IF(ISERROR(MATCH($Q87,'Provider IGTs'!$D$4:$D$346,0)),"Y","N") -> Y
G88: =IF($R88<>"",MAX('Contact Information_ProviderEnt'!$I:$I,$G$48:$G87,$H$48:$H87,$I$48:$I87)+1,0) -> 0 | H88: =IF($Z88<>"",MAX('Contact Information_ProviderEnt'!$I:$I,$G$48:$G87,$H$48:$H87,$I$48:$I87,$G88)+1,0) -> 0 | I88: =IF($AH88<>"",MAX('Contact Information_ProviderEnt'!$I:$I,$G$48:$G87,$H$48:$H87,$I$48:$I87,$G88:$H88)+1,0) -> 0 | J88: =COUNTIF($K$47:$K87,$K88) -> 0 | M88: DSRIP IGT Entity | O88: =IF(ISERROR(MATCH($Q88,'Provider IGTs'!$D$4:$D$346,0)),"Y","N") -> Y
G89: =IF($R89<>"",MAX('Contact Information_ProviderEnt'!$I:$I,$G$48:$G88,$H$48:$H88,$I$48:$I88)+1,0) -> 0 | H89: =IF($Z89<>"",MAX('Contact Information_ProviderEnt'!$I:$I,$G$48:$G88,$H$48:$H88,$I$48:$I88,$G89)+1,0) -> 0 | I89: =IF($AH89<>"",MAX('Contact Information_ProviderEnt'!$I:$I,$G$48:$G88,$H$48:$H88,$I$48:$I88,$G89:$H89)+1,0) -> 0 | J89: =COUNTIF($K$47:$K88,$K89) -> 0 | M89: DSRIP IGT Entity | O89: =IF(ISERROR(MATCH($Q89,'Provider IGTs'!$D$4:$D$346,0)),"Y","N") -> Y
G90: =IF($R90<>"",MAX('Contact Information_ProviderEnt'!$I:$I,$G$48:$G89,$H$48:$H89,$I$48:$I89)+1,0) -> 0 | H90: =IF($Z90<>"",MAX('Contact Information_ProviderEnt'!$I:$I,$G$48:$G89,$H$48:$H89,$I$48:$I89,$G90)+1,0) -> 0 | I90: =IF($AH90<>"",MAX('Contact Information_ProviderEnt'!$I:$I,$G$48:$G89,$H$48:$H89,$I$48:$I89,$G90:$H90)+1,0) -> 0 | J90: =COUNTIF($K$47:$K89,$K90) -> 0 | M90: DSRIP IGT Entity | O90: =IF(ISERROR(MATCH($Q90,'Provider IGTs'!$D$4:$D$346,0)),"Y","N") -> Y
G91: =IF($R91<>"",MAX('Contact Information_ProviderEnt'!$I:$I,$G$48:$G90,$H$48:$H90,$I$48:$I90)+1,0) -> 0 | H91: =IF($Z91<>"",MAX('Contact Information_ProviderEnt'!$I:$I,$G$48:$G90,$H$48:$H90,$I$48:$I90,$G91)+1,0) -> 0 | I91: =IF($AH91<>"",MAX('Contact Information_ProviderEnt'!$I:$I,$G$48:$G90,$H$48:$H90,$I$48:$I90,$G91:$H91)+1,0) -> 0 | J91: =COUNTIF($K$47:$K90,$K91) -> 0 | M91: DSRIP IGT Entity | O91: =IF(ISERROR(MATCH($Q91,'Provider IGTs'!$D$4:$D$346,0)),"Y","N") -> Y
G92: =IF($R92<>"",MAX('Contact Information_ProviderEnt'!$I:$I,$G$48:$G91,$H$48:$H91,$I$48:$I91)+1,0) -> 0 | H92: =IF($Z92<>"",MAX('Contact Information_ProviderEnt'!$I:$I,$G$48:$G91,$H$48:$H91,$I$48:$I91,$G92)+1,0) -> 0 | I92: =IF($AH92<>"",MAX('Contact Information_ProviderEnt'!$I:$I,$G$48:$G91,$H$48:$H91,$I$48:$I91,$G92:$H92)+1,0) -> 0 | J92: =COUNTIF($K$47:$K91,$K92) -> 0 | M92: DSRIP IGT Entity | O92: =IF(ISERROR(MATCH($Q92,'Provider IGTs'!$D$4:$D$346,0)),"Y","N") -> Y
G93: =IF($R93<>"",MAX('Contact Information_ProviderEnt'!$I:$I,$G$48:$G92,$H$48:$H92,$I$48:$I92)+1,0) -> 0 | H93: =IF($Z93<>"",MAX('Contact Information_ProviderEnt'!$I:$I,$G$48:$G92,$H$48:$H92,$I$48:$I92,$G93)+1,0) -> 0 | I93: =IF($AH93<>"",MAX('Contact Information_ProviderEnt'!$I:$I,$G$48:$G92,$H$48:$H92,$I$48:$I92,$G93:$H93)+1,0) -> 0 | J93: =COUNTIF($K$47:$K92,$K93) -> 0 | M93: DSRIP IGT Entity | O93: =IF(ISERROR(MATCH($Q93,'Provider IGTs'!$D$4:$D$346,0)),"Y","N") -> Y
G94: =IF($R94<>"",MAX('Contact Information_ProviderEnt'!$I:$I,$G$48:$G93,$H$48:$H93,$I$48:$I93)+1,0) -> 0 | H94: =IF($Z94<>"",MAX('Contact Information_ProviderEnt'!$I:$I,$G$48:$G93,$H$48:$H93,$I$48:$I93,$G94)+1,0) -> 0 | I94: =IF($AH94<>"",MAX('Contact Information_ProviderEnt'!$I:$I,$G$48:$G93,$H$48:$H93,$I$48:$I93,$G94:$H94)+1,0) -> 0 | J94: =COUNTIF($K$47:$K93,$K94) -> 0 | M94: DSRIP IGT Entity | O94: =IF(ISERROR(MATCH($Q94,'Provider IGTs'!$D$4:$D$346,0)),"Y","N") -> Y
G95: =IF($R95<>"",MAX('Contact Information_ProviderEnt'!$I:$I,$G$48:$G94,$H$48:$H94,$I$48:$I94)+1,0) -> 0 | H95: =IF($Z95<>"",MAX('Contact Information_ProviderEnt'!$I:$I,$G$48:$G94,$H$48:$H94,$I$48:$I94,$G95)+1,0) -> 0 | I95: =IF($AH95<>"",MAX('Contact Information_ProviderEnt'!$I:$I,$G$48:$G94,$H$48:$H94,$I$48:$I94,$G95:$H95)+1,0) -> 0 | J95: =COUNTIF($K$47:$K94,$K95) -> 0 | M95: DSRIP IGT Entity | O95: =IF(ISERROR(MATCH($Q95,'Provider IGTs'!$D$4:$D$346,0)),"Y","N") -> Y
G96: =IF($R96<>"",MAX('Contact Information_ProviderEnt'!$I:$I,$G$48:$G95,$H$48:$H95,$I$48:$I95)+1,0) -> 0 | H96: =IF($Z96<>"",MAX('Contact Information_ProviderEnt'!$I:$I,$G$48:$G95,$H$48:$H95,$I$48:$I95,$G96)+1,0) -> 0 | I96: =IF($AH96<>"",MAX('Contact Information_ProviderEnt'!$I:$I,$G$48:$G95,$H$48:$H95,$I$48:$I95,$G96:$H96)+1,0) -> 0 | J96: =COUNTIF($K$47:$K95,$K96) -> 0 | M96: DSRIP IGT Entity | O96: =IF(ISERROR(MATCH($Q96,'Provider IGTs'!$D$4:$D$346,0)),"Y","N") -> Y
G97: =IF($R97<>"",MAX('Contact Information_ProviderEnt'!$I:$I,$G$48:$G96,$H$48:$H96,$I$48:$I96)+1,0) -> 0 | H97: =IF($Z97<>"",MAX('Contact Information_ProviderEnt'!$I:$I,$G$48:$G96,$H$48:$H96,$I$48:$I96,$G97)+1,0) -> 0 | I97: =IF($AH97<>"",MAX('Contact Information_ProviderEnt'!$I:$I,$G$48:$G96,$H$48:$H96,$I$48:$I96,$G97:$H97)+1,0) -> 0 | J97: =COUNTIF($K$47:$K96,$K97) -> 0 | M97: DSRIP IGT Entity | O97: =IF(ISERROR(MATCH($Q97,'Provider IGTs'!$D$4:$D$346,0)),"Y","N") -> Y
G98: =IF($R98<>"",MAX('Contact Information_ProviderEnt'!$I:$I,$G$48:$G97,$H$48:$H97,$I$48:$I97)+1,0) -> 0 | H98: =IF($Z98<>"",MAX('Contact Information_ProviderEnt'!$I:$I,$G$48:$G97,$H$48:$H97,$I$48:$I97,$G98)+1,0) -> 0 | I98: =IF($AH98<>"",MAX('Contact Information_ProviderEnt'!$I:$I,$G$48:$G97,$H$48:$H97,$I$48:$I97,$G98:$H98)+1,0) -> 0 | J98: =COUNTIF($K$47:$K97,$K98) -> 0 | M98: DSRIP IGT Entity | O98: =IF(ISERROR(MATCH($Q98,'Provider IGTs'!$D$4:$D$346,0)),"Y","N") -> Y
G99: =IF($R99<>"",MAX('Contact Information_ProviderEnt'!$I:$I,$G$48:$G98,$H$48:$H98,$I$48:$I98)+1,0) -> 0 | H99: =IF($Z99<>"",MAX('Contact Information_ProviderEnt'!$I:$I,$G$48:$G98,$H$48:$H98,$I$48:$I98,$G99)+1,0) -> 0 | I99: =IF($AH99<>"",MAX('Contact Information_ProviderEnt'!$I:$I,$G$48:$G98,$H$48:$H98,$I$48:$I98,$G99:$H99)+1,0) -> 0 | J99: =COUNTIF($K$47:$K98,$K99) -> 0 | M99: DSRIP IGT Entity | O99: =IF(ISERROR(MATCH($Q99,'Provider IGTs'!$D$4:$D$346,0)),"Y","N") -> Y
G100: =IF($R100<>"",MAX('Contact Information_ProviderEnt'!$I:$I,$G$48:$G99,$H$48:$H99,$I$48:$I99)+1,0) -> 0 | H100: =IF($Z100<>"",MAX('Contact Information_ProviderEnt'!$I:$I,$G$48:$G99,$H$48:$H99,$I$48:$I99,$G100)+1,0) -> 0 | I100: =IF($AH100<>"",MAX('Contact Information_ProviderEnt'!$I:$I,$G$48:$G99,$H$48:$H99,$I$48:$I99,$G100:$H100)+1,0) -> 0 | J100: =COUNTIF($K$47:$K99,$K100) -> 0 | M100: DSRIP IGT Entity | O100: =IF(ISERROR(MATCH($Q100,'Provider IGTs'!$D$4:$D$346,0)),"Y","N") -> Y
G101: =IF($R101<>"",MAX('Contact Information_ProviderEnt'!$I:$I,$G$48:$G100,$H$48:$H100,$I$48:$I100)+1,0) -> 0 | H101: =IF($Z101<>"",MAX('Contact Information_ProviderEnt'!$I:$I,$G$48:$G100,$H$48:$H100,$I$48:$I100,$G101)+1,0) -> 0 | I101: =IF($AH101<>"",MAX('Contact Information_ProviderEnt'!$I:$I,$G$48:$G100,$H$48:$H100,$I$48:$I100,$G101:$H101)+1,0) -> 0 | J101: =COUNTIF($K$47:$K100,$K101) -> 0 | M101: DSRIP IGT Entity | O101: =IF(ISERROR(MATCH($Q101,'Provider IGTs'!$D$4:$D$346,0)),"Y","N") -> Y
G102: =IF($R102<>"",MAX('Contact Information_ProviderEnt'!$I:$I,$G$48:$G101,$H$48:$H101,$I$48:$I101)+1,0) -> 0 | H102: =IF($Z102<>"",MAX('Contact Information_ProviderEnt'!$I:$I,$G$48:$G101,$H$48:$H101,$I$48:$I101,$G102)+1,0) -> 0 | I102: =IF($AH102<>"",MAX('Contact Information_ProviderEnt'!$I:$I,$G$48:$G101,$H$48:$H101,$I$48:$I101,$G102:$H102)+1,0) -> 0 | J102: =COUNTIF($K$47:$K101,$K102) -> 0 | M102: DSRIP IGT Entity | O102: =IF(ISERROR(MATCH($Q102,'Provider IGTs'!$D$4:$D$346,0)),"Y","N") -> Y
G103: =IF($R103<>"",MAX('Contact Information_ProviderEnt'!$I:$I,$G$48:$G102,$H$48:$H102,$I$48:$I102)+1,0) -> 0 | H103: =IF($Z103<>"",MAX('Contact Information_ProviderEnt'!$I:$I,$G$48:$G102,$H$48:$H102,$I$48:$I102,$G103)+1,0) -> 0 | I103: =IF($AH103<>"",MAX('Contact Information_ProviderEnt'!$I:$I,$G$48:$G102,$H$48:$H102,$I$48:$I102,$G103:$H103)+1,0) -> 0 | J103: =COUNTIF($K$47:$K102,$K103) -> 0 | M103: DSRIP IGT Entity | O103: =IF(ISERROR(MATCH($Q103,'Provider IGTs'!$D$4:$D$346,0)),"Y","N") -> Y
G104: =IF($R104<>"",MAX('Contact Information_ProviderEnt'!$I:$I,$G$48:$G103,$H$48:$H103,$I$48:$I103)+1,0) -> 0 | H104: =IF($Z104<>"",MAX('Contact Information_ProviderEnt'!$I:$I,$G$48:$G103,$H$48:$H103,$I$48:$I103,$G104)+1,0) -> 0 | I104: =IF($AH104<>"",MAX('Contact Information_ProviderEnt'!$I:$I,$G$48:$G103,$H$48:$H103,$I$48:$I103,$G104:$H104)+1,0) -> 0 | J104: =COUNTIF($K$47:$K103,$K104) -> 0 | M104: DSRIP IGT Entity | O104: =IF(ISERROR(MATCH($Q104,'Provider IGTs'!$D$4:$D$346,0)),"Y","N") -> Y
G105: =IF($R105<>"",MAX('Contact Information_ProviderEnt'!$I:$I,$G$48:$G104,$H$48:$H104,$I$48:$I104)+1,0) -> 0 | H105: =IF($Z105<>"",MAX('Contact Information_ProviderEnt'!$I:$I,$G$48:$G104,$H$48:$H104,$I$48:$I104,$G105)+1,0) -> 0 | I105: =IF($AH105<>"",MAX('Contact Information_ProviderEnt'!$I:$I,$G$48:$G104,$H$48:$H104,$I$48:$I104,$G105:$H105)+1,0) -> 0 | J105: =COUNTIF($K$47:$K104,$K105) -> 0 | M105: DSRIP IGT Entity | O105: =IF(ISERROR(MATCH($Q105,'Provider IGTs'!$D$4:$D$346,0)),"Y","N") -> Y
G106: =IF($R106<>"",MAX('Contact Information_ProviderEnt'!$I:$I,$G$48:$G105,$H$48:$H105,$I$48:$I105)+1,0) -> 0 | H106: =IF($Z106<>"",MAX('Contact Information_ProviderEnt'!$I:$I,$G$48:$G105,$H$48:$H105,$I$48:$I105,$G106)+1,0) -> 0 | I106: =IF($AH106<>"",MAX('Contact Information_ProviderEnt'!$I:$I,$G$48:$G105,$H$48:$H105,$I$48:$I105,$G106:$H106)+1,0) -> 0 | J106: =COUNTIF($K$47:$K105,$K106) -> 0 | M106: DSRIP IGT Entity | O106: =IF(ISERROR(MATCH($Q106,'Provider IGTs'!$D$4:$D$346,0)),"Y","N") -> Y
G107: =IF($R107<>"",MAX('Contact Information_ProviderEnt'!$I:$I,$G$48:$G106,$H$48:$H106,$I$48:$I106)+1,0) -> 0 | H107: =IF($Z107<>"",MAX('Contact Information_ProviderEnt'!$I:$I,$G$48:$G106,$H$48:$H106,$I$48:$I106,$G107)+1,0) -> 0 | I107: =IF($AH107<>"",MAX('Contact Information_ProviderEnt'!$I:$I,$G$48:$G106,$H$48:$H106,$I$48:$I106,$G107:$H107)+1,0) -> 0 | J107: =COUNTIF($K$47:$K106,$K107) -> 0 | M107: DSRIP IGT Entity | O107: =IF(ISERROR(MATCH($Q107,'Provider IGTs'!$D$4:$D$346,0)),"Y","N") -> Y
G108: =IF($R108<>"",MAX('Contact Information_ProviderEnt'!$I:$I,$G$48:$G107,$H$48:$H107,$I$48:$I107)+1,0) -> 0 | H108: =IF($Z108<>"",MAX('Contact Information_ProviderEnt'!$I:$I,$G$48:$G107,$H$48:$H107,$I$48:$I107,$G108)+1,0) -> 0 | I108: =IF($AH108<>"",MAX('Contact Information_ProviderEnt'!$I:$I,$G$48:$G107,$H$48:$H107,$I$48:$I107,$G108:$H108)+1,0) -> 0 | J108: =COUNTIF($K$47:$K107,$K108) -> 0 | M108: DSRIP IGT Entity | O108: =IF(ISERROR(MATCH($Q108,'Provider IGTs'!$D$4:$D$346,0)),"Y","N") -> Y
G109: =IF($R109<>"",MAX('Contact Information_ProviderEnt'!$I:$I,$G$48:$G108,$H$48:$H108,$I$48:$I108)+1,0) -> 0 | H109: =IF($Z109<>"",MAX('Contact Information_ProviderEnt'!$I:$I,$G$48:$G108,$H$48:$H108,$I$48:$I108,$G109)+1,0) -> 0 | I109: =IF($AH109<>"",MAX('Contact Information_ProviderEnt'!$I:$I,$G$48:$G108,$H$48:$H108,$I$48:$I108,$G109:$H109)+1,0) -> 0 | J109: =COUNTIF($K$47:$K108,$K109) -> 0 | M109: DSRIP IGT Entity | O109: =IF(ISERROR(MATCH($Q109,'Provider IGTs'!$D$4:$D$346,0)),"Y","N") -> Y
G110: =IF($R110<>"",MAX('Contact Information_ProviderEnt'!$I:$I,$G$48:$G109,$H$48:$H109,$I$48:$I109)+1,0) -> 0 | H110: =IF($Z110<>"",MAX('Contact Information_ProviderEnt'!$I:$I,$G$48:$G109,$H$48:$H109,$I$48:$I109,$G110)+1,0) -> 0 | I110: =IF($AH110<>"",MAX('Contact Information_ProviderEnt'!$I:$I,$G$48:$G109,$H$48:$H109,$I$48:$I109,$G110:$H110)+1,0) -> 0 | J110: =COUNTIF($K$47:$K109,$K110) -> 0 | M110: DSRIP IGT Entity | O110: =IF(ISERROR(MATCH($Q110,'Provider IGTs'!$D$4:$D$346,0)),"Y","N") -> Y
G111: =IF($R111<>"",MAX('Contact Information_ProviderEnt'!$I:$I,$G$48:$G110,$H$48:$H110,$I$48:$I110)+1,0) -> 0 | H111: =IF($Z111<>"",MAX('Contact Information_ProviderEnt'!$I:$I,$G$48:$G110,$H$48:$H110,$I$48:$I110,$G111)+1,0) -> 0 | I111: =IF($AH111<>"",MAX('Contact Information_ProviderEnt'!$I:$I,$G$48:$G110,$H$48:$H110,$I$48:$I110,$G111:$H111)+1,0) -> 0 | J111: =COUNTIF($K$47:$K110,$K111) -> 0 | M111: DSRIP IGT Entity | O111: =IF(ISERROR(MATCH($Q111,'Provider IGTs'!$D$4:$D$346,0)),"Y","N") -> Y
G112: =IF($R112<>"",MAX('Contact Information_ProviderEnt'!$I:$I,$G$48:$G111,$H$48:$H111,$I$48:$I111)+1,0) -> 0 | H112: =IF($Z112<>"",MAX('Contact Information_ProviderEnt'!$I:$I,$G$48:$G111,$H$48:$H111,$I$48:$I111,$G112)+1,0) -> 0 | I112: =IF($AH112<>"",MAX('Contact Information_ProviderEnt'!$I:$I,$G$48:$G111,$H$48:$H111,$I$48:$I111,$G112:$H112)+1,0) -> 0 | J112: =COUNTIF($K$47:$K111,$K112) -> 0 | M112: DSRIP IGT Entity | O112: =IF(ISERROR(MATCH($Q112,'Provider IGTs'!$D$4:$D$346,0)),"Y","N") -> Y
G113: =IF($R113<>"",MAX('Contact Information_ProviderEnt'!$I:$I,$G$48:$G112,$H$48:$H112,$I$48:$I112)+1,0) -> 0 | H113: =IF($Z113<>"",MAX('Contact Information_ProviderEnt'!$I:$I,$G$48:$G112,$H$48:$H112,$I$48:$I112,$G113)+1,0) -> 0 | I113: =IF($AH113<>"",MAX('Contact Information_ProviderEnt'!$I:$I,$G$48:$G112,$H$48:$H112,$I$48:$I112,$G113:$H113)+1,0) -> 0 | J113: =COUNTIF($K$47:$K112,$K113) -> 0 | M113: DSRIP IGT Entity | O113: =IF(ISERROR(MATCH($Q113,'Provider IGTs'!$D$4:$D$346,0)),"Y","N") -> Y
G114: =IF($R114<>"",MAX('Contact Information_ProviderEnt'!$I:$I,$G$48:$G113,$H$48:$H113,$I$48:$I113)+1,0) -> 0 | H114: =IF($Z114<>"",MAX('Contact Information_ProviderEnt'!$I:$I,$G$48:$G113,$H$48:$H113,$I$48:$I113,$G114)+1,0) -> 0 | I114: =IF($AH114<>"",MAX('Contact Information_ProviderEnt'!$I:$I,$G$48:$G113,$H$48:$H113,$I$48:$I113,$G114:$H114)+1,0) -> 0 | J114: =COUNTIF($K$47:$K113,$K114) -> 0 | M114: DSRIP IGT Entity | O114: =IF(ISERROR(MATCH($Q114,'Provider IGTs'!$D$4:$D$346,0)),"Y","N") -> Y
G115: =IF($R115<>"",MAX('Contact Information_ProviderEnt'!$I:$I,$G$48:$G114,$H$48:$H114,$I$48:$I114)+1,0) -> 0 | H115: =IF($Z115<>"",MAX('Contact Information_ProviderEnt'!$I:$I,$G$48:$G114,$H$48:$H114,$I$48:$I114,$G115)+1,0) -> 0 | I115: =IF($AH115<>"",MAX('Contact Information_ProviderEnt'!$I:$I,$G$48:$G114,$H$48:$H114,$I$48:$I114,$G115:$H115)+1,0) -> 0 | J115: =COUNTIF($K$47:$K114,$K115) -> 0 | M115: DSRIP IGT Entity | O115: =IF(ISERROR(MATCH($Q115,'Provider IGTs'!$D$4:$D$346,0)),"Y","N") -> Y
G116: =IF($R116<>"",MAX('Contact Information_ProviderEnt'!$I:$I,$G$48:$G115,$H$48:$H115,$I$48:$I115)+1,0) -> 0 | H116: =IF($Z116<>"",MAX('Contact Information_ProviderEnt'!$I:$I,$G$48:$G115,$H$48:$H115,$I$48:$I115,$G116)+1,0) -> 0 | I116: =IF($AH116<>"",MAX('Contact Information_ProviderEnt'!$I:$I,$G$48:$G115,$H$48:$H115,$I$48:$I115,$G116:$H116)+1,0) -> 0 | J116: =COUNTIF($K$47:$K115,$K116) -> 0 | M116: DSRIP IGT Entity | O116: =IF(ISERROR(MATCH($Q116,'Provider IGTs'!$D$4:$D$346,0)),"Y","N") -> Y
G117: =IF($R117<>"",MAX('Contact Information_ProviderEnt'!$I:$I,$G$48:$G116,$H$48:$H116,$I$48:$I116)+1,0) -> 0 | H117: =IF($Z117<>"",MAX('Contact Information_ProviderEnt'!$I:$I,$G$48:$G116,$H$48:$H116,$I$48:$I116,$G117)+1,0) -> 0 | I117: =IF($AH117<>"",MAX('Contact Information_ProviderEnt'!$I:$I,$G$48:$G116,$H$48:$H116,$I$48:$I116,$G117:$H117)+1,0) -> 0 | J117: =COUNTIF($K$47:$K116,$K117) -> 0 | M117: DSRIP IGT Entity | O117: =IF(ISERROR(MATCH($Q117,'Provider IGTs'!$D$4:$D$346,0)),"Y","N") -> Y
G118: =IF($R118<>"",MAX('Contact Information_ProviderEnt'!$I:$I,$G$48:$G117,$H$48:$H117,$I$48:$I117)+1,0) -> 0 | H118: =IF($Z118<>"",MAX('Contact Information_ProviderEnt'!$I:$I,$G$48:$G117,$H$48:$H117,$I$48:$I117,$G118)+1,0) -> 0 | I118: =IF($AH118<>"",MAX('Contact Information_ProviderEnt'!$I:$I,$G$48:$G117,$H$48:$H117,$I$48:$I117,$G118:$H118)+1,0) -> 0 | J118: =COUNTIF($K$47:$K117,$K118) -> 0 | M118: DSRIP IGT Entity | O118: =IF(ISERROR(MATCH($Q118,'Provider IGTs'!$D$4:$D$346,0)),"Y","N") -> Y
G119: =IF($R119<>"",MAX('Contact Information_ProviderEnt'!$I:$I,$G$48:$G118,$H$48:$H118,$I$48:$I118)+1,0) -> 0 | H119: =IF($Z119<>"",MAX('Contact Information_ProviderEnt'!$I:$I,$G$48:$G118,$H$48:$H118,$I$48:$I118,$G119)+1,0) -> 0 | I119: =IF($AH119<>"",MAX('Contact Information_ProviderEnt'!$I:$I,$G$48:$G118,$H$48:$H118,$I$48:$I118,$G119:$H119)+1,0) -> 0 | J119: =COUNTIF($K$47:$K118,$K119) -> 0 | M119: DSRIP IGT Entity | O119: =IF(ISERROR(MATCH($Q119,'Provider IGTs'!$D$4:$D$346,0)),"Y","N") -> Y
G120: =IF($R120<>"",MAX('Contact Information_ProviderEnt'!$I:$I,$G$48:$G119,$H$48:$H119,$I$48:$I119)+1,0) -> 0 | H120: =IF($Z120<>"",MAX('Contact Information_ProviderEnt'!$I:$I,$G$48:$G119,$H$48:$H119,$I$48:$I119,$G120)+1,0) -> 0 | I120: =IF($AH120<>"",MAX('Contact Information_ProviderEnt'!$I:$I,$G$48:$G119,$H$48:$H119,$I$48:$I119,$G120:$H120)+1,0) -> 0 | J120: =COUNTIF($K$47:$K119,$K120) -> 0 | M120: DSRIP IGT Entity | O120: =IF(ISERROR(MATCH($Q120,'Provider IGTs'!$D$4:$D$346,0)),"Y","N") -> Y
G121: =IF($R121<>"",MAX('Contact Information_ProviderEnt'!$I:$I,$G$48:$G120,$H$48:$H120,$I$48:$I120)+1,0) -> 0 | H121: =IF($Z121<>"",MAX('Contact Information_ProviderEnt'!$I:$I,$G$48:$G120,$H$48:$H120,$I$48:$I120,$G121)+1,0) -> 0 | I121: =IF($AH121<>"",MAX('Contact Information_ProviderEnt'!$I:$I,$G$48:$G120,$H$48:$H120,$I$48:$I120,$G121:$H121)+1,0) -> 0 | J121: =COUNTIF($K$47:$K120,$K121) -> 0 | M121: DSRIP IGT Entity | O121: =IF(ISERROR(MATCH($Q121,'Provider IGTs'!$D$4:$D$346,0)),"Y","N") -> Y
G122: =IF($R122<>"",MAX('Contact Information_ProviderEnt'!$I:$I,$G$48:$G121,$H$48:$H121,$I$48:$I121)+1,0) -> 0 | H122: =IF($Z122<>"",MAX('Contact Information_ProviderEnt'!$I:$I,$G$48:$G121,$H$48:$H121,$I$48:$I121,$G122)+1,0) -> 0 | I122: =IF($AH122<>"",MAX('Contact Information_ProviderEnt'!$I:$I,$G$48:$G121,$H$48:$H121,$I$48:$I121,$G122:$H122)+1,0) -> 0 | J122: =COUNTIF($K$47:$K121,$K122) -> 0 | M122: DSRIP IGT Entity | O122: =IF(ISERROR(MATCH($Q122,'Provider IGTs'!$D$4:$D$346,0)),"Y","N") -> Y
G123: =IF($R123<>"",MAX('Contact Information_ProviderEnt'!$I:$I,$G$48:$G122,$H$48:$H122,$I$48:$I122)+1,0) -> 0 | H123: =IF($Z123<>"",MAX('Contact Information_ProviderEnt'!$I:$I,$G$48:$G122,$H$48:$H122,$I$48:$I122,$G123)+1,0) -> 0 | I123: =IF($AH123<>"",MAX('Contact Information_ProviderEnt'!$I:$I,$G$48:$G122,$H$48:$H122,$I$48:$I122,$G123:$H123)+1,0) -> 0 | J123: =COUNTIF($K$47:$K122,$K123) -> 0 | M123: DSRIP IGT Entity | O123: =IF(ISERROR(MATCH($Q123,'Provider IGTs'!$D$4:$D$346,0)),"Y","N") -> Y
G124: =IF($R124<>"",MAX('Contact Information_ProviderEnt'!$I:$I,$G$48:$G123,$H$48:$H123,$I$48:$I123)+1,0) -> 0 | H124: =IF($Z124<>"",MAX('Contact Information_ProviderEnt'!$I:$I,$G$48:$G123,$H$48:$H123,$I$48:$I123,$G124)+1,0) -> 0 | I124: =IF($AH124<>"",MAX('Contact Information_ProviderEnt'!$I:$I,$G$48:$G123,$H$48:$H123,$I$48:$I123,$G124:$H124)+1,0) -> 0 | J124: =COUNTIF($K$47:$K123,$K124) -> 0 | M124: DSRIP IGT Entity | O124: =IF(ISERROR(MATCH($Q124,'Provider IGTs'!$D$4:$D$346,0)),"Y","N") -> Y
G125: =IF($R125<>"",MAX('Contact Information_ProviderEnt'!$I:$I,$G$48:$G124,$H$48:$H124,$I$48:$I124)+1,0) -> 0 | H125: =IF($Z125<>"",MAX('Contact Information_ProviderEnt'!$I:$I,$G$48:$G124,$H$48:$H124,$I$48:$I124,$G125)+1,0) -> 0 | I125: =IF($AH125<>"",MAX('Contact Information_ProviderEnt'!$I:$I,$G$48:$G124,$H$48:$H124,$I$48:$I124,$G125:$H125)+1,0) -> 0 | J125: =COUNTIF($K$47:$K124,$K125) -> 0 | M125: DSRIP IGT Entity | O125: =IF(ISERROR(MATCH($Q125,'Provider IGTs'!$D$4:$D$346,0)),"Y","N") -> Y
G126: =IF($R126<>"",MAX('Contact Information_ProviderEnt'!$I:$I,$G$48:$G125,$H$48:$H125,$I$48:$I125)+1,0) -> 0 | H126: =IF($Z126<>"",MAX('Contact Information_ProviderEnt'!$I:$I,$G$48:$G125,$H$48:$H125,$I$48:$I125,$G126)+1,0) -> 0 | I126: =IF($AH126<>"",MAX('Contact Information_ProviderEnt'!$I:$I,$G$48:$G125,$H$48:$H125,$I$48:$I125,$G126:$H126)+1,0) -> 0 | J126: =COUNTIF($K$47:$K125,$K126) -> 0 | M126: DSRIP IGT Entity | O126: =IF(ISERROR(MATCH($Q126,'Provider IGTs'!$D$4:$D$346,0)),"Y","N") -> Y
G127: =IF($R127<>"",MAX('Contact Information_ProviderEnt'!$I:$I,$G$48:$G126,$H$48:$H126,$I$48:$I126)+1,0) -> 0 | H127: =IF($Z127<>"",MAX('Contact Information_ProviderEnt'!$I:$I,$G$48:$G126,$H$48:$H126,$I$48:$I126,$G127)+1,0) -> 0 | I127: =IF($AH127<>"",MAX('Contact Information_ProviderEnt'!$I:$I,$G$48:$G126,$H$48:$H126,$I$48:$I126,$G127:$H127)+1,0) -> 0 | J127: =COUNTIF($K$47:$K126,$K127) -> 0 | M127: DSRIP IGT Entity | O127: =IF(ISERROR(MATCH($Q127,'Provider IGTs'!$D$4:$D$346,0)),"Y","N") -> Y
G128: =IF($R128<>"",MAX('Contact Information_ProviderEnt'!$I:$I,$G$48:$G127,$H$48:$H127,$I$48:$I127)+1,0) -> 0 | H128: =IF($Z128<>"",MAX('Contact Information_ProviderEnt'!$I:$I,$G$48:$G127,$H$48:$H127,$I$48:$I127,$G128)+1,0) -> 0 | I128: =IF($AH128<>"",MAX('Contact Information_ProviderEnt'!$I:$I,$G$48:$G127,$H$48:$H127,$I$48:$I127,$G128:$H128)+1,0) -> 0 | J128: =COUNTIF($K$47:$K127,$K128) -> 0 | M128: DSRIP IGT Entity | O128: =IF(ISERROR(MATCH($Q128,'Provider IGTs'!$D$4:$D$346,0)),"Y","N") -> Y
G129: =IF($R129<>"",MAX('Contact Information_ProviderEnt'!$I:$I,$G$48:$G128,$H$48:$H128,$I$48:$I128)+1,0) -> 0 | H129: =IF($Z129<>"",MAX('Contact Information_ProviderEnt'!$I:$I,$G$48:$G128,$H$48:$H128,$I$48:$I128,$G129)+1,0) -> 0 | I129: =IF($AH129<>"",MAX('Contact Information_ProviderEnt'!$I:$I,$G$48:$G128,$H$48:$H128,$I$48:$I128,$G129:$H129)+1,0) -> 0 | J129: =COUNTIF($K$47:$K128,$K129) -> 0 | M129: DSRIP IGT Entity | O129: =IF(ISERROR(MATCH($Q129,'Provider IGTs'!$D$4:$D$346,0)),"Y","N") -> Y
G130: =IF($R130<>"",MAX('Contact Information_ProviderEnt'!$I:$I,$G$48:$G129,$H$48:$H129,$I$48:$I129)+1,0) -> 0 | H130: =IF($Z130<>"",MAX('Contact Information_ProviderEnt'!$I:$I,$G$48:$G129,$H$48:$H129,$I$48:$I129,$G130)+1,0) -> 0 | I130: =IF($AH130<>"",MAX('Contact Information_ProviderEnt'!$I:$I,$G$48:$G129,$H$48:$H129,$I$48:$I129,$G130:$H130)+1,0) -> 0 | J130: =COUNTIF($K$47:$K129,$K130) -> 0 | M130: DSRIP IGT Entity | O130: =IF(ISERROR(MATCH($Q130,'Provider IGTs'!$D$4:$D$346,0)),"Y","N") -> Y
G131: =IF($R131<>"",MAX('Contact Information_ProviderEnt'!$I:$I,$G$48:$G130,$H$48:$H130,$I$48:$I130)+1,0) -> 0 | H131: =IF($Z131<>"",MAX('Contact Information_ProviderEnt'!$I:$I,$G$48:$G130,$H$48:$H130,$I$48:$I130,$G131)+1,0) -> 0 | I131: =IF($AH131<>"",MAX('Contact Information_ProviderEnt'!$I:$I,$G$48:$G130,$H$48:$H130,$I$48:$I130,$G131:$H131)+1,0) -> 0 | J131: =COUNTIF($K$47:$K130,$K131) -> 0 | M131: DSRIP IGT Entity | O131: =IF(ISERROR(MATCH($Q131,'Provider IGTs'!$D$4:$D$346,0)),"Y","N") -> Y
G132: =IF($R132<>"",MAX('Contact Information_ProviderEnt'!$I:$I,$G$48:$G131,$H$48:$H131,$I$48:$I131)+1,0) -> 0 | H132: =IF($Z132<>"",MAX('Contact Information_ProviderEnt'!$I:$I,$G$48:$G131,$H$48:$H131,$I$48:$I131,$G132)+1,0) -> 0 | I132: =IF($AH132<>"",MAX('Contact Information_ProviderEnt'!$I:$I,$G$48:$G131,$H$48:$H131,$I$48:$I131,$G132:$H132)+1,0) -> 0 | J132: =COUNTIF($K$47:$K131,$K132) -> 0 | M132: DSRIP IGT Entity | O132: =IF(ISERROR(MATCH($Q132,'Provider IGTs'!$D$4:$D$346,0)),"Y","N") -> Y
G133: =IF($R133<>"",MAX('Contact Information_ProviderEnt'!$I:$I,$G$48:$G132,$H$48:$H132,$I$48:$I132)+1,0) -> 0 | H133: =IF($Z133<>"",MAX('Contact Information_ProviderEnt'!$I:$I,$G$48:$G132,$H$48:$H132,$I$48:$I132,$G133)+1,0) -> 0 | I133: =IF($AH133<>"",MAX('Contact Information_ProviderEnt'!$I:$I,$G$48:$G132,$H$48:$H132,$I$48:$I132,$G133:$H133)+1,0) -> 0 | J133: =COUNTIF($K$47:$K132,$K133) -> 0 | M133: DSRIP IGT Entity | O133: =IF(ISERROR(MATCH($Q133,'Provider IGTs'!$D$4:$D$346,0)),"Y","N") -> Y
G134: =IF($R134<>"",MAX('Contact Information_ProviderEnt'!$I:$I,$G$48:$G133,$H$48:$H133,$I$48:$I133)+1,0) -> 0 | H134: =IF($Z134<>"",MAX('Contact Information_ProviderEnt'!$I:$I,$G$48:$G133,$H$48:$H133,$I$48:$I133,$G134)+1,0) -> 0 | I134: =IF($AH134<>"",MAX('Contact Information_ProviderEnt'!$I:$I,$G$48:$G133,$H$48:$H133,$I$48:$I133,$G134:$H134)+1,0) -> 0 | J134: =COUNTIF($K$47:$K133,$K134) -> 0 | M134: DSRIP IGT Entity | O134: =IF(ISERROR(MATCH($Q134,'Provider IGTs'!$D$4:$D$346,0)),"Y","N") -> Y
G135: =IF($R135<>"",MAX('Contact Information_ProviderEnt'!$I:$I,$G$48:$G134,$H$48:$H134,$I$48:$I134)+1,0) -> 0 | H135: =IF($Z135<>"",MAX('Contact Information_ProviderEnt'!$I:$I,$G$48:$G134,$H$48:$H134,$I$48:$I134,$G135)+1,0) -> 0 | I135: =IF($AH135<>"",MAX('Contact Information_ProviderEnt'!$I:$I,$G$48:$G134,$H$48:$H134,$I$48:$I134,$G135:$H135)+1,0) -> 0 | J135: =COUNTIF($K$47:$K134,$K135) -> 0 | M135: DSRIP IGT Entity | O135: =IF(ISERROR(MATCH($Q135,'Provider IGTs'!$D$4:$D$346,0)),"Y","N") -> Y
G136: =IF($R136<>"",MAX('Contact Information_ProviderEnt'!$I:$I,$G$48:$G135,$H$48:$H135,$I$48:$I135)+1,0) -> 0 | H136: =IF($Z136<>"",MAX('Contact Information_ProviderEnt'!$I:$I,$G$48:$G135,$H$48:$H135,$I$48:$I135,$G136)+1,0) -> 0 | I136: =IF($AH136<>"",MAX('Contact Information_ProviderEnt'!$I:$I,$G$48:$G135,$H$48:$H135,$I$48:$I135,$G136:$H136)+1,0) -> 0 | J136: =COUNTIF($K$47:$K135,$K136) -> 0 | M136: DSRIP IGT Entity | O136: =IF(ISERROR(MATCH($Q136,'Provider IGTs'!$D$4:$D$346,0)),"Y","N") -> Y
G137: =IF($R137<>"",MAX('Contact Information_ProviderEnt'!$I:$I,$G$48:$G136,$H$48:$H136,$I$48:$I136)+1,0) -> 0 | H137: =IF($Z137<>"",MAX('Contact Information_ProviderEnt'!$I:$I,$G$48:$G136,$H$48:$H136,$I$48:$I136,$G137)+1,0) -> 0 | I137: =IF($AH137<>"",MAX('Contact Information_ProviderEnt'!$I:$I,$G$48:$G136,$H$48:$H136,$I$48:$I136,$G137:$H137)+1,0) -> 0 | J137: =COUNTIF($K$47:$K136,$K137) -> 0 | M137: DSRIP IGT Entity | O137: =IF(ISERROR(MATCH($Q137,'Provider IGTs'!$D$4:$D$346,0)),"Y","N") -> Y
G138: =IF($R138<>"",MAX('Contact Information_ProviderEnt'!$I:$I,$G$48:$G137,$H$48:$H137,$I$48:$I137)+1,0) -> 0 | H138: =IF($Z138<>"",MAX('Contact Information_ProviderEnt'!$I:$I,$G$48:$G137,$H$48:$H137,$I$48:$I137,$G138)+1,0) -> 0 | I138: =IF($AH138<>"",MAX('Contact Information_ProviderEnt'!$I:$I,$G$48:$G137,$H$48:$H137,$I$48:$I137,$G138:$H138)+1,0) -> 0 | J138: =COUNTIF($K$47:$K137,$K138) -> 0 | M138: DSRIP IGT Entity | O138: =IF(ISERROR(MATCH($Q138,'Provider IGTs'!$D$4:$D$346,0)),"Y","N") -> Y
G139: =IF($R139<>"",MAX('Contact Information_ProviderEnt'!$I:$I,$G$48:$G138,$H$48:$H138,$I$48:$I138)+1,0) -> 0 | H139: =IF($Z139<>"",MAX('Contact Information_ProviderEnt'!$I:$I,$G$48:$G138,$H$48:$H138,$I$48:$I138,$G139)+1,0) -> 0 | I139: =IF($AH139<>"",MAX('Contact Information_ProviderEnt'!$I:$I,$G$48:$G138,$H$48:$H138,$I$48:$I138,$G139:$H139)+1,0) -> 0 | J139: =COUNTIF($K$47:$K138,$K139) -> 0 | M139: DSRIP IGT Entity | O139: =IF(ISERROR(MATCH($Q139,'Provider IGTs'!$D$4:$D$346,0)),"Y","N") -> Y
G140: =IF($R140<>"",MAX('Contact Information_ProviderEnt'!$I:$I,$G$48:$G139,$H$48:$H139,$I$48:$I139)+1,0) -> 0 | H140: =IF($Z140<>"",MAX('Contact Information_ProviderEnt'!$I:$I,$G$48:$G139,$H$48:$H139,$I$48:$I139,$G140)+1,0) -> 0 | I140: =IF($AH140<>"",MAX('Contact Information_ProviderEnt'!$I:$I,$G$48:$G139,$H$48:$H139,$I$48:$I139,$G140:$H140)+1,0) -> 0 | J140: =COUNTIF($K$47:$K139,$K140) -> 0 | M140: DSRIP IGT Entity | O140: =IF(ISERROR(MATCH($Q140,'Provider IGTs'!$D$4:$D$346,0)),"Y","N") -> Y
G141: =IF($R141<>"",MAX('Contact Information_ProviderEnt'!$I:$I,$G$48:$G140,$H$48:$H140,$I$48:$I140)+1,0) -> 0 | H141: =IF($Z141<>"",MAX('Contact Information_ProviderEnt'!$I:$I,$G$48:$G140,$H$48:$H140,$I$48:$I140,$G141)+1,0) -> 0 | I141: =IF($AH141<>"",MAX('Contact Information_ProviderEnt'!$I:$I,$G$48:$G140,$H$48:$H140,$I$48:$I140,$G141:$H141)+1,0) -> 0 | J141: =COUNTIF($K$47:$K140,$K141) -> 0 | M141: DSRIP IGT Entity | O141: =IF(ISERROR(MATCH($Q141,'Provider IGTs'!$D$4:$D$346,0)),"Y","N") -> Y
G142: =IF($R142<>"",MAX('Contact Information_ProviderEnt'!$I:$I,$G$48:$G141,$H$48:$H141,$I$48:$I141)+1,0) -> 0 | H142: =IF($Z142<>"",MAX('Contact Information_ProviderEnt'!$I:$I,$G$48:$G141,$H$48:$H141,$I$48:$I141,$G142)+1,0) -> 0 | I142: =IF($AH142<>"",MAX('Contact Information_ProviderEnt'!$I:$I,$G$48:$G141,$H$48:$H141,$I$48:$I141,$G142:$H142)+1,0) -> 0 | J142: =COUNTIF($K$47:$K141,$K142) -> 0 | M142: DSRIP IGT Entity | O142: =IF(ISERROR(MATCH($Q142,'Provider IGTs'!$D$4:$D$346,0)),"Y","N") -> Y
G143: =IF($R143<>"",MAX('Contact Information_ProviderEnt'!$I:$I,$G$48:$G142,$H$48:$H142,$I$48:$I142)+1,0) -> 0 | H143: =IF($Z143<>"",MAX('Contact Information_ProviderEnt'!$I:$I,$G$48:$G142,$H$48:$H142,$I$48:$I142,$G143)+1,0) -> 0 | I143: =IF($AH143<>"",MAX('Contact Information_ProviderEnt'!$I:$I,$G$48:$G142,$H$48:$H142,$I$48:$I142,$G143:$H143)+1,0) -> 0 | J143: =COUNTIF($K$47:$K142,$K143) -> 0 | M143: DSRIP IGT Entity | O143: =IF(ISERROR(MATCH($Q143,'Provider IGTs'!$D$4:$D$346,0)),"Y","N") -> Y
G144: =IF($R144<>"",MAX('Contact Information_ProviderEnt'!$I:$I,$G$48:$G143,$H$48:$H143,$I$48:$I143)+1,0) -> 0 | H144: =IF($Z144<>"",MAX('Contact Information_ProviderEnt'!$I:$I,$G$48:$G143,$H$48:$H143,$I$48:$I143,$G144)+1,0) -> 0 | I144: =IF($AH144<>"",MAX('Contact Information_ProviderEnt'!$I:$I,$G$48:$G143,$H$48:$H143,$I$48:$I143,$G144:$H144)+1,0) -> 0 | J144: =COUNTIF($K$47:$K143,$K144) -> 0 | M144: DSRIP IGT Entity | O144: =IF(ISERROR(MATCH($Q144,'Provider IGTs'!$D$4:$D$346,0)),"Y","N") -> Y
G145: =IF($R145<>"",MAX('Contact Information_ProviderEnt'!$I:$I,$G$48:$G144,$H$48:$H144,$I$48:$I144)+1,0) -> 0 | H145: =IF($Z145<>"",MAX('Contact Information_ProviderEnt'!$I:$I,$G$48:$G144,$H$48:$H144,$I$48:$I144,$G145)+1,0) -> 0 | I145: =IF($AH145<>"",MAX('Contact Information_ProviderEnt'!$I:$I,$G$48:$G144,$H$48:$H144,$I$48:$I144,$G145:$H145)+1,0) -> 0 | J145: =COUNTIF($K$47:$K144,$K145) -> 0 | M145: DSRIP IGT Entity | O145: =IF(ISERROR(MATCH($Q145,'Provider IGTs'!$D$4:$D$346,0)),"Y","N") -> Y
G146: =IF($R146<>"",MAX('Contact Information_ProviderEnt'!$I:$I,$G$48:$G145,$H$48:$H145,$I$48:$I145)+1,0) -> 0 | H146: =IF($Z146<>"",MAX('Contact Information_ProviderEnt'!$I:$I,$G$48:$G145,$H$48:$H145,$I$48:$I145,$G146)+1,0) -> 0 | I146: =IF($AH146<>"",MAX('Contact Information_ProviderEnt'!$I:$I,$G$48:$G145,$H$48:$H145,$I$48:$I145,$G146:$H146)+1,0) -> 0 | J146: =COUNTIF($K$47:$K145,$K146) -> 0 | M146: DSRIP IGT Entity | O146: =IF(ISERROR(MATCH($Q146,'Provider IGTs'!$D$4:$D$346,0)),"Y","N") -> Y
G147: =IF($R147<>"",MAX('Contact Information_ProviderEnt'!$I:$I,$G$48:$G146,$H$48:$H146,$I$48:$I146)+1,0) -> 0 | H147: =IF($Z147<>"",MAX('Contact Information_ProviderEnt'!$I:$I,$G$48:$G146,$H$48:$H146,$I$48:$I146,$G147)+1,0) -> 0 | I147: =IF($AH147<>"",MAX('Contact Information_ProviderEnt'!$I:$I,$G$48:$G146,$H$48:$H146,$I$48:$I146,$G147:$H147)+1,0) -> 0 | J147: =COUNTIF($K$47:$K146,$K147) -> 0 | M147: DSRIP IGT Entity | O147: =IF(ISERROR(MATCH($Q147,'Provider IGTs'!$D$4:$D$346,0)),"Y","N") -> Y
G148: =IF($R148<>"",MAX('Contact Information_ProviderEnt'!$I:$I,$G$48:$G147,$H$48:$H147,$I$48:$I147)+1,0) -> 0 | H148: =IF($Z148<>"",MAX('Contact Information_ProviderEnt'!$I:$I,$G$48:$G147,$H$48:$H147,$I$48:$I147,$G148)+1,0) -> 0 | I148: =IF($AH148<>"",MAX('Contact Information_ProviderEnt'!$I:$I,$G$48:$G147,$H$48:$H147,$I$48:$I147,$G148:$H148)+1,0) -> 0 | J148: =COUNTIF($K$47:$K147,$K148) -> 0 | M148: DSRIP IGT Entity | O148: =IF(ISERROR(MATCH($Q148,'Provider IGTs'!$D$4:$D$346,0)),"Y","N") -> Y
G149: =IF($R149<>"",MAX('Contact Information_ProviderEnt'!$I:$I,$G$48:$G148,$H$48:$H148,$I$48:$I148)+1,0) -> 0 | H149: =IF($Z149<>"",MAX('Contact Information_ProviderEnt'!$I:$I,$G$48:$G148,$H$48:$H148,$I$48:$I148,$G149)+1,0) -> 0 | I149: =IF($AH149<>"",MAX('Contact Information_ProviderEnt'!$I:$I,$G$48:$G148,$H$48:$H148,$I$48:$I148,$G149:$H149)+1,0) -> 0 | J149: =COUNTIF($K$47:$K148,$K149) -> 0 | M149: DSRIP IGT Entity | O149: =IF(ISERROR(MATCH($Q149,'Provider IGTs'!$D$4:$D$346,0)),"Y","N") -> Y
G150: =IF($R150<>"",MAX('Contact Information_ProviderEnt'!$I:$I,$G$48:$G149,$H$48:$H149,$I$48:$I149)+1,0) -> 0 | H150: =IF($Z150<>"",MAX('Contact Information_ProviderEnt'!$I:$I,$G$48:$G149,$H$48:$H149,$I$48:$I149,$G150)+1,0) -> 0 | I150: =IF($AH150<>"",MAX('Contact Information_ProviderEnt'!$I:$I,$G$48:$G149,$H$48:$H149,$I$48:$I149,$G150:$H150)+1,0) -> 0 | J150: =COUNTIF($K$47:$K149,$K150) -> 0 | M150: DSRIP IGT Entity | O150: =IF(ISERROR(MATCH($Q150,'Provider IGTs'!$D$4:$D$346,0)),"Y","N") -> Y
G151: =IF($R151<>"",MAX('Contact Information_ProviderEnt'!$I:$I,$G$48:$G150,$H$48:$H150,$I$48:$I150)+1,0) -> 0 | H151: =IF($Z151<>"",MAX('Contact Information_ProviderEnt'!$I:$I,$G$48:$G150,$H$48:$H150,$I$48:$I150,$G151)+1,0) -> 0 | I151: =IF($AH151<>"",MAX('Contact Information_ProviderEnt'!$I:$I,$G$48:$G150,$H$48:$H150,$I$48:$I150,$G151:$H151)+1,0) -> 0 | J151: =COUNTIF($K$47:$K150,$K151) -> 0 | M151: DSRIP IGT Entity | O151: =IF(ISERROR(MATCH($Q151,'Provider IGTs'!$D$4:$D$346,0)),"Y","N") -> Y
G152: =IF($R152<>"",MAX('Contact Information_ProviderEnt'!$I:$I,$G$48:$G151,$H$48:$H151,$I$48:$I151)+1,0) -> 0 | H152: =IF($Z152<>"",MAX('Contact Information_ProviderEnt'!$I:$I,$G$48:$G151,$H$48:$H151,$I$48:$I151,$G152)+1,0) -> 0 | I152: =IF($AH152<>"",MAX('Contact Information_ProviderEnt'!$I:$I,$G$48:$G151,$H$48:$H151,$I$48:$I151,$G152:$H152)+1,0) -> 0 | J152: =COUNTIF($K$47:$K151,$K152) -> 0 | M152: DSRIP IGT Entity | O152: =IF(ISERROR(MATCH($Q152,'Provider IGTs'!$D$4:$D$346,0)),"Y","N") -> Y
G153: =IF($R153<>"",MAX('Contact Information_ProviderEnt'!$I:$I,$G$48:$G152,$H$48:$H152,$I$48:$I152)+1,0) -> 0 | H153: =IF($Z153<>"",MAX('Contact Information_ProviderEnt'!$I:$I,$G$48:$G152,$H$48:$H152,$I$48:$I152,$G153)+1,0) -> 0 | I153: =IF($AH153<>"",MAX('Contact Information_ProviderEnt'!$I:$I,$G$48:$G152,$H$48:$H152,$I$48:$I152,$G153:$H153)+1,0) -> 0 | J153: =COUNTIF($K$47:$K152,$K153) -> 0 | M153: DSRIP IGT Entity | O153: =IF(ISERROR(MATCH($Q153,'Provider IGTs'!$D$4:$D$346,0)),"Y","N") -> Y
G154: =IF($R154<>"",MAX('Contact Information_ProviderEnt'!$I:$I,$G$48:$G153,$H$48:$H153,$I$48:$I153)+1,0) -> 0 | H154: =IF($Z154<>"",MAX('Contact Information_ProviderEnt'!$I:$I,$G$48:$G153,$H$48:$H153,$I$48:$I153,$G154)+1,0) -> 0 | I154: =IF($AH154<>"",MAX('Contact Information_ProviderEnt'!$I:$I,$G$48:$G153,$H$48:$H153,$I$48:$I153,$G154:$H154)+1,0) -> 0 | J154: =COUNTIF($K$47:$K153,$K154) -> 0 | M154: DSRIP IGT Entity | O154: =IF(ISERROR(MATCH($Q154,'Provider IGTs'!$D$4:$D$346,0)),"Y","N") -> Y
G155: =IF($R155<>"",MAX('Contact Information_ProviderEnt'!$I:$I,$G$48:$G154,$H$48:$H154,$I$48:$I154)+1,0) -> 0 | H155: =IF($Z155<>"",MAX('Contact Information_ProviderEnt'!$I:$I,$G$48:$G154,$H$48:$H154,$I$48:$I154,$G155)+1,0) -> 0 | I155: =IF($AH155<>"",MAX('Contact Information_ProviderEnt'!$I:$I,$G$48:$G154,$H$48:$H154,$I$48:$I154,$G155:$H155)+1,0) -> 0 | J155: =COUNTIF($K$47:$K154,$K155) -> 0 | M155: DSRIP IGT Entity | O155: =IF(ISERROR(MATCH($Q155,'Provider IGTs'!$D$4:$D$346,0)),"Y","N") -> Y
G156: =IF($R156<>"",MAX('Contact Information_ProviderEnt'!$I:$I,$G$48:$G155,$H$48:$H155,$I$48:$I155)+1,0) -> 0 | H156: =IF($Z156<>"",MAX('Contact Information_ProviderEnt'!$I:$I,$G$48:$G155,$H$48:$H155,$I$48:$I155,$G156)+1,0) -> 0 | I156: =IF($AH156<>"",MAX('Contact Information_ProviderEnt'!$I:$I,$G$48:$G155,$H$48:$H155,$I$48:$I155,$G156:$H156)+1,0) -> 0 | J156: =COUNTIF($K$47:$K155,$K156) -> 0 | M156: DSRIP IGT Entity | O156: =IF(ISERROR(MATCH($Q156,'Provider IGTs'!$D$4:$D$346,0)),"Y","N") -> Y
G157: =IF($R157<>"",MAX('Contact Information_ProviderEnt'!$I:$I,$G$48:$G156,$H$48:$H156,$I$48:$I156)+1,0) -> 0 | H157: =IF($Z157<>"",MAX('Contact Information_ProviderEnt'!$I:$I,$G$48:$G156,$H$48:$H156,$I$48:$I156,$G157)+1,0) -> 0 | I157: =IF($AH157<>"",MAX('Contact Information_ProviderEnt'!$I:$I,$G$48:$G156,$H$48:$H156,$I$48:$I156,$G157:$H157)+1,0) -> 0 | J157: =COUNTIF($K$47:$K156,$K157) -> 0 | M157: DSRIP IGT Entity | O157: =IF(ISERROR(MATCH($Q157,'Provider IGTs'!$D$4:$D$346,0)),"Y","N") -> Y
G158: =IF($R158<>"",MAX('Contact Information_ProviderEnt'!$I:$I,$G$48:$G157,$H$48:$H157,$I$48:$I157)+1,0) -> 0 | H158: =IF($Z158<>"",MAX('Contact Information_ProviderEnt'!$I:$I,$G$48:$G157,$H$48:$H157,$I$48:$I157,$G158)+1,0) -> 0 | I158: =IF($AH158<>"",MAX('Contact Information_ProviderEnt'!$I:$I,$G$48:$G157,$H$48:$H157,$I$48:$I157,$G158:$H158)+1,0) -> 0 | J158: =COUNTIF($K$47:$K157,$K158) -> 0 | M158: DSRIP IGT Entity | O158: =IF(ISERROR(MATCH($Q158,'Provider IGTs'!$D$4:$D$346,0)),"Y","N") -> Y
G159: =IF($R159<>"",MAX('Contact Information_ProviderEnt'!$I:$I,$G$48:$G158,$H$48:$H158,$I$48:$I158)+1,0) -> 0 | H159: =IF($Z159<>"",MAX('Contact Information_ProviderEnt'!$I:$I,$G$48:$G158,$H$48:$H158,$I$48:$I158,$G159)+1,0) -> 0 | I159: =IF($AH159<>"",MAX('Contact Information_ProviderEnt'!$I:$I,$G$48:$G158,$H$48:$H158,$I$48:$I158,$G159:$H159)+1,0) -> 0 | J159: =COUNTIF($K$47:$K158,$K159) -> 0 | M159: DSRIP IGT Entity | O159: =IF(ISERROR(MATCH($Q159,'Provider IGTs'!$D$4:$D$346,0)),"Y","N") -> Y
G160: =IF($R160<>"",MAX('Contact Information_ProviderEnt'!$I:$I,$G$48:$G159,$H$48:$H159,$I$48:$I159)+1,0) -> 0 | H160: =IF($Z160<>"",MAX('Contact Information_ProviderEnt'!$I:$I,$G$48:$G159,$H$48:$H159,$I$48:$I159,$G160)+1,0) -> 0 | I160: =IF($AH160<>"",MAX('Contact Information_ProviderEnt'!$I:$I,$G$48:$G159,$H$48:$H159,$I$48:$I159,$G160:$H160)+1,0) -> 0 | J160: =COUNTIF($K$47:$K159,$K160) -> 0 | M160: DSRIP IGT Entity | O160: =IF(ISERROR(MATCH($Q160,'Provider IGTs'!$D$4:$D$346,0)),"Y","N") -> Y
G161: =IF($R161<>"",MAX('Contact Information_ProviderEnt'!$I:$I,$G$48:$G160,$H$48:$H160,$I$48:$I160)+1,0) -> 0 | H161: =IF($Z161<>"",MAX('Contact Information_ProviderEnt'!$I:$I,$G$48:$G160,$H$48:$H160,$I$48:$I160,$G161)+1,0) -> 0 | I161: =IF($AH161<>"",MAX('Contact Information_ProviderEnt'!$I:$I,$G$48:$G160,$H$48:$H160,$I$48:$I160,$G161:$H161)+1,0) -> 0 | J161: =COUNTIF($K$47:$K160,$K161) -> 0 | M161: DSRIP IGT Entity | O161: =IF(ISERROR(MATCH($Q161,'Provider IGTs'!$D$4:$D$346,0)),"Y","N") -> Y
G162: =IF($R162<>"",MAX('Contact Information_ProviderEnt'!$I:$I,$G$48:$G161,$H$48:$H161,$I$48:$I161)+1,0) -> 0 | H162: =IF($Z162<>"",MAX('Contact Information_ProviderEnt'!$I:$I,$G$48:$G161,$H$48:$H161,$I$48:$I161,$G162)+1,0) -> 0 | I162: =IF($AH162<>"",MAX('Contact Information_ProviderEnt'!$I:$I,$G$48:$G161,$H$48:$H161,$I$48:$I161,$G162:$H162)+1,0) -> 0 | J162: =COUNTIF($K$47:$K161,$K162) -> 0 | M162: DSRIP IGT Entity | O162: =IF(ISERROR(MATCH($Q162,'Provider IGTs'!$D$4:$D$346,0)),"Y","N") -> Y
G163: =IF($R163<>"",MAX('Contact Information_ProviderEnt'!$I:$I,$G$48:$G162,$H$48:$H162,$I$48:$I162)+1,0) -> 0 | H163: =IF($Z163<>"",MAX('Contact Information_ProviderEnt'!$I:$I,$G$48:$G162,$H$48:$H162,$I$48:$I162,$G163)+1,0) -> 0 | I163: =IF($AH163<>"",MAX('Contact Information_ProviderEnt'!$I:$I,$G$48:$G162,$H$48:$H162,$I$48:$I162,$G163:$H163)+1,0) -> 0 | J163: =COUNTIF($K$47:$K162,$K163) -> 0 | M163: DSRIP IGT Entity | O163: =IF(ISERROR(MATCH($Q163,'Provider IGTs'!$D$4:$D$346,0)),"Y","N") -> Y
G164: =IF($R164<>"",MAX('Contact Information_ProviderEnt'!$I:$I,$G$48:$G163,$H$48:$H163,$I$48:$I163)+1,0) -> 0 | H164: =IF($Z164<>"",MAX('Contact Information_ProviderEnt'!$I:$I,$G$48:$G163,$H$48:$H163,$I$48:$I163,$G164)+1,0) -> 0 | I164: =IF($AH164<>"",MAX('Contact Information_ProviderEnt'!$I:$I,$G$48:$G163,$H$48:$H163,$I$48:$I163,$G164:$H164)+1,0) -> 0 | J164: =COUNTIF($K$47:$K163,$K164) -> 0 | M164: DSRIP IGT Entity | O164: =IF(ISERROR(MATCH($Q164,'Provider IGTs'!$D$4:$D$346,0)),"Y","N") -> Y
G165: =IF($R165<>"",MAX('Contact Information_ProviderEnt'!$I:$I,$G$48:$G164,$H$48:$H164,$I$48:$I164)+1,0) -> 0 | H165: =IF($Z165<>"",MAX('Contact Information_ProviderEnt'!$I:$I,$G$48:$G164,$H$48:$H164,$I$48:$I164,$G165)+1,0) -> 0 | I165: =IF($AH165<>"",MAX('Contact Information_ProviderEnt'!$I:$I,$G$48:$G164,$H$48:$H164,$I$48:$I164,$G165:$H165)+1,0) -> 0 | J165: =COUNTIF($K$47:$K164,$K165) -> 0 | M165: DSRIP IGT Entity | O165: =IF(ISERROR(MATCH($Q165,'Provider IGTs'!$D$4:$D$346,0)),"Y","N") -> Y
G166: =IF($R166<>"",MAX('Contact Information_ProviderEnt'!$I:$I,$G$48:$G165,$H$48:$H165,$I$48:$I165)+1,0) -> 0 | H166: =IF($Z166<>"",MAX('Contact Information_ProviderEnt'!$I:$I,$G$48:$G165,$H$48:$H165,$I$48:$I165,$G166)+1,0) -> 0 | I166: =IF($AH166<>"",MAX('Contact Information_ProviderEnt'!$I:$I,$G$48:$G165,$H$48:$H165,$I$48:$I165,$G166:$H166)+1,0) -> 0 | J166: =COUNTIF($K$47:$K165,$K166) -> 0 | M166: DSRIP IGT Entity | O166: =IF(ISERROR(MATCH($Q166,'Provider IGTs'!$D$4:$D$346,0)),"Y","N") -> Y
G167: =IF($R167<>"",MAX('Contact Information_ProviderEnt'!$I:$I,$G$48:$G166,$H$48:$H166,$I$48:$I166)+1,0) -> 0 | H167: =IF($Z167<>"",MAX('Contact Information_ProviderEnt'!$I:$I,$G$48:$G166,$H$48:$H166,$I$48:$I166,$G167)+1,0) -> 0 | I167: =IF($AH167<>"",MAX('Contact Information_ProviderEnt'!$I:$I,$G$48:$G166,$H$48:$H166,$I$48:$I166,$G167:$H167)+1,0) -> 0 | J167: =COUNTIF($K$47:$K166,$K167) -> 0 | M167: DSRIP IGT Entity | O167: =IF(ISERROR(MATCH($Q167,'Provider IGTs'!$D$4:$D$346,0)),"Y","N") -> Y
G168: =IF($R168<>"",MAX('Contact Information_ProviderEnt'!$I:$I,$G$48:$G167,$H$48:$H167,$I$48:$I167)+1,0) -> 0 | H168: =IF($Z168<>"",MAX('Contact Information_ProviderEnt'!$I:$I,$G$48:$G167,$H$48:$H167,$I$48:$I167,$G168)+1,0) -> 0 | I168: =IF($AH168<>"",MAX('Contact Information_ProviderEnt'!$I:$I,$G$48:$G167,$H$48:$H167,$I$48:$I167,$G168:$H168)+1,0) -> 0 | J168: =COUNTIF($K$47:$K167,$K168) -> 0 | M168: DSRIP IGT Entity | O168: =IF(ISERROR(MATCH($Q168,'Provider IGTs'!$D$4:$D$346,0)),"Y","N") -> Y
G169: =IF($R169<>"",MAX('Contact Information_ProviderEnt'!$I:$I,$G$48:$G168,$H$48:$H168,$I$48:$I168)+1,0) -> 0 | H169: =IF($Z169<>"",MAX('Contact Information_ProviderEnt'!$I:$I,$G$48:$G168,$H$48:$H168,$I$48:$I168,$G169)+1,0) -> 0 | I169: =IF($AH169<>"",MAX('Contact Information_ProviderEnt'!$I:$I,$G$48:$G168,$H$48:$H168,$I$48:$I168,$G169:$H169)+1,0) -> 0 | J169: =COUNTIF($K$47:$K168,$K169) -> 0 | M169: DSRIP IGT Entity | O169: =IF(ISERROR(MATCH($Q169,'Provider IGTs'!$D$4:$D$346,0)),"Y","N") -> Y
G170: =IF($R170<>"",MAX('Contact Information_ProviderEnt'!$I:$I,$G$48:$G169,$H$48:$H169,$I$48:$I169)+1,0) -> 0 | H170: =IF($Z170<>"",MAX('Contact Information_ProviderEnt'!$I:$I,$G$48:$G169,$H$48:$H169,$I$48:$I169,$G170)+1,0) -> 0 | I170: =IF($AH170<>"",MAX('Contact Information_ProviderEnt'!$I:$I,$G$48:$G169,$H$48:$H169,$I$48:$I169,$G170:$H170)+1,0) -> 0 | J170: =COUNTIF($K$47:$K169,$K170) -> 0 | M170: DSRIP IGT Entity | O170: =IF(ISERROR(MATCH($Q170,'Provider IGTs'!$D$4:$D$346,0)),"Y","N") -> Y
G171: =IF($R171<>"",MAX('Contact Information_ProviderEnt'!$I:$I,$G$48:$G170,$H$48:$H170,$I$48:$I170)+1,0) -> 0 | H171: =IF($Z171<>"",MAX('Contact Information_ProviderEnt'!$I:$I,$G$48:$G170,$H$48:$H170,$I$48:$I170,$G171)+1,0) -> 0 | I171: =IF($AH171<>"",MAX('Contact Information_ProviderEnt'!$I:$I,$G$48:$G170,$H$48:$H170,$I$48:$I170,$G171:$H171)+1,0) -> 0 | J171: =COUNTIF($K$47:$K170,$K171) -> 0 | M171: DSRIP IGT Entity | O171: =IF(ISERROR(MATCH($Q171,'Provider IGTs'!$D$4:$D$346,0)),"Y","N") -> Y
G172: =IF($R172<>"",MAX('Contact Information_ProviderEnt'!$I:$I,$G$48:$G171,$H$48:$H171,$I$48:$I171)+1,0) -> 0 | H172: =IF($Z172<>"",MAX('Contact Information_ProviderEnt'!$I:$I,$G$48:$G171,$H$48:$H171,$I$48:$I171,$G172)+1,0) -> 0 | I172: =IF($AH172<>"",MAX('Contact Information_ProviderEnt'!$I:$I,$G$48:$G171,$H$48:$H171,$I$48:$I171,$G172:$H172)+1,0) -> 0 | J172: =COUNTIF($K$47:$K171,$K172) -> 0 | M172: DSRIP IGT Entity | O172: =IF(ISERROR(MATCH($Q172,'Provider IGTs'!$D$4:$D$346,0)),"Y","N") -> Y
G173: =IF($R173<>"",MAX('Contact Information_ProviderEnt'!$I:$I,$G$48:$G172,$H$48:$H172,$I$48:$I172)+1,0) -> 0 | H173: =IF($Z173<>"",MAX('Contact Information_ProviderEnt'!$I:$I,$G$48:$G172,$H$48:$H172,$I$48:$I172,$G173)+1,0) -> 0 | I173: =IF($AH173<>"",MAX('Contact Information_ProviderEnt'!$I:$I,$G$48:$G172,$H$48:$H172,$I$48:$I172,$G173:$H173)+1,0) -> 0 | J173: =COUNTIF($K$47:$K172,$K173) -> 0 | M173: DSRIP IGT Entity | O173: =IF(ISERROR(MATCH($Q173,'Provider IGTs'!$D$4:$D$346,0)),"Y","N") -> Y
G174: =IF($R174<>"",MAX('Contact Information_ProviderEnt'!$I:$I,$G$48:$G173,$H$48:$H173,$I$48:$I173)+1,0) -> 0 | H174: =IF($Z174<>"",MAX('Contact Information_ProviderEnt'!$I:$I,$G$48:$G173,$H$48:$H173,$I$48:$I173,$G174)+1,0) -> 0 | I174: =IF($AH174<>"",MAX('Contact Information_ProviderEnt'!$I:$I,$G$48:$G173,$H$48:$H173,$I$48:$I173,$G174:$H174)+1,0) -> 0 | J174: =COUNTIF($K$47:$K173,$K174) -> 0 | M174: DSRIP IGT Entity | O174: =IF(ISERROR(MATCH($Q174,'Provider IGTs'!$D$4:$D$346,0)),"Y","N") -> Y
G175: =IF($R175<>"",MAX('Contact Information_ProviderEnt'!$I:$I,$G$48:$G174,$H$48:$H174,$I$48:$I174)+1,0) -> 0 | H175: =IF($Z175<>"",MAX('Contact Information_ProviderEnt'!$I:$I,$G$48:$G174,$H$48:$H174,$I$48:$I174,$G175)+1,0) -> 0 | I175: =IF($AH175<>"",MAX('Contact Information_ProviderEnt'!$I:$I,$G$48:$G174,$H$48:$H174,$I$48:$I174,$G175:$H175)+1,0) -> 0 | J175: =COUNTIF($K$47:$K174,$K175) -> 0 | M175: DSRIP IGT Entity | O175: =IF(ISERROR(MATCH($Q175,'Provider IGTs'!$D$4:$D$346,0)),"Y","N") -> Y
G176: =IF($R176<>"",MAX('Contact Information_ProviderEnt'!$I:$I,$G$48:$G175,$H$48:$H175,$I$48:$I175)+1,0) -> 0 | H176: =IF($Z176<>"",MAX('Contact Information_ProviderEnt'!$I:$I,$G$48:$G175,$H$48:$H175,$I$48:$I175,$G176)+1,0) -> 0 | I176: =IF($AH176<>"",MAX('Contact Information_ProviderEnt'!$I:$I,$G$48:$G175,$H$48:$H175,$I$48:$I175,$G176:$H176)+1,0) -> 0 | J176: =COUNTIF($K$47:$K175,$K176) -> 0 | M176: DSRIP IGT Entity | O176: =IF(ISERROR(MATCH($Q176,'Provider IGTs'!$D$4:$D$346,0)),"Y","N") -> Y
G177: =IF($R177<>"",MAX('Contact Information_ProviderEnt'!$I:$I,$G$48:$G176,$H$48:$H176,$I$48:$I176)+1,0) -> 0 | H177: =IF($Z177<>"",MAX('Contact Information_ProviderEnt'!$I:$I,$G$48:$G176,$H$48:$H176,$I$48:$I176,$G177)+1,0) -> 0 | I177: =IF($AH177<>"",MAX('Contact Information_ProviderEnt'!$I:$I,$G$48:$G176,$H$48:$H176,$I$48:$I176,$G177:$H177)+1,0) -> 0 | J177: =COUNTIF($K$47:$K176,$K177) -> 0 | M177: DSRIP IGT Entity | O177: =IF(ISERROR(MATCH($Q177,'Provider IGTs'!$D$4:$D$346,0)),"Y","N") -> Y
G178: =IF($R178<>"",MAX('Contact Information_ProviderEnt'!$I:$I,$G$48:$G177,$H$48:$H177,$I$48:$I177)+1,0) -> 0 | H178: =IF($Z178<>"",MAX('Contact Information_ProviderEnt'!$I:$I,$G$48:$G177,$H$48:$H177,$I$48:$I177,$G178)+1,0) -> 0 | I178: =IF($AH178<>"",MAX('Contact Information_ProviderEnt'!$I:$I,$G$48:$G177,$H$48:$H177,$I$48:$I177,$G178:$H178)+1,0) -> 0 | J178: =COUNTIF($K$47:$K177,$K178) -> 0 | M178: DSRIP IGT Entity | O178: =IF(ISERROR(MATCH($Q178,'Provider IGTs'!$D$4:$D$346,0)),"Y","N") -> Y
G179: =IF($R179<>"",MAX('Contact Information_ProviderEnt'!$I:$I,$G$48:$G178,$H$48:$H178,$I$48:$I178)+1,0) -> 0 | H179: =IF($Z179<>"",MAX('Contact Information_ProviderEnt'!$I:$I,$G$48:$G178,$H$48:$H178,$I$48:$I178,$G179)+1,0) -> 0 | I179: =IF($AH179<>"",MAX('Contact Information_ProviderEnt'!$I:$I,$G$48:$G178,$H$48:$H178,$I$48:$I178,$G179:$H179)+1,0) -> 0 | J179: =COUNTIF($K$47:$K178,$K179) -> 0 | M179: DSRIP IGT Entity | O179: =IF(ISERROR(MATCH($Q179,'Provider IGTs'!$D$4:$D$346,0)),"Y","N") -> Y
G180: =IF($R180<>"",MAX('Contact Information_ProviderEnt'!$I:$I,$G$48:$G179,$H$48:$H179,$I$48:$I179)+1,0) -> 0 | H180: =IF($Z180<>"",MAX('Contact Information_ProviderEnt'!$I:$I,$G$48:$G179,$H$48:$H179,$I$48:$I179,$G180)+1,0) -> 0 | I180: =IF($AH180<>"",MAX('Contact Information_ProviderEnt'!$I:$I,$G$48:$G179,$H$48:$H179,$I$48:$I179,$G180:$H180)+1,0) -> 0 | J180: =COUNTIF($K$47:$K179,$K180) -> 0 | M180: DSRIP IGT Entity | O180: =IF(ISERROR(MATCH($Q180,'Provider IGTs'!$D$4:$D$346,0)),"Y","N") -> Y
G181: =IF($R181<>"",MAX('Contact Information_ProviderEnt'!$I:$I,$G$48:$G180,$H$48:$H180,$I$48:$I180)+1,0) -> 0 | H181: =IF($Z181<>"",MAX('Contact Information_ProviderEnt'!$I:$I,$G$48:$G180,$H$48:$H180,$I$48:$I180,$G181)+1,0) -> 0 | I181: =IF($AH181<>"",MAX('Contact Information_ProviderEnt'!$I:$I,$G$48:$G180,$H$48:$H180,$I$48:$I180,$G181:$H181)+1,0) -> 0 | J181: =COUNTIF($K$47:$K180,$K181) -> 0 | M181: DSRIP IGT Entity | O181: =IF(ISERROR(MATCH($Q181,'Provider IGTs'!$D$4:$D$346,0)),"Y","N") -> Y
G182: =IF($R182<>"",MAX('Contact Information_ProviderEnt'!$I:$I,$G$48:$G181,$H$48:$H181,$I$48:$I181)+1,0) -> 0 | H182: =IF($Z182<>"",MAX('Contact Information_ProviderEnt'!$I:$I,$G$48:$G181,$H$48:$H181,$I$48:$I181,$G182)+1,0) -> 0 | I182: =IF($AH182<>"",MAX('Contact Information_ProviderEnt'!$I:$I,$G$48:$G181,$H$48:$H181,$I$48:$I181,$G182:$H182)+1,0) -> 0 | J182: =COUNTIF($K$47:$K181,$K182) -> 0 | M182: DSRIP IGT Entity | O182: =IF(ISERROR(MATCH($Q182,'Provider IGTs'!$D$4:$D$346,0)),"Y","N") -> Y
G183: =IF($R183<>"",MAX('Contact Information_ProviderEnt'!$I:$I,$G$48:$G182,$H$48:$H182,$I$48:$I182)+1,0) -> 0 | H183: =IF($Z183<>"",MAX('Contact Information_ProviderEnt'!$I:$I,$G$48:$G182,$H$48:$H182,$I$48:$I182,$G183)+1,0) -> 0 | I183: =IF($AH183<>"",MAX('Contact Information_ProviderEnt'!$I:$I,$G$48:$G182,$H$48:$H182,$I$48:$I182,$G183:$H183)+1,0) -> 0 | J183: =COUNTIF($K$47:$K182,$K183) -> 0 | M183: DSRIP IGT Entity | O183: =IF(ISERROR(MATCH($Q183,'Provider IGTs'!$D$4:$D$346,0)),"Y","N") -> Y
G184: =IF($R184<>"",MAX('Contact Information_ProviderEnt'!$I:$I,$G$48:$G183,$H$48:$H183,$I$48:$I183)+1,0) -> 0 | H184: =IF($Z184<>"",MAX('Contact Information_ProviderEnt'!$I:$I,$G$48:$G183,$H$48:$H183,$I$48:$I183,$G184)+1,0) -> 0 | I184: =IF($AH184<>"",MAX('Contact Information_ProviderEnt'!$I:$I,$G$48:$G183,$H$48:$H183,$I$48:$I183,$G184:$H184)+1,0) -> 0 | J184: =COUNTIF($K$47:$K183,$K184) -> 0 | M184: DSRIP IGT Entity | O184: =IF(ISERROR(MATCH($Q184,'Provider IGTs'!$D$4:$D$346,0)),"Y","N") -> Y
G185: =IF($R185<>"",MAX('Contact Information_ProviderEnt'!$I:$I,$G$48:$G184,$H$48:$H184,$I$48:$I184)+1,0) -> 0 | H185: =IF($Z185<>"",MAX('Contact Information_ProviderEnt'!$I:$I,$G$48:$G184,$H$48:$H184,$I$48:$I184,$G185)+1,0) -> 0 | I185: =IF($AH185<>"",MAX('Contact Information_ProviderEnt'!$I:$I,$G$48:$G184,$H$48:$H184,$I$48:$I184,$G185:$H185)+1,0) -> 0 | J185: =COUNTIF($K$47:$K184,$K185) -> 0 | M185: DSRIP IGT Entity | O185: =IF(ISERROR(MATCH($Q185,'Provider IGTs'!$D$4:$D$346,0)),"Y","N") -> Y
G186: =IF($R186<>"",MAX('Contact Information_ProviderEnt'!$I:$I,$G$48:$G185,$H$48:$H185,$I$48:$I185)+1,0) -> 0 | H186: =IF($Z186<>"",MAX('Contact Information_ProviderEnt'!$I:$I,$G$48:$G185,$H$48:$H185,$I$48:$I185,$G186)+1,0) -> 0 | I186: =IF($AH186<>"",MAX('Contact Information_ProviderEnt'!$I:$I,$G$48:$G185,$H$48:$H185,$I$48:$I185,$G186:$H186)+1,0) -> 0 | J186: =COUNTIF($K$47:$K185,$K186) -> 0 | M186: DSRIP IGT Entity | O186: =IF(ISERROR(MATCH($Q186,'Provider IGTs'!$D$4:$D$346,0)),"Y","N") -> Y
G187: =IF($R187<>"",MAX('Contact Information_ProviderEnt'!$I:$I,$G$48:$G186,$H$48:$H186,$I$48:$I186)+1,0) -> 0 | H187: =IF($Z187<>"",MAX('Contact Information_ProviderEnt'!$I:$I,$G$48:$G186,$H$48:$H186,$I$48:$I186,$G187)+1,0) -> 0 | I187: =IF($AH187<>"",MAX('Contact Information_ProviderEnt'!$I:$I,$G$48:$G186,$H$48:$H186,$I$48:$I186,$G187:$H187)+1,0) -> 0 | J187: =COUNTIF($K$47:$K186,$K187) -> 0 | M187: DSRIP IGT Entity | O187: =IF(ISERROR(MATCH($Q187,'Provider IGTs'!$D$4:$D$346,0)),"Y","N") -> Y
G188: =IF($R188<>"",MAX('Contact Information_ProviderEnt'!$I:$I,$G$48:$G187,$H$48:$H187,$I$48:$I187)+1,0) -> 0 | H188: =IF($Z188<>"",MAX('Contact Information_ProviderEnt'!$I:$I,$G$48:$G187,$H$48:$H187,$I$48:$I187,$G188)+1,0) -> 0 | I188: =IF($AH188<>"",MAX('Contact Information_ProviderEnt'!$I:$I,$G$48:$G187,$H$48:$H187,$I$48:$I187,$G188:$H188)+1,0) -> 0 | J188: =COUNTIF($K$47:$K187,$K188) -> 0 | M188: DSRIP IGT Entity | O188: =IF(ISERROR(MATCH($Q188,'Provider IGTs'!$D$4:$D$346,0)),"Y","N") -> Y
G189: =IF($R189<>"",MAX('Contact Information_ProviderEnt'!$I:$I,$G$48:$G188,$H$48:$H188,$I$48:$I188)+1,0) -> 0 | H189: =IF($Z189<>"",MAX('Contact Information_ProviderEnt'!$I:$I,$G$48:$G188,$H$48:$H188,$I$48:$I188,$G189)+1,0) -> 0 | I189: =IF($AH189<>"",MAX('Contact Information_ProviderEnt'!$I:$I,$G$48:$G188,$H$48:$H188,$I$48:$I188,$G189:$H189)+1,0) -> 0 | J189: =COUNTIF($K$47:$K188,$K189) -> 0 | M189: DSRIP IGT Entity | O189: =IF(ISERROR(MATCH($Q189,'Provider IGTs'!$D$4:$D$346,0)),"Y","N") -> Y
G190: =IF($R190<>"",MAX('Contact Information_ProviderEnt'!$I:$I,$G$48:$G189,$H$48:$H189,$I$48:$I189)+1,0) -> 0 | H190: =IF($Z190<>"",MAX('Contact Information_ProviderEnt'!$I:$I,$G$48:$G189,$H$48:$H189,$I$48:$I189,$G190)+1,0) -> 0 | I190: =IF($AH190<>"",MAX('Contact Information_ProviderEnt'!$I:$I,$G$48:$G189,$H$48:$H189,$I$48:$I189,$G190:$H190)+1,0) -> 0 | J190: =COUNTIF($K$47:$K189,$K190) -> 0 | M190: DSRIP IGT Entity | O190: =IF(ISERROR(MATCH($Q190,'Provider IGTs'!$D$4:$D$346,0)),"Y","N") -> Y
G191: =IF($R191<>"",MAX('Contact Information_ProviderEnt'!$I:$I,$G$48:$G190,$H$48:$H190,$I$48:$I190)+1,0) -> 0 | H191: =IF($Z191<>"",MAX('Contact Information_ProviderEnt'!$I:$I,$G$48:$G190,$H$48:$H190,$I$48:$I190,$G191)+1,0) -> 0 | I191: =IF($AH191<>"",MAX('Contact Information_ProviderEnt'!$I:$I,$G$48:$G190,$H$48:$H190,$I$48:$I190,$G191:$H191)+1,0) -> 0 | J191: =COUNTIF($K$47:$K190,$K191) -> 0 | M191: DSRIP IGT Entity | O191: =IF(ISERROR(MATCH($Q191,'Provider IGTs'!$D$4:$D$346,0)),"Y","N") -> Y
G192: =IF($R192<>"",MAX('Contact Information_ProviderEnt'!$I:$I,$G$48:$G191,$H$48:$H191,$I$48:$I191)+1,0) -> 0 | H192: =IF($Z192<>"",MAX('Contact Information_ProviderEnt'!$I:$I,$G$48:$G191,$H$48:$H191,$I$48:$I191,$G192)+1,0) -> 0 | I192: =IF($AH192<>"",MAX('Contact Information_ProviderEnt'!$I:$I,$G$48:$G191,$H$48:$H191,$I$48:$I191,$G192:$H192)+1,0) -> 0 | J192: =COUNTIF($K$47:$K191,$K192) -> 0 | M192: DSRIP IGT Entity | O192: =IF(ISERROR(MATCH($Q192,'Provider IGTs'!$D$4:$D$346,0)),"Y","N") -> Y
G193: =IF($R193<>"",MAX('Contact Information_ProviderEnt'!$I:$I,$G$48:$G192,$H$48:$H192,$I$48:$I192)+1,0) -> 0 | H193: =IF($Z193<>"",MAX('Contact Information_ProviderEnt'!$I:$I,$G$48:$G192,$H$48:$H192,$I$48:$I192,$G193)+1,0) -> 0 | I193: =IF($AH193<>"",MAX('Contact Information_ProviderEnt'!$I:$I,$G$48:$G192,$H$48:$H192,$I$48:$I192,$G193:$H193)+1,0) -> 0 | J193: =COUNTIF($K$47:$K192,$K193) -> 0 | M193: DSRIP IGT Entity | O193: =IF(ISERROR(MATCH($Q193,'Provider IGTs'!$D$4:$D$346,0)),"Y","N") -> Y
G194: =IF($R194<>"",MAX('Contact Information_ProviderEnt'!$I:$I,$G$48:$G193,$H$48:$H193,$I$48:$I193)+1,0) -> 0 | H194: =IF($Z194<>"",MAX('Contact Information_ProviderEnt'!$I:$I,$G$48:$G193,$H$48:$H193,$I$48:$I193,$G194)+1,0) -> 0 | I194: =IF($AH194<>"",MAX('Contact Information_ProviderEnt'!$I:$I,$G$48:$G193,$H$48:$H193,$I$48:$I193,$G194:$H194)+1,0) -> 0 | J194: =COUNTIF($K$47:$K193,$K194) -> 0 | M194: DSRIP IGT Entity | O194: =IF(ISERROR(MATCH($Q194,'Provider IGTs'!$D$4:$D$346,0)),"Y","N") -> Y
G195: =IF($R195<>"",MAX('Contact Information_ProviderEnt'!$I:$I,$G$48:$G194,$H$48:$H194,$I$48:$I194)+1,0) -> 0 | H195: =IF($Z195<>"",MAX('Contact Information_ProviderEnt'!$I:$I,$G$48:$G194,$H$48:$H194,$I$48:$I194,$G195)+1,0) -> 0 | I195: =IF($AH195<>"",MAX('Contact Information_ProviderEnt'!$I:$I,$G$48:$G194,$H$48:$H194,$I$48:$I194,$G195:$H195)+1,0) -> 0 | J195: =COUNTIF($K$47:$K194,$K195) -> 0 | M195: DSRIP IGT Entity | O195: =IF(ISERROR(MATCH($Q195,'Provider IGTs'!$D$4:$D$346,0)),"Y","N") -> Y
G196: =IF($R196<>"",MAX('Contact Information_ProviderEnt'!$I:$I,$G$48:$G195,$H$48:$H195,$I$48:$I195)+1,0) -> 0 | H196: =IF($Z196<>"",MAX('Contact Information_ProviderEnt'!$I:$I,$G$48:$G195,$H$48:$H195,$I$48:$I195,$G196)+1,0) -> 0 | I196: =IF($AH196<>"",MAX('Contact Information_ProviderEnt'!$I:$I,$G$48:$G195,$H$48:$H195,$I$48:$I195,$G196:$H196)+1,0) -> 0 | J196: =COUNTIF($K$47:$K195,$K196) -> 0 | M196: DSRIP IGT Entity | O196: =IF(ISERROR(MATCH($Q196,'Provider IGTs'!$D$4:$D$346,0)),"Y","N") -> Y
G197: =IF($R197<>"",MAX('Contact Information_ProviderEnt'!$I:$I,$G$48:$G196,$H$48:$H196,$I$48:$I196)+1,0) -> 0 | H197: =IF($Z197<>"",MAX('Contact Information_ProviderEnt'!$I:$I,$G$48:$G196,$H$48:$H196,$I$48:$I196,$G197)+1,0) -> 0 | I197: =IF($AH197<>"",MAX('Contact Information_ProviderEnt'!$I:$I,$G$48:$G196,$H$48:$H196,$I$48:$I196,$G197:$H197)+1,0) -> 0 | J197: =COUNTIF($K$47:$K196,$K197) -> 0 | M197: DSRIP IGT Entity | O197: =IF(ISERROR(MATCH($Q197,'Provider IGTs'!$D$4:$D$346,0)),"Y","N") -> Y
G198: =IF($R198<>"",MAX('Contact Information_ProviderEnt'!$I:$I,$G$48:$G197,$H$48:$H197,$I$48:$I197)+1,0) -> 0 | H198: =IF($Z198<>"",MAX('Contact Information_ProviderEnt'!$I:$I,$G$48:$G197,$H$48:$H197,$I$48:$I197,$G198)+1,0) -> 0 | I198: =IF($AH198<>"",MAX('Contact Information_ProviderEnt'!$I:$I,$G$48:$G197,$H$48:$H197,$I$48:$I197,$G198:$H198)+1,0) -> 0 | J198: =COUNTIF($K$47:$K197,$K198) -> 0 | M198: DSRIP IGT Entity | O198: =IF(ISERROR(MATCH($Q198,'Provider IGTs'!$D$4:$D$346,0)),"Y","N") -> Y
G199: =IF($R199<>"",MAX('Contact Information_ProviderEnt'!$I:$I,$G$48:$G198,$H$48:$H198,$I$48:$I198)+1,0) -> 0 | H199: =IF($Z199<>"",MAX('Contact Information_ProviderEnt'!$I:$I,$G$48:$G198,$H$48:$H198,$I$48:$I198,$G199)+1,0) -> 0 | I199: =IF($AH199<>"",MAX('Contact Information_ProviderEnt'!$I:$I,$G$48:$G198,$H$48:$H198,$I$48:$I198,$G199:$H199)+1,0) -> 0 | J199: =COUNTIF($K$47:$K198,$K199) -> 0 | M199: DSRIP IGT Entity | O199: =IF(ISERROR(MATCH($Q199,'Provider IGTs'!$D$4:$D$346,0)),"Y","N") -> Y
G200: =IF($R200<>"",MAX('Contact Information_ProviderEnt'!$I:$I,$G$48:$G199,$H$48:$H199,$I$48:$I199)+1,0) -> 0 | H200: =IF($Z200<>"",MAX('Contact Information_ProviderEnt'!$I:$I,$G$48:$G199,$H$48:$H199,$I$48:$I199,$G200)+1,0) -> 0 | I200: =IF($AH200<>"",MAX('Contact Information_ProviderEnt'!$I:$I,$G$48:$G199,$H$48:$H199,$I$48:$I199,$G200:$H200)+1,0) -> 0 | J200: =COUNTIF($K$47:$K199,$K200) -> 0 | M200: DSRIP IGT Entity | O200: =IF(ISERROR(MATCH($Q200,'Provider IGTs'!$D$4:$D$346,0)),"Y","N") -> Y
G201: =IF($R201<>"",MAX('Contact Information_ProviderEnt'!$I:$I,$G$48:$G200,$H$48:$H200,$I$48:$I200)+1,0) -> 0 | H201: =IF($Z201<>"",MAX('Contact Information_ProviderEnt'!$I:$I,$G$48:$G200,$H$48:$H200,$I$48:$I200,$G201)+1,0) -> 0 | I201: =IF($AH201<>"",MAX('Contact Information_ProviderEnt'!$I:$I,$G$48:$G200,$H$48:$H200,$I$48:$I200,$G201:$H201)+1,0) -> 0 | J201: =COUNTIF($K$47:$K200,$K201) -> 0 | M201: DSRIP IGT Entity | O201: =IF(ISERROR(MATCH($Q201,'Provider IGTs'!$D$4:$D$346,0)),"Y","N") -> Y
G202: =IF($R202<>"",MAX('Contact Information_ProviderEnt'!$I:$I,$G$48:$G201,$H$48:$H201,$I$48:$I201)+1,0) -> 0 | H202: =IF($Z202<>"",MAX('Contact Information_ProviderEnt'!$I:$I,$G$48:$G201,$H$48:$H201,$I$48:$I201,$G202)+1,0) -> 0 | I202: =IF($AH202<>"",MAX('Contact Information_ProviderEnt'!$I:$I,$G$48:$G201,$H$48:$H201,$I$48:$I201,$G202:$H202)+1,0) -> 0 | J202: =COUNTIF($K$47:$K201,$K202) -> 0 | M202: DSRIP IGT Entity | O202: =IF(ISERROR(MATCH($Q202,'Provider IGTs'!$D$4:$D$346,0)),"Y","N") -> Y
G203: =IF($R203<>"",MAX('Contact Information_ProviderEnt'!$I:$I,$G$48:$G202,$H$48:$H202,$I$48:$I202)+1,0) -> 0 | H203: =IF($Z203<>"",MAX('Contact Information_ProviderEnt'!$I:$I,$G$48:$G202,$H$48:$H202,$I$48:$I202,$G203)+1,0) -> 0 | I203: =IF($AH203<>"",MAX('Contact Information_ProviderEnt'!$I:$I,$G$48:$G202,$H$48:$H202,$I$48:$I202,$G203:$H203)+1,0) -> 0 | J203: =COUNTIF($K$47:$K202,$K203) -> 0 | M203: DSRIP IGT Entity | O203: =IF(ISERROR(MATCH($Q203,'Provider IGTs'!$D$4:$D$346,0)),"Y","N") -> Y
G204: =IF($R204<>"",MAX('Contact Information_ProviderEnt'!$I:$I,$G$48:$G203,$H$48:$H203,$I$48:$I203)+1,0) -> 0 | H204: =IF($Z204<>"",MAX('Contact Information_ProviderEnt'!$I:$I,$G$48:$G203,$H$48:$H203,$I$48:$I203,$G204)+1,0) -> 0 | I204: =IF($AH204<>"",MAX('Contact Information_ProviderEnt'!$I:$I,$G$48:$G203,$H$48:$H203,$I$48:$I203,$G204:$H204)+1,0) -> 0 | J204: =COUNTIF($K$47:$K203,$K204) -> 0 | M204: DSRIP IGT Entity | O204: =IF(ISERROR(MATCH($Q204,'Provider IGTs'!$D$4:$D$346,0)),"Y","N") -> Y
G205: =IF($R205<>"",MAX('Contact Information_ProviderEnt'!$I:$I,$G$48:$G204,$H$48:$H204,$I$48:$I204)+1,0) -> 0 | H205: =IF($Z205<>"",MAX('Contact Information_ProviderEnt'!$I:$I,$G$48:$G204,$H$48:$H204,$I$48:$I204,$G205)+1,0) -> 0 | I205: =IF($AH205<>"",MAX('Contact Information_ProviderEnt'!$I:$I,$G$48:$G204,$H$48:$H204,$I$48:$I204,$G205:$H205)+1,0) -> 0 | J205: =COUNTIF($K$47:$K204,$K205) -> 0 | M205: DSRIP IGT Entity | O205: =IF(ISERROR(MATCH($Q205,'Provider IGTs'!$D$4:$D$346,0)),"Y","N") -> Y
G206: =IF($R206<>"",MAX('Contact Information_ProviderEnt'!$I:$I,$G$48:$G205,$H$48:$H205,$I$48:$I205)+1,0) -> 0 | H206: =IF($Z206<>"",MAX('Contact Information_ProviderEnt'!$I:$I,$G$48:$G205,$H$48:$H205,$I$48:$I205,$G206)+1,0) -> 0 | I206: =IF($AH206<>"",MAX('Contact Information_ProviderEnt'!$I:$I,$G$48:$G205,$H$48:$H205,$I$48:$I205,$G206:$H206)+1,0) -> 0 | J206: =COUNTIF($K$47:$K205,$K206) -> 0 | M206: DSRIP IGT Entity | O206: =IF(ISERROR(MATCH($Q206,'Provider IGTs'!$D$4:$D$346,0)),"Y","N") -> Y
G207: =IF($R207<>"",MAX('Contact Information_ProviderEnt'!$I:$I,$G$48:$G206,$H$48:$H206,$I$48:$I206)+1,0) -> 0 | H207: =IF($Z207<>"",MAX('Contact Information_ProviderEnt'!$I:$I,$G$48:$G206,$H$48:$H206,$I$48:$I206,$G207)+1,0) -> 0 | I207: =IF($AH207<>"",MAX('Contact Information_ProviderEnt'!$I:$I,$G$48:$G206,$H$48:$H206,$I$48:$I206,$G207:$H207)+1,0) -> 0 | J207: =COUNTIF($K$47:$K206,$K207) -> 0 | M207: DSRIP IGT Entity | O207: =IF(ISERROR(MATCH($Q207,'Provider IGTs'!$D$4:$D$346,0)),"Y","N") -> Y
G208: =IF($R208<>"",MAX('Contact Information_ProviderEnt'!$I:$I,$G$48:$G207,$H$48:$H207,$I$48:$I207)+1,0) -> 0 | H208: =IF($Z208<>"",MAX('Contact Information_ProviderEnt'!$I:$I,$G$48:$G207,$H$48:$H207,$I$48:$I207,$G208)+1,0) -> 0 | I208: =IF($AH208<>"",MAX('Contact Information_ProviderEnt'!$I:$I,$G$48:$G207,$H$48:$H207,$I$48:$I207,$G208:$H208)+1,0) -> 0 | J208: =COUNTIF($K$47:$K207,$K208) -> 0 | M208: DSRIP IGT Entity | O208: =IF(ISERROR(MATCH($Q208,'Provider IGTs'!$D$4:$D$346,0)),"Y","N") -> Y
G209: =IF($R209<>"",MAX('Contact Information_ProviderEnt'!$I:$I,$G$48:$G208,$H$48:$H208,$I$48:$I208)+1,0) -> 0 | H209: =IF($Z209<>"",MAX('Contact Information_ProviderEnt'!$I:$I,$G$48:$G208,$H$48:$H208,$I$48:$I208,$G209)+1,0) -> 0 | I209: =IF($AH209<>"",MAX('Contact Information_ProviderEnt'!$I:$I,$G$48:$G208,$H$48:$H208,$I$48:$I208,$G209:$H209)+1,0) -> 0 | J209: =COUNTIF($K$47:$K208,$K209) -> 0 | M209: DSRIP IGT Entity | O209: =IF(ISERROR(MATCH($Q209,'Provider IGTs'!$D$4:$D$346,0)),"Y","N") -> Y
G210: =IF($R210<>"",MAX('Contact Information_ProviderEnt'!$I:$I,$G$48:$G209,$H$48:$H209,$I$48:$I209)+1,0) -> 0 | H210: =IF($Z210<>"",MAX('Contact Information_ProviderEnt'!$I:$I,$G$48:$G209,$H$48:$H209,$I$48:$I209,$G210)+1,0) -> 0 | I210: =IF($AH210<>"",MAX('Contact Information_ProviderEnt'!$I:$I,$G$48:$G209,$H$48:$H209,$I$48:$I209,$G210:$H210)+1,0) -> 0 | J210: =COUNTIF($K$47:$K209,$K210) -> 0 | M210: DSRIP IGT Entity | O210: =IF(ISERROR(MATCH($Q210,'Provider IGTs'!$D$4:$D$346,0)),"Y","N") -> Y
... 789 more rows

Sheet Contact Information_Anchor Entr (hidden)
H1: Workbook | I1: Provider Type | J1: Offset | K1: 0 | L1: 0 | M1: 0 | N1: 0 | O1: 0 | P1: 0 | Q1: 0 | R1: 0 | S1: 0 | T1: 0 | U1: 0 | V1: 0 | W1: 0
A2: Worksheet to determine new/current | H2: Current prov. | I2: Regular hospital | J2: Worksheet: | K2: Inputs | L2: SKIP | M2: SKIP | N2: SKIP | O2: Anchor Entry | P2: Anchor Entry | Q2: Anchor Entry | R2: Anchor Entry | S2: Anchor Entry | T2: Anchor Entry | U2: Anchor Entry | V2: Anchor Entry | W2: Anchor Entry
A3: Cell to determine new/current | H3: Current prov. | I3: Regular hospital | J3: Cell: | K3: =IF(OR(AND($B$30=0,$B$45="Y"),AND($B$30=1,$B$46="Y"),AND($B$30=2,$B$47="Y")),"$B$14","SKIP") -> SKIP | L3: SKIP | M3: SKIP | N3: SKIP | O3: =IF(OR(AND($B$30=0,$B$45="Y"),AND($B$30=1,$B$46="Y"),AND($B$30=2,$B$47="Y")),"$E$12","SKIP") -> SKIP | P3: =IF(AND($B$30=0,$B$45="Y"),"$E$17",IF(AND($B$30=1,$B$46="Y"),"$E$27",IF(AND($B$30=2,$B$47="Y"),"$E$37","SKIP"))) -> SKIP | Q3: =IF(AND($B$30=0,$B$45="Y"),"$E$18",IF(AND($B$30=1,$B$46="Y"),"$E$28",IF(AND($B$30=2,$B$47="Y"),"$E$38","SKIP"))) -> SKIP | R3: =IF(AND($B$30=0,$B$45="Y"),"$E$19",IF(AND($B$30=1,$B$46="Y"),"$E$29",IF(AND($B$30=2,$B$47="Y"),"$E$39","SKIP"))) -> SKIP | S3: =IF(AND($B$30=0,$B$45="Y"),"$E$20",IF(AND($B$30=1,$B$46="Y"),"$E$30",IF(AND($B$30=2,$B$47="Y"),"$E$40","SKIP"))) -> SKIP | T3: =IF(AND($B$30=0,$B$45="Y"),"$E$21",IF(AND($B$30=1,$B$46="Y"),"$E$31",IF(AND($B$30=2,$B$47="Y"),"$E$41","SKIP"))) -> SKIP | U3: =IF(AND($B$30=0,$B$45="Y"),"$E$22",IF(AND($B$30=1,$B$46="Y"),"$E$32",IF(AND($B$30=2,$B$47="Y"),"$E$42","SKIP"))) -> SKIP | V3: =IF(AND($B$30=0,$B$45="Y"),"$E$23",IF(AND($B$30=1,$B$46="Y"),"$E$33",IF(AND($B$30=2,$B$47="Y"),"$E$43","SKIP"))) -> SKIP | W3: =IF(AND($B$30=0,$B$45="Y"),"$E$24",IF(AND($B$30=1,$B$46="Y"),"$E$34",IF(AND($B$30=2,$B$47="Y"),"$E$44","SKIP"))) -> SKIP
A4: Value in cell if New Provider
A5: New/Current Value
A6: Workheet to determine provider type
A7: C: cell to determine provider type
A8: N: cell to determine provider type
A9: Worksheet to determine if exception hospital
A10: Cell to determine if unbundled hospital
A11: Cell to determine if bundled hospital
A12: =I2 -> Regular hospital
A13: =I4 -> 0
A14: =I6 -> 0
A15: =I8 -> 0
A16: =I10 -> 0
A17: =I12 -> 0
A18: Provider Type
A19: Worksheet start lookup:
A20: Cell start lookup:
A21: Start of worksheet names | B21: =CELL("address", K2) -> $K$2
A22: Start of cells | B22: =CELL("address",K3) -> $K$3
A23: Start paste cell | B23: =CELL("address",K48) -> $K$48
A24: Paste offset | B24: =MAX(COUNTA($K$48:$K$10000),COUNTA($M$48:$M$10000),COUNTA($N$48:$N$10000),COUNTA($O$48:$O$10000),COUNTA($P$48:$P$10000),COUNTA($Q$48:$Q$100000),COUNTA($R$48:$R$10000),COUNTA($S$48:$S$100000),COUNTA($T$48:$T$10000),COUNTA($U$48:$U$10000),COUNTA($V$48:$V$10000),COUNTA($W$48:$W$10000)) -> 3
A25: Worksheet to determine # of loops per file
A26: Cell to determine # of loops per file
A27: Number of columns to copy | B27: =COLUMNS(K47:W48) -> 13
A28: Number of loops | B28: 3
A29: Start of Offset | B29: =CELL("address",K1) -> $K$1
A30: Completed loops | B30: 2 | C30: =-Macro driven
A43: Tab to determine number of contacts | B43: Anchor Entry
A44: Current
A45: Contact 1 | B45: =IFERROR(IF(OR(INDIRECT("'["&Inputs_Anchor!$F$6&"]"&$B$43&"'!"&"$E$17")<>"",INDIRECT("'["&Inputs_Anchor!$F$6&"]"&$B$43&"'!"&"$E$18")<>"",INDIRECT("'["&Inputs_Anchor!$F$6&"]"&$B$43&"'!"&"$E$19")<>"",INDIRECT("'["&Inputs_Anchor!$F$6&"]"&$B$43&"'!"&"$E$20")<>"",INDIRECT("'["&Inputs_Anchor!$F$6&"]"&$B$43&"'!"&"$E$21")<>"",INDIRECT("'["&Inputs_Anchor!$F$6&"]"&$B$43&"'!"&"$E$22")<>"",INDIRECT("'["&Inputs_Anchor!$F$6&"]"&$B$43&"'!"&"$E$24")<>""),"Y","N"),"No workbook found") -> No workbook found | K45: RHP Contact Information
A46: Contact 2 | B46: =IFERROR(IF(OR(INDIRECT("'["&Inputs_Anchor!$F$6&"]"&$B$43&"'!"&"$E$27")<>"",INDIRECT("'["&Inputs_Anchor!$F$6&"]"&$B$43&"'!"&"$E$28")<>"",INDIRECT("'["&Inputs_Anchor!$F$6&"]"&$B$43&"'!"&"$E$29")<>"",INDIRECT("'["&Inputs_Anchor!$F$6&"]"&$B$43&"'!"&"$E$30")<>"",INDIRECT("'["&Inputs_Anchor!$F$6&"]"&$B$43&"'!"&"$E$31")<>"",INDIRECT("'["&Inputs_Anchor!$F$6&"]"&$B$43&"'!"&"$E$32")<>"",INDIRECT("'["&Inputs_Anchor!$F$6&"]"&$B$43&"'!"&"$E$34")<>""),"Y","N"),"No workbook found") -> No workbook found
A47: Contact 3 | B47: =IFERROR(IF(OR(INDIRECT("'["&Inputs_Anchor!$F$6&"]"&$B$43&"'!"&"$E$37")<>"",INDIRECT("'["&Inputs_Anchor!$F$6&"]"&$B$43&"'!"&"$E$38")<>"",INDIRECT("'["&Inputs_Anchor!$F$6&"]"&$B$43&"'!"&"$E$39")<>"",INDIRECT("'["&Inputs_Anchor!$F$6&"]"&$B$43&"'!"&"$E$30")<>"",INDIRECT("'["&Inputs_Anchor!$F$6&"]"&$B$43&"'!"&"$E$31")<>"",INDIRECT("'["&Inputs_Anchor!$F$6&"]"&$B$43&"'!"&"$E$32")<>"",INDIRECT("'["&Inputs_Anchor!$F$6&"]"&$B$43&"'!"&"$E$34")<>""),"Y","N"),"No workbook found") -> No workbook found | G47: Running count of contacts | K47: RHP | L47: Type of Organization | M47: New (Y/N) | N47: TPI | O47: Organization Name | P47: Contact Name | Q47: Street Address | R47: City | S47: Zip Code | T47: Email | U47: Phone Number | V47: Phone Ext | W47: Lead Contact or Both | X47: 1st Reviewer | Y47: 1st Reviewer Internal Comments | Z47: HHSC Initial Comments to Provider | AA47: Provider Response | AB47: 1st Reviewer | AC47: 1st Reviewer Internal Comments | AD47: HHSC Final Comments to Provider
G48: =IF($P48<>"",MAX('Contact Information_ProviderEnt'!$I:$I,'Contact Information_IGT Entity'!$G:$I)+1,0) -> 116 | K48: 9 | L48: Anchor | O48: Dallas County Hospital District dba Parkland Health & Hospital System | P48: Christina Mintner | Q48: 5200 Harry Hines Blvd | R48: Dallas | S48: 75235 | T48: christina.mintner@phhs.org | U48: 214-590-4605 | W48: Both
G49: =IF($P49<>"",MAX('Contact Information_ProviderEnt'!$I:$I,'Contact Information_IGT Entity'!$G:$I,$G$48:$G48)+1,0) -> 117 | K49: 9 | L49: Anchor | O49: Dallas County Hospital District dba Parkland Health & Hospital System | P49: Richard Humphrey | Q49: 5200 Harry Hines Blvd. | R49: Dallas | S49: 75235 | T49: richard.humphrey@phhs.org | U49: 214-590-8006 | W49: Both
G50: =IF($P50<>"",MAX('Contact Information_ProviderEnt'!$I:$I,'Contact Information_IGT Entity'!$G:$I,$G$48:$G49)+1,0) -> 0 | K50: 9 | L50: Anchor | O50: Dallas County Hospital District dba Parkland Health & Hospital System
G51: =IF($P51<>"",MAX('Contact Information_ProviderEnt'!$I:$I,'Contact Information_IGT Entity'!$G:$I,$G$48:$G50)+1,0) -> 0 | L51: Anchor
G52: =IF($P52<>"",MAX('Contact Information_ProviderEnt'!$I:$I,'Contact Information_IGT Entity'!$G:$I,$G$48:$G51)+1,0) -> 0 | L52: Anchor
G53: =IF($P53<>"",MAX('Contact Information_ProviderEnt'!$I:$I,'Contact Information_IGT Entity'!$G:$I,$G$48:$G52)+1,0) -> 0 | L53: Anchor
G54: =IF($P54<>"",MAX('Contact Information_ProviderEnt'!$I:$I,'Contact Information_IGT Entity'!$G:$I,$G$48:$G53)+1,0) -> 0 | L54: Anchor
G55: =IF($P55<>"",MAX('Contact Information_ProviderEnt'!$I:$I,'Contact Information_IGT Entity'!$G:$I,$G$48:$G54)+1,0) -> 0 | L55: Anchor
G56: =IF($P56<>"",MAX('Contact Information_ProviderEnt'!$I:$I,'Contact Information_IGT Entity'!$G:$I,$G$48:$G55)+1,0) -> 0 | L56: Anchor
G57: =IF($P57<>"",MAX('Contact Information_ProviderEnt'!$I:$I,'Contact Information_IGT Entity'!$G:$I,$G$48:$G56)+1,0) -> 0 | L57: Anchor
G58: =IF($P58<>"",MAX('Contact Information_ProviderEnt'!$I:$I,'Contact Information_IGT Entity'!$G:$I,$G$48:$G57)+1,0) -> 0 | L58: Anchor
G59: =IF($P59<>"",MAX('Contact Information_ProviderEnt'!$I:$I,'Contact Information_IGT Entity'!$G:$I,$G$48:$G58)+1,0) -> 0 | L59: Anchor
G60: =IF($P60<>"",MAX('Contact Information_ProviderEnt'!$I:$I,'Contact Information_IGT Entity'!$G:$I,$G$48:$G59)+1,0) -> 0 | L60: Anchor
G61: =IF($P61<>"",MAX('Contact Information_ProviderEnt'!$I:$I,'Contact Information_IGT Entity'!$G:$I,$G$48:$G60)+1,0) -> 0 | L61: Anchor
G62: =IF($P62<>"",MAX('Contact Information_ProviderEnt'!$I:$I,'Contact Information_IGT Entity'!$G:$I,$G$48:$G61)+1,0) -> 0 | L62: Anchor
G63: =IF($P63<>"",MAX('Contact Information_ProviderEnt'!$I:$I,'Contact Information_IGT Entity'!$G:$I,$G$48:$G62)+1,0) -> 0 | L63: Anchor
G64: =IF($P64<>"",MAX('Contact Information_ProviderEnt'!$I:$I,'Contact Information_IGT Entity'!$G:$I,$G$48:$G63)+1,0) -> 0 | L64: Anchor
G65: =IF($P65<>"",MAX('Contact Information_ProviderEnt'!$I:$I,'Contact Information_IGT Entity'!$G:$I,$G$48:$G64)+1,0) -> 0 | L65: Anchor
G66: =IF($P66<>"",MAX('Contact Information_ProviderEnt'!$I:$I,'Contact Information_IGT Entity'!$G:$I,$G$48:$G65)+1,0) -> 0 | L66: Anchor
G67: =IF($P67<>"",MAX('Contact Information_ProviderEnt'!$I:$I,'Contact Information_IGT Entity'!$G:$I,$G$48:$G66)+1,0) -> 0 | L67: Anchor
G68: =IF($P68<>"",MAX('Contact Information_ProviderEnt'!$I:$I,'Contact Information_IGT Entity'!$G:$I,$G$48:$G67)+1,0) -> 0 | L68: Anchor
G69: =IF($P69<>"",MAX('Contact Information_ProviderEnt'!$I:$I,'Contact Information_IGT Entity'!$G:$I,$G$48:$G68)+1,0) -> 0 | L69: Anchor
G70: =IF($P70<>"",MAX('Contact Information_ProviderEnt'!$I:$I,'Contact Information_IGT Entity'!$G:$I,$G$48:$G69)+1,0) -> 0 | L70: Anchor
G71: =IF($P71<>"",MAX('Contact Information_ProviderEnt'!$I:$I,'Contact Information_IGT Entity'!$G:$I,$G$48:$G70)+1,0) -> 0 | L71: Anchor
G72: =IF($P72<>"",MAX('Contact Information_ProviderEnt'!$I:$I,'Contact Information_IGT Entity'!$G:$I,$G$48:$G71)+1,0) -> 0 | L72: Anchor
G73: =IF($P73<>"",MAX('Contact Information_ProviderEnt'!$I:$I,'Contact Information_IGT Entity'!$G:$I,$G$48:$G72)+1,0) -> 0 | L73: Anchor
G74: =IF($P74<>"",MAX('Contact Information_ProviderEnt'!$I:$I,'Contact Information_IGT Entity'!$G:$I,$G$48:$G73)+1,0) -> 0 | L74: Anchor
G75: =IF($P75<>"",MAX('Contact Information_ProviderEnt'!$I:$I,'Contact Information_IGT Entity'!$G:$I,$G$48:$G74)+1,0) -> 0 | L75: Anchor
G76: =IF($P76<>"",MAX('Contact Information_ProviderEnt'!$I:$I,'Contact Information_IGT Entity'!$G:$I,$G$48:$G75)+1,0) -> 0 | L76: Anchor
G77: =IF($P77<>"",MAX('Contact Information_ProviderEnt'!$I:$I,'Contact Information_IGT Entity'!$G:$I,$G$48:$G76)+1,0) -> 0 | L77: Anchor
G78: =IF($P78<>"",MAX('Contact Information_ProviderEnt'!$I:$I,'Contact Information_IGT Entity'!$G:$I,$G$48:$G77)+1,0) -> 0 | L78: Anchor
G79: =IF($P79<>"",MAX('Contact Information_ProviderEnt'!$I:$I,'Contact Information_IGT Entity'!$G:$I,$G$48:$G78)+1,0) -> 0 | L79: Anchor
G80: =IF($P80<>"",MAX('Contact Information_ProviderEnt'!$I:$I,'Contact Information_IGT Entity'!$G:$I,$G$48:$G79)+1,0) -> 0 | L80: Anchor
G81: =IF($P81<>"",MAX('Contact Information_ProviderEnt'!$I:$I,'Contact Information_IGT Entity'!$G:$I,$G$48:$G80)+1,0) -> 0 | L81: Anchor
G82: =IF($P82<>"",MAX('Contact Information_ProviderEnt'!$I:$I,'Contact Information_IGT Entity'!$G:$I,$G$48:$G81)+1,0) -> 0 | L82: Anchor
G83: =IF($P83<>"",MAX('Contact Information_ProviderEnt'!$I:$I,'Contact Information_IGT Entity'!$G:$I,$G$48:$G82)+1,0) -> 0 | L83: Anchor
G84: =IF($P84<>"",MAX('Contact Information_ProviderEnt'!$I:$I,'Contact Information_IGT Entity'!$G:$I,$G$48:$G83)+1,0) -> 0 | L84: Anchor
G85: =IF($P85<>"",MAX('Contact Information_ProviderEnt'!$I:$I,'Contact Information_IGT Entity'!$G:$I,$G$48:$G84)+1,0) -> 0 | L85: Anchor
G86: =IF($P86<>"",MAX('Contact Information_ProviderEnt'!$I:$I,'Contact Information_IGT Entity'!$G:$I,$G$48:$G85)+1,0) -> 0 | L86: Anchor
G87: =IF($P87<>"",MAX('Contact Information_ProviderEnt'!$I:$I,'Contact Information_IGT Entity'!$G:$I,$G$48:$G86)+1,0) -> 0 | L87: Anchor
G88: =IF($P88<>"",MAX('Contact Information_ProviderEnt'!$I:$I,'Contact Information_IGT Entity'!$G:$I,$G$48:$G87)+1,0) -> 0 | L88: Anchor
G89: =IF($P89<>"",MAX('Contact Information_ProviderEnt'!$I:$I,'Contact Information_IGT Entity'!$G:$I,$G$48:$G88)+1,0) -> 0 | L89: Anchor
G90: =IF($P90<>"",MAX('Contact Information_ProviderEnt'!$I:$I,'Contact Information_IGT Entity'!$G:$I,$G$48:$G89)+1,0) -> 0 | L90: Anchor
G91: =IF($P91<>"",MAX('Contact Information_ProviderEnt'!$I:$I,'Contact Information_IGT Entity'!$G:$I,$G$48:$G90)+1,0) -> 0 | L91: Anchor
G92: =IF($P92<>"",MAX('Contact Information_ProviderEnt'!$I:$I,'Contact Information_IGT Entity'!$G:$I,$G$48:$G91)+1,0) -> 0 | L92: Anchor
G93: =IF($P93<>"",MAX('Contact Information_ProviderEnt'!$I:$I,'Contact Information_IGT Entity'!$G:$I,$G$48:$G92)+1,0) -> 0 | L93: Anchor
G94: =IF($P94<>"",MAX('Contact Information_ProviderEnt'!$I:$I,'Contact Information_IGT Entity'!$G:$I,$G$48:$G93)+1,0) -> 0 | L94: Anchor
G95: =IF($P95<>"",MAX('Contact Information_ProviderEnt'!$I:$I,'Contact Information_IGT Entity'!$G:$I,$G$48:$G94)+1,0) -> 0 | L95: Anchor
G96: =IF($P96<>"",MAX('Contact Information_ProviderEnt'!$I:$I,'Contact Information_IGT Entity'!$G:$I,$G$48:$G95)+1,0) -> 0 | L96: Anchor
G97: =IF($P97<>"",MAX('Contact Information_ProviderEnt'!$I:$I,'Contact Information_IGT Entity'!$G:$I,$G$48:$G96)+1,0) -> 0 | L97: Anchor
G98: =IF($P98<>"",MAX('Contact Information_ProviderEnt'!$I:$I,'Contact Information_IGT Entity'!$G:$I,$G$48:$G97)+1,0) -> 0 | L98: Anchor
G99: =IF($P99<>"",MAX('Contact Information_ProviderEnt'!$I:$I,'Contact Information_IGT Entity'!$G:$I,$G$48:$G98)+1,0) -> 0 | L99: Anchor
G100: =IF($P100<>"",MAX('Contact Information_ProviderEnt'!$I:$I,'Contact Information_IGT Entity'!$G:$I,$G$48:$G99)+1,0) -> 0 | L100: Anchor
G101: =IF($P101<>"",MAX('Contact Information_ProviderEnt'!$I:$I,'Contact Information_IGT Entity'!$G:$I,$G$48:$G100)+1,0) -> 0 | L101: Anchor
G102: =IF($P102<>"",MAX('Contact Information_ProviderEnt'!$I:$I,'Contact Information_IGT Entity'!$G:$I,$G$48:$G101)+1,0) -> 0 | L102: Anchor
G103: =IF($P103<>"",MAX('Contact Information_ProviderEnt'!$I:$I,'Contact Information_IGT Entity'!$G:$I,$G$48:$G102)+1,0) -> 0 | L103: Anchor
G104: =IF($P104<>"",MAX('Contact Information_ProviderEnt'!$I:$I,'Contact Information_IGT Entity'!$G:$I,$G$48:$G103)+1,0) -> 0 | L104: Anchor
G105: =IF($P105<>"",MAX('Contact Information_ProviderEnt'!$I:$I,'Contact Information_IGT Entity'!$G:$I,$G$48:$G104)+1,0) -> 0 | L105: Anchor
G106: =IF($P106<>"",MAX('Contact Information_ProviderEnt'!$I:$I,'Contact Information_IGT Entity'!$G:$I,$G$48:$G105)+1,0) -> 0 | L106: Anchor
G107: =IF($P107<>"",MAX('Contact Information_ProviderEnt'!$I:$I,'Contact Information_IGT Entity'!$G:$I,$G$48:$G106)+1,0) -> 0 | L107: Anchor
G108: =IF($P108<>"",MAX('Contact Information_ProviderEnt'!$I:$I,'Contact Information_IGT Entity'!$G:$I,$G$48:$G107)+1,0) -> 0 | L108: Anchor
G109: =IF($P109<>"",MAX('Contact Information_ProviderEnt'!$I:$I,'Contact Information_IGT Entity'!$G:$I,$G$48:$G108)+1,0) -> 0 | L109: Anchor
G110: =IF($P110<>"",MAX('Contact Information_ProviderEnt'!$I:$I,'Contact Information_IGT Entity'!$G:$I,$G$48:$G109)+1,0) -> 0 | L110: Anchor
G111: =IF($P111<>"",MAX('Contact Information_ProviderEnt'!$I:$I,'Contact Information_IGT Entity'!$G:$I,$G$48:$G110)+1,0) -> 0 | L111: Anchor
G112: =IF($P112<>"",MAX('Contact Information_ProviderEnt'!$I:$I,'Contact Information_IGT Entity'!$G:$I,$G$48:$G111)+1,0) -> 0 | L112: Anchor
G113: =IF($P113<>"",MAX('Contact Information_ProviderEnt'!$I:$I,'Contact Information_IGT Entity'!$G:$I,$G$48:$G112)+1,0) -> 0 | L113: Anchor
G114: =IF($P114<>"",MAX('Contact Information_ProviderEnt'!$I:$I,'Contact Information_IGT Entity'!$G:$I,$G$48:$G113)+1,0) -> 0 | L114: Anchor
G115: =IF($P115<>"",MAX('Contact Information_ProviderEnt'!$I:$I,'Contact Information_IGT Entity'!$G:$I,$G$48:$G114)+1,0) -> 0 | L115: Anchor
G116: =IF($P116<>"",MAX('Contact Information_ProviderEnt'!$I:$I,'Contact Information_IGT Entity'!$G:$I,$G$48:$G115)+1,0) -> 0 | L116: Anchor
G117: =IF($P117<>"",MAX('Contact Information_ProviderEnt'!$I:$I,'Contact Information_IGT Entity'!$G:$I,$G$48:$G116)+1,0) -> 0 | L117: Anchor
G118: =IF($P118<>"",MAX('Contact Information_ProviderEnt'!$I:$I,'Contact Information_IGT Entity'!$G:$I,$G$48:$G117)+1,0) -> 0 | L118: Anchor
G119: =IF($P119<>"",MAX('Contact Information_ProviderEnt'!$I:$I,'Contact Information_IGT Entity'!$G:$I,$G$48:$G118)+1,0) -> 0 | L119: Anchor
G120: =IF($P120<>"",MAX('Contact Information_ProviderEnt'!$I:$I,'Contact Information_IGT Entity'!$G:$I,$G$48:$G119)+1,0) -> 0 | L120: Anchor
G121: =IF($P121<>"",MAX('Contact Information_ProviderEnt'!$I:$I,'Contact Information_IGT Entity'!$G:$I,$G$48:$G120)+1,0) -> 0 | L121: Anchor
G122: =IF($P122<>"",MAX('Contact Information_ProviderEnt'!$I:$I,'Contact Information_IGT Entity'!$G:$I,$G$48:$G121)+1,0) -> 0 | L122: Anchor
G123: =IF($P123<>"",MAX('Contact Information_ProviderEnt'!$I:$I,'Contact Information_IGT Entity'!$G:$I,$G$48:$G122)+1,0) -> 0 | L123: Anchor
G124: =IF($P124<>"",MAX('Contact Information_ProviderEnt'!$I:$I,'Contact Information_IGT Entity'!$G:$I,$G$48:$G123)+1,0) -> 0 | L124: Anchor
G125: =IF($P125<>"",MAX('Contact Information_ProviderEnt'!$I:$I,'Contact Information_IGT Entity'!$G:$I,$G$48:$G124)+1,0) -> 0 | L125: Anchor
G126: =IF($P126<>"",MAX('Contact Information_ProviderEnt'!$I:$I,'Contact Information_IGT Entity'!$G:$I,$G$48:$G125)+1,0) -> 0 | L126: Anchor
G127: =IF($P127<>"",MAX('Contact Information_ProviderEnt'!$I:$I,'Contact Information_IGT Entity'!$G:$I,$G$48:$G126)+1,0) -> 0 | L127: Anchor
G128: =IF($P128<>"",MAX('Contact Information_ProviderEnt'!$I:$I,'Contact Information_IGT Entity'!$G:$I,$G$48:$G127)+1,0) -> 0 | L128: Anchor
G129: =IF($P129<>"",MAX('Contact Information_ProviderEnt'!$I:$I,'Contact Information_IGT Entity'!$G:$I,$G$48:$G128)+1,0) -> 0 | L129: Anchor
G130: =IF($P130<>"",MAX('Contact Information_ProviderEnt'!$I:$I,'Contact Information_IGT Entity'!$G:$I,$G$48:$G129)+1,0) -> 0 | L130: Anchor
G131: =IF($P131<>"",MAX('Contact Information_ProviderEnt'!$I:$I,'Contact Information_IGT Entity'!$G:$I,$G$48:$G130)+1,0) -> 0 | L131: Anchor
G132: =IF($P132<>"",MAX('Contact Information_ProviderEnt'!$I:$I,'Contact Information_IGT Entity'!$G:$I,$G$48:$G131)+1,0) -> 0 | L132: Anchor
G133: =IF($P133<>"",MAX('Contact Information_ProviderEnt'!$I:$I,'Contact Information_IGT Entity'!$G:$I,$G$48:$G132)+1,0) -> 0 | L133: Anchor
G134: =IF($P134<>"",MAX('Contact Information_ProviderEnt'!$I:$I,'Contact Information_IGT Entity'!$G:$I,$G$48:$G133)+1,0) -> 0 | L134: Anchor
G135: =IF($P135<>"",MAX('Contact Information_ProviderEnt'!$I:$I,'Contact Information_IGT Entity'!$G:$I,$G$48:$G134)+1,0) -> 0 | L135: Anchor
G136: =IF($P136<>"",MAX('Contact Information_ProviderEnt'!$I:$I,'Contact Information_IGT Entity'!$G:$I,$G$48:$G135)+1,0) -> 0 | L136: Anchor
G137: =IF($P137<>"",MAX('Contact Information_ProviderEnt'!$I:$I,'Contact Information_IGT Entity'!$G:$I,$G$48:$G136)+1,0) -> 0 | L137: Anchor
G138: =IF($P138<>"",MAX('Contact Information_ProviderEnt'!$I:$I,'Contact Information_IGT Entity'!$G:$I,$G$48:$G137)+1,0) -> 0 | L138: Anchor
G139: =IF($P139<>"",MAX('Contact Information_ProviderEnt'!$I:$I,'Contact Information_IGT Entity'!$G:$I,$G$48:$G138)+1,0) -> 0 | L139: Anchor
G140: =IF($P140<>"",MAX('Contact Information_ProviderEnt'!$I:$I,'Contact Information_IGT Entity'!$G:$I,$G$48:$G139)+1,0) -> 0 | L140: Anchor
G141: =IF($P141<>"",MAX('Contact Information_ProviderEnt'!$I:$I,'Contact Information_IGT Entity'!$G:$I,$G$48:$G140)+1,0) -> 0 | L141: Anchor
G142: =IF($P142<>"",MAX('Contact Information_ProviderEnt'!$I:$I,'Contact Information_IGT Entity'!$G:$I,$G$48:$G141)+1,0) -> 0 | L142: Anchor
G143: =IF($P143<>"",MAX('Contact Information_ProviderEnt'!$I:$I,'Contact Information_IGT Entity'!$G:$I,$G$48:$G142)+1,0) -> 0 | L143: Anchor
G144: =IF($P144<>"",MAX('Contact Information_ProviderEnt'!$I:$I,'Contact Information_IGT Entity'!$G:$I,$G$48:$G143)+1,0) -> 0 | L144: Anchor
G145: =IF($P145<>"",MAX('Contact Information_ProviderEnt'!$I:$I,'Contact Information_IGT Entity'!$G:$I,$G$48:$G144)+1,0) -> 0 | L145: Anchor
G146: =IF($P146<>"",MAX('Contact Information_ProviderEnt'!$I:$I,'Contact Information_IGT Entity'!$G:$I,$G$48:$G145)+1,0) -> 0 | L146: Anchor
G147: =IF($P147<>"",MAX('Contact Information_ProviderEnt'!$I:$I,'Contact Information_IGT Entity'!$G:$I,$G$48:$G146)+1,0) -> 0 | L147: Anchor
G148: =IF($P148<>"",MAX('Contact Information_ProviderEnt'!$I:$I,'Contact Information_IGT Entity'!$G:$I,$G$48:$G147)+1,0) -> 0 | L148: Anchor
G149: =IF($P149<>"",MAX('Contact Information_ProviderEnt'!$I:$I,'Contact Information_IGT Entity'!$G:$I,$G$48:$G148)+1,0) -> 0 | L149: Anchor
G150: =IF($P150<>"",MAX('Contact Information_ProviderEnt'!$I:$I,'Contact Information_IGT Entity'!$G:$I,$G$48:$G149)+1,0) -> 0 | L150: Anchor
G151: =IF($P151<>"",MAX('Contact Information_ProviderEnt'!$I:$I,'Contact Information_IGT Entity'!$G:$I,$G$48:$G150)+1,0) -> 0 | L151: Anchor
G152: =IF($P152<>"",MAX('Contact Information_ProviderEnt'!$I:$I,'Contact Information_IGT Entity'!$G:$I,$G$48:$G151)+1,0) -> 0 | L152: Anchor
G153: =IF($P153<>"",MAX('Contact Information_ProviderEnt'!$I:$I,'Contact Information_IGT Entity'!$G:$I,$G$48:$G152)+1,0) -> 0 | L153: Anchor
G154: =IF($P154<>"",MAX('Contact Information_ProviderEnt'!$I:$I,'Contact Information_IGT Entity'!$G:$I,$G$48:$G153)+1,0) -> 0 | L154: Anchor
G155: =IF($P155<>"",MAX('Contact Information_ProviderEnt'!$I:$I,'Contact Information_IGT Entity'!$G:$I,$G$48:$G154)+1,0) -> 0 | L155: Anchor
G156: =IF($P156<>"",MAX('Contact Information_ProviderEnt'!$I:$I,'Contact Information_IGT Entity'!$G:$I,$G$48:$G155)+1,0) -> 0 | L156: Anchor
G157: =IF($P157<>"",MAX('Contact Information_ProviderEnt'!$I:$I,'Contact Information_IGT Entity'!$G:$I,$G$48:$G156)+1,0) -> 0 | L157: Anchor
G158: =IF($P158<>"",MAX('Contact Information_ProviderEnt'!$I:$I,'Contact Information_IGT Entity'!$G:$I,$G$48:$G157)+1,0) -> 0 | L158: Anchor
G159: =IF($P159<>"",MAX('Contact Information_ProviderEnt'!$I:$I,'Contact Information_IGT Entity'!$G:$I,$G$48:$G158)+1,0) -> 0 | L159: Anchor
G160: =IF($P160<>"",MAX('Contact Information_ProviderEnt'!$I:$I,'Contact Information_IGT Entity'!$G:$I,$G$48:$G159)+1,0) -> 0 | L160: Anchor
G161: =IF($P161<>"",MAX('Contact Information_ProviderEnt'!$I:$I,'Contact Information_IGT Entity'!$G:$I,$G$48:$G160)+1,0) -> 0 | L161: Anchor
G162: =IF($P162<>"",MAX('Contact Information_ProviderEnt'!$I:$I,'Contact Information_IGT Entity'!$G:$I,$G$48:$G161)+1,0) -> 0 | L162: Anchor
G163: =IF($P163<>"",MAX('Contact Information_ProviderEnt'!$I:$I,'Contact Information_IGT Entity'!$G:$I,$G$48:$G162)+1,0) -> 0 | L163: Anchor
G164: =IF($P164<>"",MAX('Contact Information_ProviderEnt'!$I:$I,'Contact Information_IGT Entity'!$G:$I,$G$48:$G163)+1,0) -> 0 | L164: Anchor
G165: =IF($P165<>"",MAX('Contact Information_ProviderEnt'!$I:$I,'Contact Information_IGT Entity'!$G:$I,$G$48:$G164)+1,0) -> 0 | L165: Anchor
G166: =IF($P166<>"",MAX('Contact Information_ProviderEnt'!$I:$I,'Contact Information_IGT Entity'!$G:$I,$G$48:$G165)+1,0) -> 0 | L166: Anchor
G167: =IF($P167<>"",MAX('Contact Information_ProviderEnt'!$I:$I,'Contact Information_IGT Entity'!$G:$I,$G$48:$G166)+1,0) -> 0 | L167: Anchor
G168: =IF($P168<>"",MAX('Contact Information_ProviderEnt'!$I:$I,'Contact Information_IGT Entity'!$G:$I,$G$48:$G167)+1,0) -> 0 | L168: Anchor
G169: =IF($P169<>"",MAX('Contact Information_ProviderEnt'!$I:$I,'Contact Information_IGT Entity'!$G:$I,$G$48:$G168)+1,0) -> 0 | L169: Anchor
G170: =IF($P170<>"",MAX('Contact Information_ProviderEnt'!$I:$I,'Contact Information_IGT Entity'!$G:$I,$G$48:$G169)+1,0) -> 0 | L170: Anchor
G171: =IF($P171<>"",MAX('Contact Information_ProviderEnt'!$I:$I,'Contact Information_IGT Entity'!$G:$I,$G$48:$G170)+1,0) -> 0 | L171: Anchor
G172: =IF($P172<>"",MAX('Contact Information_ProviderEnt'!$I:$I,'Contact Information_IGT Entity'!$G:$I,$G$48:$G171)+1,0) -> 0 | L172: Anchor
G173: =IF($P173<>"",MAX('Contact Information_ProviderEnt'!$I:$I,'Contact Information_IGT Entity'!$G:$I,$G$48:$G172)+1,0) -> 0 | L173: Anchor
G174: =IF($P174<>"",MAX('Contact Information_ProviderEnt'!$I:$I,'Contact Information_IGT Entity'!$G:$I,$G$48:$G173)+1,0) -> 0 | L174: Anchor
G175: =IF($P175<>"",MAX('Contact Information_ProviderEnt'!$I:$I,'Contact Information_IGT Entity'!$G:$I,$G$48:$G174)+1,0) -> 0 | L175: Anchor
G176: =IF($P176<>"",MAX('Contact Information_ProviderEnt'!$I:$I,'Contact Information_IGT Entity'!$G:$I,$G$48:$G175)+1,0) -> 0 | L176: Anchor
G177: =IF($P177<>"",MAX('Contact Information_ProviderEnt'!$I:$I,'Contact Information_IGT Entity'!$G:$I,$G$48:$G176)+1,0) -> 0 | L177: Anchor
G178: =IF($P178<>"",MAX('Contact Information_ProviderEnt'!$I:$I,'Contact Information_IGT Entity'!$G:$I,$G$48:$G177)+1,0) -> 0 | L178: Anchor
G179: =IF($P179<>"",MAX('Contact Information_ProviderEnt'!$I:$I,'Contact Information_IGT Entity'!$G:$I,$G$48:$G178)+1,0) -> 0 | L179: Anchor
G180: =IF($P180<>"",MAX('Contact Information_ProviderEnt'!$I:$I,'Contact Information_IGT Entity'!$G:$I,$G$48:$G179)+1,0) -> 0 | L180: Anchor
G181: =IF($P181<>"",MAX('Contact Information_ProviderEnt'!$I:$I,'Contact Information_IGT Entity'!$G:$I,$G$48:$G180)+1,0) -> 0 | L181: Anchor
G182: =IF($P182<>"",MAX('Contact Information_ProviderEnt'!$I:$I,'Contact Information_IGT Entity'!$G:$I,$G$48:$G181)+1,0) -> 0 | L182: Anchor
G183: =IF($P183<>"",MAX('Contact Information_ProviderEnt'!$I:$I,'Contact Information_IGT Entity'!$G:$I,$G$48:$G182)+1,0) -> 0 | L183: Anchor
G184: =IF($P184<>"",MAX('Contact Information_ProviderEnt'!$I:$I,'Contact Information_IGT Entity'!$G:$I,$G$48:$G183)+1,0) -> 0 | L184: Anchor
G185: =IF($P185<>"",MAX('Contact Information_ProviderEnt'!$I:$I,'Contact Information_IGT Entity'!$G:$I,$G$48:$G184)+1,0) -> 0 | L185: Anchor
G186: =IF($P186<>"",MAX('Contact Information_ProviderEnt'!$I:$I,'Contact Information_IGT Entity'!$G:$I,$G$48:$G185)+1,0) -> 0 | L186: Anchor
G187: =IF($P187<>"",MAX('Contact Information_ProviderEnt'!$I:$I,'Contact Information_IGT Entity'!$G:$I,$G$48:$G186)+1,0) -> 0 | L187: Anchor
G188: =IF($P188<>"",MAX('Contact Information_ProviderEnt'!$I:$I,'Contact Information_IGT Entity'!$G:$I,$G$48:$G187)+1,0) -> 0 | L188: Anchor
G189: =IF($P189<>"",MAX('Contact Information_ProviderEnt'!$I:$I,'Contact Information_IGT Entity'!$G:$I,$G$48:$G188)+1,0) -> 0 | L189: Anchor
G190: =IF($P190<>"",MAX('Contact Information_ProviderEnt'!$I:$I,'Contact Information_IGT Entity'!$G:$I,$G$48:$G189)+1,0) -> 0 | L190: Anchor
G191: =IF($P191<>"",MAX('Contact Information_ProviderEnt'!$I:$I,'Contact Information_IGT Entity'!$G:$I,$G$48:$G190)+1,0) -> 0 | L191: Anchor
G192: =IF($P192<>"",MAX('Contact Information_ProviderEnt'!$I:$I,'Contact Information_IGT Entity'!$G:$I,$G$48:$G191)+1,0) -> 0 | L192: Anchor
G193: =IF($P193<>"",MAX('Contact Information_ProviderEnt'!$I:$I,'Contact Information_IGT Entity'!$G:$I,$G$48:$G192)+1,0) -> 0 | L193: Anchor
G194: =IF($P194<>"",MAX('Contact Information_ProviderEnt'!$I:$I,'Contact Information_IGT Entity'!$G:$I,$G$48:$G193)+1,0) -> 0 | L194: Anchor
G195: =IF($P195<>"",MAX('Contact Information_ProviderEnt'!$I:$I,'Contact Information_IGT Entity'!$G:$I,$G$48:$G194)+1,0) -> 0 | L195: Anchor
G196: =IF($P196<>"",MAX('Contact Information_ProviderEnt'!$I:$I,'Contact Information_IGT Entity'!$G:$I,$G$48:$G195)+1,0) -> 0 | L196: Anchor
G197: =IF($P197<>"",MAX('Contact Information_ProviderEnt'!$I:$I,'Contact Information_IGT Entity'!$G:$I,$G$48:$G196)+1,0) -> 0 | L197: Anchor
G198: =IF($P198<>"",MAX('Contact Information_ProviderEnt'!$I:$I,'Contact Information_IGT Entity'!$G:$I,$G$48:$G197)+1,0) -> 0 | L198: Anchor
G199: =IF($P199<>"",MAX('Contact Information_ProviderEnt'!$I:$I,'Contact Information_IGT Entity'!$G:$I,$G$48:$G198)+1,0) -> 0 | L199: Anchor
G200: =IF($P200<>"",MAX('Contact Information_ProviderEnt'!$I:$I,'Contact Information_IGT Entity'!$G:$I,$G$48:$G199)+1,0) -> 0 | L200: Anchor
G201: =IF($P201<>"",MAX('Contact Information_ProviderEnt'!$I:$I,'Contact Information_IGT Entity'!$G:$I,$G$48:$G200)+1,0) -> 0 | L201: Anchor
G202: =IF($P202<>"",MAX('Contact Information_ProviderEnt'!$I:$I,'Contact Information_IGT Entity'!$G:$I,$G$48:$G201)+1,0) -> 0 | L202: Anchor
G203: =IF($P203<>"",MAX('Contact Information_ProviderEnt'!$I:$I,'Contact Information_IGT Entity'!$G:$I,$G$48:$G202)+1,0) -> 0 | L203: Anchor
G204: =IF($P204<>"",MAX('Contact Information_ProviderEnt'!$I:$I,'Contact Information_IGT Entity'!$G:$I,$G$48:$G203)+1,0) -> 0 | L204: Anchor
G205: =IF($P205<>"",MAX('Contact Information_ProviderEnt'!$I:$I,'Contact Information_IGT Entity'!$G:$I,$G$48:$G204)+1,0) -> 0 | L205: Anchor
G206: =IF($P206<>"",MAX('Contact Information_ProviderEnt'!$I:$I,'Contact Information_IGT Entity'!$G:$I,$G$48:$G205)+1,0) -> 0 | L206: Anchor
G207: =IF($P207<>"",MAX('Contact Information_ProviderEnt'!$I:$I,'Contact Information_IGT Entity'!$G:$I,$G$48:$G206)+1,0) -> 0 | L207: Anchor
G208: =IF($P208<>"",MAX('Contact Information_ProviderEnt'!$I:$I,'Contact Information_IGT Entity'!$G:$I,$G$48:$G207)+1,0) -> 0 | L208: Anchor
G209: =IF($P209<>"",MAX('Contact Information_ProviderEnt'!$I:$I,'Contact Information_IGT Entity'!$G:$I,$G$48:$G208)+1,0) -> 0 | L209: Anchor
G210: =IF($P210<>"",MAX('Contact Information_ProviderEnt'!$I:$I,'Contact Information_IGT Entity'!$G:$I,$G$48:$G209)+1,0) -> 0 | L210: Anchor
G211: =IF($P211<>"",MAX('Contact Information_ProviderEnt'!$I:$I,'Contact Information_IGT Entity'!$G:$I,$G$48:$G210)+1,0) -> 0 | L211: Anchor
G212: =IF($P212<>"",MAX('Contact Information_ProviderEnt'!$I:$I,'Contact Information_IGT Entity'!$G:$I,$G$48:$G211)+1,0) -> 0 | L212: Anchor
... 788 more rows

Sheet Contact Information_RHPOrg3 (hidden)
D1: Start Cell Index | H1: Workbook | I1: Provider Type | J1: Offset | K1: 6 | L1: 6 | M1: 6 | N1: 6 | O1: 6 | P1: 6 | Q1: 6 | R1: 6 | S1: 6 | T1: 6 | U1: 6 | V1: 6 | W1: 6 | X1: 6 | Y1: 6 | Z1: 6 | AA1: 6 | AB1: 6 | AC1: 6 | AD1: 6 | AE1: 6 | AF1: 6 | AG1: 6 | AH1: 6 | AI1: 6 | AJ1: 6 | AK1: 6 | AL1: 6 | AM1: 6
